Workbook

Sheet RiskSerializationData (hidden)
A1: 1 | B1: 2
A2: =#REF! ->  | B2: FALSE | C2: 1 | D2: 1 | E2: GF1_rK0qDwEADgDFAAwjACYAOwBWAGoAawB5AIcAoQDBALsAKgD//wAAAAAAAQQAAAAAB0dlbmVyYWwAAAABFUluZmxhdGlvbiBESVNUIC8gMjAwOQEAAQEQAAIAAQpTdGF0aXN0aWNzAwEBAP8BAQEBAQABAQEABAAAAAEBAQEBAAEBAQAEAAAAAYsAABQADU5vcm1hbCgwOzEsMSkAACUBAgCpALIAAQECATMzMzMzMwHAATQzMzMzMwFAAQUAAQEBAAEBAQA= | F2: 1 | G2: =#REF! ->  | H2: 0 | I2: 1 | J2: TRUE | K2: FALSE | L2: 1 | M2: FALSE | N2: =_ -> 
A3: =#REF! ->  | B3: FALSE | C3: 1 | D3: 1 | E3: GF1_rK0qDwEADgDFAAwjACYAOwBWAGoAawB5AIcAoQDBALsAKgD//wAAAAAAAQQAAAAAB0dlbmVyYWwAAAABFUluZmxhdGlvbiBESVNUIC8gMjAwOQEAAQEQAAIAAQpTdGF0aXN0aWNzAwEBAP8BAQEBAQABAQEABAAAAAEBAQEBAAEBAQAEAAAAAYsAABQADU5vcm1hbCgwOzEsMSkAACUBAgCpALIAAQECATMzMzMzMwHAATQzMzMzMwFAAQUAAQEBAAEBAQA= | F3: 1 | G3: =#REF! ->  | H3: 0 | I3: 1 | J3: TRUE | K3: FALSE | L3: 1 | M3: FALSE | N3: =_ -> 
A4: 0
A5: =#REF! ->  | B5: FALSE | C5: 1 | D5: 1 | E5: GF1_rK0qDwEADgANAQwjACYAOwB2AIoAiwCZAKcA5wAJAQMBKgD//wAAAAAAAQQAAAAAB0dlbmVyYWwAAAABFkZ1ZWwgUHJpY2UgRElTVCAvIDIwMTQBH0NvbXBhcmlzb24gd2l0aCBOb3JtYWwoMDsxMCw4MSkBARAAAgABClN0YXRpc3RpY3MDAQEA/wEBAQEBAAEBAQAEAAAAAQEBAQEAAQEBAAQAAAACrgACzwAAHQAWRnVlbCBQcmljZSBESVNUIC8gMjAxNAAALwECAAIAFgAPTm9ybWFsKDA7MTAsODEpAQElAQIA7wD5AAEBAgGamZmZmZmpPwAAZmZmZmZm7j8AAAUAAQEBAAEBAQA= | F5: 2 | G5: 0 | H5: 0 | AG5: =#REF! ->  | AH5: 48 | AI5: 1 | AJ5: FALSE | AK5: FALSE | AL5: 1 | AM5: FALSE | AN5: =_ ->  | AO5: =#REF! ->  | AP5: 0 | AQ5: 1 | AR5: TRUE | AS5: FALSE | AT5: 1 | AU5: TRUE
A6: 0
A7: FALSE | B7: 13440 | C7: 6215 | D7: 7050 | E7: 100
A8: FALSE | B8: 13440 | C8: 6215 | D8: 7050 | E8: 500
A9: FALSE | B9: 13440 | C9: 6215 | D9: 7050 | E9: 1000
A10: FALSE | B10: 13440 | C10: 6215 | D10: 7050 | E10: 1500
A11: FALSE | B11: 13440 | C11: 6215 | D11: 7050 | E11: 2000
A12: 0
A13: 0 | B13: FALSE | C13: FALSE | D13: 10 | E13: 0,95 | F13: 1

Sheet Welcome
B10: Welcome to the online calculation tool for determining the Feasibility of Investing in an Ice Reinforced Containership for Navigation along the NSR
C13: Click on the image below to enter the calulation Tool

Sheet Results
B2: Feasibility of Investing in an Ice Reinforced Containership for Navigation along the NSR
B3: Step 1: Type your input in the yellow cells of the input section (Cells C11 through C37)
B4: Step 2: Read the earliest year where the investment in the ice reinforced vessel is favorable compared to the Ordinary Vessel
B5: Step 3: Read the development of the ratios of the total costs per TEU as a function of the investment year
B7: Input | E7: Results | I7: Illustrations
B9: NSR Vessel Variables | C9: Value | E9: Total Cost per TEU
B10: Vessel Container Capacity (TEU) | C10: 8000
B11: Vessel Price ($USD) | C11: 105480000
B12: Open Water Voyage Speed Along the NSR (knots) | C12: 15 | F12: Earlist Year of Advantage | G12: Cost per TEU in earliest year of advantage
B13: Voyage Speed on the SCR (knots) | C13: 18
B14: Ice water speed (knots) | C14: 10 | G14: SCR Vessel | H14: NSR Vessel
E15: Low Fuel Price | F15: =IF(Analysis!AF5>1,INDEX(Analysis!$M$3:$AF$3,,MATCH(MIN(Analysis!M12:AF12),Analysis!M12:AF12,0)),"The investment will not be feasible between 2016 and 2035") -> The investment will not be feasible between 2016 and 2035 | G15: =IF(Analysis!AI5>0,ROUND(INDEX('SCR Vessel'!F56:Y56,,(MATCH(MIN('SCR Vessel'!F61:Y61),'SCR Vessel'!F61:Y61,0))),0)& " $USD","Given an investment year of 2035, the total cost per TEU equals "&ROUND(INDEX('SCR Vessel'!F56:Y56,,(MATCH(MAX('SCR Vessel'!F61:Y61),'SCR Vessel'!F61:Y61,0))),0)& " $USD") -> Given an investment year of 2035, the total cost per TEU equals 70 $USD | H15: =IF(Analysis!AI5>0,ROUND(INDEX('NSR Vessel'!F67:Y67,,(MATCH(MIN('NSR Vessel'!F72:Y72),'NSR Vessel'!F72:Y72,0))),0)& " $USD","Given an investment year of 2035, the total cost per TEU equals "&ROUND(INDEX('NSR Vessel'!F67:Y67,,(MATCH(MAX('NSR Vessel'!F72:Y72),'NSR Vessel'!F72:Y72,0))),0)& " $USD") -> Given an investment year of 2035, the total cost per TEU equals 73 $USD
B16: SCR Vessel Variables | C16: Value
B17: Vessel Container Capacity (TEU) | C17: 8000
B18: Standard Vessel Price ($USD) | C18: 87900000 | E18: Medium Fuel Price | F18: =IF(Analysis!AF6>1,INDEX(Analysis!$M$3:$AF$3,,MATCH(MIN(Analysis!M13:AF13),Analysis!M13:AF13,0)),"The investment will not be feasible between 2016 and 2035") -> The investment will not be feasible between 2016 and 2035 | G18: =IF(Analysis!AI6>0,ROUND(INDEX('SCR Vessel'!F57:Y57,,(MATCH(MIN('SCR Vessel'!F62:Y62),'SCR Vessel'!F62:Y62,0))),0)& " $USD","Given an investment year of 2035, the total cost per TEU equals "&ROUND(INDEX('SCR Vessel'!F57:Y57,,(MATCH(MAX('SCR Vessel'!F62:Y62),'SCR Vessel'!F62:Y62,0))),0)& " $USD") -> Given an investment year of 2035, the total cost per TEU equals 91 $USD | H18: =IF(Analysis!AI6>0,ROUND(INDEX('NSR Vessel'!F68:Y68,,(MATCH(MIN('NSR Vessel'!F73:Y73),'NSR Vessel'!F73:Y73,0))),0)& " $USD","Given an investment year of 2035, the total cost per TEU equals "&ROUND(INDEX('NSR Vessel'!F68:Y68,,(MATCH(MAX('NSR Vessel'!F73:Y73),'NSR Vessel'!F73:Y73,0))),0)& " $USD") -> Given an investment year of 2035, the total cost per TEU equals 92 $USD
B19: Voyage Speed Along the SCR (knots) | C19: 18
B21: NSR Route Variables | C21: Value | E21: High Fuel Price | F21: =IF(Analysis!AF7>1,INDEX(Analysis!$M$3:$AF$3,,MATCH(MIN(Analysis!M14:AF14),Analysis!M14:AF14,0)),"The investment will not be feasible between 2016 and 2035") -> 2033 | G21: =IF(Analysis!AI7>0,ROUND(INDEX('SCR Vessel'!F58:Y58,,(MATCH(MIN('SCR Vessel'!F63:Y63),'SCR Vessel'!F63:Y63,0))),0)& " $USD","Given an investment year of 2035, the total cost per TEU equals "&ROUND(INDEX('SCR Vessel'!F58:Y58,,(MATCH(MAX('SCR Vessel'!F63:Y63),'SCR Vessel'!F63:Y63,0))),0)& " $USD") -> 123 $USD | H21: =IF(Analysis!AI7>0,ROUND(INDEX('NSR Vessel'!F69:Y69,,(MATCH(MIN('NSR Vessel'!F74:Y74),'NSR Vessel'!F74:Y74,0))),0)& " $USD","Given an investment year of 2035, the total cost per TEU equals "&ROUND(INDEX('NSR Vessel'!F69:Y69,,(MATCH(MAX('NSR Vessel'!F74:Y74),'NSR Vessel'!F74:Y74,0))),0)& " $USD") -> 123 $USD
B22: Distance NSR (nm) | C22: 8366
B23: Ice water distance (nm) | C23: 1214
B24: Annual navigation days in 2016 (days) | C24: 120
B25: Annual navigation day increase (days) | C25: 3 | E25: Annual Cost per TEU
B26: Port visits per round trip NSR | C26: 6
B27: Load Factor NSR (%) | C27: 75
F28: Earliest Year of Advantage | G28: Cost per TEU in earliest year of advantage
B29: SCR Route Variables | C29: Value
B30: Distance SCR (nm) | C30: 11784 | G30: SCR Vessel | H30: NSR Vessel
B31: Port visits per round trip SCR | C31: 10 | E31: Low Fuel Price | F31: =IF(Analysis!AW46>1,IF(Analysis!E46>1,2016,INDEX(Analysis!$E$45:$AW$45,,MATCH(MIN(Analysis!E52:AW52),Analysis!E52:AW52,0))),"Annual cost per TEU will not be advantageous between 2016 and 2060") -> 2052 | G31: =IF(Analysis!AI12>0,ROUND(INDEX('SCR Vessel'!F51:AW51,,(MATCH(MIN('SCR Vessel'!F66:AW66),'SCR Vessel'!F66:AW66,0))),0)& " $USD","In year 2060 the annual cost per TEU equals "&ROUND(INDEX('SCR Vessel'!F51:AW51,,(MATCH(MAX('SCR Vessel'!F66:AW66),'SCR Vessel'!F66:AW66,0))),0)& " $USD") -> 426 $USD | H31: =IF(Analysis!AI12>0,ROUND(INDEX('NSR Vessel'!F62:AW62,,(MATCH(MIN('NSR Vessel'!F77:AW77),'NSR Vessel'!F77:AW77,0))),0)& " $USD","In year 2060 the annual cost per TEU equals "&ROUND(INDEX('NSR Vessel'!F62:AW62,,(MATCH(MAX('NSR Vessel'!F77:AW77),'NSR Vessel'!F77:AW77,0))),0)& " $USD") -> 425 $USD
B32: Load Factor SCR (%) | C32: 75
B34: Valuation | C34: Value | E34: Medium Fuel Price | F34: =IF(Analysis!AW48>1,IF(Analysis!E47>1,2016,INDEX(Analysis!$E$45:$AW$45,,MATCH(MIN(Analysis!E53:AW53),Analysis!E53:AW53,0))),"Annual cost per TEU will not be advantageous between 2016 and 2060") -> 2043 | G34: =IF(Analysis!AI13>0,ROUND(INDEX('SCR Vessel'!F52:AW52,,(MATCH(MIN('SCR Vessel'!F67:AW67),'SCR Vessel'!F67:AW67,0))),0)& " $USD","In year 2060 the annual cost per TEU equals "&ROUND(INDEX('SCR Vessel'!F52:AW52,,(MATCH(MAX('SCR Vessel'!F67:AW67),'SCR Vessel'!F67:AW67,0))),0)& " $USD") -> 571 $USD | H34: =IF(Analysis!AI13>0,ROUND(INDEX('NSR Vessel'!F63:AW63,,(MATCH(MIN('NSR Vessel'!F78:AW78),'NSR Vessel'!F78:AW78,0))),0)& " $USD","In year 2060 the annual cost per TEU equals "&ROUND(INDEX('NSR Vessel'!F63:AW63,,(MATCH(MAX('NSR Vessel'!F78:AW78),'NSR Vessel'!F78:AW78,0))),0)& " $USD") -> 565 $USD
B35: Discount Factor (%) | C35: 7
B36: Capital Costs Interest Rate (%) | C36: 7
B37: Debt amortiazation (years) | C37: 15 | E37: High Fuel Price | F37: =IF(Analysis!AW48>1,IF(Analysis!E48>1,2016,INDEX(Analysis!$E$45:$AW$45,,MATCH(MIN(Analysis!E54:AW54),Analysis!E54:AW54,0))),"Annual cost per TEU will not be advantageous between 2016 and 2060") -> 2042 | G37: =IF(Analysis!AI14>0,ROUND(INDEX('SCR Vessel'!F53:AW53,,(MATCH(MIN('SCR Vessel'!F68:AW68),'SCR Vessel'!F68:AW68,0))),0)& " $USD","In year 2060 the annual cost per TEU equals "&ROUND(INDEX('SCR Vessel'!F53:AW53,,(MATCH(MAX('SCR Vessel'!F68:AW68),'SCR Vessel'!F68:AW68,0))),0)& " $USD") -> 705 $USD | H37: =IF(Analysis!AI14>0,ROUND(INDEX('NSR Vessel'!F64:AW64,,(MATCH(MIN('NSR Vessel'!F79:AW79),'NSR Vessel'!F79:AW79,0))),0)& " $USD","In year 2060 the annual cost per TEU equals "&ROUND(INDEX('NSR Vessel'!F64:AW64,,(MATCH(MAX('NSR Vessel'!F79:AW79),'NSR Vessel'!F79:AW79,0))),0)& " $USD") -> 710 $USD

Sheet Advanced
A2: Advanced Settings
B3: Step 1: Change input of the variables below
B4: Step 2: Insert retrofit cost value (either cost per engine size or absolute values)
B5: Step 3: After entering the advanced settings click on the button "Return to Results".
B8: Speed Variables | C8: Value
B9: Average waiting time Suez Canal (days) | C9: 4
B10: Average icebreaker waiting time (days) | C10: 8
B11: Annual icebreaker waiting time decrease (days) | C11: 0.1
B13: Ordinary Vessel Cost Variables | C13: Value
B14: Cantainer handling costs per TEU ($USD per TEU) | C14: 100
B15: Port Call Fee ($USD per call) | C15: =0.428 * 'SCR Vessel'!D5 -> 34871.66803
B16: Annual M&R Ordinary Vessel ($USD) | C16: =DIST!E38 * 'SCR Vessel'!D6 -> 962505
B17: Annual Insurance Costs (USD) | C17: =DIST!E39 * 'SCR Vessel'!D6 -> 377970
B18: Annual Crew Costs ($USD) | C18: 1200000
B19: Suez Canal Fee ($USD) | C19: 450808
B21: Ice Strenthened Vessel Cost Variables | C21: Value
B22: Cantainer handling costs per TEU ($USD per TEU) | C22: 100
B23: Port Call Fee ($USD per Portcall) | C23: =0.428 * 'NSR Vessel'!D5 -> 34871.66803
B24: Annual M&R Ice Reinforced Vessel ($USD) | C24: =DIST!E38* 'NSR Vessel'!D6 -> 1155006
B25: Arctic Insurance Surcharge ($USD) | C25: =DIST!E39 * 'NSR Vessel'!D6 + 800000 -> 1253564
B26: Annual Crew Costs ($USD) | C26: 1200000
B27: Suez Canal Fee ($USD) | C27: 450808
B28: End Season Icebreaker Fee ($USD) | C28: =9.47 *'NSR Vessel'!D5 -> 771576.393
B29: Mid Season Icebreaker Fee ($USD) | C29: =7.1*'NSR Vessel'!D5 -> 578478.6051

Sheet NSR Vessel (hidden)
C3: Inputs | F3: Fixed Outputs | I3: Fixed Outputs
C4: Ship TEU | D4: =Results!C10 -> 8000 | F4: Maintenance Costs (annual) | G4: =Advanced!C24 -> 1155006 | I4: Port dues per trip (SCR) | J4: =Advanced!C23*DIST!$E$27 -> 174358.3401
C5: Gross Ton | D5: =(0.2+0.02*LOG('NSR WEIGHT'!C22))*'NSR WEIGHT'!C22 -> 81475.85987 | F5: Insurance Costs (annual) | G5: =Advanced!C25 -> 1253564 | I5: Port dues per trip (NSR) | J5: =Advanced!C23*DIST!$E$28 -> 104615.0041
C6: Vessel Price | D6: =Results!C11 -> 105480000 | F6: Crew Costs (annual) | G6: =Advanced!C26 -> 1200000 | I6: Cargo handling per trip (SCR) | J6: =DIST!$E$35*DIST!E14*$D$4 -> 600000
C7: Fuel Consumption OW SCR (ton/nm) | D7: ='NSR SHIP DATA'!D83/Results!C13 -> 0.2386251389 | F7: Total Fixed Costs (annual) | G7: =SUM(G4:G6) -> 3608570 | I7: Cargo handling per trip (NSR) | J7: =DIST!$E$35*DIST!E15*$D$4 -> 600000
C8: Fuel Consumption IW (ton/nm) | D8: ='NSR SHIP DATA'!E83/Results!C14 -> 0.1206824 | F8: Initial payment | G8: =D6*0.3 -> 31644000 | I8: NSR Fee 4 zones | J8: =Advanced!C28 -> 771576.393
C9: Fuel Consumption OW NSR (ton/nm) | D9: ='NSR SHIP DATA'!C83/Results!C12 -> 0.1878174225 | F9: Debt Service | G9: =0.7*D6*(DIST!E40/(1-(1+DIST!E40)^-DIST!E41)) -> 8106795.909 | I9: NSR Fee 2 zones | J9: =Advanced!C29 -> 578478.6051
F10: Suez Canal Fee | G10: =Advanced!C27 -> 450808
C11: =453614.41/((1.02)^2) -> 436000.0096
C12: =7.39/(1.02^2) -> 7.103037293
C13: NSR LOW | E13: 2015 | F13: 2016 | G13: 2017 | H13: 2018 | I13: 2019 | J13: 2020 | K13: 2021 | L13: 2022 | M13: 2023 | N13: 2024 | O13: 2025 | P13: 2026 | Q13: 2027 | R13: 2028 | S13: 2029 | T13: 2030 | U13: 2031 | V13: 2032 | W13: 2033 | X13: 2034 | Y13: 2035 | Z13: 2036 | AA13: 2037 | AB13: 2038 | AC13: 2039 | AD13: 2040 | AE13: 2041 | AF13: 2042 | AG13: 2043 | AH13: 2044 | AI13: 2045 | AJ13: 2046 | AK13: 2047 | AL13: 2048 | AM13: 2049 | AN13: 2050 | AO13: 2051 | AP13: 2052 | AQ13: 2053 | AR13: 2054 | AS13: 2055 | AT13: 2056 | AU13: 2057 | AV13: 2058 | AW13: 2059 | AX13: 2060
C14: Year | E14: 0 | F14: 0 | G14: 1 | H14: 2 | I14: 3 | J14: 4 | K14: 5 | L14: 6 | M14: 7 | N14: 8 | O14: 9 | P14: 10 | Q14: 11 | R14: 12 | S14: 13 | T14: 14 | U14: 15 | V14: 16 | W14: 17 | X14: 18 | Y14: 19 | Z14: 20 | AA14: 21 | AB14: 22 | AC14: 23 | AD14: 24 | AE14: 25 | AF14: 26 | AG14: 27 | AH14: 28 | AI14: 29 | AJ14: 30 | AK14: 31 | AL14: 32 | AM14: 33 | AN14: 34 | AO14: 35 | AP14: 36 | AQ14: 37 | AR14: 38 | AS14: 39 | AT14: 40 | AU14: 41 | AV14: 42 | AW14: 43 | AX14: 44
C16: Costs per trip
C17: Port dues per trip (SCR) | E17: =Advanced!$C$23*DIST!$E$27 -> 174358.3401 | F17: =Advanced!$C$23*DIST!$E$27 -> 174358.3401 | G17: =Advanced!$C$23*DIST!$E$27 -> 174358.3401 | H17: =Advanced!$C$23*DIST!$E$27 -> 174358.3401 | I17: =Advanced!$C$23*DIST!$E$27 -> 174358.3401 | J17: =Advanced!$C$23*DIST!$E$27 -> 174358.3401 | K17: =Advanced!$C$23*DIST!$E$27 -> 174358.3401 | L17: =Advanced!$C$23*DIST!$E$27 -> 174358.3401 | M17: =Advanced!$C$23*DIST!$E$27 -> 174358.3401 | N17: =Advanced!$C$23*DIST!$E$27 -> 174358.3401 | O17: =Advanced!$C$23*DIST!$E$27 -> 174358.3401 | P17: =Advanced!$C$23*DIST!$E$27 -> 174358.3401 | Q17: =Advanced!$C$23*DIST!$E$27 -> 174358.3401 | R17: =Advanced!$C$23*DIST!$E$27 -> 174358.3401 | S17: =Advanced!$C$23*DIST!$E$27 -> 174358.3401 | T17: =Advanced!$C$23*DIST!$E$27 -> 174358.3401 | U17: =Advanced!$C$23*DIST!$E$27 -> 174358.3401 | V17: =Advanced!$C$23*DIST!$E$27 -> 174358.3401 | W17: =Advanced!$C$23*DIST!$E$27 -> 174358.3401 | X17: =Advanced!$C$23*DIST!$E$27 -> 174358.3401 | Y17: =Advanced!$C$23*DIST!$E$27 -> 174358.3401 | Z17: =Advanced!$C$23*DIST!$E$27 -> 174358.3401 | AA17: =Advanced!$C$23*DIST!$E$27 -> 174358.3401 | AB17: =Advanced!$C$23*DIST!$E$27 -> 174358.3401 | AC17: =Advanced!$C$23*DIST!$E$27 -> 174358.3401 | AD17: =Advanced!$C$23*DIST!$E$27 -> 174358.3401 | AE17: =Advanced!$C$23*DIST!$E$27 -> 174358.3401 | AF17: =Advanced!$C$23*DIST!$E$27 -> 174358.3401 | AG17: =Advanced!$C$23*DIST!$E$27 -> 174358.3401 | AH17: =Advanced!$C$23*DIST!$E$27 -> 174358.3401 | AI17: =Advanced!$C$23*DIST!$E$27 -> 174358.3401 | AJ17: =Advanced!$C$23*DIST!$E$27 -> 174358.3401 | AK17: =Advanced!$C$23*DIST!$E$27 -> 174358.3401 | AL17: =Advanced!$C$23*DIST!$E$27 -> 174358.3401 | AM17: =Advanced!$C$23*DIST!$E$27 -> 174358.3401 | AN17: =Advanced!$C$23*DIST!$E$27 -> 174358.3401 | AO17: =Advanced!$C$23*DIST!$E$27 -> 174358.3401 | AP17: =Advanced!$C$23*DIST!$E$27 -> 174358.3401 | AQ17: =Advanced!$C$23*DIST!$E$27 -> 174358.3401 | AR17: =Advanced!$C$23*DIST!$E$27 -> 174358.3401 | AS17: =Advanced!$C$23*DIST!$E$27 -> 174358.3401 | AT17: =Advanced!$C$23*DIST!$E$27 -> 174358.3401 | AU17: =Advanced!$C$23*DIST!$E$27 -> 174358.3401 | AV17: =Advanced!$C$23*DIST!$E$27 -> 174358.3401 | AW17: =Advanced!$C$23*DIST!$E$27 -> 174358.3401 | AX17: =Advanced!$C$23*DIST!$E$27 -> 174358.3401
C18: Port dues per trip (NSR) | E18: =Advanced!$C$23*DIST!$E$28 -> 104615.0041 | F18: =Advanced!$C$23*DIST!$E$28 -> 104615.0041 | G18: =Advanced!$C$23*DIST!$E$28 -> 104615.0041 | H18: =Advanced!$C$23*DIST!$E$28 -> 104615.0041 | I18: =Advanced!$C$23*DIST!$E$28 -> 104615.0041 | J18: =Advanced!$C$23*DIST!$E$28 -> 104615.0041 | K18: =Advanced!$C$23*DIST!$E$28 -> 104615.0041 | L18: =Advanced!$C$23*DIST!$E$28 -> 104615.0041 | M18: =Advanced!$C$23*DIST!$E$28 -> 104615.0041 | N18: =Advanced!$C$23*DIST!$E$28 -> 104615.0041 | O18: =Advanced!$C$23*DIST!$E$28 -> 104615.0041 | P18: =Advanced!$C$23*DIST!$E$28 -> 104615.0041 | Q18: =Advanced!$C$23*DIST!$E$28 -> 104615.0041 | R18: =Advanced!$C$23*DIST!$E$28 -> 104615.0041 | S18: =Advanced!$C$23*DIST!$E$28 -> 104615.0041 | T18: =Advanced!$C$23*DIST!$E$28 -> 104615.0041 | U18: =Advanced!$C$23*DIST!$E$28 -> 104615.0041 | V18: =Advanced!$C$23*DIST!$E$28 -> 104615.0041 | W18: =Advanced!$C$23*DIST!$E$28 -> 104615.0041 | X18: =Advanced!$C$23*DIST!$E$28 -> 104615.0041 | Y18: =Advanced!$C$23*DIST!$E$28 -> 104615.0041 | Z18: =Advanced!$C$23*DIST!$E$28 -> 104615.0041 | AA18: =Advanced!$C$23*DIST!$E$28 -> 104615.0041 | AB18: =Advanced!$C$23*DIST!$E$28 -> 104615.0041 | AC18: =Advanced!$C$23*DIST!$E$28 -> 104615.0041 | AD18: =Advanced!$C$23*DIST!$E$28 -> 104615.0041 | AE18: =Advanced!$C$23*DIST!$E$28 -> 104615.0041 | AF18: =Advanced!$C$23*DIST!$E$28 -> 104615.0041 | AG18: =Advanced!$C$23*DIST!$E$28 -> 104615.0041 | AH18: =Advanced!$C$23*DIST!$E$28 -> 104615.0041 | AI18: =Advanced!$C$23*DIST!$E$28 -> 104615.0041 | AJ18: =Advanced!$C$23*DIST!$E$28 -> 104615.0041 | AK18: =Advanced!$C$23*DIST!$E$28 -> 104615.0041 | AL18: =Advanced!$C$23*DIST!$E$28 -> 104615.0041 | AM18: =Advanced!$C$23*DIST!$E$28 -> 104615.0041 | AN18: =Advanced!$C$23*DIST!$E$28 -> 104615.0041 | AO18: =Advanced!$C$23*DIST!$E$28 -> 104615.0041 | AP18: =Advanced!$C$23*DIST!$E$28 -> 104615.0041 | AQ18: =Advanced!$C$23*DIST!$E$28 -> 104615.0041 | AR18: =Advanced!$C$23*DIST!$E$28 -> 104615.0041 | AS18: =Advanced!$C$23*DIST!$E$28 -> 104615.0041 | AT18: =Advanced!$C$23*DIST!$E$28 -> 104615.0041 | AU18: =Advanced!$C$23*DIST!$E$28 -> 104615.0041 | AV18: =Advanced!$C$23*DIST!$E$28 -> 104615.0041 | AW18: =Advanced!$C$23*DIST!$E$28 -> 104615.0041 | AX18: =Advanced!$C$23*DIST!$E$28 -> 104615.0041
C19: Cargo handling per trip (SCR) | E19: =DIST!$E$35*DIST!E14*$D$4 -> 600000 | F19: =DIST!$E$35*DIST!F14*$D$4 -> 600000 | G19: =DIST!$E$35*DIST!G14*$D$4 -> 600000 | H19: =DIST!$E$35*DIST!H14*$D$4 -> 600000 | I19: =DIST!$E$35*DIST!I14*$D$4 -> 600000 | J19: =DIST!$E$35*DIST!J14*$D$4 -> 600000 | K19: =DIST!$E$35*DIST!K14*$D$4 -> 600000 | L19: =DIST!$E$35*DIST!L14*$D$4 -> 600000 | M19: =DIST!$E$35*DIST!M14*$D$4 -> 600000 | N19: =DIST!$E$35*DIST!N14*$D$4 -> 600000 | O19: =DIST!$E$35*DIST!O14*$D$4 -> 600000 | P19: =DIST!$E$35*DIST!P14*$D$4 -> 600000 | Q19: =DIST!$E$35*DIST!Q14*$D$4 -> 600000 | R19: =DIST!$E$35*DIST!R14*$D$4 -> 600000 | S19: =DIST!$E$35*DIST!S14*$D$4 -> 600000 | T19: =DIST!$E$35*DIST!T14*$D$4 -> 600000 | U19: =DIST!$E$35*DIST!U14*$D$4 -> 600000 | V19: =DIST!$E$35*DIST!V14*$D$4 -> 600000 | W19: =DIST!$E$35*DIST!W14*$D$4 -> 600000 | X19: =DIST!$E$35*DIST!X14*$D$4 -> 600000 | Y19: =DIST!$E$35*DIST!Y14*$D$4 -> 600000 | Z19: =DIST!$E$35*DIST!Z14*$D$4 -> 600000 | AA19: =DIST!$E$35*DIST!AA14*$D$4 -> 600000 | AB19: =DIST!$E$35*DIST!AB14*$D$4 -> 600000 | AC19: =DIST!$E$35*DIST!AC14*$D$4 -> 600000 | AD19: =DIST!$E$35*DIST!AD14*$D$4 -> 600000 | AE19: =DIST!$E$35*DIST!AE14*$D$4 -> 600000 | AF19: =DIST!$E$35*DIST!AF14*$D$4 -> 600000 | AG19: =DIST!$E$35*DIST!AG14*$D$4 -> 600000 | AH19: =DIST!$E$35*DIST!AH14*$D$4 -> 600000 | AI19: =DIST!$E$35*DIST!AI14*$D$4 -> 600000 | AJ19: =DIST!$E$35*DIST!AJ14*$D$4 -> 600000 | AK19: =DIST!$E$35*DIST!AK14*$D$4 -> 600000 | AL19: =DIST!$E$35*DIST!AL14*$D$4 -> 600000 | AM19: =DIST!$E$35*DIST!AM14*$D$4 -> 600000 | AN19: =DIST!$E$35*DIST!AN14*$D$4 -> 600000 | AO19: =DIST!$E$35*DIST!AO14*$D$4 -> 600000 | AP19: =DIST!$E$35*DIST!AP14*$D$4 -> 600000 | AQ19: =DIST!$E$35*DIST!AQ14*$D$4 -> 600000 | AR19: =DIST!$E$35*DIST!AR14*$D$4 -> 600000 | AS19: =DIST!$E$35*DIST!AS14*$D$4 -> 600000 | AT19: =DIST!$E$35*DIST!AT14*$D$4 -> 600000 | AU19: =DIST!$E$35*DIST!AU14*$D$4 -> 600000 | AV19: =DIST!$E$35*DIST!AV14*$D$4 -> 600000 | AW19: =DIST!$E$35*DIST!AW14*$D$4 -> 600000 | AX19: =DIST!$E$35*DIST!AX14*$D$4 -> 600000
C20: Cargo handling per trip (NSR) | E20: =DIST!$E$35*DIST!E15*$D$4 -> 600000 | F20: =DIST!$E$35*DIST!F15*$D$4 -> 600000 | G20: =DIST!$E$35*DIST!G15*$D$4 -> 600000 | H20: =DIST!$E$35*DIST!H15*$D$4 -> 600000 | I20: =DIST!$E$35*DIST!I15*$D$4 -> 600000 | J20: =DIST!$E$35*DIST!J15*$D$4 -> 600000 | K20: =DIST!$E$35*DIST!K15*$D$4 -> 600000 | L20: =DIST!$E$35*DIST!L15*$D$4 -> 600000 | M20: =DIST!$E$35*DIST!M15*$D$4 -> 600000 | N20: =DIST!$E$35*DIST!N15*$D$4 -> 600000 | O20: =DIST!$E$35*DIST!O15*$D$4 -> 600000 | P20: =DIST!$E$35*DIST!P15*$D$4 -> 600000 | Q20: =DIST!$E$35*DIST!Q15*$D$4 -> 600000 | R20: =DIST!$E$35*DIST!R15*$D$4 -> 600000 | S20: =DIST!$E$35*DIST!S15*$D$4 -> 600000 | T20: =DIST!$E$35*DIST!T15*$D$4 -> 600000 | U20: =DIST!$E$35*DIST!U15*$D$4 -> 600000 | V20: =DIST!$E$35*DIST!V15*$D$4 -> 600000 | W20: =DIST!$E$35*DIST!W15*$D$4 -> 600000 | X20: =DIST!$E$35*DIST!X15*$D$4 -> 600000 | Y20: =DIST!$E$35*DIST!Y15*$D$4 -> 600000 | Z20: =DIST!$E$35*DIST!Z15*$D$4 -> 600000 | AA20: =DIST!$E$35*DIST!AA15*$D$4 -> 600000 | AB20: =DIST!$E$35*DIST!AB15*$D$4 -> 600000 | AC20: =DIST!$E$35*DIST!AC15*$D$4 -> 600000 | AD20: =DIST!$E$35*DIST!AD15*$D$4 -> 600000 | AE20: =DIST!$E$35*DIST!AE15*$D$4 -> 600000 | AF20: =DIST!$E$35*DIST!AF15*$D$4 -> 600000 | AG20: =DIST!$E$35*DIST!AG15*$D$4 -> 600000 | AH20: =DIST!$E$35*DIST!AH15*$D$4 -> 600000 | AI20: =DIST!$E$35*DIST!AI15*$D$4 -> 600000 | AJ20: =DIST!$E$35*DIST!AJ15*$D$4 -> 600000 | AK20: =DIST!$E$35*DIST!AK15*$D$4 -> 600000 | AL20: =DIST!$E$35*DIST!AL15*$D$4 -> 600000 | AM20: =DIST!$E$35*DIST!AM15*$D$4 -> 600000 | AN20: =DIST!$E$35*DIST!AN15*$D$4 -> 600000 | AO20: =DIST!$E$35*DIST!AO15*$D$4 -> 600000 | AP20: =DIST!$E$35*DIST!AP15*$D$4 -> 600000 | AQ20: =DIST!$E$35*DIST!AQ15*$D$4 -> 600000 | AR20: =DIST!$E$35*DIST!AR15*$D$4 -> 600000 | AS20: =DIST!$E$35*DIST!AS15*$D$4 -> 600000 | AT20: =DIST!$E$35*DIST!AT15*$D$4 -> 600000 | AU20: =DIST!$E$35*DIST!AU15*$D$4 -> 600000 | AV20: =DIST!$E$35*DIST!AV15*$D$4 -> 600000 | AW20: =DIST!$E$35*DIST!AW15*$D$4 -> 600000 | AX20: =DIST!$E$35*DIST!AX15*$D$4 -> 600000
C21: Fuel Costs SCR (low) | E21: =DIST!$E$21*$D$7*DIST!E10 -> 1136209.297 | F21: =DIST!$E$21*$D$7*DIST!F10 -> 1083378.709 | G21: =DIST!$E$21*$D$7*DIST!G10 -> 1070249.598 | H21: =DIST!$E$21*$D$7*DIST!H10 -> 1070279.733 | I21: =DIST!$E$21*$D$7*DIST!I10 -> 1070921.33 | J21: =DIST!$E$21*$D$7*DIST!J10 -> 1075678.276 | K21: =DIST!$E$21*$D$7*DIST!K10 -> 1083819.92 | L21: =DIST!$E$21*$D$7*DIST!L10 -> 1089395.845 | M21: =DIST!$E$21*$D$7*DIST!M10 -> 1097476.729 | N21: =DIST!$E$21*$D$7*DIST!N10 -> 1108713.536 | O21: =DIST!$E$21*$D$7*DIST!O10 -> 1117897.43 | P21: =DIST!$E$21*$D$7*DIST!P10 -> 1124690.32 | Q21: =DIST!$E$21*$D$7*DIST!Q10 -> 1129285.97 | R21: =DIST!$E$21*$D$7*DIST!R10 -> 1134648.401 | S21: =DIST!$E$21*$D$7*DIST!S10 -> 1140602.308 | T21: =DIST!$E$21*$D$7*DIST!T10 -> 1157968.425 | U21: =DIST!$E$21*$D$7*DIST!U10 -> 1165959.766 | V21: =DIST!$E$21*$D$7*DIST!V10 -> 1173483.738 | W21: =DIST!$E$21*$D$7*DIST!W10 -> 1173952.165 | X21: =DIST!$E$21*$D$7*DIST!X10 -> 1182385.992 | Y21: =DIST!$E$21*$D$7*DIST!Y10 -> 1189665.179 | Z21: =DIST!$E$21*$D$7*DIST!Z10 -> 1193319.272 | AA21: =DIST!$E$21*$D$7*DIST!AA10 -> 1203776.347 | AB21: =DIST!$E$21*$D$7*DIST!AB10 -> 1211702.147 | AC21: =DIST!$E$21*$D$7*DIST!AC10 -> 1221054.644 | AD21: =DIST!$E$21*$D$7*DIST!AD10 -> 1231386.75 | AE21: =DIST!$E$21*$D$7*DIST!AE10 -> 1238966.025 | AF21: =DIST!$E$21*$D$7*DIST!AF10 -> 1246545.3 | AG21: =DIST!$E$21*$D$7*DIST!AG10 -> 1254124.575 | AH21: =DIST!$E$21*$D$7*DIST!AH10 -> 1261703.85 | AI21: =DIST!$E$21*$D$7*DIST!AI10 -> 1269283.125 | AJ21: =DIST!$E$21*$D$7*DIST!AJ10 -> 1276862.4 | AK21: =DIST!$E$21*$D$7*DIST!AK10 -> 1284441.675 | AL21: =DIST!$E$21*$D$7*DIST!AL10 -> 1292020.95 | AM21: =DIST!$E$21*$D$7*DIST!AM10 -> 1299600.225 | AN21: =DIST!$E$21*$D$7*DIST!AN10 -> 1307179.5 | AO21: =DIST!$E$21*$D$7*DIST!AO10 -> 1314758.775 | AP21: =DIST!$E$21*$D$7*DIST!AP10 -> 1322338.05 | AQ21: =DIST!$E$21*$D$7*DIST!AQ10 -> 1329917.325 | AR21: =DIST!$E$21*$D$7*DIST!AR10 -> 1337496.6 | AS21: =DIST!$E$21*$D$7*DIST!AS10 -> 1345075.875 | AT21: =DIST!$E$21*$D$7*DIST!AT10 -> 1352655.15 | AU21: =DIST!$E$21*$D$7*DIST!AU10 -> 1360234.425 | AV21: =DIST!$E$21*$D$7*DIST!AV10 -> 1367813.7 | AW21: =DIST!$E$21*$D$7*DIST!AW10 -> 1375392.975 | AX21: =DIST!$E$21*$D$7*DIST!AX10 -> 1382972.25
C22: Fuel Costs NSR (low) | E22: =DIST!$E$20*$D$8*DIST!E10+(DIST!$E$22-DIST!$E$20)*$D$9*DIST!E10 -> 601964.8785 | F22: =DIST!$E$20*$D$8*DIST!F10+(DIST!$E$22-DIST!$E$20)*$D$9*DIST!F10 -> 573975.1776 | G22: =DIST!$E$20*$D$8*DIST!G10+(DIST!$E$22-DIST!$E$20)*$D$9*DIST!G10 -> 567019.3611 | H22: =DIST!$E$20*$D$8*DIST!H10+(DIST!$E$22-DIST!$E$20)*$D$9*DIST!H10 -> 567035.3268 | I22: =DIST!$E$20*$D$8*DIST!I10+(DIST!$E$22-DIST!$E$20)*$D$9*DIST!I10 -> 567375.2453 | J22: =DIST!$E$20*$D$8*DIST!J10+(DIST!$E$22-DIST!$E$20)*$D$9*DIST!J10 -> 569895.4801 | K22: =DIST!$E$20*$D$8*DIST!K10+(DIST!$E$22-DIST!$E$20)*$D$9*DIST!K10 -> 574208.932 | L22: =DIST!$E$20*$D$8*DIST!L10+(DIST!$E$22-DIST!$E$20)*$D$9*DIST!L10 -> 577163.0625 | M22: =DIST!$E$20*$D$8*DIST!M10+(DIST!$E$22-DIST!$E$20)*$D$9*DIST!M10 -> 581444.3235 | N22: =DIST!$E$20*$D$8*DIST!N10+(DIST!$E$22-DIST!$E$20)*$D$9*DIST!N10 -> 587397.5957 | O22: =DIST!$E$20*$D$8*DIST!O10+(DIST!$E$22-DIST!$E$20)*$D$9*DIST!O10 -> 592263.2322 | P22: =DIST!$E$20*$D$8*DIST!P10+(DIST!$E$22-DIST!$E$20)*$D$9*DIST!P10 -> 595862.1128 | Q22: =DIST!$E$20*$D$8*DIST!Q10+(DIST!$E$22-DIST!$E$20)*$D$9*DIST!Q10 -> 598296.8931 | R22: =DIST!$E$20*$D$8*DIST!R10+(DIST!$E$22-DIST!$E$20)*$D$9*DIST!R10 -> 601137.9146 | S22: =DIST!$E$20*$D$8*DIST!S10+(DIST!$E$22-DIST!$E$20)*$D$9*DIST!S10 -> 604292.3008 | T22: =DIST!$E$20*$D$8*DIST!T10+(DIST!$E$22-DIST!$E$20)*$D$9*DIST!T10 -> 613492.8877 | U22: =DIST!$E$20*$D$8*DIST!U10+(DIST!$E$22-DIST!$E$20)*$D$9*DIST!U10 -> 617726.7086 | V22: =DIST!$E$20*$D$8*DIST!V10+(DIST!$E$22-DIST!$E$20)*$D$9*DIST!V10 -> 621712.9168 | W22: =DIST!$E$20*$D$8*DIST!W10+(DIST!$E$22-DIST!$E$20)*$D$9*DIST!W10 -> 621961.09 | X22: =DIST!$E$20*$D$8*DIST!X10+(DIST!$E$22-DIST!$E$20)*$D$9*DIST!X10 -> 626429.34 | Y22: =DIST!$E$20*$D$8*DIST!Y10+(DIST!$E$22-DIST!$E$20)*$D$9*DIST!Y10 -> 630285.8612 | Z22: =DIST!$E$20*$D$8*DIST!Z10+(DIST!$E$22-DIST!$E$20)*$D$9*DIST!Z10 -> 632221.8035 | AA22: =DIST!$E$20*$D$8*DIST!AA10+(DIST!$E$22-DIST!$E$20)*$D$9*DIST!AA10 -> 637761.9726 | AB22: =DIST!$E$20*$D$8*DIST!AB10+(DIST!$E$22-DIST!$E$20)*$D$9*DIST!AB10 -> 641961.0698 | AC22: =DIST!$E$20*$D$8*DIST!AC10+(DIST!$E$22-DIST!$E$20)*$D$9*DIST!AC10 -> 646916.0329 | AD22: =DIST!$E$20*$D$8*DIST!AD10+(DIST!$E$22-DIST!$E$20)*$D$9*DIST!AD10 -> 652389.9934 | AE22: =DIST!$E$20*$D$8*DIST!AE10+(DIST!$E$22-DIST!$E$20)*$D$9*DIST!AE10 -> 656405.5013 | AF22: =DIST!$E$20*$D$8*DIST!AF10+(DIST!$E$22-DIST!$E$20)*$D$9*DIST!AF10 -> 660421.0091 | AG22: =DIST!$E$20*$D$8*DIST!AG10+(DIST!$E$22-DIST!$E$20)*$D$9*DIST!AG10 -> 664436.517 | AH22: =DIST!$E$20*$D$8*DIST!AH10+(DIST!$E$22-DIST!$E$20)*$D$9*DIST!AH10 -> 668452.0248 | AI22: =DIST!$E$20*$D$8*DIST!AI10+(DIST!$E$22-DIST!$E$20)*$D$9*DIST!AI10 -> 672467.5327 | AJ22: =DIST!$E$20*$D$8*DIST!AJ10+(DIST!$E$22-DIST!$E$20)*$D$9*DIST!AJ10 -> 676483.0406 | AK22: =DIST!$E$20*$D$8*DIST!AK10+(DIST!$E$22-DIST!$E$20)*$D$9*DIST!AK10 -> 680498.5484 | AL22: =DIST!$E$20*$D$8*DIST!AL10+(DIST!$E$22-DIST!$E$20)*$D$9*DIST!AL10 -> 684514.0563 | AM22: =DIST!$E$20*$D$8*DIST!AM10+(DIST!$E$22-DIST!$E$20)*$D$9*DIST!AM10 -> 688529.5641 | AN22: =DIST!$E$20*$D$8*DIST!AN10+(DIST!$E$22-DIST!$E$20)*$D$9*DIST!AN10 -> 692545.072 | AO22: =DIST!$E$20*$D$8*DIST!AO10+(DIST!$E$22-DIST!$E$20)*$D$9*DIST!AO10 -> 696560.5799 | AP22: =DIST!$E$20*$D$8*DIST!AP10+(DIST!$E$22-DIST!$E$20)*$D$9*DIST!AP10 -> 700576.0877 | AQ22: =DIST!$E$20*$D$8*DIST!AQ10+(DIST!$E$22-DIST!$E$20)*$D$9*DIST!AQ10 -> 704591.5956 | AR22: =DIST!$E$20*$D$8*DIST!AR10+(DIST!$E$22-DIST!$E$20)*$D$9*DIST!AR10 -> 708607.1034 | AS22: =DIST!$E$20*$D$8*DIST!AS10+(DIST!$E$22-DIST!$E$20)*$D$9*DIST!AS10 -> 712622.6113 | AT22: =DIST!$E$20*$D$8*DIST!AT10+(DIST!$E$22-DIST!$E$20)*$D$9*DIST!AT10 -> 716638.1192 | AU22: =DIST!$E$20*$D$8*DIST!AU10+(DIST!$E$22-DIST!$E$20)*$D$9*DIST!AU10 -> 720653.627 | AV22: =DIST!$E$20*$D$8*DIST!AV10+(DIST!$E$22-DIST!$E$20)*$D$9*DIST!AV10 -> 724669.1349 | AW22: =DIST!$E$20*$D$8*DIST!AW10+(DIST!$E$22-DIST!$E$20)*$D$9*DIST!AW10 -> 728684.6427 | AX22: =DIST!$E$20*$D$8*DIST!AX10+(DIST!$E$22-DIST!$E$20)*$D$9*DIST!AX10 -> 732700.1506
C23: Fuel Costs SCR (reference) | E23: =DIST!$E$21*$D$7*DIST!E11 -> 1504222.532 | F23: =DIST!$E$21*$D$7*DIST!F11 -> 1452302.563 | G23: =DIST!$E$21*$D$7*DIST!G11 -> 1432734.679 | H23: =DIST!$E$21*$D$7*DIST!H11 -> 1451528.062 | I23: =DIST!$E$21*$D$7*DIST!I11 -> 1495010.757 | J23: =DIST!$E$21*$D$7*DIST!J11 -> 1534297.023 | K23: =DIST!$E$21*$D$7*DIST!K11 -> 1578686.378 | L23: =DIST!$E$21*$D$7*DIST!L11 -> 1624744.767 | M23: =DIST!$E$21*$D$7*DIST!M11 -> 1665864.203 | N23: =DIST!$E$21*$D$7*DIST!N11 -> 1707867.865 | O23: =DIST!$E$21*$D$7*DIST!O11 -> 1744401.762 | P23: =DIST!$E$21*$D$7*DIST!P11 -> 1777713.43 | Q23: =DIST!$E$21*$D$7*DIST!Q11 -> 1818490.682 | R23: =DIST!$E$21*$D$7*DIST!R11 -> 1847612.193 | S23: =DIST!$E$21*$D$7*DIST!S11 -> 1881292.361 | T23: =DIST!$E$21*$D$7*DIST!T11 -> 1908921.379 | U23: =DIST!$E$21*$D$7*DIST!U11 -> 1940366.98 | V23: =DIST!$E$21*$D$7*DIST!V11 -> 1977507.498 | W23: =DIST!$E$21*$D$7*DIST!W11 -> 2014662.81 | X23: =DIST!$E$21*$D$7*DIST!X11 -> 2055534.562 | Y23: =DIST!$E$21*$D$7*DIST!Y11 -> 2086731.108 | Z23: =DIST!$E$21*$D$7*DIST!Z11 -> 2121686.71 | AA23: =DIST!$E$21*$D$7*DIST!AA11 -> 2152594.601 | AB23: =DIST!$E$21*$D$7*DIST!AB11 -> 2185557.815 | AC23: =DIST!$E$21*$D$7*DIST!AC11 -> 2233243.227 | AD23: =DIST!$E$21*$D$7*DIST!AD11 -> 2285568.453 | AE23: =DIST!$E$21*$D$7*DIST!AE11 -> 2320319.81 | AF23: =DIST!$E$21*$D$7*DIST!AF11 -> 2355071.168 | AG23: =DIST!$E$21*$D$7*DIST!AG11 -> 2389822.525 | AH23: =DIST!$E$21*$D$7*DIST!AH11 -> 2424573.882 | AI23: =DIST!$E$21*$D$7*DIST!AI11 -> 2459325.239 | AJ23: =DIST!$E$21*$D$7*DIST!AJ11 -> 2494076.597 | AK23: =DIST!$E$21*$D$7*DIST!AK11 -> 2528827.954 | AL23: =DIST!$E$21*$D$7*DIST!AL11 -> 2563579.311 | AM23: =DIST!$E$21*$D$7*DIST!AM11 -> 2598330.668 | AN23: =DIST!$E$21*$D$7*DIST!AN11 -> 2633082.025 | AO23: =DIST!$E$21*$D$7*DIST!AO11 -> 2667833.383 | AP23: =DIST!$E$21*$D$7*DIST!AP11 -> 2702584.74 | AQ23: =DIST!$E$21*$D$7*DIST!AQ11 -> 2737336.097 | AR23: =DIST!$E$21*$D$7*DIST!AR11 -> 2772087.454 | AS23: =DIST!$E$21*$D$7*DIST!AS11 -> 2806838.812 | AT23: =DIST!$E$21*$D$7*DIST!AT11 -> 2841590.169 | AU23: =DIST!$E$21*$D$7*DIST!AU11 -> 2876341.526 | AV23: =DIST!$E$21*$D$7*DIST!AV11 -> 2911092.883 | AW23: =DIST!$E$21*$D$7*DIST!AW11 -> 2945844.24 | AX23: =DIST!$E$21*$D$7*DIST!AX11 -> 2980595.598
C24: Fuel Costs NSR (reference) | E24: =DIST!$E$20*$D$8*DIST!E11+(DIST!$E$22-DIST!$E$20)*$D$9*DIST!E11 -> 796938.6772 | F24: =DIST!$E$20*$D$8*DIST!F11+(DIST!$E$22-DIST!$E$20)*$D$9*DIST!F11 -> 769431.423 | G24: =DIST!$E$20*$D$8*DIST!G11+(DIST!$E$22-DIST!$E$20)*$D$9*DIST!G11 -> 759064.3376 | H24: =DIST!$E$20*$D$8*DIST!H11+(DIST!$E$22-DIST!$E$20)*$D$9*DIST!H11 -> 769021.0916 | I24: =DIST!$E$20*$D$8*DIST!I11+(DIST!$E$22-DIST!$E$20)*$D$9*DIST!I11 -> 792058.2688 | J24: =DIST!$E$20*$D$8*DIST!J11+(DIST!$E$22-DIST!$E$20)*$D$9*DIST!J11 -> 812872.1742 | K24: =DIST!$E$20*$D$8*DIST!K11+(DIST!$E$22-DIST!$E$20)*$D$9*DIST!K11 -> 836389.7012 | L24: =DIST!$E$20*$D$8*DIST!L11+(DIST!$E$22-DIST!$E$20)*$D$9*DIST!L11 -> 860791.4836 | M24: =DIST!$E$20*$D$8*DIST!M11+(DIST!$E$22-DIST!$E$20)*$D$9*DIST!M11 -> 882576.6041 | N24: =DIST!$E$20*$D$8*DIST!N11+(DIST!$E$22-DIST!$E$20)*$D$9*DIST!N11 -> 904830.1884 | O24: =DIST!$E$20*$D$8*DIST!O11+(DIST!$E$22-DIST!$E$20)*$D$9*DIST!O11 -> 924185.8852 | P24: =DIST!$E$20*$D$8*DIST!P11+(DIST!$E$22-DIST!$E$20)*$D$9*DIST!P11 -> 941834.4424 | Q24: =DIST!$E$20*$D$8*DIST!Q11+(DIST!$E$22-DIST!$E$20)*$D$9*DIST!Q11 -> 963438.273 | R24: =DIST!$E$20*$D$8*DIST!R11+(DIST!$E$22-DIST!$E$20)*$D$9*DIST!R11 -> 978866.8801 | S24: =DIST!$E$20*$D$8*DIST!S11+(DIST!$E$22-DIST!$E$20)*$D$9*DIST!S11 -> 996710.6686 | T24: =DIST!$E$20*$D$8*DIST!T11+(DIST!$E$22-DIST!$E$20)*$D$9*DIST!T11 -> 1011348.551 | U24: =DIST!$E$20*$D$8*DIST!U11+(DIST!$E$22-DIST!$E$20)*$D$9*DIST!U11 -> 1028008.464 | V24: =DIST!$E$20*$D$8*DIST!V11+(DIST!$E$22-DIST!$E$20)*$D$9*DIST!V11 -> 1047685.549 | W24: =DIST!$E$20*$D$8*DIST!W11+(DIST!$E$22-DIST!$E$20)*$D$9*DIST!W11 -> 1067370.473 | X24: =DIST!$E$20*$D$8*DIST!X11+(DIST!$E$22-DIST!$E$20)*$D$9*DIST!X11 -> 1089024.37 | Y24: =DIST!$E$20*$D$8*DIST!Y11+(DIST!$E$22-DIST!$E$20)*$D$9*DIST!Y11 -> 1105552.332 | Z24: =DIST!$E$20*$D$8*DIST!Z11+(DIST!$E$22-DIST!$E$20)*$D$9*DIST!Z11 -> 1124071.847 | AA24: =DIST!$E$20*$D$8*DIST!AA11+(DIST!$E$22-DIST!$E$20)*$D$9*DIST!AA11 -> 1140446.88 | AB24: =DIST!$E$20*$D$8*DIST!AB11+(DIST!$E$22-DIST!$E$20)*$D$9*DIST!AB11 -> 1157910.825 | AC24: =DIST!$E$20*$D$8*DIST!AC11+(DIST!$E$22-DIST!$E$20)*$D$9*DIST!AC11 -> 1183174.607 | AD24: =DIST!$E$20*$D$8*DIST!AD11+(DIST!$E$22-DIST!$E$20)*$D$9*DIST!AD11 -> 1210896.567 | AE24: =DIST!$E$20*$D$8*DIST!AE11+(DIST!$E$22-DIST!$E$20)*$D$9*DIST!AE11 -> 1229307.872 | AF24: =DIST!$E$20*$D$8*DIST!AF11+(DIST!$E$22-DIST!$E$20)*$D$9*DIST!AF11 -> 1247719.178 | AG24: =DIST!$E$20*$D$8*DIST!AG11+(DIST!$E$22-DIST!$E$20)*$D$9*DIST!AG11 -> 1266130.483 | AH24: =DIST!$E$20*$D$8*DIST!AH11+(DIST!$E$22-DIST!$E$20)*$D$9*DIST!AH11 -> 1284541.789 | AI24: =DIST!$E$20*$D$8*DIST!AI11+(DIST!$E$22-DIST!$E$20)*$D$9*DIST!AI11 -> 1302953.095 | AJ24: =DIST!$E$20*$D$8*DIST!AJ11+(DIST!$E$22-DIST!$E$20)*$D$9*DIST!AJ11 -> 1321364.4 | AK24: =DIST!$E$20*$D$8*DIST!AK11+(DIST!$E$22-DIST!$E$20)*$D$9*DIST!AK11 -> 1339775.706 | AL24: =DIST!$E$20*$D$8*DIST!AL11+(DIST!$E$22-DIST!$E$20)*$D$9*DIST!AL11 -> 1358187.011 | AM24: =DIST!$E$20*$D$8*DIST!AM11+(DIST!$E$22-DIST!$E$20)*$D$9*DIST!AM11 -> 1376598.317 | AN24: =DIST!$E$20*$D$8*DIST!AN11+(DIST!$E$22-DIST!$E$20)*$D$9*DIST!AN11 -> 1395009.622 | AO24: =DIST!$E$20*$D$8*DIST!AO11+(DIST!$E$22-DIST!$E$20)*$D$9*DIST!AO11 -> 1413420.928 | AP24: =DIST!$E$20*$D$8*DIST!AP11+(DIST!$E$22-DIST!$E$20)*$D$9*DIST!AP11 -> 1431832.233 | AQ24: =DIST!$E$20*$D$8*DIST!AQ11+(DIST!$E$22-DIST!$E$20)*$D$9*DIST!AQ11 -> 1450243.539 | AR24: =DIST!$E$20*$D$8*DIST!AR11+(DIST!$E$22-DIST!$E$20)*$D$9*DIST!AR11 -> 1468654.844 | AS24: =DIST!$E$20*$D$8*DIST!AS11+(DIST!$E$22-DIST!$E$20)*$D$9*DIST!AS11 -> 1487066.15 | AT24: =DIST!$E$20*$D$8*DIST!AT11+(DIST!$E$22-DIST!$E$20)*$D$9*DIST!AT11 -> 1505477.456 | AU24: =DIST!$E$20*$D$8*DIST!AU11+(DIST!$E$22-DIST!$E$20)*$D$9*DIST!AU11 -> 1523888.761 | AV24: =DIST!$E$20*$D$8*DIST!AV11+(DIST!$E$22-DIST!$E$20)*$D$9*DIST!AV11 -> 1542300.067 | AW24: =DIST!$E$20*$D$8*DIST!AW11+(DIST!$E$22-DIST!$E$20)*$D$9*DIST!AW11 -> 1560711.372 | AX24: =DIST!$E$20*$D$8*DIST!AX11+(DIST!$E$22-DIST!$E$20)*$D$9*DIST!AX11 -> 1579122.678
C25: Fuel Costs SCR (high) | E25: =DIST!$E$21*$D$7*DIST!E12 -> 2055774.625 | F25: =DIST!$E$21*$D$7*DIST!F12 -> 2187712.537 | G25: =DIST!$E$21*$D$7*DIST!G12 -> 2289382.509 | H25: =DIST!$E$21*$D$7*DIST!H12 -> 2332812.889 | I25: =DIST!$E$21*$D$7*DIST!I12 -> 2367528.703 | J25: =DIST!$E$21*$D$7*DIST!J12 -> 2401584.679 | K25: =DIST!$E$21*$D$7*DIST!K12 -> 2425984.141 | L25: =DIST!$E$21*$D$7*DIST!L12 -> 2442085.091 | M25: =DIST!$E$21*$D$7*DIST!M12 -> 2469804.847 | N25: =DIST!$E$21*$D$7*DIST!N12 -> 2495990.414 | O25: =DIST!$E$21*$D$7*DIST!O12 -> 2529777.309 | P25: =DIST!$E$21*$D$7*DIST!P12 -> 2573490.661 | Q25: =DIST!$E$21*$D$7*DIST!Q12 -> 2618821.789 | R25: =DIST!$E$21*$D$7*DIST!R12 -> 2676680.637 | S25: =DIST!$E$21*$D$7*DIST!S12 -> 2729038.898 | T25: =DIST!$E$21*$D$7*DIST!T12 -> 2770136.507 | U25: =DIST!$E$21*$D$7*DIST!U12 -> 2820340.967 | V25: =DIST!$E$21*$D$7*DIST!V12 -> 2872961.726 | W25: =DIST!$E$21*$D$7*DIST!W12 -> 2921196.507 | X25: =DIST!$E$21*$D$7*DIST!X12 -> 2961421.411 | Y25: =DIST!$E$21*$D$7*DIST!Y12 -> 3007540.951 | Z25: =DIST!$E$21*$D$7*DIST!Z12 -> 3056021.183 | AA25: =DIST!$E$21*$D$7*DIST!AA12 -> 3097129.274 | AB25: =DIST!$E$21*$D$7*DIST!AB12 -> 3148710.507 | AC25: =DIST!$E$21*$D$7*DIST!AC12 -> 3212448.12 | AD25: =DIST!$E$21*$D$7*DIST!AD12 -> 3290544.976 | AE25: =DIST!$E$21*$D$7*DIST!AE12 -> 3336649.565 | AF25: =DIST!$E$21*$D$7*DIST!AF12 -> 3382754.153 | AG25: =DIST!$E$21*$D$7*DIST!AG12 -> 3428858.741 | AH25: =DIST!$E$21*$D$7*DIST!AH12 -> 3474963.329 | AI25: =DIST!$E$21*$D$7*DIST!AI12 -> 3521067.917 | AJ25: =DIST!$E$21*$D$7*DIST!AJ12 -> 3567172.506 | AK25: =DIST!$E$21*$D$7*DIST!AK12 -> 3613277.094 | AL25: =DIST!$E$21*$D$7*DIST!AL12 -> 3659381.682 | AM25: =DIST!$E$21*$D$7*DIST!AM12 -> 3705486.27 | AN25: =DIST!$E$21*$D$7*DIST!AN12 -> 3751590.858 | AO25: =DIST!$E$21*$D$7*DIST!AO12 -> 3797695.447 | AP25: =DIST!$E$21*$D$7*DIST!AP12 -> 3843800.035 | AQ25: =DIST!$E$21*$D$7*DIST!AQ12 -> 3889904.623 | AR25: =DIST!$E$21*$D$7*DIST!AR12 -> 3936009.211 | AS25: =DIST!$E$21*$D$7*DIST!AS12 -> 3982113.8 | AT25: =DIST!$E$21*$D$7*DIST!AT12 -> 4028218.388 | AU25: =DIST!$E$21*$D$7*DIST!AU12 -> 4074322.976 | AV25: =DIST!$E$21*$D$7*DIST!AV12 -> 4120427.564 | AW25: =DIST!$E$21*$D$7*DIST!AW12 -> 4166532.152 | AX25: =DIST!$E$21*$D$7*DIST!AX12 -> 4212636.741
C26: Fuel Costs NSR (high) | E26: =DIST!$E$20*$D$8*DIST!E12+(DIST!$E$22-DIST!$E$20)*$D$9*DIST!E12 -> 1089151.555 | F26: =DIST!$E$20*$D$8*DIST!F12+(DIST!$E$22-DIST!$E$20)*$D$9*DIST!F12 -> 1159052.4 | G26: =DIST!$E$20*$D$8*DIST!G12+(DIST!$E$22-DIST!$E$20)*$D$9*DIST!G12 -> 1212917.258 | H26: =DIST!$E$20*$D$8*DIST!H12+(DIST!$E$22-DIST!$E$20)*$D$9*DIST!H12 -> 1235926.718 | I26: =DIST!$E$20*$D$8*DIST!I12+(DIST!$E$22-DIST!$E$20)*$D$9*DIST!I12 -> 1254319.193 | J26: =DIST!$E$20*$D$8*DIST!J12+(DIST!$E$22-DIST!$E$20)*$D$9*DIST!J12 -> 1272362.085 | K26: =DIST!$E$20*$D$8*DIST!K12+(DIST!$E$22-DIST!$E$20)*$D$9*DIST!K12 -> 1285288.945 | L26: =DIST!$E$20*$D$8*DIST!L12+(DIST!$E$22-DIST!$E$20)*$D$9*DIST!L12 -> 1293819.246 | M26: =DIST!$E$20*$D$8*DIST!M12+(DIST!$E$22-DIST!$E$20)*$D$9*DIST!M12 -> 1308505.201 | N26: =DIST!$E$20*$D$8*DIST!N12+(DIST!$E$22-DIST!$E$20)*$D$9*DIST!N12 -> 1322378.343 | O26: =DIST!$E$20*$D$8*DIST!O12+(DIST!$E$22-DIST!$E$20)*$D$9*DIST!O12 -> 1340278.675 | P26: =DIST!$E$20*$D$8*DIST!P12+(DIST!$E$22-DIST!$E$20)*$D$9*DIST!P12 -> 1363438.055 | Q26: =DIST!$E$20*$D$8*DIST!Q12+(DIST!$E$22-DIST!$E$20)*$D$9*DIST!Q12 -> 1387454.534 | R26: =DIST!$E$20*$D$8*DIST!R12+(DIST!$E$22-DIST!$E$20)*$D$9*DIST!R12 -> 1418108.212 | S26: =DIST!$E$20*$D$8*DIST!S12+(DIST!$E$22-DIST!$E$20)*$D$9*DIST!S12 -> 1445847.674 | T26: =DIST!$E$20*$D$8*DIST!T12+(DIST!$E$22-DIST!$E$20)*$D$9*DIST!T12 -> 1467621.23 | U26: =DIST!$E$20*$D$8*DIST!U12+(DIST!$E$22-DIST!$E$20)*$D$9*DIST!U12 -> 1494219.606 | V26: =DIST!$E$20*$D$8*DIST!V12+(DIST!$E$22-DIST!$E$20)*$D$9*DIST!V12 -> 1522098.139 | W26: =DIST!$E$20*$D$8*DIST!W12+(DIST!$E$22-DIST!$E$20)*$D$9*DIST!W12 -> 1547652.977 | X26: =DIST!$E$20*$D$8*DIST!X12+(DIST!$E$22-DIST!$E$20)*$D$9*DIST!X12 -> 1568964.173 | Y26: =DIST!$E$20*$D$8*DIST!Y12+(DIST!$E$22-DIST!$E$20)*$D$9*DIST!Y12 -> 1593398.354 | Z26: =DIST!$E$20*$D$8*DIST!Z12+(DIST!$E$22-DIST!$E$20)*$D$9*DIST!Z12 -> 1619083.232 | AA26: =DIST!$E$20*$D$8*DIST!AA12+(DIST!$E$22-DIST!$E$20)*$D$9*DIST!AA12 -> 1640862.342 | AB26: =DIST!$E$20*$D$8*DIST!AB12+(DIST!$E$22-DIST!$E$20)*$D$9*DIST!AB12 -> 1668190.133 | AC26: =DIST!$E$20*$D$8*DIST!AC12+(DIST!$E$22-DIST!$E$20)*$D$9*DIST!AC12 -> 1701958.387 | AD26: =DIST!$E$20*$D$8*DIST!AD12+(DIST!$E$22-DIST!$E$20)*$D$9*DIST!AD12 -> 1743334.184 | AE26: =DIST!$E$20*$D$8*DIST!AE12+(DIST!$E$22-DIST!$E$20)*$D$9*DIST!AE12 -> 1767760.443 | AF26: =DIST!$E$20*$D$8*DIST!AF12+(DIST!$E$22-DIST!$E$20)*$D$9*DIST!AF12 -> 1792186.703 | AG26: =DIST!$E$20*$D$8*DIST!AG12+(DIST!$E$22-DIST!$E$20)*$D$9*DIST!AG12 -> 1816612.962 | AH26: =DIST!$E$20*$D$8*DIST!AH12+(DIST!$E$22-DIST!$E$20)*$D$9*DIST!AH12 -> 1841039.221 | AI26: =DIST!$E$20*$D$8*DIST!AI12+(DIST!$E$22-DIST!$E$20)*$D$9*DIST!AI12 -> 1865465.48 | AJ26: =DIST!$E$20*$D$8*DIST!AJ12+(DIST!$E$22-DIST!$E$20)*$D$9*DIST!AJ12 -> 1889891.74 | AK26: =DIST!$E$20*$D$8*DIST!AK12+(DIST!$E$22-DIST!$E$20)*$D$9*DIST!AK12 -> 1914317.999 | AL26: =DIST!$E$20*$D$8*DIST!AL12+(DIST!$E$22-DIST!$E$20)*$D$9*DIST!AL12 -> 1938744.258 | AM26: =DIST!$E$20*$D$8*DIST!AM12+(DIST!$E$22-DIST!$E$20)*$D$9*DIST!AM12 -> 1963170.517 | AN26: =DIST!$E$20*$D$8*DIST!AN12+(DIST!$E$22-DIST!$E$20)*$D$9*DIST!AN12 -> 1987596.777 | AO26: =DIST!$E$20*$D$8*DIST!AO12+(DIST!$E$22-DIST!$E$20)*$D$9*DIST!AO12 -> 2012023.036 | AP26: =DIST!$E$20*$D$8*DIST!AP12+(DIST!$E$22-DIST!$E$20)*$D$9*DIST!AP12 -> 2036449.295 | AQ26: =DIST!$E$20*$D$8*DIST!AQ12+(DIST!$E$22-DIST!$E$20)*$D$9*DIST!AQ12 -> 2060875.554 | AR26: =DIST!$E$20*$D$8*DIST!AR12+(DIST!$E$22-DIST!$E$20)*$D$9*DIST!AR12 -> 2085301.814 | AS26: =DIST!$E$20*$D$8*DIST!AS12+(DIST!$E$22-DIST!$E$20)*$D$9*DIST!AS12 -> 2109728.073 | AT26: =DIST!$E$20*$D$8*DIST!AT12+(DIST!$E$22-DIST!$E$20)*$D$9*DIST!AT12 -> 2134154.332 | AU26: =DIST!$E$20*$D$8*DIST!AU12+(DIST!$E$22-DIST!$E$20)*$D$9*DIST!AU12 -> 2158580.591 | AV26: =DIST!$E$20*$D$8*DIST!AV12+(DIST!$E$22-DIST!$E$20)*$D$9*DIST!AV12 -> 2183006.851 | AW26: =DIST!$E$20*$D$8*DIST!AW12+(DIST!$E$22-DIST!$E$20)*$D$9*DIST!AW12 -> 2207433.11 | AX26: =DIST!$E$20*$D$8*DIST!AX12+(DIST!$E$22-DIST!$E$20)*$D$9*DIST!AX12 -> 2231859.369
C28: CAPEX
C29: Discounted Initial payment | E29: =$G$8/DIST!E13 -> 31644000 | F29: =$G$8/DIST!F13 -> 31644000 | G29: =$G$8/DIST!G13 -> 29573831.78 | H29: =$G$8/DIST!H13 -> 27639095.12 | I29: =$G$8/DIST!I13 -> 25830930.02 | J29: =$G$8/DIST!J13 -> 24141056.09 | K29: =$G$8/DIST!K13 -> 22561734.66 | L29: =$G$8/DIST!L13 -> 21085733.33 | M29: =$G$8/DIST!M13 -> 19706292.83 | N29: =$G$8/DIST!N13 -> 18417096.1 | O29: =$G$8/DIST!O13 -> 17212239.35 | P29: =$G$8/DIST!P13 -> 16086205 | Q29: =$G$8/DIST!Q13 -> 15033836.45 | R29: =$G$8/DIST!R13 -> 14050314.44 | S29: =$G$8/DIST!S13 -> 13131134.99 | T29: =$G$8/DIST!T13 -> 12272088.77 | U29: =$G$8/DIST!U13 -> 11469241.85 | V29: =$G$8/DIST!V13 -> 10718917.61 | W29: =$G$8/DIST!W13 -> 10017680.01 | X29: =$G$8/DIST!X13 -> 9362317.768 | Y29: =$G$8/DIST!Y13 -> 8749829.69
C30: Discounted Debt amortiazation | E30: =$G$9/DIST!E13 -> 8106795.909 | F30: =$G$9/DIST!F13 -> 8106795.909 | G30: =$G$9/DIST!G13 -> 7576444.775 | H30: =$G$9/DIST!H13 -> 7080789.509 | I30: =$G$9/DIST!I13 -> 6617560.289 | J30: =$G$9/DIST!J13 -> 6184635.784 | K30: =$G$9/DIST!K13 -> 5780033.443 | L30: =$G$9/DIST!L13 -> 5401900.414 | M30: =$G$9/DIST!M13 -> 5048505.06 | N30: =$G$9/DIST!N13 -> 4718229.028 | O30: =$G$9/DIST!O13 -> 4409559.839 | P30: =$G$9/DIST!P13 -> 4121083.962 | Q30: =$G$9/DIST!Q13 -> 3851480.338 | R30: =$G$9/DIST!R13 -> 3599514.335 | S30: =$G$9/DIST!S13 -> 3364032.089 | T30: =$G$9/DIST!T13 -> 3143955.223 | U30: =$G$9/DIST!U13 -> 2938275.909 | V30: =$G$9/DIST!V13 -> 2746052.252 | W30: =$G$9/DIST!W13 -> 2566403.974 | X30: =$G$9/DIST!X13 -> 2398508.387 | Y30: =$G$9/DIST!Y13 -> 2241596.623 | Z30: =$G$9/DIST!Z13 -> 2094950.115 | AA30: =$G$9/DIST!AA13 -> 1957897.304 | AB30: =$G$9/DIST!AB13 -> 1829810.564 | AC30: =$G$9/DIST!AC13 -> 1710103.331 | AD30: =$G$9/DIST!AD13 -> 1598227.412 | AE30: =$G$9/DIST!AE13 -> 1493670.479 | AF30: =$G$9/DIST!AF13 -> 1395953.718 | AG30: =$G$9/DIST!AG13 -> 1304629.643 | AH30: =$G$9/DIST!AH13 -> 1219280.04 | AI30: =$G$9/DIST!AI13 -> 1139514.057 | AJ30: =$G$9/DIST!AJ13 -> 1064966.408 | AK30: =$G$9/DIST!AK13 -> 995295.7084 | AL30: =$G$9/DIST!AL13 -> 930182.905 | AM30: =$G$9/DIST!AM13 -> 869329.8178 | AN30: =$G$9/DIST!AN13 -> 812457.7736 | AO30: =$G$9/DIST!AO13 -> 759306.3305 | AP30: =$G$9/DIST!AP13 -> 709632.0846 | AQ30: =$G$9/DIST!AQ13 -> 663207.5557 | AR30: =$G$9/DIST!AR13 -> 619820.1455 | AS30: =$G$9/DIST!AS13 -> 579271.164 | AT30: =$G$9/DIST!AT13 -> 541374.9196 | AU30: =$G$9/DIST!AU13 -> 505957.8688 | AV30: =$G$9/DIST!AV13 -> 472857.8213 | AW30: =$G$9/DIST!AW13 -> 441923.1975 | AX30: =$G$9/DIST!AX13 -> 413012.3341
C31: Combined discounted debt service | E31: =E29+SUM(F30:T30) -> 110648520 | F31: =SUMIF(G14:$AX$14,"<="&DIST!$E$41+F14,G30:$AX$30) -> 73836000 | G31: =SUMIF(H14:$AX$14,"<="&DIST!$E$41+G14,H30:$AX$30) -> 69005607.48 | H31: =SUMIF(I14:$AX$14,"<="&DIST!$E$41+H14,I30:$AX$30) -> 64491221.94 | I31: =SUMIF(J14:$AX$14,"<="&DIST!$E$41+I14,J30:$AX$30) -> 60272170.04 | J31: =SUMIF(K14:$AX$14,"<="&DIST!$E$41+J14,K30:$AX$30) -> 56329130.88 | K31: =SUMIF(L14:$AX$14,"<="&DIST!$E$41+K14,L30:$AX$30) -> 52644047.55 | L31: =SUMIF(M14:$AX$14,"<="&DIST!$E$41+L14,M30:$AX$30) -> 49200044.44 | M31: =SUMIF(N14:$AX$14,"<="&DIST!$E$41+M14,N30:$AX$30) -> 45981349.94 | N31: =SUMIF(O14:$AX$14,"<="&DIST!$E$41+N14,O30:$AX$30) -> 42973224.24 | O31: =SUMIF(P14:$AX$14,"<="&DIST!$E$41+O14,P30:$AX$30) -> 40161891.82 | P31: =SUMIF(Q14:$AX$14,"<="&DIST!$E$41+P14,Q30:$AX$30) -> 37534478.33 | Q31: =SUMIF(R14:$AX$14,"<="&DIST!$E$41+Q14,R30:$AX$30) -> 35078951.71 | R31: =SUMIF(S14:$AX$14,"<="&DIST!$E$41+R14,S30:$AX$30) -> 32784067.02 | S31: =SUMIF(T14:$AX$14,"<="&DIST!$E$41+S14,T30:$AX$30) -> 30639314.97 | T31: =SUMIF(U14:$AX$14,"<="&DIST!$E$41+T14,U30:$AX$30) -> 28634873.81 | U31: =SUMIF(V14:$AX$14,"<="&DIST!$E$41+U14,V30:$AX$30) -> 26761564.31 | V31: =SUMIF(W14:$AX$14,"<="&DIST!$E$41+V14,W30:$AX$30) -> 25010807.76 | W31: =SUMIF(X14:$AX$14,"<="&DIST!$E$41+W14,X30:$AX$30) -> 23374586.69 | X31: =SUMIF(Y14:$AX$14,"<="&DIST!$E$41+X14,Y30:$AX$30) -> 21845408.13 | Y31: =SUMIF(Z14:$AX$14,"<="&DIST!$E$41+Y14,Z30:$AX$30) -> 20416269.28
C33: Trip time
C34: NSR | E34: =DIST!$E$20/(DIST!$E$26*24)+(DIST!$E$22-DIST!$E$20)/(DIST!$E$25*24)+DIST!$E$28+DIST!E16 -> 35.925 | F34: =DIST!$E$20/(DIST!$E$26*24)+(DIST!$E$22-DIST!$E$20)/(DIST!$E$25*24)+DIST!$E$28+DIST!F16 -> 35.925 | G34: =DIST!$E$20/(DIST!$E$26*24)+(DIST!$E$22-DIST!$E$20)/(DIST!$E$25*24)+DIST!$E$28+DIST!G16 -> 35.825 | H34: =DIST!$E$20/(DIST!$E$26*24)+(DIST!$E$22-DIST!$E$20)/(DIST!$E$25*24)+DIST!$E$28+DIST!H16 -> 35.725 | I34: =DIST!$E$20/(DIST!$E$26*24)+(DIST!$E$22-DIST!$E$20)/(DIST!$E$25*24)+DIST!$E$28+DIST!I16 -> 35.625 | J34: =DIST!$E$20/(DIST!$E$26*24)+(DIST!$E$22-DIST!$E$20)/(DIST!$E$25*24)+DIST!$E$28+DIST!J16 -> 35.525 | K34: =DIST!$E$20/(DIST!$E$26*24)+(DIST!$E$22-DIST!$E$20)/(DIST!$E$25*24)+DIST!$E$28+DIST!K16 -> 35.425 | L34: =DIST!$E$20/(DIST!$E$26*24)+(DIST!$E$22-DIST!$E$20)/(DIST!$E$25*24)+DIST!$E$28+DIST!L16 -> 35.325 | M34: =DIST!$E$20/(DIST!$E$26*24)+(DIST!$E$22-DIST!$E$20)/(DIST!$E$25*24)+DIST!$E$28+DIST!M16 -> 35.225 | N34: =DIST!$E$20/(DIST!$E$26*24)+(DIST!$E$22-DIST!$E$20)/(DIST!$E$25*24)+DIST!$E$28+DIST!N16 -> 35.125 | O34: =DIST!$E$20/(DIST!$E$26*24)+(DIST!$E$22-DIST!$E$20)/(DIST!$E$25*24)+DIST!$E$28+DIST!O16 -> 35.025 | P34: =DIST!$E$20/(DIST!$E$26*24)+(DIST!$E$22-DIST!$E$20)/(DIST!$E$25*24)+DIST!$E$28+DIST!P16 -> 34.925 | Q34: =DIST!$E$20/(DIST!$E$26*24)+(DIST!$E$22-DIST!$E$20)/(DIST!$E$25*24)+DIST!$E$28+DIST!Q16 -> 34.825 | R34: =DIST!$E$20/(DIST!$E$26*24)+(DIST!$E$22-DIST!$E$20)/(DIST!$E$25*24)+DIST!$E$28+DIST!R16 -> 34.725 | S34: =DIST!$E$20/(DIST!$E$26*24)+(DIST!$E$22-DIST!$E$20)/(DIST!$E$25*24)+DIST!$E$28+DIST!S16 -> 34.625 | T34: =DIST!$E$20/(DIST!$E$26*24)+(DIST!$E$22-DIST!$E$20)/(DIST!$E$25*24)+DIST!$E$28+DIST!T16 -> 34.525 | U34: =DIST!$E$20/(DIST!$E$26*24)+(DIST!$E$22-DIST!$E$20)/(DIST!$E$25*24)+DIST!$E$28+DIST!U16 -> 34.425 | V34: =DIST!$E$20/(DIST!$E$26*24)+(DIST!$E$22-DIST!$E$20)/(DIST!$E$25*24)+DIST!$E$28+DIST!V16 -> 34.325 | W34: =DIST!$E$20/(DIST!$E$26*24)+(DIST!$E$22-DIST!$E$20)/(DIST!$E$25*24)+DIST!$E$28+DIST!W16 -> 34.225 | X34: =DIST!$E$20/(DIST!$E$26*24)+(DIST!$E$22-DIST!$E$20)/(DIST!$E$25*24)+DIST!$E$28+DIST!X16 -> 34.125 | Y34: =DIST!$E$20/(DIST!$E$26*24)+(DIST!$E$22-DIST!$E$20)/(DIST!$E$25*24)+DIST!$E$28+DIST!Y16 -> 34.025 | Z34: =DIST!$E$20/(DIST!$E$26*24)+(DIST!$E$22-DIST!$E$20)/(DIST!$E$25*24)+DIST!$E$28+DIST!Z16 -> 33.925 | AA34: =DIST!$E$20/(DIST!$E$26*24)+(DIST!$E$22-DIST!$E$20)/(DIST!$E$25*24)+DIST!$E$28+DIST!AA16 -> 33.825 | AB34: =DIST!$E$20/(DIST!$E$26*24)+(DIST!$E$22-DIST!$E$20)/(DIST!$E$25*24)+DIST!$E$28+DIST!AB16 -> 33.725 | AC34: =DIST!$E$20/(DIST!$E$26*24)+(DIST!$E$22-DIST!$E$20)/(DIST!$E$25*24)+DIST!$E$28+DIST!AC16 -> 33.625 | AD34: =DIST!$E$20/(DIST!$E$26*24)+(DIST!$E$22-DIST!$E$20)/(DIST!$E$25*24)+DIST!$E$28+DIST!AD16 -> 33.525 | AE34: =DIST!$E$20/(DIST!$E$26*24)+(DIST!$E$22-DIST!$E$20)/(DIST!$E$25*24)+DIST!$E$28+DIST!AE16 -> 33.425 | AF34: =DIST!$E$20/(DIST!$E$26*24)+(DIST!$E$22-DIST!$E$20)/(DIST!$E$25*24)+DIST!$E$28+DIST!AF16 -> 33.325 | AG34: =DIST!$E$20/(DIST!$E$26*24)+(DIST!$E$22-DIST!$E$20)/(DIST!$E$25*24)+DIST!$E$28+DIST!AG16 -> 33.225 | AH34: =DIST!$E$20/(DIST!$E$26*24)+(DIST!$E$22-DIST!$E$20)/(DIST!$E$25*24)+DIST!$E$28+DIST!AH16 -> 33.125 | AI34: =DIST!$E$20/(DIST!$E$26*24)+(DIST!$E$22-DIST!$E$20)/(DIST!$E$25*24)+DIST!$E$28+DIST!AI16 -> 33.025 | AJ34: =DIST!$E$20/(DIST!$E$26*24)+(DIST!$E$22-DIST!$E$20)/(DIST!$E$25*24)+DIST!$E$28+DIST!AJ16 -> 32.925 | AK34: =DIST!$E$20/(DIST!$E$26*24)+(DIST!$E$22-DIST!$E$20)/(DIST!$E$25*24)+DIST!$E$28+DIST!AK16 -> 32.825 | AL34: =DIST!$E$20/(DIST!$E$26*24)+(DIST!$E$22-DIST!$E$20)/(DIST!$E$25*24)+DIST!$E$28+DIST!AL16 -> 32.725 | AM34: =DIST!$E$20/(DIST!$E$26*24)+(DIST!$E$22-DIST!$E$20)/(DIST!$E$25*24)+DIST!$E$28+DIST!AM16 -> 32.625 | AN34: =DIST!$E$20/(DIST!$E$26*24)+(DIST!$E$22-DIST!$E$20)/(DIST!$E$25*24)+DIST!$E$28+DIST!AN16 -> 32.525 | AO34: =DIST!$E$20/(DIST!$E$26*24)+(DIST!$E$22-DIST!$E$20)/(DIST!$E$25*24)+DIST!$E$28+DIST!AO16 -> 32.425 | AP34: =DIST!$E$20/(DIST!$E$26*24)+(DIST!$E$22-DIST!$E$20)/(DIST!$E$25*24)+DIST!$E$28+DIST!AP16 -> 32.325 | AQ34: =DIST!$E$20/(DIST!$E$26*24)+(DIST!$E$22-DIST!$E$20)/(DIST!$E$25*24)+DIST!$E$28+DIST!AQ16 -> 32.225 | AR34: =DIST!$E$20/(DIST!$E$26*24)+(DIST!$E$22-DIST!$E$20)/(DIST!$E$25*24)+DIST!$E$28+DIST!AR16 -> 32.125 | AS34: =DIST!$E$20/(DIST!$E$26*24)+(DIST!$E$22-DIST!$E$20)/(DIST!$E$25*24)+DIST!$E$28+DIST!AS16 -> 32.025 | AT34: =DIST!$E$20/(DIST!$E$26*24)+(DIST!$E$22-DIST!$E$20)/(DIST!$E$25*24)+DIST!$E$28+DIST!AT16 -> 31.925 | AU34: =DIST!$E$20/(DIST!$E$26*24)+(DIST!$E$22-DIST!$E$20)/(DIST!$E$25*24)+DIST!$E$28+DIST!AU16 -> 31.825 | AV34: =DIST!$E$20/(DIST!$E$26*24)+(DIST!$E$22-DIST!$E$20)/(DIST!$E$25*24)+DIST!$E$28+DIST!AV16 -> 31.725 | AW34: =DIST!$E$20/(DIST!$E$26*24)+(DIST!$E$22-DIST!$E$20)/(DIST!$E$25*24)+DIST!$E$28+DIST!AW16 -> 31.625 | AX34: =DIST!$E$20/(DIST!$E$26*24)+(DIST!$E$22-DIST!$E$20)/(DIST!$E$25*24)+DIST!$E$28+DIST!AX16 -> 31.525
C35: SCR | E35: =DIST!$E$21/(DIST!$E$23*24)+DIST!$E$29+DIST!$E$27 -> 36.27777778 | F35: =DIST!$E$21/(DIST!$E$23*24)+DIST!$E$29+DIST!$E$27 -> 36.27777778 | G35: =DIST!$E$21/(DIST!$E$23*24)+DIST!$E$29+DIST!$E$27 -> 36.27777778 | H35: =DIST!$E$21/(DIST!$E$23*24)+DIST!$E$29+DIST!$E$27 -> 36.27777778 | I35: =DIST!$E$21/(DIST!$E$23*24)+DIST!$E$29+DIST!$E$27 -> 36.27777778 | J35: =DIST!$E$21/(DIST!$E$23*24)+DIST!$E$29+DIST!$E$27 -> 36.27777778 | K35: =DIST!$E$21/(DIST!$E$23*24)+DIST!$E$29+DIST!$E$27 -> 36.27777778 | L35: =DIST!$E$21/(DIST!$E$23*24)+DIST!$E$29+DIST!$E$27 -> 36.27777778 | M35: =DIST!$E$21/(DIST!$E$23*24)+DIST!$E$29+DIST!$E$27 -> 36.27777778 | N35: =DIST!$E$21/(DIST!$E$23*24)+DIST!$E$29+DIST!$E$27 -> 36.27777778 | O35: =DIST!$E$21/(DIST!$E$23*24)+DIST!$E$29+DIST!$E$27 -> 36.27777778 | P35: =DIST!$E$21/(DIST!$E$23*24)+DIST!$E$29+DIST!$E$27 -> 36.27777778 | Q35: =DIST!$E$21/(DIST!$E$23*24)+DIST!$E$29+DIST!$E$27 -> 36.27777778 | R35: =DIST!$E$21/(DIST!$E$23*24)+DIST!$E$29+DIST!$E$27 -> 36.27777778 | S35: =DIST!$E$21/(DIST!$E$23*24)+DIST!$E$29+DIST!$E$27 -> 36.27777778 | T35: =DIST!$E$21/(DIST!$E$23*24)+DIST!$E$29+DIST!$E$27 -> 36.27777778 | U35: =DIST!$E$21/(DIST!$E$23*24)+DIST!$E$29+DIST!$E$27 -> 36.27777778 | V35: =DIST!$E$21/(DIST!$E$23*24)+DIST!$E$29+DIST!$E$27 -> 36.27777778 | W35: =DIST!$E$21/(DIST!$E$23*24)+DIST!$E$29+DIST!$E$27 -> 36.27777778 | X35: =DIST!$E$21/(DIST!$E$23*24)+DIST!$E$29+DIST!$E$27 -> 36.27777778 | Y35: =DIST!$E$21/(DIST!$E$23*24)+DIST!$E$29+DIST!$E$27 -> 36.27777778 | Z35: =DIST!$E$21/(DIST!$E$23*24)+DIST!$E$29+DIST!$E$27 -> 36.27777778 | AA35: =DIST!$E$21/(DIST!$E$23*24)+DIST!$E$29+DIST!$E$27 -> 36.27777778 | AB35: =DIST!$E$21/(DIST!$E$23*24)+DIST!$E$29+DIST!$E$27 -> 36.27777778 | AC35: =DIST!$E$21/(DIST!$E$23*24)+DIST!$E$29+DIST!$E$27 -> 36.27777778 | AD35: =DIST!$E$21/(DIST!$E$23*24)+DIST!$E$29+DIST!$E$27 -> 36.27777778 | AE35: =DIST!$E$21/(DIST!$E$23*24)+DIST!$E$29+DIST!$E$27 -> 36.27777778 | AF35: =DIST!$E$21/(DIST!$E$23*24)+DIST!$E$29+DIST!$E$27 -> 36.27777778 | AG35: =DIST!$E$21/(DIST!$E$23*24)+DIST!$E$29+DIST!$E$27 -> 36.27777778 | AH35: =DIST!$E$21/(DIST!$E$23*24)+DIST!$E$29+DIST!$E$27 -> 36.27777778 | AI35: =DIST!$E$21/(DIST!$E$23*24)+DIST!$E$29+DIST!$E$27 -> 36.27777778 | AJ35: =DIST!$E$21/(DIST!$E$23*24)+DIST!$E$29+DIST!$E$27 -> 36.27777778 | AK35: =DIST!$E$21/(DIST!$E$23*24)+DIST!$E$29+DIST!$E$27 -> 36.27777778 | AL35: =DIST!$E$21/(DIST!$E$23*24)+DIST!$E$29+DIST!$E$27 -> 36.27777778 | AM35: =DIST!$E$21/(DIST!$E$23*24)+DIST!$E$29+DIST!$E$27 -> 36.27777778 | AN35: =DIST!$E$21/(DIST!$E$23*24)+DIST!$E$29+DIST!$E$27 -> 36.27777778 | AO35: =DIST!$E$21/(DIST!$E$23*24)+DIST!$E$29+DIST!$E$27 -> 36.27777778 | AP35: =DIST!$E$21/(DIST!$E$23*24)+DIST!$E$29+DIST!$E$27 -> 36.27777778 | AQ35: =DIST!$E$21/(DIST!$E$23*24)+DIST!$E$29+DIST!$E$27 -> 36.27777778 | AR35: =DIST!$E$21/(DIST!$E$23*24)+DIST!$E$29+DIST!$E$27 -> 36.27777778 | AS35: =DIST!$E$21/(DIST!$E$23*24)+DIST!$E$29+DIST!$E$27 -> 36.27777778 | AT35: =DIST!$E$21/(DIST!$E$23*24)+DIST!$E$29+DIST!$E$27 -> 36.27777778 | AU35: =DIST!$E$21/(DIST!$E$23*24)+DIST!$E$29+DIST!$E$27 -> 36.27777778 | AV35: =DIST!$E$21/(DIST!$E$23*24)+DIST!$E$29+DIST!$E$27 -> 36.27777778 | AW35: =DIST!$E$21/(DIST!$E$23*24)+DIST!$E$29+DIST!$E$27 -> 36.27777778 | AX35: =DIST!$E$21/(DIST!$E$23*24)+DIST!$E$29+DIST!$E$27 -> 36.27777778
C37: Trips
C38: NSR trips | E38: =ROUNDDOWN(DIST!E9/E34,0) -> 3 | F38: =ROUNDDOWN(DIST!F9/F34,0) -> 3 | G38: =ROUNDDOWN(DIST!G9/G34,0) -> 3 | H38: =ROUNDDOWN(DIST!H9/H34,0) -> 3 | I38: =ROUNDDOWN(DIST!I9/I34,0) -> 3 | J38: =ROUNDDOWN(DIST!J9/J34,0) -> 3 | K38: =ROUNDDOWN(DIST!K9/K34,0) -> 3 | L38: =ROUNDDOWN(DIST!L9/L34,0) -> 3 | M38: =ROUNDDOWN(DIST!M9/M34,0) -> 4 | N38: =ROUNDDOWN(DIST!N9/N34,0) -> 4 | O38: =ROUNDDOWN(DIST!O9/O34,0) -> 4 | P38: =ROUNDDOWN(DIST!P9/P34,0) -> 4 | Q38: =ROUNDDOWN(DIST!Q9/Q34,0) -> 4 | R38: =ROUNDDOWN(DIST!R9/R34,0) -> 4 | S38: =ROUNDDOWN(DIST!S9/S34,0) -> 4 | T38: =ROUNDDOWN(DIST!T9/T34,0) -> 4 | U38: =ROUNDDOWN(DIST!U9/U34,0) -> 4 | V38: =ROUNDDOWN(DIST!V9/V34,0) -> 4 | W38: =ROUNDDOWN(DIST!W9/W34,0) -> 4 | X38: =ROUNDDOWN(DIST!X9/X34,0) -> 5 | Y38: =ROUNDDOWN(DIST!Y9/Y34,0) -> 5 | Z38: =ROUNDDOWN(DIST!Z9/Z34,0) -> 5 | AA38: =ROUNDDOWN(DIST!AA9/AA34,0) -> 5 | AB38: =ROUNDDOWN(DIST!AB9/AB34,0) -> 5 | AC38: =ROUNDDOWN(DIST!AC9/AC34,0) -> 5 | AD38: =ROUNDDOWN(DIST!AD9/AD34,0) -> 5 | AE38: =ROUNDDOWN(DIST!AE9/AE34,0) -> 5 | AF38: =ROUNDDOWN(DIST!AF9/AF34,0) -> 5 | AG38: =ROUNDDOWN(DIST!AG9/AG34,0) -> 6 | AH38: =ROUNDDOWN(DIST!AH9/AH34,0) -> 6 | AI38: =ROUNDDOWN(DIST!AI9/AI34,0) -> 6 | AJ38: =ROUNDDOWN(DIST!AJ9/AJ34,0) -> 6 | AK38: =ROUNDDOWN(DIST!AK9/AK34,0) -> 6 | AL38: =ROUNDDOWN(DIST!AL9/AL34,0) -> 6 | AM38: =ROUNDDOWN(DIST!AM9/AM34,0) -> 6 | AN38: =ROUNDDOWN(DIST!AN9/AN34,0) -> 6 | AO38: =ROUNDDOWN(DIST!AO9/AO34,0) -> 6 | AP38: =ROUNDDOWN(DIST!AP9/AP34,0) -> 7 | AQ38: =ROUNDDOWN(DIST!AQ9/AQ34,0) -> 7 | AR38: =ROUNDDOWN(DIST!AR9/AR34,0) -> 7 | AS38: =ROUNDDOWN(DIST!AS9/AS34,0) -> 7 | AT38: =ROUNDDOWN(DIST!AT9/AT34,0) -> 7 | AU38: =ROUNDDOWN(DIST!AU9/AU34,0) -> 7 | AV38: =ROUNDDOWN(DIST!AV9/AV34,0) -> 7 | AW38: =ROUNDDOWN(DIST!AW9/AW34,0) -> 7 | AX38: =ROUNDDOWN(DIST!AX9/AX34,0) -> 7
C39: SCR trips | E39: =(365-DIST!E9+MOD(DIST!E9,E34))/E35 -> 7.09042879 | F39: =(365-DIST!F9+MOD(DIST!F9,F34))/F35 -> 7.09042879 | G39: =(365-DIST!G9+MOD(DIST!G9,G34))/G35 -> 7.098698315 | H39: =(365-DIST!H9+MOD(DIST!H9,H34))/H35 -> 7.106967841 | I39: =(365-DIST!I9+MOD(DIST!I9,I34))/I35 -> 7.115237366 | J39: =(365-DIST!J9+MOD(DIST!J9,J34))/J35 -> 7.123506891 | K39: =(365-DIST!K9+MOD(DIST!K9,K34))/K35 -> 7.131776417 | L39: =(365-DIST!L9+MOD(DIST!L9,L34))/L35 -> 7.140045942 | M39: =(365-DIST!M9+MOD(DIST!M9,M34))/M35 -> 6.177335375 | N39: =(365-DIST!N9+MOD(DIST!N9,N34))/N35 -> 6.188361409 | O39: =(365-DIST!O9+MOD(DIST!O9,O34))/O35 -> 6.199387443 | P39: =(365-DIST!P9+MOD(DIST!P9,P34))/P35 -> 6.210413476 | Q39: =(365-DIST!Q9+MOD(DIST!Q9,Q34))/Q35 -> 6.22143951 | R39: =(365-DIST!R9+MOD(DIST!R9,R34))/R35 -> 6.232465544 | S39: =(365-DIST!S9+MOD(DIST!S9,S34))/S35 -> 6.243491577 | T39: =(365-DIST!T9+MOD(DIST!T9,T34))/T35 -> 6.254517611 | U39: =(365-DIST!U9+MOD(DIST!U9,U34))/U35 -> 6.265543645 | V39: =(365-DIST!V9+MOD(DIST!V9,V34))/V35 -> 6.276569678 | W39: =(365-DIST!W9+MOD(DIST!W9,W34))/W35 -> 6.287595712 | X39: =(365-DIST!X9+MOD(DIST!X9,X34))/X35 -> 5.357963247 | Y39: =(365-DIST!Y9+MOD(DIST!Y9,Y34))/Y35 -> 5.371745789 | Z39: =(365-DIST!Z9+MOD(DIST!Z9,Z34))/Z35 -> 5.385528331 | AA39: =(365-DIST!AA9+MOD(DIST!AA9,AA34))/AA35 -> 5.399310873 | AB39: =(365-DIST!AB9+MOD(DIST!AB9,AB34))/AB35 -> 5.413093415 | AC39: =(365-DIST!AC9+MOD(DIST!AC9,AC34))/AC35 -> 5.426875957 | AD39: =(365-DIST!AD9+MOD(DIST!AD9,AD34))/AD35 -> 5.440658499 | AE39: =(365-DIST!AE9+MOD(DIST!AE9,AE34))/AE35 -> 5.454441041 | AF39: =(365-DIST!AF9+MOD(DIST!AF9,AF34))/AF35 -> 5.468223583 | AG39: =(365-DIST!AG9+MOD(DIST!AG9,AG34))/AG35 -> 4.566156202 | AH39: =(365-DIST!AH9+MOD(DIST!AH9,AH34))/AH35 -> 4.582695253 | AI39: =(365-DIST!AI9+MOD(DIST!AI9,AI34))/AI35 -> 4.599234303 | AJ39: =(365-DIST!AJ9+MOD(DIST!AJ9,AJ34))/AJ35 -> 4.615773354 | AK39: =(365-DIST!AK9+MOD(DIST!AK9,AK34))/AK35 -> 4.632312404 | AL39: =(365-DIST!AL9+MOD(DIST!AL9,AL34))/AL35 -> 4.648851455 | AM39: =(365-DIST!AM9+MOD(DIST!AM9,AM34))/AM35 -> 4.665390505 | AN39: =(365-DIST!AN9+MOD(DIST!AN9,AN34))/AN35 -> 4.681929556 | AO39: =(365-DIST!AO9+MOD(DIST!AO9,AO34))/AO35 -> 4.698468606 | AP39: =(365-DIST!AP9+MOD(DIST!AP9,AP34))/AP35 -> 3.823966309 | AQ39: =(365-DIST!AQ9+MOD(DIST!AQ9,AQ34))/AQ35 -> 3.843261868 | AR39: =(365-DIST!AR9+MOD(DIST!AR9,AR34))/AR35 -> 3.862557427 | AS39: =(365-DIST!AS9+MOD(DIST!AS9,AS34))/AS35 -> 3.881852986 | AT39: =(365-DIST!AT9+MOD(DIST!AT9,AT34))/AT35 -> 3.901148545 | AU39: =(365-DIST!AU9+MOD(DIST!AU9,AU34))/AU35 -> 3.920444104 | AV39: =(365-DIST!AV9+MOD(DIST!AV9,AV34))/AV35 -> 3.939739663 | AW39: =(365-DIST!AW9+MOD(DIST!AW9,AW34))/AW35 -> 3.959035222 | AX39: =(365-DIST!AX9+MOD(DIST!AX9,AX34))/AX35 -> 3.978330781
C41: Total Costs per trip
C42: NSR (low oil cost) | E42: =$J$5+$J$7+E22 -> 1306579.883 | F42: 1278590.182 | G42: 1271634.365 | H42: 1271650.331 | I42: 1271990.249 | J42: 1274510.484 | K42: 1278823.936 | L42: 1281778.067 | M42: 1286059.328 | N42: 1292012.6 | O42: 1296878.236 | P42: 1300477.117 | Q42: 1302911.897 | R42: 1305752.919 | S42: 1308907.305 | T42: 1318107.892 | U42: 1322341.713 | V42: 1326327.921 | W42: 1326576.094 | X42: 1331044.344 | Y42: 1334900.865 | Z42: 1336836.808 | AA42: 1342376.977 | AB42: 1346576.074 | AC42: 1351531.037 | AD42: 1357004.997 | AE42: 1361020.505 | AF42: 1365036.013 | AG42: 1369051.521 | AH42: 1373067.029 | AI42: 1377082.537 | AJ42: 1381098.045 | AK42: 1385113.552 | AL42: 1389129.06 | AM42: 1393144.568 | AN42: 1397160.076 | AO42: 1401175.584 | AP42: 1405191.092 | AQ42: 1409206.6 | AR42: 1413222.108 | AS42: 1417237.615 | AT42: 1421253.123 | AU42: 1425268.631 | AV42: 1429284.139 | AW42: 1433299.647 | AX42: 1437315.155
C43: SCR (low oil cost) | E43: =$J$4+$J$6+$G$10+E21 -> 2361375.637 | F43: 2308545.049 | G43: 2295415.938 | H43: 2295446.074 | I43: 2296087.67 | J43: 2300844.616 | K43: 2308986.26 | L43: 2314562.185 | M43: 2322643.069 | N43: 2333879.876 | O43: 2343063.77 | P43: 2349856.66 | Q43: 2354452.311 | R43: 2359814.742 | S43: 2365768.648 | T43: 2383134.765 | U43: 2391126.106 | V43: 2398650.078 | W43: 2399118.505 | X43: 2407552.332 | Y43: 2414831.519 | Z43: 2418485.612 | AA43: 2428942.687 | AB43: 2436868.487 | AC43: 2446220.985 | AD43: 2456553.09 | AE43: 2464132.365 | AF43: 2471711.64 | AG43: 2479290.915 | AH43: 2486870.19 | AI43: 2494449.465 | AJ43: 2502028.74 | AK43: 2509608.015 | AL43: 2517187.29 | AM43: 2524766.565 | AN43: 2532345.84 | AO43: 2539925.115 | AP43: 2547504.39 | AQ43: 2555083.665 | AR43: 2562662.94 | AS43: 2570242.215 | AT43: 2577821.49 | AU43: 2585400.765 | AV43: 2592980.04 | AW43: 2600559.315 | AX43: 2608138.59
C44: NSR (reference case) | E44: =$J$5+$J$7+E24 -> 1501553.681 | F44: 1474046.427 | G44: 1463679.342 | H44: 1473636.096 | I44: 1496673.273 | J44: 1517487.178 | K44: 1541004.705 | L44: 1565406.488 | M44: 1587191.608 | N44: 1609445.192 | O44: 1628800.889 | P44: 1646449.446 | Q44: 1668053.277 | R44: 1683481.884 | S44: 1701325.673 | T44: 1715963.555 | U44: 1732623.468 | V44: 1752300.553 | W44: 1771985.477 | X44: 1793639.374 | Y44: 1810167.336 | Z44: 1828686.851 | AA44: 1845061.884 | AB44: 1862525.83 | AC44: 1887789.611 | AD44: 1915511.571 | AE44: 1933922.876 | AF44: 1952334.182 | AG44: 1970745.487 | AH44: 1989156.793 | AI44: 2007568.099 | AJ44: 2025979.404 | AK44: 2044390.71 | AL44: 2062802.015 | AM44: 2081213.321 | AN44: 2099624.626 | AO44: 2118035.932 | AP44: 2136447.237 | AQ44: 2154858.543 | AR44: 2173269.849 | AS44: 2191681.154 | AT44: 2210092.46 | AU44: 2228503.765 | AV44: 2246915.071 | AW44: 2265326.376 | AX44: 2283737.682
C45: SCR (reference case) | E45: =$J$4+$J$6+$G$10+E23 -> 2729388.872 | F45: 2677468.903 | G45: 2657901.019 | H45: 2676694.402 | I45: 2720177.097 | J45: 2759463.363 | K45: 2803852.719 | L45: 2849911.107 | M45: 2891030.543 | N45: 2933034.205 | O45: 2969568.102 | P45: 3002879.771 | Q45: 3043657.022 | R45: 3072778.533 | S45: 3106458.701 | T45: 3134087.719 | U45: 3165533.32 | V45: 3202673.839 | W45: 3239829.15 | X45: 3280700.902 | Y45: 3311897.448 | Z45: 3346853.05 | AA45: 3377760.941 | AB45: 3410724.155 | AC45: 3458409.567 | AD45: 3510734.793 | AE45: 3545486.151 | AF45: 3580237.508 | AG45: 3614988.865 | AH45: 3649740.222 | AI45: 3684491.579 | AJ45: 3719242.937 | AK45: 3753994.294 | AL45: 3788745.651 | AM45: 3823497.008 | AN45: 3858248.366 | AO45: 3892999.723 | AP45: 3927751.08 | AQ45: 3962502.437 | AR45: 3997253.794 | AS45: 4032005.152 | AT45: 4066756.509 | AU45: 4101507.866 | AV45: 4136259.223 | AW45: 4171010.581 | AX45: 4205761.938
C46: NSR (high oil cost) | E46: =$J$5+$J$7+E26 -> 1793766.559 | F46: 1863667.404 | G46: 1917532.262 | H46: 1940541.722 | I46: 1958934.197 | J46: 1976977.089 | K46: 1989903.95 | L46: 1998434.25 | M46: 2013120.206 | N46: 2026993.347 | O46: 2044893.679 | P46: 2068053.059 | Q46: 2092069.538 | R46: 2122723.216 | S46: 2150462.678 | T46: 2172236.235 | U46: 2198834.61 | V46: 2226713.143 | W46: 2252267.981 | X46: 2273579.178 | Y46: 2298013.358 | Z46: 2323698.236 | AA46: 2345477.346 | AB46: 2372805.137 | AC46: 2406573.392 | AD46: 2447949.188 | AE46: 2472375.447 | AF46: 2496801.707 | AG46: 2521227.966 | AH46: 2545654.225 | AI46: 2570080.484 | AJ46: 2594506.744 | AK46: 2618933.003 | AL46: 2643359.262 | AM46: 2667785.521 | AN46: 2692211.781 | AO46: 2716638.04 | AP46: 2741064.299 | AQ46: 2765490.558 | AR46: 2789916.818 | AS46: 2814343.077 | AT46: 2838769.336 | AU46: 2863195.595 | AV46: 2887621.855 | AW46: 2912048.114 | AX46: 2936474.373
C47: SCR (high oil cost) | E47: =$J$4+$J$6+$G$10+E25 -> 3280940.965 | F47: 3412878.877 | G47: 3514548.85 | H47: 3557979.229 | I47: 3592695.043 | J47: 3626751.019 | K47: 3651150.481 | L47: 3667251.431 | M47: 3694971.187 | N47: 3721156.754 | O47: 3754943.649 | P47: 3798657.001 | Q47: 3843988.129 | R47: 3901846.977 | S47: 3954205.238 | T47: 3995302.847 | U47: 4045507.307 | V47: 4098128.066 | W47: 4146362.847 | X47: 4186587.751 | Y47: 4232707.291 | Z47: 4281187.523 | AA47: 4322295.614 | AB47: 4373876.847 | AC47: 4437614.46 | AD47: 4515711.316 | AE47: 4561815.905 | AF47: 4607920.493 | AG47: 4654025.081 | AH47: 4700129.669 | AI47: 4746234.258 | AJ47: 4792338.846 | AK47: 4838443.434 | AL47: 4884548.022 | AM47: 4930652.61 | AN47: 4976757.199 | AO47: 5022861.787 | AP47: 5068966.375 | AQ47: 5115070.963 | AR47: 5161175.551 | AS47: 5207280.14 | AT47: 5253384.728 | AU47: 5299489.316 | AV47: 5345593.904 | AW47: 5391698.493 | AX47: 5437803.081
C49: Annual OPEX
C50: Total costs low | E50: =E38*E42+E39*E43+$G$7+2*$J$8+(E38-2)*$J$9 -> 26393106.84 | F50: =F38*F42+F39*F43+$G$7+2*$J$8+(F38-2)*$J$9 -> 25934546.21 | G50: 25839569.74 | H50: 25858813.81 | I50: 25883380.93 | J50: 25943815.32 | K50: 26033846.96 | L50: 26101615.92 | M50: 25800662.5 | N50: 25919622.55 | O50: 26021753.05 | P50: 26104169.94 | Q50: 26168410.21 | R50: 26239155.74 | S50: 26314965.85 | T50: 26486469.92 | U50: 26579751.83 | V50: 26669286.03 | W50: 26699671.6 | X50: 26441957.23 | Y50: 26533523.97 | Z50: 26596165.42 | AA50: 26713660.14 | AB50: 26811035.73 | AC50: 26920151.63 | AD50: 27037450.04 | AE50: 27132725.83 | AF50: 27228210.55 | AG50: 27000775.92 | AH50: 27100607.6 | AI50: 27200689.98 | AJ50: 27301023.06 | AK50: 27401606.86 | AL50: 27502441.37 | AM50: 27603526.58 | AN50: 27704862.5 | AO50: 27806449.13 | AP50: 27622024.42 | AQ50: 27728417.63 | AR50: 27835103.34 | AS50: 27942081.54 | AT50: 28049352.23 | AU50: 28156915.42 | AV50: 28264771.1 | AW50: 28372919.27 | AX50: 28481359.93
C51: Total costs reference | E51: =E38*E44+E39*E45+$G$7+2*$J$8+(E38-2)*$J$9 -> 29587399.87 | F51: 29136743.27 | G51: 28988876.9 | H51: 29174290.71 | I51: 29574926.93 | J51: 29939719.21 | K51: 30349666.2 | L51: 30774917.09 | M51: 30516311.67 | N51: 30897136.45 | O51: 31233386.75 | P51: 31543602.78 | Q51: 31916821.16 | R51: 32193593.86 | S51: 32509131.42 | T51: 32774741.05 | U51: 33072961.04 | V51: 33419687.72 | W51: 33767357.78 | X51: 33433230.33 | Y51: 33728666.45 | Z51: 34055164.78 | AA51: 34350049.4 | AB51: 34662356.21 | AC51: 35094466.38 | AD51: 35565425.55 | AE51: 35895418.15 | AF51: 36226368.69 | AG51: 35796713.96 | AH51: 36126225.15 | AI51: 36456885.86 | AJ51: 36788696.07 | AK51: 37121655.8 | AL51: 37455765.03 | AM51: 37791023.77 | AN51: 38127432.02 | AO51: 38464989.78 | AP51: 38018834.28 | AQ51: 38357060.13 | AR51: 38696627.08 | AS51: 39037535.13 | AT51: 39379784.27 | AU51: 39723374.5 | AV51: 40068305.83 | AW51: 40414578.25 | AX51: 40762191.76
C52: Total costs high | E52: =E38*E46+E39*E47+$G$7+2*$J$8+(E38-2)*$J$9 -> 34374779.34 | F52: 35519978.25 | G52: 36431520.18 | H52: 36838270.52 | I52: 37169882 | J52: 37496318.53 | K52: 37739102.13 | L52: 37909847.84 | M52: 37186237.04 | N52: 37444516.24 | O52: 37766605.22 | P52: 38172122.86 | Q52: 38592097.77 | R52: 39117699.7 | S52: 39598577.81 | T52: 39986316.95 | U52: 40451321.03 | V52: 40937718.92 | W52: 41388405.18 | X52: 40686637.79 | Y52: 41114252.96 | Z52: 41562106.47 | AA52: 41951963.04 | AB52: 42427388.25 | AC52: 43002408.78 | AD52: 43695347.7 | AE52: 44131191.73 | AF52: 44568306.64 | AG52: 43844010.49 | AH52: 44278824.48 | AI52: 44715163.52 | AJ52: 45153027.61 | AK52: 45592416.76 | AL52: 46033330.96 | AM52: 46475770.21 | AN52: 46919734.51 | AO52: 47365223.87 | AP52: 46615122.55 | AQ52: 47061106.91 | AR52: 47508870.5 | AS52: 47958413.31 | AT52: 48409735.35 | AU52: 48862836.62 | AV52: 49317717.12 | AW52: 49774376.85 | AX52: 50232815.8
C54: Discounted Annual OPEX
C55: Total costs low | E55: =E50/DIST!E13 -> 26393106.84 | F55: =F50/DIST!F13 -> 25934546.21 | G55: =G50/DIST!G13 -> 24149130.6 | H55: =H50/DIST!H13 -> 22586089.45 | I55: =I50/DIST!I13 -> 21128548.9 | J55: =J50/DIST!J13 -> 19792412.49 | K55: =K50/DIST!K13 -> 18561773.08 | L55: =L50/DIST!L13 -> 17392608.8 | M55: =M50/DIST!M13 -> 16067355.91 | N55: =N50/DIST!N13 -> 15085456.31 | O55: =O50/DIST!O13 -> 14154109.53 | P55: =P50/DIST!P13 -> 13270036.31 | Q55: =Q50/DIST!Q13 -> 12432423.19 | R55: =R50/DIST!R13 -> 11650498.95 | S55: =S50/DIST!S13 -> 10919775.27 | T55: =T50/DIST!T13 -> 10271909.69 | U55: =U50/DIST!U13 -> 9633725.252 | V55: =V50/DIST!V13 -> 9033809.877 | W55: =W50/DIST!W13 -> 8452432.262 | X55: =X50/DIST!X13 -> 7823221.021 | Y55: =Y50/DIST!Y13 -> 7336740.482 | Z55: =Z50/DIST!Z13 -> 6872954.547 | AA55: =AA50/DIST!AA13 -> 6451698.519 | AB55: =AB50/DIST!AB13 -> 6051603.736 | AC55: =AC50/DIST!AC13 -> 5678722.086 | AD55: =AD50/DIST!AD13 -> 5330341.887 | AE55: =AE50/DIST!AE13 -> 4999182.419 | AF55: =AF50/DIST!AF13 -> 4688575.14 | AG55: =AG50/DIST!AG13 -> 4345244.787 | AH55: =AH50/DIST!AH13 -> 4075991.34 | AI55: =AI50/DIST!AI13 -> 3823405.563 | AJ55: =AJ50/DIST!AJ13 -> 3586456.695 | AK55: =AK50/DIST!AK13 -> 3364177.662 | AL55: =AL50/DIST!AL13 -> 3155661.138 | AM55: =AM50/DIST!AM13 -> 2960055.859 | AN55: =AN50/DIST!AN13 -> 2776563.165 | AO55: =AO50/DIST!AO13 -> 2604433.748 | AP55: =AP50/DIST!AP13 -> 2417906.53 | AQ55: =AQ50/DIST!AQ13 -> 2268429.634 | AR55: =AR50/DIST!AR13 -> 2128184.55 | AS55: =AS50/DIST!AS13 -> 1996601.651 | AT55: =AT50/DIST!AT13 -> 1873146.429 | AU55: =AU50/DIST!AU13 -> 1757317.327 | AV55: =AV50/DIST!AV13 -> 1648643.71 | AW55: =AW50/DIST!AW13 -> 1546683.961 | AX55: =AX50/DIST!AX13 -> 1451023.694
C56: Total costs reference | E56: =E51/DIST!E13 -> 29587399.87 | F56: =F51/DIST!F13 -> 29136743.27 | G56: =G51/DIST!G13 -> 27092408.32 | H56: =H51/DIST!H13 -> 25481955.38 | I56: =I51/DIST!I13 -> 24141950.06 | J56: =J51/DIST!J13 -> 22840868.44 | K56: =K51/DIST!K13 -> 21638892.55 | L56: =L51/DIST!L13 -> 20506626.69 | M56: =M51/DIST!M13 -> 19004025.22 | N56: =N51/DIST!N13 -> 17982414.72 | O56: =O51/DIST!O13 -> 16988892.95 | P56: =P51/DIST!P13 -> 16035168.14 | Q56: =Q51/DIST!Q13 -> 15163451.81 | R56: =R51/DIST!R13 -> 14294340.69 | S56: =S51/DIST!S13 -> 13490133.77 | T56: =T51/DIST!T13 -> 12710609.65 | U56: =U51/DIST!U13 -> 11987163.09 | V56: =V51/DIST!V13 -> 11320404.48 | W56: =W51/DIST!W13 -> 10689880.71 | X56: =X51/DIST!X13 -> 9891686.46 | Y56: =Y51/DIST!Y13 -> 9326257.335 | Z56: =Z51/DIST!Z13 -> 8800501.722 | AA56: =AA51/DIST!AA13 -> 8295986.459 | AB56: =AB51/DIST!AB13 -> 7823750.133 | AC56: =AC51/DIST!AC13 -> 7403068.307 | AD56: =AD51/DIST!AD13 -> 7011603.434 | AE56: =AE51/DIST!AE13 -> 6613701.272 | AF56: =AF51/DIST!AF13 -> 6238017.416 | AG56: =AG51/DIST!AG13 -> 5760778.325 | AH56: =AH51/DIST!AH13 -> 5433464.19 | AI56: =AI51/DIST!AI13 -> 5124482.516 | AJ56: =AJ51/DIST!AJ13 -> 4832824.947 | AK56: =AK51/DIST!AK13 -> 4557537.295 | AL56: =AL51/DIST!AL13 -> 4297716.72 | AM56: =AM51/DIST!AM13 -> 4052509.052 | AN56: =AN51/DIST!AN13 -> 3821106.252 | AO56: =AO51/DIST!AO13 -> 3602743.99 | AP56: =AP51/DIST!AP13 -> 3327996.032 | AQ56: =AQ51/DIST!AQ13 -> 3137946.53 | AR56: =AR51/DIST!AR13 -> 2958622.531 | AS56: =AS51/DIST!AS13 -> 2789427.373 | AT56: =AT51/DIST!AT13 -> 2629796.998 | AU56: =AU51/DIST!AU13 -> 2479198.21 | AV56: =AV51/DIST!AV13 -> 2337127.024 | AW56: =AW51/DIST!AW13 -> 2203107.102 | AX56: =AX51/DIST!AX13 -> 2076688.269
C57: Total costs high | E57: =E52/DIST!E13 -> 34374779.34 | F57: =F52/DIST!F13 -> 35519978.25 | G57: =G52/DIST!G13 -> 34048149.7 | H57: =H52/DIST!H13 -> 32175972.15 | I57: =I52/DIST!I13 -> 30341695.76 | J57: =J52/DIST!J13 -> 28605761.88 | K57: =K52/DIST!K13 -> 26907458.25 | L57: =L52/DIST!L13 -> 25260932.31 | M57: =M52/DIST!M13 -> 23157719.52 | N57: =N52/DIST!N13 -> 21793049.37 | O57: =O52/DIST!O13 -> 20542530.92 | P57: =P52/DIST!P13 -> 19404771.64 | Q57: =Q52/DIST!Q13 -> 18334827.65 | R57: =R52/DIST!R13 -> 17368726.48 | S57: =S52/DIST!S13 -> 16432001.98 | T57: =T52/DIST!T13 -> 15507383.12 | U57: =U52/DIST!U13 -> 14661420.3 | V57: =V52/DIST!V13 -> 13867021.75 | W57: =W52/DIST!W13 -> 13102509.14 | X57: =X52/DIST!X13 -> 12037708 | Y57: =Y52/DIST!Y13 -> 11368433.55 | Z57: =Z52/DIST!Z13 -> 10740438.11 | AA57: =AA52/DIST!AA13 -> 10131948.09 | AB57: =AB52/DIST!AB13 -> 9576420.092 | AC57: =AC52/DIST!AC13 -> 9071224.108 | AD57: =AD52/DIST!AD13 -> 8614390.106 | AE57: =AE52/DIST!AE13 -> 8131135.78 | AF57: =AF52/DIST!AF13 -> 7674461.535 | AG57: =AG52/DIST!AG13 -> 7055832.712 | AH57: =AH52/DIST!AH13 -> 6659633.166 | AI57: =AI52/DIST!AI13 -> 6285289.274 | AJ57: =AJ52/DIST!AJ13 -> 5931623.069 | AK57: =AK52/DIST!AK13 -> 5597518.088 | AL57: =AL52/DIST!AL13 -> 5281916.308 | AM57: =AM52/DIST!AM13 -> 4983815.221 | AN57: =AN52/DIST!AN13 -> 4702265.046 | AO57: =AO52/DIST!AO13 -> 4436366.072 | AP57: =AP52/DIST!AP13 -> 4080476.054 | AQ57: =AQ52/DIST!AQ13 -> 3850014.485 | AR57: =AR52/DIST!AR13 -> 3632378.976 | AS57: =AS52/DIST!AS13 -> 3426868.792 | AT57: =AT52/DIST!AT13 -> 3232820.572 | AU57: =AU52/DIST!AU13 -> 3049606.399 | AV57: =AV52/DIST!AV13 -> 2876631.968 | AW57: =AW52/DIST!AW13 -> 2713334.839 | AX57: =AX52/DIST!AX13 -> 2559182.781
C59: Annual TEU | E59: =E38*$D$4*DIST!E15+E39*$D$4*DIST!E14 -> 60542.57274 | F59: =F38*$D$4*DIST!F15+F39*$D$4*DIST!F14 -> 60542.57274 | G59: =G38*$D$4*DIST!G15+G39*$D$4*DIST!G14 -> 60592.18989 | H59: =H38*$D$4*DIST!H15+H39*$D$4*DIST!H14 -> 60641.80704 | I59: =I38*$D$4*DIST!I15+I39*$D$4*DIST!I14 -> 60691.4242 | J59: =J38*$D$4*DIST!J15+J39*$D$4*DIST!J14 -> 60741.04135 | K59: =K38*$D$4*DIST!K15+K39*$D$4*DIST!K14 -> 60790.6585 | L59: =L38*$D$4*DIST!L15+L39*$D$4*DIST!L14 -> 60840.27565 | M59: =M38*$D$4*DIST!M15+M39*$D$4*DIST!M14 -> 61064.01225 | N59: =N38*$D$4*DIST!N15+N39*$D$4*DIST!N14 -> 61130.16845 | O59: =O38*$D$4*DIST!O15+O39*$D$4*DIST!O14 -> 61196.32466 | P59: =P38*$D$4*DIST!P15+P39*$D$4*DIST!P14 -> 61262.48086 | Q59: =Q38*$D$4*DIST!Q15+Q39*$D$4*DIST!Q14 -> 61328.63706 | R59: =R38*$D$4*DIST!R15+R39*$D$4*DIST!R14 -> 61394.79326 | S59: =S38*$D$4*DIST!S15+S39*$D$4*DIST!S14 -> 61460.94946 | T59: =T38*$D$4*DIST!T15+T39*$D$4*DIST!T14 -> 61527.10567 | U59: =U38*$D$4*DIST!U15+U39*$D$4*DIST!U14 -> 61593.26187 | V59: =V38*$D$4*DIST!V15+V39*$D$4*DIST!V14 -> 61659.41807 | W59: =W38*$D$4*DIST!W15+W39*$D$4*DIST!W14 -> 61725.57427 | X59: =X38*$D$4*DIST!X15+X39*$D$4*DIST!X14 -> 62147.77948 | Y59: =Y38*$D$4*DIST!Y15+Y39*$D$4*DIST!Y14 -> 62230.47473 | Z59: =Z38*$D$4*DIST!Z15+Z39*$D$4*DIST!Z14 -> 62313.16998 | AA59: =AA38*$D$4*DIST!AA15+AA39*$D$4*DIST!AA14 -> 62395.86524 | AB59: =AB38*$D$4*DIST!AB15+AB39*$D$4*DIST!AB14 -> 62478.56049 | AC59: =AC38*$D$4*DIST!AC15+AC39*$D$4*DIST!AC14 -> 62561.25574 | AD59: =AD38*$D$4*DIST!AD15+AD39*$D$4*DIST!AD14 -> 62643.951 | AE59: =AE38*$D$4*DIST!AE15+AE39*$D$4*DIST!AE14 -> 62726.64625 | AF59: =AF38*$D$4*DIST!AF15+AF39*$D$4*DIST!AF14 -> 62809.3415 | AG59: =AG38*$D$4*DIST!AG15+AG39*$D$4*DIST!AG14 -> 63396.93721 | AH59: =AH38*$D$4*DIST!AH15+AH39*$D$4*DIST!AH14 -> 63496.17152 | AI59: =AI38*$D$4*DIST!AI15+AI39*$D$4*DIST!AI14 -> 63595.40582 | AJ59: =AJ38*$D$4*DIST!AJ15+AJ39*$D$4*DIST!AJ14 -> 63694.64012 | AK59: =AK38*$D$4*DIST!AK15+AK39*$D$4*DIST!AK14 -> 63793.87443 | AL59: =AL38*$D$4*DIST!AL15+AL39*$D$4*DIST!AL14 -> 63893.10873 | AM59: =AM38*$D$4*DIST!AM15+AM39*$D$4*DIST!AM14 -> 63992.34303 | AN59: =AN38*$D$4*DIST!AN15+AN39*$D$4*DIST!AN14 -> 64091.57734 | AO59: =AO38*$D$4*DIST!AO15+AO39*$D$4*DIST!AO14 -> 64190.81164 | AP59: =AP38*$D$4*DIST!AP15+AP39*$D$4*DIST!AP14 -> 64943.79786 | AQ59: =AQ38*$D$4*DIST!AQ15+AQ39*$D$4*DIST!AQ14 -> 65059.57121 | AR59: =AR38*$D$4*DIST!AR15+AR39*$D$4*DIST!AR14 -> 65175.34456 | AS59: =AS38*$D$4*DIST!AS15+AS39*$D$4*DIST!AS14 -> 65291.11792 | AT59: =AT38*$D$4*DIST!AT15+AT39*$D$4*DIST!AT14 -> 65406.89127 | AU59: =AU38*$D$4*DIST!AU15+AU39*$D$4*DIST!AU14 -> 65522.66462 | AV59: =AV38*$D$4*DIST!AV15+AV39*$D$4*DIST!AV14 -> 65638.43798 | AW59: =AW38*$D$4*DIST!AW15+AW39*$D$4*DIST!AW14 -> 65754.21133 | AX59: =AX38*$D$4*DIST!AX15+AX39*$D$4*DIST!AX14 -> 65869.98469
C61: Undiscounted total cost per TEU
C62: total cost / teu low | E62: =E50/E59 -> 435.9429347 | F62: 428.3687501 | G62: 426.4505011 | H62: 426.418919 | I62: 426.4750954 | J62: 427.121675 | K62: 428.2540706 | L62: 429.0186993 | M62: 422.5182976 | N62: 424.0070526 | O62: 425.2175796 | P62: 426.1037028 | Q62: 426.6915338 | R62: 427.3840556 | S62: 428.1574898 | T62: 430.4845748 | U62: 431.5366814 | V62: 432.5257497 | W62: 432.5544463 | X62: 425.4690586 | Y62: 426.3750853 | Z62: 426.8145149 | AA62: 428.1318969 | AB62: 429.1237749 | AC62: 430.3006919 | AD62: 431.6051208 | AE62: 432.5550218 | AF62: 433.5057477 | AG62: 425.9003212 | AH62: 426.8069546 | AI62: 427.7147009 | AJ62: 428.6235547 | AK62: 429.533511 | AL62: 430.4445646 | AM62: 431.3567103 | AN62: 432.2699433 | AO62: 433.1842583 | AP62: 425.3219757 | AQ62: 426.2004362 | AR62: 427.0802636 | AS62: 427.9614506 | AT62: 428.8439901 | AU62: 429.7278747 | AV62: 430.6130975 | AW62: 431.4996514 | AX62: 432.3875292
C63: total cost / teu medium | E63: =E51/E59 -> 488.7040397 | F63: 481.2604081 | G63: 478.4259647 | H63: 481.0920409 | I63: 487.2999328 | J63: 492.907572 | K63: 499.2488476 | L63: 505.8313224 | M63: 499.7429836 | N63: 505.4318879 | O63: 510.3801074 | P63: 514.8926771 | Q63: 520.4228022 | R63: 524.3700997 | S63: 528.9396227 | T63: 532.6878405 | U63: 536.9574535 | V63: 542.0045917 | W63: 547.0561947 | X63: 537.9633932 | Y63: 541.995969 | Z63: 546.5163269 | AA63: 550.5180394 | AB63: 554.7880095 | AC63: 560.9616682 | AD63: 567.7391828 | AE63: 572.2515119 | AF63: 576.7672104 | AG63: 564.6442168 | AH63: 568.9512343 | AI63: 573.2628857 | AJ63: 577.5791496 | AK63: 581.9000042 | AL63: 586.2254283 | AM63: 590.5554005 | AN63: 594.8898998 | AO63: 599.2289052 | AP63: 585.4113176 | AQ63: 589.5682898 | AR63: 593.7310703 | AS63: 597.8996282 | AT63: 602.0739329 | AU63: 606.2539539 | AV63: 610.439661 | AW63: 614.631024 | AX63: 618.8280133
C64: total cost / teu high | E64: =E52/E59 -> 567.7786355 | F64: 586.6942325 | G64: 601.2576908 | H64: 607.473166 | I64: 612.4404311 | J64: 617.3143842 | K64: 620.8042989 | L64: 623.104472 | M64: 608.9714002 | N64: 612.5374293 | O64: 617.1384545 | P64: 623.0913657 | Q64: 629.2671681 | R64: 637.1501168 | S64: 644.2884165 | T64: 649.897578 | U64: 656.7491282 | V64: 663.9329434 | W64: 670.5228046 | X64: 654.6756478 | Y64: 660.6771543 | Z64: 666.9875162 | AA64: 672.3516515 | AB64: 679.0711552 | AC64: 687.3648597 | AD64: 697.5190262 | AE64: 703.5477643 | AF64: 709.5808614 | AG64: 691.5793163 | AH64: 697.3463663 | AI64: 703.119399 | AJ64: 708.8983866 | AK64: 714.683301 | AL64: 720.4741149 | AM64: 726.2708006 | AN64: 732.073331 | AO64: 737.881679 | AP64: 717.7763557 | AQ64: 723.3540897 | AR64: 728.9393069 | AS64: 734.5319676 | AT64: 740.1320322 | AU64: 745.7394614 | AV64: 751.3542162 | AW64: 756.9762581 | AX64: 762.6055485
C66: Lifetime cost per TEU
C67: NPV low | E67: =(SUM(F55:AD55)+E31+E29)/SUM(F59:AD59) -> 304.729042 | F67: =(SUM(G55:AE55)+F31+F29)/SUM(G59:AE59) -> 266.7769928 | G67: =(SUM(H55:AF55)+G31+G29)/SUM(H59:AF59) -> 249.2906891 | H67: 232.8561129 | I67: 217.5140422 | J67: 203.1746269 | K67: 189.7592241 | L67: 177.2183575 | M67: 165.6612787 | N67: 154.8390928 | O67: 144.7112965 | P67: 135.2400321 | Q67: 126.3199204 | R67: 117.9845352 | S67: 110.1944819 | T67: 102.8908794 | U67: 96.06169995 | V67: 89.67718121 | W67: 83.72035477 | X67: 78.23351573 | Y67: 73.10332749
C68: NPV medium | E68: =(SUM(F56:AD56)+E31+E29)/SUM(F59:AD59) -> 345.7171715 | F68: 306.6754218 | G68: 288.2274341 | H68: 270.7646877 | I68: 254.2834125 | J68: 238.7487662 | K68: 224.0877324 | L68: 210.2470354 | M68: 197.4784658 | N68: 185.4421957 | O68: 174.1132564 | P68: 163.4596354 | Q68: 153.3153001 | R68: 143.7901084 | S68: 134.8368014 | T68: 126.434123 | U68: 118.5413388 | V68: 111.1178278 | W68: 104.1362948 | X68: 97.71922308 | Y68: 91.69271527
C69: NPV high | E69: =(SUM(F57:AD57)+E31+E29)/SUM(F59:AD59) -> 403.9581487 | F69: 361.672373 | G69: 339.5644667 | H69: 318.5136325 | I69: 298.7306239 | J69: 280.143294 | K69: 262.7192984 | L69: 246.4175826 | M69: 231.5496114 | N69: 217.6067177 | O69: 204.5097307 | P69: 192.1810905 | Q69: 180.430696 | R69: 169.3419525 | S69: 158.8912958 | T69: 149.0663572 | U69: 139.8129587 | V69: 131.0945204 | W69: 122.8884488 | X69: 115.4048025 | Y69: 108.3637309
C71: Frontpage helper
C72: low | E72: =ABS(E$13-Analysis!$AI5)+1 -> 2016 | F72: =ABS(F$13-Analysis!$AI5)+1 -> 2017 | G72: =ABS(G$13-Analysis!$AI5)+1 -> 2018 | H72: =ABS(H$13-Analysis!$AI5)+1 -> 2019 | I72: =ABS(I$13-Analysis!$AI5)+1 -> 2020 | J72: =ABS(J$13-Analysis!$AI5)+1 -> 2021 | K72: =ABS(K$13-Analysis!$AI5)+1 -> 2022 | L72: =ABS(L$13-Analysis!$AI5)+1 -> 2023 | M72: =ABS(M$13-Analysis!$AI5)+1 -> 2024 | N72: =ABS(N$13-Analysis!$AI5)+1 -> 2025 | O72: =ABS(O$13-Analysis!$AI5)+1 -> 2026 | P72: =ABS(P$13-Analysis!$AI5)+1 -> 2027 | Q72: =ABS(Q$13-Analysis!$AI5)+1 -> 2028 | R72: =ABS(R$13-Analysis!$AI5)+1 -> 2029 | S72: =ABS(S$13-Analysis!$AI5)+1 -> 2030 | T72: =ABS(T$13-Analysis!$AI5)+1 -> 2031 | U72: =ABS(U$13-Analysis!$AI5)+1 -> 2032 | V72: =ABS(V$13-Analysis!$AI5)+1 -> 2033 | W72: =ABS(W$13-Analysis!$AI5)+1 -> 2034 | X72: =ABS(X$13-Analysis!$AI5)+1 -> 2035 | Y72: =ABS(Y$13-Analysis!$AI5)+1 -> 2036 | Z72: =ABS(Z$13-Analysis!$AI5)+1 -> 2037 | AA72: =ABS(AA$13-Analysis!$AI5)+1 -> 2038 | AB72: =ABS(AB$13-Analysis!$AI5)+1 -> 2039 | AC72: =ABS(AC$13-Analysis!$AI5)+1 -> 2040 | AD72: =ABS(AD$13-Analysis!$AI5)+1 -> 2041 | AE72: =ABS(AE$13-Analysis!$AI5)+1 -> 2042 | AF72: =ABS(AF$13-Analysis!$AI5)+1 -> 2043 | AG72: =ABS(AG$13-Analysis!$AI5)+1 -> 2044 | AH72: =ABS(AH$13-Analysis!$AI5)+1 -> 2045 | AI72: =ABS(AI$13-Analysis!$AI5)+1 -> 2046 | AJ72: =ABS(AJ$13-Analysis!$AI5)+1 -> 2047 | AK72: =ABS(AK$13-Analysis!$AI5)+1 -> 2048 | AL72: =ABS(AL$13-Analysis!$AI5)+1 -> 2049 | AM72: =ABS(AM$13-Analysis!$AI5)+1 -> 2050 | AN72: =ABS(AN$13-Analysis!$AI5)+1 -> 2051 | AO72: =ABS(AO$13-Analysis!$AI5)+1 -> 2052 | AP72: =ABS(AP$13-Analysis!$AI5)+1 -> 2053 | AQ72: =ABS(AQ$13-Analysis!$AI5)+1 -> 2054 | AR72: =ABS(AR$13-Analysis!$AI5)+1 -> 2055 | AS72: =ABS(AS$13-Analysis!$AI5)+1 -> 2056 | AT72: =ABS(AT$13-Analysis!$AI5)+1 -> 2057 | AU72: =ABS(AU$13-Analysis!$AI5)+1 -> 2058 | AV72: =ABS(AV$13-Analysis!$AI5)+1 -> 2059 | AW72: =ABS(AW$13-Analysis!$AI5)+1 -> 2060
C73: medium | E73: =ABS(E$13-Analysis!$AI6)+1 -> 2016 | F73: =ABS(F$13-Analysis!$AI6)+1 -> 2017 | G73: =ABS(G$13-Analysis!$AI6)+1 -> 2018 | H73: =ABS(H$13-Analysis!$AI6)+1 -> 2019 | I73: =ABS(I$13-Analysis!$AI6)+1 -> 2020 | J73: =ABS(J$13-Analysis!$AI6)+1 -> 2021 | K73: =ABS(K$13-Analysis!$AI6)+1 -> 2022 | L73: =ABS(L$13-Analysis!$AI6)+1 -> 2023 | M73: =ABS(M$13-Analysis!$AI6)+1 -> 2024 | N73: =ABS(N$13-Analysis!$AI6)+1 -> 2025 | O73: =ABS(O$13-Analysis!$AI6)+1 -> 2026 | P73: =ABS(P$13-Analysis!$AI6)+1 -> 2027 | Q73: =ABS(Q$13-Analysis!$AI6)+1 -> 2028 | R73: =ABS(R$13-Analysis!$AI6)+1 -> 2029 | S73: =ABS(S$13-Analysis!$AI6)+1 -> 2030 | T73: =ABS(T$13-Analysis!$AI6)+1 -> 2031 | U73: =ABS(U$13-Analysis!$AI6)+1 -> 2032 | V73: =ABS(V$13-Analysis!$AI6)+1 -> 2033 | W73: =ABS(W$13-Analysis!$AI6)+1 -> 2034 | X73: =ABS(X$13-Analysis!$AI6)+1 -> 2035 | Y73: =ABS(Y$13-Analysis!$AI6)+1 -> 2036 | Z73: =ABS(Z$13-Analysis!$AI6)+1 -> 2037 | AA73: =ABS(AA$13-Analysis!$AI6)+1 -> 2038 | AB73: =ABS(AB$13-Analysis!$AI6)+1 -> 2039 | AC73: =ABS(AC$13-Analysis!$AI6)+1 -> 2040 | AD73: =ABS(AD$13-Analysis!$AI6)+1 -> 2041 | AE73: =ABS(AE$13-Analysis!$AI6)+1 -> 2042 | AF73: =ABS(AF$13-Analysis!$AI6)+1 -> 2043 | AG73: =ABS(AG$13-Analysis!$AI6)+1 -> 2044 | AH73: =ABS(AH$13-Analysis!$AI6)+1 -> 2045 | AI73: =ABS(AI$13-Analysis!$AI6)+1 -> 2046 | AJ73: =ABS(AJ$13-Analysis!$AI6)+1 -> 2047 | AK73: =ABS(AK$13-Analysis!$AI6)+1 -> 2048 | AL73: =ABS(AL$13-Analysis!$AI6)+1 -> 2049 | AM73: =ABS(AM$13-Analysis!$AI6)+1 -> 2050 | AN73: =ABS(AN$13-Analysis!$AI6)+1 -> 2051 | AO73: =ABS(AO$13-Analysis!$AI6)+1 -> 2052 | AP73: =ABS(AP$13-Analysis!$AI6)+1 -> 2053 | AQ73: =ABS(AQ$13-Analysis!$AI6)+1 -> 2054 | AR73: =ABS(AR$13-Analysis!$AI6)+1 -> 2055 | AS73: =ABS(AS$13-Analysis!$AI6)+1 -> 2056 | AT73: =ABS(AT$13-Analysis!$AI6)+1 -> 2057 | AU73: =ABS(AU$13-Analysis!$AI6)+1 -> 2058 | AV73: =ABS(AV$13-Analysis!$AI6)+1 -> 2059 | AW73: =ABS(AW$13-Analysis!$AI6)+1 -> 2060
C74: high | E74: =ABS(E$13-Analysis!$AI7)+1 -> 19 | F74: =ABS(F$13-Analysis!$AI7)+1 -> 18 | G74: =ABS(G$13-Analysis!$AI7)+1 -> 17 | H74: =ABS(H$13-Analysis!$AI7)+1 -> 16 | I74: =ABS(I$13-Analysis!$AI7)+1 -> 15 | J74: =ABS(J$13-Analysis!$AI7)+1 -> 14 | K74: =ABS(K$13-Analysis!$AI7)+1 -> 13 | L74: =ABS(L$13-Analysis!$AI7)+1 -> 12 | M74: =ABS(M$13-Analysis!$AI7)+1 -> 11 | N74: =ABS(N$13-Analysis!$AI7)+1 -> 10 | O74: =ABS(O$13-Analysis!$AI7)+1 -> 9 | P74: =ABS(P$13-Analysis!$AI7)+1 -> 8 | Q74: =ABS(Q$13-Analysis!$AI7)+1 -> 7 | R74: =ABS(R$13-Analysis!$AI7)+1 -> 6 | S74: =ABS(S$13-Analysis!$AI7)+1 -> 5 | T74: =ABS(T$13-Analysis!$AI7)+1 -> 4 | U74: =ABS(U$13-Analysis!$AI7)+1 -> 3 | V74: =ABS(V$13-Analysis!$AI7)+1 -> 2 | W74: =ABS(W$13-Analysis!$AI7)+1 -> 1 | X74: =ABS(X$13-Analysis!$AI7)+1 -> 2 | Y74: =ABS(Y$13-Analysis!$AI7)+1 -> 3 | Z74: =ABS(Z$13-Analysis!$AI7)+1 -> 4 | AA74: =ABS(AA$13-Analysis!$AI7)+1 -> 5 | AB74: =ABS(AB$13-Analysis!$AI7)+1 -> 6 | AC74: =ABS(AC$13-Analysis!$AI7)+1 -> 7 | AD74: =ABS(AD$13-Analysis!$AI7)+1 -> 8 | AE74: =ABS(AE$13-Analysis!$AI7)+1 -> 9 | AF74: =ABS(AF$13-Analysis!$AI7)+1 -> 10 | AG74: =ABS(AG$13-Analysis!$AI7)+1 -> 11 | AH74: =ABS(AH$13-Analysis!$AI7)+1 -> 12 | AI74: =ABS(AI$13-Analysis!$AI7)+1 -> 13 | AJ74: =ABS(AJ$13-Analysis!$AI7)+1 -> 14 | AK74: =ABS(AK$13-Analysis!$AI7)+1 -> 15 | AL74: =ABS(AL$13-Analysis!$AI7)+1 -> 16 | AM74: =ABS(AM$13-Analysis!$AI7)+1 -> 17 | AN74: =ABS(AN$13-Analysis!$AI7)+1 -> 18 | AO74: =ABS(AO$13-Analysis!$AI7)+1 -> 19 | AP74: =ABS(AP$13-Analysis!$AI7)+1 -> 20 | AQ74: =ABS(AQ$13-Analysis!$AI7)+1 -> 21 | AR74: =ABS(AR$13-Analysis!$AI7)+1 -> 22 | AS74: =ABS(AS$13-Analysis!$AI7)+1 -> 23 | AT74: =ABS(AT$13-Analysis!$AI7)+1 -> 24 | AU74: =ABS(AU$13-Analysis!$AI7)+1 -> 25 | AV74: =ABS(AV$13-Analysis!$AI7)+1 -> 26 | AW74: =ABS(AW$13-Analysis!$AI7)+1 -> 27
C76: Frontpage Helper TEU
C77: low | E77: =ABS(E$13-Analysis!$AI12)+1 -> 38 | F77: =ABS(F$13-Analysis!$AI12)+1 -> 37 | G77: =ABS(G$13-Analysis!$AI12)+1 -> 36 | H77: =ABS(H$13-Analysis!$AI12)+1 -> 35 | I77: =ABS(I$13-Analysis!$AI12)+1 -> 34 | J77: =ABS(J$13-Analysis!$AI12)+1 -> 33 | K77: =ABS(K$13-Analysis!$AI12)+1 -> 32 | L77: =ABS(L$13-Analysis!$AI12)+1 -> 31 | M77: =ABS(M$13-Analysis!$AI12)+1 -> 30 | N77: =ABS(N$13-Analysis!$AI12)+1 -> 29 | O77: =ABS(O$13-Analysis!$AI12)+1 -> 28 | P77: =ABS(P$13-Analysis!$AI12)+1 -> 27 | Q77: =ABS(Q$13-Analysis!$AI12)+1 -> 26 | R77: =ABS(R$13-Analysis!$AI12)+1 -> 25 | S77: =ABS(S$13-Analysis!$AI12)+1 -> 24 | T77: =ABS(T$13-Analysis!$AI12)+1 -> 23 | U77: =ABS(U$13-Analysis!$AI12)+1 -> 22 | V77: =ABS(V$13-Analysis!$AI12)+1 -> 21 | W77: =ABS(W$13-Analysis!$AI12)+1 -> 20 | X77: =ABS(X$13-Analysis!$AI12)+1 -> 19 | Y77: =ABS(Y$13-Analysis!$AI12)+1 -> 18 | Z77: =ABS(Z$13-Analysis!$AI12)+1 -> 17 | AA77: =ABS(AA$13-Analysis!$AI12)+1 -> 16 | AB77: =ABS(AB$13-Analysis!$AI12)+1 -> 15 | AC77: =ABS(AC$13-Analysis!$AI12)+1 -> 14 | AD77: =ABS(AD$13-Analysis!$AI12)+1 -> 13 | AE77: =ABS(AE$13-Analysis!$AI12)+1 -> 12 | AF77: =ABS(AF$13-Analysis!$AI12)+1 -> 11 | AG77: =ABS(AG$13-Analysis!$AI12)+1 -> 10 | AH77: =ABS(AH$13-Analysis!$AI12)+1 -> 9 | AI77: =ABS(AI$13-Analysis!$AI12)+1 -> 8 | AJ77: =ABS(AJ$13-Analysis!$AI12)+1 -> 7 | AK77: =ABS(AK$13-Analysis!$AI12)+1 -> 6 | AL77: =ABS(AL$13-Analysis!$AI12)+1 -> 5 | AM77: =ABS(AM$13-Analysis!$AI12)+1 -> 4 | AN77: =ABS(AN$13-Analysis!$AI12)+1 -> 3 | AO77: =ABS(AO$13-Analysis!$AI12)+1 -> 2 | AP77: =ABS(AP$13-Analysis!$AI12)+1 -> 1 | AQ77: =ABS(AQ$13-Analysis!$AI12)+1 -> 2 | AR77: =ABS(AR$13-Analysis!$AI12)+1 -> 3 | AS77: =ABS(AS$13-Analysis!$AI12)+1 -> 4 | AT77: =ABS(AT$13-Analysis!$AI12)+1 -> 5 | AU77: =ABS(AU$13-Analysis!$AI12)+1 -> 6 | AV77: =ABS(AV$13-Analysis!$AI12)+1 -> 7 | AW77: =ABS(AW$13-Analysis!$AI12)+1 -> 8 | AX77: =ABS(AX$13-Analysis!$AI12)+1 -> 9
C78: medium | E78: =ABS(E$13-Analysis!$AI13)+1 -> 29 | F78: =ABS(F$13-Analysis!$AI13)+1 -> 28 | G78: =ABS(G$13-Analysis!$AI13)+1 -> 27 | H78: =ABS(H$13-Analysis!$AI13)+1 -> 26 | I78: =ABS(I$13-Analysis!$AI13)+1 -> 25 | J78: =ABS(J$13-Analysis!$AI13)+1 -> 24 | K78: =ABS(K$13-Analysis!$AI13)+1 -> 23 | L78: =ABS(L$13-Analysis!$AI13)+1 -> 22 | M78: =ABS(M$13-Analysis!$AI13)+1 -> 21 | N78: =ABS(N$13-Analysis!$AI13)+1 -> 20 | O78: =ABS(O$13-Analysis!$AI13)+1 -> 19 | P78: =ABS(P$13-Analysis!$AI13)+1 -> 18 | Q78: =ABS(Q$13-Analysis!$AI13)+1 -> 17 | R78: =ABS(R$13-Analysis!$AI13)+1 -> 16 | S78: =ABS(S$13-Analysis!$AI13)+1 -> 15 | T78: =ABS(T$13-Analysis!$AI13)+1 -> 14 | U78: =ABS(U$13-Analysis!$AI13)+1 -> 13 | V78: =ABS(V$13-Analysis!$AI13)+1 -> 12 | W78: =ABS(W$13-Analysis!$AI13)+1 -> 11 | X78: =ABS(X$13-Analysis!$AI13)+1 -> 10 | Y78: =ABS(Y$13-Analysis!$AI13)+1 -> 9 | Z78: =ABS(Z$13-Analysis!$AI13)+1 -> 8 | AA78: =ABS(AA$13-Analysis!$AI13)+1 -> 7 | AB78: =ABS(AB$13-Analysis!$AI13)+1 -> 6 | AC78: =ABS(AC$13-Analysis!$AI13)+1 -> 5 | AD78: =ABS(AD$13-Analysis!$AI13)+1 -> 4 | AE78: =ABS(AE$13-Analysis!$AI13)+1 -> 3 | AF78: =ABS(AF$13-Analysis!$AI13)+1 -> 2 | AG78: =ABS(AG$13-Analysis!$AI13)+1 -> 1 | AH78: =ABS(AH$13-Analysis!$AI13)+1 -> 2 | AI78: =ABS(AI$13-Analysis!$AI13)+1 -> 3 | AJ78: =ABS(AJ$13-Analysis!$AI13)+1 -> 4 | AK78: =ABS(AK$13-Analysis!$AI13)+1 -> 5 | AL78: =ABS(AL$13-Analysis!$AI13)+1 -> 6 | AM78: =ABS(AM$13-Analysis!$AI13)+1 -> 7 | AN78: =ABS(AN$13-Analysis!$AI13)+1 -> 8 | AO78: =ABS(AO$13-Analysis!$AI13)+1 -> 9 | AP78: =ABS(AP$13-Analysis!$AI13)+1 -> 10 | AQ78: =ABS(AQ$13-Analysis!$AI13)+1 -> 11 | AR78: =ABS(AR$13-Analysis!$AI13)+1 -> 12 | AS78: =ABS(AS$13-Analysis!$AI13)+1 -> 13 | AT78: =ABS(AT$13-Analysis!$AI13)+1 -> 14 | AU78: =ABS(AU$13-Analysis!$AI13)+1 -> 15 | AV78: =ABS(AV$13-Analysis!$AI13)+1 -> 16 | AW78: =ABS(AW$13-Analysis!$AI13)+1 -> 17 | AX78: =ABS(AX$13-Analysis!$AI13)+1 -> 18
C79: high | E79: =ABS(E$13-Analysis!$AI14)+1 -> 28 | F79: =ABS(F$13-Analysis!$AI14)+1 -> 27 | G79: =ABS(G$13-Analysis!$AI14)+1 -> 26 | H79: =ABS(H$13-Analysis!$AI14)+1 -> 25 | I79: =ABS(I$13-Analysis!$AI14)+1 -> 24 | J79: =ABS(J$13-Analysis!$AI14)+1 -> 23 | K79: =ABS(K$13-Analysis!$AI14)+1 -> 22 | L79: =ABS(L$13-Analysis!$AI14)+1 -> 21 | M79: =ABS(M$13-Analysis!$AI14)+1 -> 20 | N79: =ABS(N$13-Analysis!$AI14)+1 -> 19 | O79: =ABS(O$13-Analysis!$AI14)+1 -> 18 | P79: =ABS(P$13-Analysis!$AI14)+1 -> 17 | Q79: =ABS(Q$13-Analysis!$AI14)+1 -> 16 | R79: =ABS(R$13-Analysis!$AI14)+1 -> 15 | S79: =ABS(S$13-Analysis!$AI14)+1 -> 14 | T79: =ABS(T$13-Analysis!$AI14)+1 -> 13 | U79: =ABS(U$13-Analysis!$AI14)+1 -> 12 | V79: =ABS(V$13-Analysis!$AI14)+1 -> 11 | W79: =ABS(W$13-Analysis!$AI14)+1 -> 10 | X79: =ABS(X$13-Analysis!$AI14)+1 -> 9 | Y79: =ABS(Y$13-Analysis!$AI14)+1 -> 8 | Z79: =ABS(Z$13-Analysis!$AI14)+1 -> 7 | AA79: =ABS(AA$13-Analysis!$AI14)+1 -> 6 | AB79: =ABS(AB$13-Analysis!$AI14)+1 -> 5 | AC79: =ABS(AC$13-Analysis!$AI14)+1 -> 4 | AD79: =ABS(AD$13-Analysis!$AI14)+1 -> 3 | AE79: =ABS(AE$13-Analysis!$AI14)+1 -> 2 | AF79: =ABS(AF$13-Analysis!$AI14)+1 -> 1 | AG79: =ABS(AG$13-Analysis!$AI14)+1 -> 2 | AH79: =ABS(AH$13-Analysis!$AI14)+1 -> 3 | AI79: =ABS(AI$13-Analysis!$AI14)+1 -> 4 | AJ79: =ABS(AJ$13-Analysis!$AI14)+1 -> 5 | AK79: =ABS(AK$13-Analysis!$AI14)+1 -> 6 | AL79: =ABS(AL$13-Analysis!$AI14)+1 -> 7 | AM79: =ABS(AM$13-Analysis!$AI14)+1 -> 8 | AN79: =ABS(AN$13-Analysis!$AI14)+1 -> 9 | AO79: =ABS(AO$13-Analysis!$AI14)+1 -> 10 | AP79: =ABS(AP$13-Analysis!$AI14)+1 -> 11 | AQ79: =ABS(AQ$13-Analysis!$AI14)+1 -> 12 | AR79: =ABS(AR$13-Analysis!$AI14)+1 -> 13 | AS79: =ABS(AS$13-Analysis!$AI14)+1 -> 14 | AT79: =ABS(AT$13-Analysis!$AI14)+1 -> 15 | AU79: =ABS(AU$13-Analysis!$AI14)+1 -> 16 | AV79: =ABS(AV$13-Analysis!$AI14)+1 -> 17 | AW79: =ABS(AW$13-Analysis!$AI14)+1 -> 18 | AX79: =ABS(AX$13-Analysis!$AI14)+1 -> 19

Sheet SCR Vessel (hidden)
C3: Inputs | F3: Fixed Outputs | I3: Fixed Outputs
C4: Ship TEU | D4: =Results!C17 -> 8000 | F4: Maintenance Costs (annual) | G4: =Advanced!C16 -> 962505 | I4: Port dues per trip (SCR) | J4: =Advanced!C15*DIST!E27 -> 174358.3401 | L4: =INDEX([1]SCRVessel!E57:Y57,,(MATCH(MIN('SCR Vessel'!E62:Y62),'SCR Vessel'!E62:Y62,0))) -> 
C5: Gross Ton | D5: =(0.2+0.02*LOG('SCR WEIGHT'!C22))*'SCR WEIGHT'!C22 -> 81475.85987 | F5: Insurance Costs (annual) | G5: =Advanced!C17 -> 377970 | I5: Cargo handling per trip (SCR) | J5: =DIST!$E$36*DIST!E14*$D$4 -> 600000
C6: Vessel Price | D6: =Results!C18 -> 87900000 | F6: Crew Costs (annual) | G6: =Advanced!C18 -> 1200000 | I6: Suez Canal Fee | J6: =Advanced!C19 -> 450808
C7: Fuel Consumption OW (ton/nm) | D7: ='SCR SHIP DATA'!C79/Results!C19 -> 0.1943518643 | F7: Total Fixed Costs (annual) | G7: =SUM(G4:G6) -> 2540475
F8: Initial payment | G8: =D6*0.3 -> 26370000 | J8: =DIST!E41 -> 15
F9: Debt Service | G9: =0.7*D6*(DIST!E40/(1-(1+DIST!E40)^-DIST!E41)) -> 6755663.258
C10: =453614.41/((1.02)^2) -> 436000.0096
C11: =7.39/(1.02^2) -> 7.103037293
C12: NSR LOW | E12: 2015 | F12: 2016 | G12: 2017 | H12: 2018 | I12: 2019 | J12: 2020 | K12: 2021 | L12: 2022 | M12: 2023 | N12: 2024 | O12: 2025 | P12: 2026 | Q12: 2027 | R12: 2028 | S12: 2029 | T12: 2030 | U12: 2031 | V12: 2032 | W12: 2033 | X12: 2034 | Y12: 2035 | Z12: 2036 | AA12: 2037 | AB12: 2038 | AC12: 2039 | AD12: 2040 | AE12: 2041 | AF12: 2042 | AG12: 2043 | AH12: 2044 | AI12: 2045 | AJ12: 2046 | AK12: 2047 | AL12: 2048 | AM12: 2049 | AN12: 2050 | AO12: 2051 | AP12: 2052 | AQ12: 2053 | AR12: 2054 | AS12: 2055 | AT12: 2056 | AU12: 2057 | AV12: 2058 | AW12: 2059 | AX12: 2060
C13: Year | E13: 0 | F13: 0 | G13: 1 | H13: 2 | I13: 3 | J13: 4 | K13: 5 | L13: 6 | M13: 7 | N13: 8 | O13: 9 | P13: 10 | Q13: 11 | R13: 12 | S13: 13 | T13: 14 | U13: 15 | V13: 16 | W13: 17 | X13: 18 | Y13: 19 | Z13: 20 | AA13: 21 | AB13: 22 | AC13: 23 | AD13: 24 | AE13: 25 | AF13: 26 | AG13: 27 | AH13: 28 | AI13: 29 | AJ13: 30 | AK13: 31 | AL13: 32 | AM13: 33 | AN13: 34 | AO13: 35 | AP13: 36 | AQ13: 37 | AR13: 38 | AS13: 39 | AT13: 40 | AU13: 41 | AV13: 42 | AW13: 43 | AX13: 44
C15: Costs per trip
C16: Port dues per trip (SCR) | E16: =Advanced!$C$15*DIST!$E$27 -> 174358.3401 | F16: =Advanced!$C$15*DIST!$E$27 -> 174358.3401 | G16: =Advanced!$C$15*DIST!$E$27 -> 174358.3401 | H16: =Advanced!$C$15*DIST!$E$27 -> 174358.3401 | I16: =Advanced!$C$15*DIST!$E$27 -> 174358.3401 | J16: =Advanced!$C$15*DIST!$E$27 -> 174358.3401 | K16: =Advanced!$C$15*DIST!$E$27 -> 174358.3401 | L16: =Advanced!$C$15*DIST!$E$27 -> 174358.3401 | M16: =Advanced!$C$15*DIST!$E$27 -> 174358.3401 | N16: =Advanced!$C$15*DIST!$E$27 -> 174358.3401 | O16: =Advanced!$C$15*DIST!$E$27 -> 174358.3401 | P16: =Advanced!$C$15*DIST!$E$27 -> 174358.3401 | Q16: =Advanced!$C$15*DIST!$E$27 -> 174358.3401 | R16: =Advanced!$C$15*DIST!$E$27 -> 174358.3401 | S16: =Advanced!$C$15*DIST!$E$27 -> 174358.3401 | T16: =Advanced!$C$15*DIST!$E$27 -> 174358.3401 | U16: =Advanced!$C$15*DIST!$E$27 -> 174358.3401 | V16: =Advanced!$C$15*DIST!$E$27 -> 174358.3401 | W16: =Advanced!$C$15*DIST!$E$27 -> 174358.3401 | X16: =Advanced!$C$15*DIST!$E$27 -> 174358.3401 | Y16: =Advanced!$C$15*DIST!$E$27 -> 174358.3401 | Z16: =Advanced!$C$15*DIST!$E$27 -> 174358.3401 | AA16: =Advanced!$C$15*DIST!$E$27 -> 174358.3401 | AB16: =Advanced!$C$15*DIST!$E$27 -> 174358.3401 | AC16: =Advanced!$C$15*DIST!$E$27 -> 174358.3401 | AD16: =Advanced!$C$15*DIST!$E$27 -> 174358.3401 | AE16: =Advanced!$C$15*DIST!$E$27 -> 174358.3401 | AF16: =Advanced!$C$15*DIST!$E$27 -> 174358.3401 | AG16: =Advanced!$C$15*DIST!$E$27 -> 174358.3401 | AH16: =Advanced!$C$15*DIST!$E$27 -> 174358.3401 | AI16: =Advanced!$C$15*DIST!$E$27 -> 174358.3401 | AJ16: =Advanced!$C$15*DIST!$E$27 -> 174358.3401 | AK16: =Advanced!$C$15*DIST!$E$27 -> 174358.3401 | AL16: =Advanced!$C$15*DIST!$E$27 -> 174358.3401 | AM16: =Advanced!$C$15*DIST!$E$27 -> 174358.3401 | AN16: =Advanced!$C$15*DIST!$E$27 -> 174358.3401 | AO16: =Advanced!$C$15*DIST!$E$27 -> 174358.3401 | AP16: =Advanced!$C$15*DIST!$E$27 -> 174358.3401 | AQ16: =Advanced!$C$15*DIST!$E$27 -> 174358.3401 | AR16: =Advanced!$C$15*DIST!$E$27 -> 174358.3401 | AS16: =Advanced!$C$15*DIST!$E$27 -> 174358.3401 | AT16: =Advanced!$C$15*DIST!$E$27 -> 174358.3401 | AU16: =Advanced!$C$15*DIST!$E$27 -> 174358.3401 | AV16: =Advanced!$C$15*DIST!$E$27 -> 174358.3401 | AW16: =Advanced!$C$15*DIST!$E$27 -> 174358.3401 | AX16: =Advanced!$C$15*DIST!$E$27 -> 174358.3401
C17: Cargo handling per trip (SCR) | E17: =DIST!$E$36*DIST!E14*$D$4 -> 600000 | F17: =DIST!$E$36*DIST!F14*$D$4 -> 600000 | G17: =DIST!$E$36*DIST!G14*$D$4 -> 600000 | H17: =DIST!$E$36*DIST!H14*$D$4 -> 600000 | I17: =DIST!$E$36*DIST!I14*$D$4 -> 600000 | J17: =DIST!$E$36*DIST!J14*$D$4 -> 600000 | K17: =DIST!$E$36*DIST!K14*$D$4 -> 600000 | L17: =DIST!$E$36*DIST!L14*$D$4 -> 600000 | M17: =DIST!$E$36*DIST!M14*$D$4 -> 600000 | N17: =DIST!$E$36*DIST!N14*$D$4 -> 600000 | O17: =DIST!$E$36*DIST!O14*$D$4 -> 600000 | P17: =DIST!$E$36*DIST!P14*$D$4 -> 600000 | Q17: =DIST!$E$36*DIST!Q14*$D$4 -> 600000 | R17: =DIST!$E$36*DIST!R14*$D$4 -> 600000 | S17: =DIST!$E$36*DIST!S14*$D$4 -> 600000 | T17: =DIST!$E$36*DIST!T14*$D$4 -> 600000 | U17: =DIST!$E$36*DIST!U14*$D$4 -> 600000 | V17: =DIST!$E$36*DIST!V14*$D$4 -> 600000 | W17: =DIST!$E$36*DIST!W14*$D$4 -> 600000 | X17: =DIST!$E$36*DIST!X14*$D$4 -> 600000 | Y17: =DIST!$E$36*DIST!Y14*$D$4 -> 600000 | Z17: =DIST!$E$36*DIST!Z14*$D$4 -> 600000 | AA17: =DIST!$E$36*DIST!AA14*$D$4 -> 600000 | AB17: =DIST!$E$36*DIST!AB14*$D$4 -> 600000 | AC17: =DIST!$E$36*DIST!AC14*$D$4 -> 600000 | AD17: =DIST!$E$36*DIST!AD14*$D$4 -> 600000 | AE17: =DIST!$E$36*DIST!AE14*$D$4 -> 600000 | AF17: =DIST!$E$36*DIST!AF14*$D$4 -> 600000 | AG17: =DIST!$E$36*DIST!AG14*$D$4 -> 600000 | AH17: =DIST!$E$36*DIST!AH14*$D$4 -> 600000 | AI17: =DIST!$E$36*DIST!AI14*$D$4 -> 600000 | AJ17: =DIST!$E$36*DIST!AJ14*$D$4 -> 600000 | AK17: =DIST!$E$36*DIST!AK14*$D$4 -> 600000 | AL17: =DIST!$E$36*DIST!AL14*$D$4 -> 600000 | AM17: =DIST!$E$36*DIST!AM14*$D$4 -> 600000 | AN17: =DIST!$E$36*DIST!AN14*$D$4 -> 600000 | AO17: =DIST!$E$36*DIST!AO14*$D$4 -> 600000 | AP17: =DIST!$E$36*DIST!AP14*$D$4 -> 600000 | AQ17: =DIST!$E$36*DIST!AQ14*$D$4 -> 600000 | AR17: =DIST!$E$36*DIST!AR14*$D$4 -> 600000 | AS17: =DIST!$E$36*DIST!AS14*$D$4 -> 600000 | AT17: =DIST!$E$36*DIST!AT14*$D$4 -> 600000 | AU17: =DIST!$E$36*DIST!AU14*$D$4 -> 600000 | AV17: =DIST!$E$36*DIST!AV14*$D$4 -> 600000 | AW17: =DIST!$E$36*DIST!AW14*$D$4 -> 600000 | AX17: =DIST!$E$36*DIST!AX14*$D$4 -> 600000
C18: Fuel Costs SCR (low) | E18: =DIST!$E$21*$D$7*DIST!E10 -> 925402.8976 | F18: =DIST!$E$21*$D$7*DIST!F10 -> 882374.2239 | G18: =DIST!$E$21*$D$7*DIST!G10 -> 871681.0208 | H18: =DIST!$E$21*$D$7*DIST!H10 -> 871705.5648 | I18: =DIST!$E$21*$D$7*DIST!I10 -> 872228.1229 | J18: =DIST!$E$21*$D$7*DIST!J10 -> 876102.4894 | K18: =DIST!$E$21*$D$7*DIST!K10 -> 882733.5753 | L18: =DIST!$E$21*$D$7*DIST!L10 -> 887274.9715 | M18: =DIST!$E$21*$D$7*DIST!M10 -> 893856.5703 | N18: =DIST!$E$21*$D$7*DIST!N10 -> 903008.5582 | O18: =DIST!$E$21*$D$7*DIST!O10 -> 910488.5198 | P18: =DIST!$E$21*$D$7*DIST!P10 -> 916021.0926 | Q18: =DIST!$E$21*$D$7*DIST!Q10 -> 919764.0896 | R18: =DIST!$E$21*$D$7*DIST!R10 -> 924131.6028 | S18: =DIST!$E$21*$D$7*DIST!S10 -> 928980.8526 | T18: =DIST!$E$21*$D$7*DIST!T10 -> 943124.9499 | U18: =DIST!$E$21*$D$7*DIST!U10 -> 949633.6189 | V18: =DIST!$E$21*$D$7*DIST!V10 -> 955761.6319 | W18: =DIST!$E$21*$D$7*DIST!W10 -> 956143.1496 | X18: =DIST!$E$21*$D$7*DIST!X10 -> 963012.2073 | Y18: =DIST!$E$21*$D$7*DIST!Y10 -> 968940.8519 | Z18: =DIST!$E$21*$D$7*DIST!Z10 -> 971916.9835 | AA18: =DIST!$E$21*$D$7*DIST!AA10 -> 980433.9065 | AB18: =DIST!$E$21*$D$7*DIST!AB10 -> 986889.1946 | AC18: =DIST!$E$21*$D$7*DIST!AC10 -> 994506.4782 | AD18: =DIST!$E$21*$D$7*DIST!AD10 -> 1002921.618 | AE18: =DIST!$E$21*$D$7*DIST!AE10 -> 1009094.674 | AF18: =DIST!$E$21*$D$7*DIST!AF10 -> 1015267.73 | AG18: =DIST!$E$21*$D$7*DIST!AG10 -> 1021440.785 | AH18: =DIST!$E$21*$D$7*DIST!AH10 -> 1027613.841 | AI18: =DIST!$E$21*$D$7*DIST!AI10 -> 1033786.896 | AJ18: =DIST!$E$21*$D$7*DIST!AJ10 -> 1039959.952 | AK18: =DIST!$E$21*$D$7*DIST!AK10 -> 1046133.007 | AL18: =DIST!$E$21*$D$7*DIST!AL10 -> 1052306.063 | AM18: =DIST!$E$21*$D$7*DIST!AM10 -> 1058479.118 | AN18: =DIST!$E$21*$D$7*DIST!AN10 -> 1064652.174 | AO18: =DIST!$E$21*$D$7*DIST!AO10 -> 1070825.229 | AP18: =DIST!$E$21*$D$7*DIST!AP10 -> 1076998.285 | AQ18: =DIST!$E$21*$D$7*DIST!AQ10 -> 1083171.34 | AR18: =DIST!$E$21*$D$7*DIST!AR10 -> 1089344.396 | AS18: =DIST!$E$21*$D$7*DIST!AS10 -> 1095517.451 | AT18: =DIST!$E$21*$D$7*DIST!AT10 -> 1101690.507 | AU18: =DIST!$E$21*$D$7*DIST!AU10 -> 1107863.562 | AV18: =DIST!$E$21*$D$7*DIST!AV10 -> 1114036.618 | AW18: =DIST!$E$21*$D$7*DIST!AW10 -> 1120209.673 | AX18: =DIST!$E$21*$D$7*DIST!AX10 -> 1126382.729
C19: Fuel Costs SCR (reference) | E19: =DIST!$E$21*$D$7*DIST!E11 -> 1225136.86 | F19: =DIST!$E$21*$D$7*DIST!F11 -> 1182849.853 | G19: =DIST!$E$21*$D$7*DIST!G11 -> 1166912.494 | H19: =DIST!$E$21*$D$7*DIST!H11 -> 1182219.049 | I19: =DIST!$E$21*$D$7*DIST!I11 -> 1217634.19 | J19: =DIST!$E$21*$D$7*DIST!J11 -> 1249631.486 | K19: =DIST!$E$21*$D$7*DIST!K11 -> 1285785.069 | L19: =DIST!$E$21*$D$7*DIST!L11 -> 1323298.022 | M19: =DIST!$E$21*$D$7*DIST!M11 -> 1356788.371 | N19: =DIST!$E$21*$D$7*DIST!N11 -> 1390998.891 | O19: =DIST!$E$21*$D$7*DIST!O11 -> 1420754.477 | P19: =DIST!$E$21*$D$7*DIST!P11 -> 1447885.671 | Q19: =DIST!$E$21*$D$7*DIST!Q11 -> 1481097.322 | R19: =DIST!$E$21*$D$7*DIST!R11 -> 1504815.778 | S19: =DIST!$E$21*$D$7*DIST!S11 -> 1532247.102 | T19: =DIST!$E$21*$D$7*DIST!T11 -> 1554749.975 | U19: =DIST!$E$21*$D$7*DIST!U11 -> 1580361.322 | V19: =DIST!$E$21*$D$7*DIST!V11 -> 1610610.98 | W19: =DIST!$E$21*$D$7*DIST!W11 -> 1640872.688 | X19: =DIST!$E$21*$D$7*DIST!X11 -> 1674161.306 | Y19: =DIST!$E$21*$D$7*DIST!Y11 -> 1699569.806 | Z19: =DIST!$E$21*$D$7*DIST!Z11 -> 1728039.926 | AA19: =DIST!$E$21*$D$7*DIST!AA11 -> 1753213.327 | AB19: =DIST!$E$21*$D$7*DIST!AB11 -> 1780060.717 | AC19: =DIST!$E$21*$D$7*DIST!AC11 -> 1818898.824 | AD19: =DIST!$E$21*$D$7*DIST!AD11 -> 1861515.898 | AE19: =DIST!$E$21*$D$7*DIST!AE11 -> 1889819.668 | AF19: =DIST!$E$21*$D$7*DIST!AF11 -> 1918123.438 | AG19: =DIST!$E$21*$D$7*DIST!AG11 -> 1946427.208 | AH19: =DIST!$E$21*$D$7*DIST!AH11 -> 1974730.978 | AI19: =DIST!$E$21*$D$7*DIST!AI11 -> 2003034.749 | AJ19: =DIST!$E$21*$D$7*DIST!AJ11 -> 2031338.519 | AK19: =DIST!$E$21*$D$7*DIST!AK11 -> 2059642.289 | AL19: =DIST!$E$21*$D$7*DIST!AL11 -> 2087946.059 | AM19: =DIST!$E$21*$D$7*DIST!AM11 -> 2116249.829 | AN19: =DIST!$E$21*$D$7*DIST!AN11 -> 2144553.599 | AO19: =DIST!$E$21*$D$7*DIST!AO11 -> 2172857.369 | AP19: =DIST!$E$21*$D$7*DIST!AP11 -> 2201161.139 | AQ19: =DIST!$E$21*$D$7*DIST!AQ11 -> 2229464.909 | AR19: =DIST!$E$21*$D$7*DIST!AR11 -> 2257768.679 | AS19: =DIST!$E$21*$D$7*DIST!AS11 -> 2286072.449 | AT19: =DIST!$E$21*$D$7*DIST!AT11 -> 2314376.219 | AU19: =DIST!$E$21*$D$7*DIST!AU11 -> 2342679.989 | AV19: =DIST!$E$21*$D$7*DIST!AV11 -> 2370983.759 | AW19: =DIST!$E$21*$D$7*DIST!AW11 -> 2399287.529 | AX19: =DIST!$E$21*$D$7*DIST!AX11 -> 2427591.299
C20: Fuel Costs SCR (high) | E20: =DIST!$E$21*$D$7*DIST!E12 -> 1674356.829 | F20: =DIST!$E$21*$D$7*DIST!F12 -> 1781815.663 | G20: =DIST!$E$21*$D$7*DIST!G12 -> 1864622.314 | H20: =DIST!$E$21*$D$7*DIST!H12 -> 1899994.846 | I20: =DIST!$E$21*$D$7*DIST!I12 -> 1928269.667 | J20: =DIST!$E$21*$D$7*DIST!J12 -> 1956007.073 | K20: =DIST!$E$21*$D$7*DIST!K12 -> 1975879.585 | L20: =DIST!$E$21*$D$7*DIST!L12 -> 1988993.248 | M20: =DIST!$E$21*$D$7*DIST!M12 -> 2011570.024 | N20: =DIST!$E$21*$D$7*DIST!N12 -> 2032897.256 | O20: =DIST!$E$21*$D$7*DIST!O12 -> 2060415.505 | P20: =DIST!$E$21*$D$7*DIST!P12 -> 2096018.508 | Q20: =DIST!$E$21*$D$7*DIST!Q12 -> 2132939.133 | R20: =DIST!$E$21*$D$7*DIST!R12 -> 2180063.149 | S20: =DIST!$E$21*$D$7*DIST!S12 -> 2222707.129 | T20: =DIST!$E$21*$D$7*DIST!T12 -> 2256179.7 | U20: =DIST!$E$21*$D$7*DIST!U12 -> 2297069.484 | V20: =DIST!$E$21*$D$7*DIST!V12 -> 2339927.259 | W20: =DIST!$E$21*$D$7*DIST!W12 -> 2379212.809 | X20: =DIST!$E$21*$D$7*DIST!X12 -> 2411974.592 | Y20: =DIST!$E$21*$D$7*DIST!Y12 -> 2449537.351 | Z20: =DIST!$E$21*$D$7*DIST!Z12 -> 2489022.811 | AA20: =DIST!$E$21*$D$7*DIST!AA12 -> 2522503.92 | AB20: =DIST!$E$21*$D$7*DIST!AB12 -> 2564515.038 | AC20: =DIST!$E$21*$D$7*DIST!AC12 -> 2616427.103 | AD20: =DIST!$E$21*$D$7*DIST!AD12 -> 2680034.273 | AE20: =DIST!$E$21*$D$7*DIST!AE12 -> 2717584.854 | AF20: =DIST!$E$21*$D$7*DIST!AF12 -> 2755135.435 | AG20: =DIST!$E$21*$D$7*DIST!AG12 -> 2792686.017 | AH20: =DIST!$E$21*$D$7*DIST!AH12 -> 2830236.598 | AI20: =DIST!$E$21*$D$7*DIST!AI12 -> 2867787.179 | AJ20: =DIST!$E$21*$D$7*DIST!AJ12 -> 2905337.76 | AK20: =DIST!$E$21*$D$7*DIST!AK12 -> 2942888.342 | AL20: =DIST!$E$21*$D$7*DIST!AL12 -> 2980438.923 | AM20: =DIST!$E$21*$D$7*DIST!AM12 -> 3017989.504 | AN20: =DIST!$E$21*$D$7*DIST!AN12 -> 3055540.085 | AO20: =DIST!$E$21*$D$7*DIST!AO12 -> 3093090.667 | AP20: =DIST!$E$21*$D$7*DIST!AP12 -> 3130641.248 | AQ20: =DIST!$E$21*$D$7*DIST!AQ12 -> 3168191.829 | AR20: =DIST!$E$21*$D$7*DIST!AR12 -> 3205742.41 | AS20: =DIST!$E$21*$D$7*DIST!AS12 -> 3243292.992 | AT20: =DIST!$E$21*$D$7*DIST!AT12 -> 3280843.573 | AU20: =DIST!$E$21*$D$7*DIST!AU12 -> 3318394.154 | AV20: =DIST!$E$21*$D$7*DIST!AV12 -> 3355944.736 | AW20: =DIST!$E$21*$D$7*DIST!AW12 -> 3393495.317 | AX20: =DIST!$E$21*$D$7*DIST!AX12 -> 3431045.898
C22: Capex
C23: Discounted Initial payment | E23: =$G$8/DIST!E13 -> 26370000 | F23: =$G$8/DIST!F13 -> 26370000 | G23: =$G$8/DIST!G13 -> 24644859.81 | H23: =$G$8/DIST!H13 -> 23032579.26 | I23: =$G$8/DIST!I13 -> 21525775.01 | J23: =$G$8/DIST!J13 -> 20117546.74 | K23: =$G$8/DIST!K13 -> 18801445.55 | L23: =$G$8/DIST!L13 -> 17571444.44 | M23: =$G$8/DIST!M13 -> 16421910.69 | N23: =$G$8/DIST!N13 -> 15347580.09 | O23: =$G$8/DIST!O13 -> 14343532.79 | P23: =$G$8/DIST!P13 -> 13405170.83 | Q23: =$G$8/DIST!Q13 -> 12528197.04 | R23: =$G$8/DIST!R13 -> 11708595.37 | S23: =$G$8/DIST!S13 -> 10942612.49 | T23: =$G$8/DIST!T13 -> 10226740.65 | U23: =$G$8/DIST!U13 -> 9557701.538 | V23: =$G$8/DIST!V13 -> 8932431.344 | W23: =$G$8/DIST!W13 -> 8348066.677 | X23: =$G$8/DIST!X13 -> 7801931.473 | Y23: =$G$8/DIST!Y13 -> 7291524.741
C24: Discounted Debt amortiazation | E24: =$G$9/DIST!E13 -> 6755663.258 | F24: =$G$9/DIST!F13 -> 6755663.258 | G24: =$G$9/DIST!G13 -> 6313703.979 | H24: =$G$9/DIST!H13 -> 5900657.925 | I24: =$G$9/DIST!I13 -> 5514633.574 | J24: =$G$9/DIST!J13 -> 5153863.154 | K24: =$G$9/DIST!K13 -> 4816694.536 | L24: =$G$9/DIST!L13 -> 4501583.679 | M24: =$G$9/DIST!M13 -> 4207087.55 | N24: =$G$9/DIST!N13 -> 3931857.523 | O24: =$G$9/DIST!O13 -> 3674633.199 | P24: =$G$9/DIST!P13 -> 3434236.635 | Q24: =$G$9/DIST!Q13 -> 3209566.949 | R24: =$G$9/DIST!R13 -> 2999595.279 | S24: =$G$9/DIST!S13 -> 2803360.074 | T24: =$G$9/DIST!T13 -> 2619962.686 | U24: =$G$9/DIST!U13 -> 2448563.258 | V24: =$G$9/DIST!V13 -> 2288376.876 | W24: =$G$9/DIST!W13 -> 2138669.978 | X24: =$G$9/DIST!X13 -> 1998756.989 | Y24: =$G$9/DIST!Y13 -> 1867997.186 | Z24: =$G$9/DIST!Z13 -> 1745791.762 | AA24: =$G$9/DIST!AA13 -> 1631581.086 | AB24: =$G$9/DIST!AB13 -> 1524842.137 | AC24: =$G$9/DIST!AC13 -> 1425086.109 | AD24: =$G$9/DIST!AD13 -> 1331856.177 | AE24: =$G$9/DIST!AE13 -> 1244725.399 | AF24: =$G$9/DIST!AF13 -> 1163294.765 | AG24: =$G$9/DIST!AG13 -> 1087191.369 | AH24: =$G$9/DIST!AH13 -> 1016066.7 | AI24: =$G$9/DIST!AI13 -> 949595.0471 | AJ24: =$G$9/DIST!AJ13 -> 887472.0067 | AK24: =$G$9/DIST!AK13 -> 829413.0903 | AL24: =$G$9/DIST!AL13 -> 775152.4209 | AM24: =$G$9/DIST!AM13 -> 724441.5148 | AN24: =$G$9/DIST!AN13 -> 677048.1447 | AO24: =$G$9/DIST!AO13 -> 632755.2754 | AP24: =$G$9/DIST!AP13 -> 591360.0705 | AQ24: =$G$9/DIST!AQ13 -> 552672.9631 | AR24: =$G$9/DIST!AR13 -> 516516.7879 | AS24: =$G$9/DIST!AS13 -> 482725.97 | AT24: =$G$9/DIST!AT13 -> 451145.7664 | AU24: =$G$9/DIST!AU13 -> 421631.5574 | AV24: =$G$9/DIST!AV13 -> 394048.1844 | AW24: =$G$9/DIST!AW13 -> 368269.3313 | AX24: =$G$9/DIST!AX13 -> 344176.9451
C25: Combined discounted debt service | E25: =SUM(F24:T24) -> 65837100 | F25: =SUMIF(G13:$AX$13,"<="&DIST!$E$41+F13,G24:$AX$24) -> 61530000 | G25: =SUMIF(H13:$AX$13,"<="&DIST!$E$41+G13,H24:$AX$24) -> 57504672.9 | H25: =SUMIF(I13:$AX$13,"<="&DIST!$E$41+H13,I24:$AX$24) -> 53742684.95 | I25: =SUMIF(J13:$AX$13,"<="&DIST!$E$41+I13,J24:$AX$24) -> 50226808.37 | J25: =SUMIF(K13:$AX$13,"<="&DIST!$E$41+J13,K24:$AX$24) -> 46940942.4 | K25: =SUMIF(L13:$AX$13,"<="&DIST!$E$41+K13,L24:$AX$24) -> 43870039.62 | L25: =SUMIF(M13:$AX$13,"<="&DIST!$E$41+L13,M24:$AX$24) -> 41000037.03 | M25: =SUMIF(N13:$AX$13,"<="&DIST!$E$41+M13,N24:$AX$24) -> 38317791.62 | N25: =SUMIF(O13:$AX$13,"<="&DIST!$E$41+N13,O24:$AX$24) -> 35811020.2 | O25: =SUMIF(P13:$AX$13,"<="&DIST!$E$41+O13,P24:$AX$24) -> 33468243.18 | P25: =SUMIF(Q13:$AX$13,"<="&DIST!$E$41+P13,Q24:$AX$24) -> 31278731.95 | Q25: =SUMIF(R13:$AX$13,"<="&DIST!$E$41+Q13,R24:$AX$24) -> 29232459.76 | R25: =SUMIF(S13:$AX$13,"<="&DIST!$E$41+R13,S24:$AX$24) -> 27320055.85 | S25: =SUMIF(T13:$AX$13,"<="&DIST!$E$41+S13,T24:$AX$24) -> 25532762.48 | T25: =SUMIF(U13:$AX$13,"<="&DIST!$E$41+T13,U24:$AX$24) -> 23862394.84 | U25: =SUMIF(V13:$AX$13,"<="&DIST!$E$41+U13,V24:$AX$24) -> 22301303.59 | V25: =SUMIF(W13:$AX$13,"<="&DIST!$E$41+V13,W24:$AX$24) -> 20842339.8 | W25: =SUMIF(X13:$AX$13,"<="&DIST!$E$41+W13,X24:$AX$24) -> 19478822.25 | X25: =SUMIF(Y13:$AX$13,"<="&DIST!$E$41+X13,Y24:$AX$24) -> 18204506.77 | Y25: =SUMIF(Z13:$AX$13,"<="&DIST!$E$41+Y13,Z24:$AX$24) -> 17013557.73
C27: Trip time
C28: SCR | E28: =DIST!$E$21/(DIST!$E$23*24)+DIST!$E$29+DIST!$E$27 -> 36.27777778 | F28: =DIST!$E$21/(DIST!$E$23*24)+DIST!$E$29+DIST!$E$27 -> 36.27777778 | G28: =DIST!$E$21/(DIST!$E$23*24)+DIST!$E$29+DIST!$E$27 -> 36.27777778 | H28: =DIST!$E$21/(DIST!$E$23*24)+DIST!$E$29+DIST!$E$27 -> 36.27777778 | I28: =DIST!$E$21/(DIST!$E$23*24)+DIST!$E$29+DIST!$E$27 -> 36.27777778 | J28: =DIST!$E$21/(DIST!$E$23*24)+DIST!$E$29+DIST!$E$27 -> 36.27777778 | K28: =DIST!$E$21/(DIST!$E$23*24)+DIST!$E$29+DIST!$E$27 -> 36.27777778 | L28: =DIST!$E$21/(DIST!$E$23*24)+DIST!$E$29+DIST!$E$27 -> 36.27777778 | M28: =DIST!$E$21/(DIST!$E$23*24)+DIST!$E$29+DIST!$E$27 -> 36.27777778 | N28: =DIST!$E$21/(DIST!$E$23*24)+DIST!$E$29+DIST!$E$27 -> 36.27777778 | O28: =DIST!$E$21/(DIST!$E$23*24)+DIST!$E$29+DIST!$E$27 -> 36.27777778 | P28: =DIST!$E$21/(DIST!$E$23*24)+DIST!$E$29+DIST!$E$27 -> 36.27777778 | Q28: =DIST!$E$21/(DIST!$E$23*24)+DIST!$E$29+DIST!$E$27 -> 36.27777778 | R28: =DIST!$E$21/(DIST!$E$23*24)+DIST!$E$29+DIST!$E$27 -> 36.27777778 | S28: =DIST!$E$21/(DIST!$E$23*24)+DIST!$E$29+DIST!$E$27 -> 36.27777778 | T28: =DIST!$E$21/(DIST!$E$23*24)+DIST!$E$29+DIST!$E$27 -> 36.27777778 | U28: =DIST!$E$21/(DIST!$E$23*24)+DIST!$E$29+DIST!$E$27 -> 36.27777778 | V28: =DIST!$E$21/(DIST!$E$23*24)+DIST!$E$29+DIST!$E$27 -> 36.27777778 | W28: =DIST!$E$21/(DIST!$E$23*24)+DIST!$E$29+DIST!$E$27 -> 36.27777778 | X28: =DIST!$E$21/(DIST!$E$23*24)+DIST!$E$29+DIST!$E$27 -> 36.27777778 | Y28: =DIST!$E$21/(DIST!$E$23*24)+DIST!$E$29+DIST!$E$27 -> 36.27777778 | Z28: =DIST!$E$21/(DIST!$E$23*24)+DIST!$E$29+DIST!$E$27 -> 36.27777778 | AA28: =DIST!$E$21/(DIST!$E$23*24)+DIST!$E$29+DIST!$E$27 -> 36.27777778 | AB28: =DIST!$E$21/(DIST!$E$23*24)+DIST!$E$29+DIST!$E$27 -> 36.27777778 | AC28: =DIST!$E$21/(DIST!$E$23*24)+DIST!$E$29+DIST!$E$27 -> 36.27777778 | AD28: =DIST!$E$21/(DIST!$E$23*24)+DIST!$E$29+DIST!$E$27 -> 36.27777778 | AE28: =DIST!$E$21/(DIST!$E$23*24)+DIST!$E$29+DIST!$E$27 -> 36.27777778 | AF28: =DIST!$E$21/(DIST!$E$23*24)+DIST!$E$29+DIST!$E$27 -> 36.27777778 | AG28: =DIST!$E$21/(DIST!$E$23*24)+DIST!$E$29+DIST!$E$27 -> 36.27777778 | AH28: =DIST!$E$21/(DIST!$E$23*24)+DIST!$E$29+DIST!$E$27 -> 36.27777778 | AI28: =DIST!$E$21/(DIST!$E$23*24)+DIST!$E$29+DIST!$E$27 -> 36.27777778 | AJ28: =DIST!$E$21/(DIST!$E$23*24)+DIST!$E$29+DIST!$E$27 -> 36.27777778 | AK28: =DIST!$E$21/(DIST!$E$23*24)+DIST!$E$29+DIST!$E$27 -> 36.27777778 | AL28: =DIST!$E$21/(DIST!$E$23*24)+DIST!$E$29+DIST!$E$27 -> 36.27777778 | AM28: =DIST!$E$21/(DIST!$E$23*24)+DIST!$E$29+DIST!$E$27 -> 36.27777778 | AN28: =DIST!$E$21/(DIST!$E$23*24)+DIST!$E$29+DIST!$E$27 -> 36.27777778 | AO28: =DIST!$E$21/(DIST!$E$23*24)+DIST!$E$29+DIST!$E$27 -> 36.27777778 | AP28: =DIST!$E$21/(DIST!$E$23*24)+DIST!$E$29+DIST!$E$27 -> 36.27777778 | AQ28: =DIST!$E$21/(DIST!$E$23*24)+DIST!$E$29+DIST!$E$27 -> 36.27777778 | AR28: =DIST!$E$21/(DIST!$E$23*24)+DIST!$E$29+DIST!$E$27 -> 36.27777778 | AS28: =DIST!$E$21/(DIST!$E$23*24)+DIST!$E$29+DIST!$E$27 -> 36.27777778 | AT28: =DIST!$E$21/(DIST!$E$23*24)+DIST!$E$29+DIST!$E$27 -> 36.27777778 | AU28: =DIST!$E$21/(DIST!$E$23*24)+DIST!$E$29+DIST!$E$27 -> 36.27777778 | AV28: =DIST!$E$21/(DIST!$E$23*24)+DIST!$E$29+DIST!$E$27 -> 36.27777778 | AW28: =DIST!$E$21/(DIST!$E$23*24)+DIST!$E$29+DIST!$E$27 -> 36.27777778 | AX28: =DIST!$E$21/(DIST!$E$23*24)+DIST!$E$29+DIST!$E$27 -> 36.27777778
C30: Trips
C31: SCR trips | E31: =365/E28 -> 10.06125574 | F31: 10.06125574 | G31: 10.06125574 | H31: 10.06125574 | I31: 10.06125574 | J31: 10.06125574 | K31: 10.06125574 | L31: 10.06125574 | M31: 10.06125574 | N31: 10.06125574 | O31: 10.06125574 | P31: 10.06125574 | Q31: 10.06125574 | R31: 10.06125574 | S31: 10.06125574 | T31: 10.06125574 | U31: 10.06125574 | V31: 10.06125574 | W31: 10.06125574 | X31: 10.06125574 | Y31: 10.06125574 | Z31: 10.06125574 | AA31: 10.06125574 | AB31: 10.06125574 | AC31: 10.06125574 | AD31: 10.06125574 | AE31: 10.06125574 | AF31: 10.06125574 | AG31: 10.06125574 | AH31: 10.06125574 | AI31: 10.06125574 | AJ31: 10.06125574 | AK31: 10.06125574 | AL31: 10.06125574 | AM31: 10.06125574 | AN31: 10.06125574 | AO31: 10.06125574 | AP31: 10.06125574 | AQ31: 10.06125574 | AR31: 10.06125574 | AS31: 10.06125574 | AT31: 10.06125574 | AU31: 10.06125574 | AV31: 10.06125574 | AW31: 10.06125574 | AX31: 10.06125574
C33: Total Costs per trip
C34: SCR (low oil cost) | E34: =$J$4+$J$5+E18+$J$6 -> 2150569.238 | F34: 2107540.564 | G34: 2096847.361 | H34: 2096871.905 | I34: 2097394.463 | J34: 2101268.83 | K34: 2107899.915 | L34: 2112441.312 | M34: 2119022.91 | N34: 2128174.898 | O34: 2135654.86 | P34: 2141187.433 | Q34: 2144930.43 | R34: 2149297.943 | S34: 2154147.193 | T34: 2168291.29 | U34: 2174799.959 | V34: 2180927.972 | W34: 2181309.49 | X34: 2188178.547 | Y34: 2194107.192 | Z34: 2197083.324 | AA34: 2205600.247 | AB34: 2212055.535 | AC34: 2219672.818 | AD34: 2228087.959 | AE34: 2234261.014 | AF34: 2240434.07 | AG34: 2246607.125 | AH34: 2252780.181 | AI34: 2258953.236 | AJ34: 2265126.292 | AK34: 2271299.347 | AL34: 2277472.403 | AM34: 2283645.458 | AN34: 2289818.514 | AO34: 2295991.569 | AP34: 2302164.625 | AQ34: 2308337.68 | AR34: 2314510.736 | AS34: 2320683.791 | AT34: 2326856.847 | AU34: 2333029.902 | AV34: 2339202.958 | AW34: 2345376.013 | AX34: 2351549.069
C35: SCR (reference case) | E35: =$J$4+$J$5+E19+$J$6 -> 2450303.2 | F35: =$J$4+$J$5+F19+$J$6 -> 2408016.193 | G35: 2392078.834 | H35: 2407385.39 | I35: 2442800.53 | J35: 2474797.826 | K35: 2510951.409 | L35: 2548464.362 | M35: 2581954.711 | N35: 2616165.231 | O35: 2645920.817 | P35: 2673052.011 | Q35: 2706263.662 | R35: 2729982.118 | S35: 2757413.442 | T35: 2779916.315 | U35: 2805527.662 | V35: 2835777.321 | W35: 2866039.028 | X35: 2899327.646 | Y35: 2924736.146 | Z35: 2953206.267 | AA35: 2978379.667 | AB35: 3005227.057 | AC35: 3044065.164 | AD35: 3086682.238 | AE35: 3114986.008 | AF35: 3143289.778 | AG35: 3171593.549 | AH35: 3199897.319 | AI35: 3228201.089 | AJ35: 3256504.859 | AK35: 3284808.629 | AL35: 3313112.399 | AM35: 3341416.169 | AN35: 3369719.939 | AO35: 3398023.709 | AP35: 3426327.479 | AQ35: 3454631.249 | AR35: 3482935.019 | AS35: 3511238.789 | AT35: 3539542.559 | AU35: 3567846.329 | AV35: 3596150.099 | AW35: 3624453.869 | AX35: 3652757.64
C36: SCR (high oil cost) | E36: =$J$4+$J$5+E20+$J$6 -> 2899523.169 | F36: 3006982.003 | G36: 3089788.654 | H36: 3125161.186 | I36: 3153436.007 | J36: 3181173.413 | K36: 3201045.925 | L36: 3214159.588 | M36: 3236736.364 | N36: 3258063.596 | O36: 3285581.846 | P36: 3321184.848 | Q36: 3358105.473 | R36: 3405229.489 | S36: 3447873.469 | T36: 3481346.04 | U36: 3522235.825 | V36: 3565093.6 | W36: 3604379.149 | X36: 3637140.932 | Y36: 3674703.691 | Z36: 3714189.151 | AA36: 3747670.26 | AB36: 3789681.378 | AC36: 3841593.443 | AD36: 3905200.613 | AE36: 3942751.194 | AF36: 3980301.775 | AG36: 4017852.357 | AH36: 4055402.938 | AI36: 4092953.519 | AJ36: 4130504.1 | AK36: 4168054.682 | AL36: 4205605.263 | AM36: 4243155.844 | AN36: 4280706.426 | AO36: 4318257.007 | AP36: 4355807.588 | AQ36: 4393358.169 | AR36: 4430908.751 | AS36: 4468459.332 | AT36: 4506009.913 | AU36: 4543560.494 | AV36: 4581111.076 | AW36: 4618661.657 | AX36: 4656212.238
C38: Annual OPEX
C39: Total costs low | E39: =E31*E34+$G$7 -> 24177902.09 | F39: =F31*F34+$G$7 -> 23744979.6 | G39: 23637392.55 | H39: 23637639.5 | I39: 23642897.09 | J39: 23681878.08 | K39: 23748595.13 | L39: 23794287.28 | M39: 23860506.43 | N39: 23952586.92 | O39: 24027844.72 | P39: 24083509.35 | Q39: 24121168.6 | R39: 24165111.27 | S39: 24213900.81 | T39: 24356208.19 | U39: 24421693.58 | V39: 24483349.08 | W39: 24487187.63 | X39: 24556298.98 | Y39: 24615948.59 | Z39: 24645892.21 | AA39: 24731583.15 | AB39: 24796531.45 | AC39: 24873170.89 | AD39: 24957837.77 | AE39: 25019946.46 | AF39: 25082055.15 | AG39: 25144163.84 | AH39: 25206272.53 | AI39: 25268381.22 | AJ39: 25330489.91 | AK39: 25392598.6 | AL39: 25454707.29 | AM39: 25516815.98 | AN39: 25578924.67 | AO39: 25641033.36 | AP39: 25703142.05 | AQ39: 25765250.74 | AR39: 25827359.43 | AS39: 25889468.12 | AT39: 25951576.81 | AU39: 26013685.5 | AV39: 26075794.19 | AW39: 26137902.88 | AX39: 26200011.57
C40: Total costs reference | E40: =E31*E35+$G$7 -> 27193602.14 | F40: 26768141.76 | G40: 26607791.9 | H40: 26761795.08 | I40: 27118115.86 | J40: 27440048.84 | K40: 27803799.29 | L40: 28181226.7 | M40: 28518181.66 | N40: 28862382.45 | O40: 29161761.01 | P40: 29434734.9 | Q40: 29768885.81 | R40: 30007523.27 | S40: 30283516.83 | T40: 30509923.99 | U40: 30767606.3 | V40: 31071955.85 | W40: 31376426.63 | X40: 31711351.93 | Y40: 31966993.34 | Z40: 32253438.51 | AA40: 32506714.53 | AB40: 32776832.98 | AC40: 33167593.11 | AD40: 33596374.4 | AE40: 33881145.87 | AF40: 34165917.33 | AG40: 34450688.8 | AH40: 34735460.27 | AI40: 35020231.74 | AJ40: 35305003.21 | AK40: 35589774.68 | AL40: 35874546.15 | AM40: 36159317.62 | AN40: 36444089.09 | AO40: 36728860.56 | AP40: 37013632.03 | AQ40: 37298403.49 | AR40: 37583174.96 | AS40: 37867946.43 | AT40: 38152717.9 | AU40: 38437489.37 | AV40: 38722260.84 | AW40: 39007032.31 | AX40: 39291803.78
C41: Total costs high | E41: =E31*E36+$G$7 -> 31713319.13 | F41: 32794489.95 | G41: 33627628.84 | H41: 33983520.93 | I41: 34268001.14 | J41: 34547074.27 | K41: 34747016.7 | L41: 34878956.61 | M41: 35106107.33 | N41: 35320686.07 | O41: 35597554.21 | P41: 35955765.13 | Q41: 36327232.97 | R41: 36801359.75 | S41: 37230411.74 | T41: 37567187.84 | U41: 37978590.42 | V41: 38409793.45 | W41: 38805055.41 | X41: 39134680.09 | Y41: 39512608.62 | Z41: 39909881.93 | AA41: 40246743.93 | AB41: 40669428.52 | AC41: 41191729.09 | AD41: 41831697.09 | AE41: 42209503.09 | AF41: 42587309.1 | AG41: 42965115.1 | AH41: 43342921.1 | AI41: 43720727.1 | AJ41: 44098533.1 | AK41: 44476339.1 | AL41: 44854145.1 | AM41: 45231951.11 | AN41: 45609757.11 | AO41: 45987563.11 | AP41: 46365369.11 | AQ41: 46743175.11 | AR41: 47120981.11 | AS41: 47498787.11 | AT41: 47876593.12 | AU41: 48254399.12 | AV41: 48632205.12 | AW41: 49010011.12 | AX41: 49387817.12
C43: Discounted Annual OPEX
C44: Total costs low | E44: =E39/DIST!E13 -> 24177902.09 | F44: =F39/DIST!F13 -> 23744979.6 | G44: =G39/DIST!G13 -> 22091021.08 | H44: =H39/DIST!H13 -> 20646029.78 | I44: =I39/DIST!I13 -> 19299646.69 | J44: =J39/DIST!J13 -> 18066791.4 | K44: =K39/DIST!K13 -> 16932420.11 | L44: =L39/DIST!L13 -> 15855138.3 | M44: =M39/DIST!M13 -> 14859124.22 | N44: =N39/DIST!N13 -> 13940623.66 | O44: =O39/DIST!O13 -> 13069555.51 | P44: =P39/DIST!P13 -> 12242834.93 | Q44: =Q39/DIST!Q13 -> 11459793.44 | R44: =R39/DIST!R13 -> 10729598.4 | S44: =S39/DIST!S13 -> 10047907.98 | T44: =T39/DIST!T13 -> 9445757.463 | U44: =U39/DIST!U13 -> 8851545.63 | V44: =V39/DIST!V13 -> 8293357.404 | W44: =W39/DIST!W13 -> 7752016.498 | X44: =X39/DIST!X13 -> 7265322.786 | Y44: =Y39/DIST!Y13 -> 6806514.909 | Z44: =Z39/DIST!Z13 -> 6368966.888 | AA44: =AA39/DIST!AA13 -> 5973000.986 | AB44: =AB39/DIST!AB13 -> 5596903.599 | AC44: =AC39/DIST!AC13 -> 5246917.878 | AD44: =AD39/DIST!AD13 -> 4920353.357 | AE44: =AE39/DIST!AE13 -> 4609904.557 | AF44: =AF39/DIST!AF13 -> 4319016.852 | AG44: =AG39/DIST!AG13 -> 4046459.522 | AH44: =AH39/DIST!AH13 -> 3791079.156 | AI44: =AI39/DIST!AI13 -> 3551794.804 | AJ44: =AJ39/DIST!AJ13 -> 3327593.436 | AK44: =AK39/DIST!AK13 -> 3117525.678 | AL44: =AL39/DIST!AL13 -> 2920701.821 | AM44: =AM39/DIST!AM13 -> 2736288.077 | AN44: =AN39/DIST!AN13 -> 2563503.069 | AO44: =AO39/DIST!AO13 -> 2401614.543 | AP44: =AP39/DIST!AP13 -> 2249936.285 | AQ44: =AQ39/DIST!AQ13 -> 2107825.232 | AR44: =AR39/DIST!AR13 -> 1974678.758 | AS44: =AS39/DIST!AS13 -> 1849932.144 | AT44: =AT39/DIST!AT13 -> 1733056.187 | AU44: =AU39/DIST!AU13 -> 1623554.981 | AV44: =AV39/DIST!AV13 -> 1520963.815 | AW44: =AW39/DIST!AW13 -> 1424847.22 | AX44: =AX39/DIST!AX13 -> 1334797.132
C45: Total costs reference | E45: =E40/DIST!E13 -> 27193602.14 | F45: =F40/DIST!F13 -> 26768141.76 | G45: =G40/DIST!G13 -> 24867095.24 | H45: =H40/DIST!H13 -> 23374788.26 | I45: =I40/DIST!I13 -> 22136460.4 | J45: =J40/DIST!J13 -> 20933881.87 | K45: =K40/DIST!K13 -> 19823724.63 | L45: =L40/DIST!L13 -> 18778341.27 | M45: =M40/DIST!M13 -> 17759690.27 | N45: =N40/DIST!N13 -> 16798169.37 | O45: =O40/DIST!O13 -> 15862065.81 | P45: =P40/DIST!P13 -> 14963126.65 | Q45: =Q40/DIST!Q13 -> 14142983.21 | R45: =R40/DIST!R13 -> 13323699.2 | S45: =S40/DIST!S13 -> 12566582.84 | T45: =T40/DIST!T13 -> 11832274.54 | U45: =U40/DIST!U13 -> 11151596.44 | V45: =V40/DIST!V13 -> 10525146.47 | W45: =W40/DIST!W13 -> 9932973.134 | X45: =X40/DIST!X13 -> 9382244.774 | Y45: =Y40/DIST!Y13 -> 8839140.041 | Z45: =Z40/DIST!Z13 -> 8334901.417 | AA45: =AA40/DIST!AA13 -> 7850796.966 | AB45: =AB40/DIST!AB13 -> 7398162.717 | AC45: =AC40/DIST!AC13 -> 6996600.395 | AD45: =AD40/DIST!AD13 -> 6623411.655 | AE45: =AE40/DIST!AE13 -> 6242573.259 | AF45: =AF40/DIST!AF13 -> 5883216.98 | AG45: =AG40/DIST!AG13 -> 5544162.003 | AH45: =AH40/DIST!AH13 -> 5224290.075 | AI45: =AI40/DIST!AI13 -> 4922542.368 | AJ45: =AJ40/DIST!AJ13 -> 4637916.493 | AK45: =AK40/DIST!AK13 -> 4369463.645 | AL45: =AL40/DIST!AL13 -> 4116285.882 | AM45: =AM40/DIST!AM13 -> 3877533.535 | AN45: =AN40/DIST!AN13 -> 3652402.726 | AO45: =AO40/DIST!AO13 -> 3440133.025 | AP45: =AP40/DIST!AP13 -> 3240005.194 | AQ45: =AQ40/DIST!AQ13 -> 3051339.06 | AR45: =AR40/DIST!AR13 -> 2873491.48 | AS45: =AS40/DIST!AS13 -> 2705854.403 | AT45: =AT40/DIST!AT13 -> 2547853.038 | AU45: =AU40/DIST!AU13 -> 2398944.099 | AV45: =AV40/DIST!AV13 -> 2258614.143 | AW45: =AW40/DIST!AW13 -> 2126377.996 | AX45: =AX40/DIST!AX13 -> 2001777.246
C46: Total costs high | E46: =E41/DIST!E13 -> 31713319.13 | F46: =F41/DIST!F13 -> 32794489.95 | G46: =G41/DIST!G13 -> 31427690.51 | H46: =H41/DIST!H13 -> 29682523.3 | I46: =I41/DIST!I13 -> 27972896.57 | J46: =J41/DIST!J13 -> 26355797.55 | K46: =K41/DIST!K13 -> 24774142.68 | L46: =L41/DIST!L13 -> 23241321.51 | M46: =M41/DIST!M13 -> 21862319.28 | N46: =N41/DIST!N13 -> 20556960.87 | O46: =O41/DIST!O13 -> 19362710.89 | P46: =P41/DIST!P13 -> 18278087.75 | Q46: =Q41/DIST!Q13 -> 17258806.7 | R46: =R41/DIST!R13 -> 16340243.85 | S46: =S41/DIST!S13 -> 15449297.25 | T46: =T41/DIST!T13 -> 14569203.14 | U46: =U41/DIST!U13 -> 13765188.93 | V46: =V41/DIST!V13 -> 13010725.94 | W46: =W41/DIST!W13 -> 12284686.76 | X46: =X41/DIST!X13 -> 11578539.72 | Y46: =Y41/DIST!Y13 -> 10925565.54 | Z46: =Z41/DIST!Z13 -> 10313471.89 | AA46: =AA41/DIST!AA13 -> 9720115.357 | AB46: =AB41/DIST!AB13 -> 9179625.438 | AC46: =AC41/DIST!AC13 -> 8689266.872 | AD46: =AD41/DIST!AD13 -> 8246977.688 | AE46: =AE41/DIST!AE13 -> 7777066.229 | AF46: =AF41/DIST!AF13 -> 7333342.686 | AG46: =AG41/DIST!AG13 -> 6914391.754 | AH46: =AH41/DIST!AH13 -> 6518871.226 | AI46: =AI41/DIST!AI13 -> 6145508.49 | AJ46: =AJ41/DIST!AJ13 -> 5793097.164 | AK46: =AK41/DIST!AK13 -> 5460493.878 | AL46: =AL41/DIST!AL13 -> 5146615.193 | AM46: =AM41/DIST!AM13 -> 4850434.654 | AN46: =AN41/DIST!AN13 -> 4570979.969 | AO46: =AO41/DIST!AO13 -> 4307330.317 | AP46: =AP41/DIST!AP13 -> 4058613.773 | AQ46: =AQ41/DIST!AQ13 -> 3824004.854 | AR46: =AR41/DIST!AR13 -> 3602722.172 | AS46: =AS41/DIST!AS13 -> 3394026.198 | AT46: =AT41/DIST!AT13 -> 3197217.13 | AU46: =AU41/DIST!AU13 -> 3011632.859 | AV46: =AV41/DIST!AV13 -> 2836647.032 | AW46: =AW41/DIST!AW13 -> 2671667.212 | AX46: =AX41/DIST!AX13 -> 2516133.113
C48: Annual TEU | E48: =E31*$D$4*DIST!E14 -> 60367.53446 | F48: =F31*$D$4*DIST!F14 -> 60367.53446 | G48: =G31*$D$4*DIST!G14 -> 60367.53446 | H48: =H31*$D$4*DIST!H14 -> 60367.53446 | I48: =I31*$D$4*DIST!I14 -> 60367.53446 | J48: =J31*$D$4*DIST!J14 -> 60367.53446 | K48: =K31*$D$4*DIST!K14 -> 60367.53446 | L48: =L31*$D$4*DIST!L14 -> 60367.53446 | M48: =M31*$D$4*DIST!M14 -> 60367.53446 | N48: =N31*$D$4*DIST!N14 -> 60367.53446 | O48: =O31*$D$4*DIST!O14 -> 60367.53446 | P48: =P31*$D$4*DIST!P14 -> 60367.53446 | Q48: =Q31*$D$4*DIST!Q14 -> 60367.53446 | R48: =R31*$D$4*DIST!R14 -> 60367.53446 | S48: =S31*$D$4*DIST!S14 -> 60367.53446 | T48: =T31*$D$4*DIST!T14 -> 60367.53446 | U48: =U31*$D$4*DIST!U14 -> 60367.53446 | V48: =V31*$D$4*DIST!V14 -> 60367.53446 | W48: =W31*$D$4*DIST!W14 -> 60367.53446 | X48: =X31*$D$4*DIST!X14 -> 60367.53446 | Y48: =Y31*$D$4*DIST!Y14 -> 60367.53446 | Z48: =Z31*$D$4*DIST!Z14 -> 60367.53446 | AA48: =AA31*$D$4*DIST!AA14 -> 60367.53446 | AB48: =AB31*$D$4*DIST!AB14 -> 60367.53446 | AC48: =AC31*$D$4*DIST!AC14 -> 60367.53446 | AD48: =AD31*$D$4*DIST!AD14 -> 60367.53446 | AE48: =AE31*$D$4*DIST!AE14 -> 60367.53446 | AF48: =AF31*$D$4*DIST!AF14 -> 60367.53446 | AG48: =AG31*$D$4*DIST!AG14 -> 60367.53446 | AH48: =AH31*$D$4*DIST!AH14 -> 60367.53446 | AI48: =AI31*$D$4*DIST!AI14 -> 60367.53446 | AJ48: =AJ31*$D$4*DIST!AJ14 -> 60367.53446 | AK48: =AK31*$D$4*DIST!AK14 -> 60367.53446 | AL48: =AL31*$D$4*DIST!AL14 -> 60367.53446 | AM48: =AM31*$D$4*DIST!AM14 -> 60367.53446 | AN48: =AN31*$D$4*DIST!AN14 -> 60367.53446 | AO48: =AO31*$D$4*DIST!AO14 -> 60367.53446 | AP48: =AP31*$D$4*DIST!AP14 -> 60367.53446 | AQ48: =AQ31*$D$4*DIST!AQ14 -> 60367.53446 | AR48: =AR31*$D$4*DIST!AR14 -> 60367.53446 | AS48: =AS31*$D$4*DIST!AS14 -> 60367.53446 | AT48: =AT31*$D$4*DIST!AT14 -> 60367.53446 | AU48: =AU31*$D$4*DIST!AU14 -> 60367.53446 | AV48: =AV31*$D$4*DIST!AV14 -> 60367.53446 | AW48: =AW31*$D$4*DIST!AW14 -> 60367.53446 | AX48: =AX31*$D$4*DIST!AX14 -> 60367.53446
C50: Undiscounted total cost per TEU
C51: total cost / teu low | E51: =E39/E48 -> 400.5116709 | F51: =F39/F48 -> 393.3402253 | G51: 391.5580248 | H51: 391.5621154 | I51: 391.6492084 | J51: 392.2949362 | K51: 393.4001172 | L51: 394.1570165 | M51: 395.2539497 | N51: 396.779281 | O51: 398.0259413 | P51: 398.9480367 | Q51: 399.5718696 | R51: 400.2997884 | S51: 401.1079967 | T51: 403.4653463 | U51: 404.5501245 | V51: 405.57146 | W51: 405.6350462 | X51: 406.7798892 | Y51: 407.7679966 | Z51: 408.2640185 | AA51: 409.6835057 | AB51: 410.7593871 | AC51: 412.0289343 | AD51: 413.4314577 | AE51: 414.4603003 | AF51: 415.4891429 | AG51: 416.5179855 | AH51: 417.5468281 | AI51: 418.5756706 | AJ51: 419.6045132 | AK51: 420.6333558 | AL51: 421.6621984 | AM51: 422.691041 | AN51: 423.7198836 | AO51: 424.7487261 | AP51: 425.7775687 | AQ51: 426.8064113 | AR51: 427.8352539 | AS51: 428.8640965 | AT51: 429.8929391 | AU51: 430.9217817 | AV51: 431.9506242 | AW51: 432.9794668 | AX51: 434.0083094
C52: total cost / teu medium | E52: =E40/E48 -> 450.4673313 | F52: 443.4194969 | G52: 440.7632702 | H52: 443.3143629 | I52: 449.2168862 | J52: 454.5497689 | K52: 460.5753662 | L52: 466.827525 | M52: 472.4092498 | N52: 478.1110031 | O52: 483.0702674 | P52: 487.5921331 | Q52: 493.1274083 | R52: 497.0804844 | S52: 501.6523717 | T52: 505.4028504 | U52: 509.6714083 | V52: 514.713018 | W52: 519.7566359 | X52: 525.304739 | Y52: 529.5394889 | Z52: 534.284509 | AA52: 538.4800758 | AB52: 542.9546407 | AC52: 549.4276586 | AD52: 556.5305043 | AE52: 561.2477993 | AF52: 565.9650944 | AG52: 570.6823894 | AH52: 575.3996844 | AI52: 580.1169794 | AJ52: 584.8342744 | AK52: 589.5515694 | AL52: 594.2688644 | AM52: 598.9861594 | AN52: 603.7034544 | AO52: 608.4207494 | AP52: 613.1380445 | AQ52: 617.8553395 | AR52: 622.5726345 | AS52: 627.2899295 | AT52: 632.0072245 | AU52: 636.7245195 | AV52: 641.4418145 | AW52: 646.1591095 | AX52: 650.8764045
C53: total cost / teu high | E53: =E41/E48 -> 525.3373261 | F53: 543.2471318 | G53: 557.0482403 | H53: 562.9436622 | I53: 567.6561325 | J53: 572.2790335 | K53: 575.5911188 | L53: 577.7767293 | M53: 581.5395252 | N53: 585.094064 | O53: 589.6804389 | P53: 595.6142726 | Q53: 601.7677101 | R53: 609.6217128 | S53: 616.7290428 | T53: 622.3078047 | U53: 629.1227687 | V53: 636.2657312 | W53: 642.8133227 | X53: 648.27362 | Y53: 654.5340798 | Z53: 661.1149898 | AA53: 666.6951746 | AB53: 673.6970276 | AC53: 682.3490385 | AD53: 692.9502334 | AE53: 699.2086636 | AF53: 705.4670938 | AG53: 711.7255241 | AH53: 717.9839543 | AI53: 724.2423845 | AJ53: 730.5008147 | AK53: 736.7592449 | AL53: 743.0176751 | AM53: 749.2761053 | AN53: 755.5345355 | AO53: 761.7929657 | AP53: 768.051396 | AQ53: 774.3098262 | AR53: 780.5682564 | AS53: 786.8266866 | AT53: 793.0851168 | AU53: 799.343547 | AV53: 805.6019772 | AW53: 811.8604074 | AX53: 818.1188376
C55: Lifetime cost per TEU
C56: NPV low | E56: =(SUM(F44:AD44)+E30+E28)/SUM(F48:AD48) -> 198.4551209 | F56: =(SUM(G44:AE44)+F23+F25)/SUM(G48:AE48) -> 244.0192735 | G56: =(SUM(H44:AF44)+G23+G25)/SUM(H48:AF48) -> 228.4331 | H56: 213.8730628 | I56: 200.2688972 | J56: 187.5408035 | K56: 175.619276 | L56: 164.4625398 | M56: 154.0130811 | N56: 144.2161346 | O56: 135.0371102 | P56: 126.4436875 | Q56: 118.4041985 | R56: 110.881096 | S56: 103.8398905 | T56: 97.22569634 | U56: 91.03122782 | V56: 85.2307349 | W56: 79.81130873 | X56: 74.73511914 | Y56: 69.98218456
C57: NPV medium | E57: =(SUM(F45:AD45)+E30+E28)/SUM(F48:AD48) -> 239.1789155 | F57: =(SUM(G45:AE45)+F23+F25)/SUM(G48:AE48) -> 283.8217162 | G57: =(SUM(H45:AF45)+G23+G25)/SUM(H48:AF48) -> 267.4325456 | H57: 252.056801 | I57: 237.5225973 | J57: 223.8030151 | K57: 210.8339169 | L57: 198.5697875 | M57: 186.9905943 | N57: 176.0564139 | O57: 165.7485638 | P57: 156.040785 | Q57: 146.8794209 | R57: 138.2626266 | S57: 130.1480877 | T57: 122.5197095 | U57: 115.3411001 | V57: 108.5755852 | W57: 102.199813 | X57: 96.18577412 | Y57: 90.52795248
C58: NPV high | E58: =(SUM(F46:AD46)+E30+E28)/SUM(F48:AD48) -> 296.6102202 | F58: =(SUM(G46:AE46)+F23+F25)/SUM(G48:AE48) -> 338.2766825 | G58: =(SUM(H46:AF46)+G23+G25)/SUM(H48:AF48) -> 318.5012749 | H58: 299.8539007 | I58: 282.3102283 | J58: 265.8083894 | K58: 250.3245372 | L58: 235.8261274 | M58: 222.2112044 | N58: 209.4310713 | O58: 197.4123228 | P58: 186.0826366 | Q58: 175.39912 | R58: 165.295514 | S58: 155.75406 | T58: 146.7681595 | U58: 138.288037 | V58: 130.2815301 | W58: 122.7305032 | X58: 115.622495 | Y58: 108.9230078
C60: Frontpage Helper NPV
C61: low | E61: =ABS(E12-Analysis!$AI$5)+1 -> 2016 | F61: =ABS(F12-Analysis!$AI$5)+1 -> 2017 | G61: =ABS(G12-Analysis!$AI$5)+1 -> 2018 | H61: =ABS(H12-Analysis!$AI$5)+1 -> 2019 | I61: =ABS(I12-Analysis!$AI$5)+1 -> 2020 | J61: =ABS(J12-Analysis!$AI$5)+1 -> 2021 | K61: =ABS(K12-Analysis!$AI$5)+1 -> 2022 | L61: =ABS(L12-Analysis!$AI$5)+1 -> 2023 | M61: =ABS(M12-Analysis!$AI$5)+1 -> 2024 | N61: =ABS(N12-Analysis!$AI$5)+1 -> 2025 | O61: =ABS(O12-Analysis!$AI$5)+1 -> 2026 | P61: =ABS(P12-Analysis!$AI$5)+1 -> 2027 | Q61: =ABS(Q12-Analysis!$AI$5)+1 -> 2028 | R61: =ABS(R12-Analysis!$AI$5)+1 -> 2029 | S61: =ABS(S12-Analysis!$AI$5)+1 -> 2030 | T61: =ABS(T12-Analysis!$AI$5)+1 -> 2031 | U61: =ABS(U12-Analysis!$AI$5)+1 -> 2032 | V61: =ABS(V12-Analysis!$AI$5)+1 -> 2033 | W61: =ABS(W12-Analysis!$AI$5)+1 -> 2034 | X61: =ABS(X12-Analysis!$AI$5)+1 -> 2035 | Y61: =ABS(Y12-Analysis!$AI$5)+1 -> 2036 | Z61: =ABS(Z12-Analysis!$AI$5)+1 -> 2037 | AA61: =ABS(AA12-Analysis!$AI$5)+1 -> 2038 | AB61: =ABS(AB12-Analysis!$AI$5)+1 -> 2039 | AC61: =ABS(AC12-Analysis!$AI$5)+1 -> 2040 | AD61: =ABS(AD12-Analysis!$AI$5)+1 -> 2041 | AE61: =ABS(AE12-Analysis!$AI$5)+1 -> 2042 | AF61: =ABS(AF12-Analysis!$AI$5)+1 -> 2043 | AG61: =ABS(AG12-Analysis!$AI$5)+1 -> 2044 | AH61: =ABS(AH12-Analysis!$AI$5)+1 -> 2045 | AI61: =ABS(AI12-Analysis!$AI$5)+1 -> 2046 | AJ61: =ABS(AJ12-Analysis!$AI$5)+1 -> 2047 | AK61: =ABS(AK12-Analysis!$AI$5)+1 -> 2048 | AL61: =ABS(AL12-Analysis!$AI$5)+1 -> 2049 | AM61: =ABS(AM12-Analysis!$AI$5)+1 -> 2050 | AN61: =ABS(AN12-Analysis!$AI$5)+1 -> 2051 | AO61: =ABS(AO12-Analysis!$AI$5)+1 -> 2052 | AP61: =ABS(AP12-Analysis!$AI$5)+1 -> 2053 | AQ61: =ABS(AQ12-Analysis!$AI$5)+1 -> 2054 | AR61: =ABS(AR12-Analysis!$AI$5)+1 -> 2055 | AS61: =ABS(AS12-Analysis!$AI$5)+1 -> 2056 | AT61: =ABS(AT12-Analysis!$AI$5)+1 -> 2057 | AU61: =ABS(AU12-Analysis!$AI$5)+1 -> 2058 | AV61: =ABS(AV12-Analysis!$AI$5)+1 -> 2059 | AW61: =ABS(AW12-Analysis!$AI$5)+1 -> 2060
C62: medium | E62: =ABS(E12-Analysis!$AI$6)+1 -> 2016 | F62: =ABS(F12-Analysis!$AI$6)+1 -> 2017 | G62: =ABS(G12-Analysis!$AI$6)+1 -> 2018 | H62: =ABS(H12-Analysis!$AI$6)+1 -> 2019 | I62: =ABS(I12-Analysis!$AI$6)+1 -> 2020 | J62: =ABS(J12-Analysis!$AI$6)+1 -> 2021 | K62: =ABS(K12-Analysis!$AI$6)+1 -> 2022 | L62: =ABS(L12-Analysis!$AI$6)+1 -> 2023 | M62: =ABS(M12-Analysis!$AI$6)+1 -> 2024 | N62: =ABS(N12-Analysis!$AI$6)+1 -> 2025 | O62: =ABS(O12-Analysis!$AI$6)+1 -> 2026 | P62: =ABS(P12-Analysis!$AI$6)+1 -> 2027 | Q62: =ABS(Q12-Analysis!$AI$6)+1 -> 2028 | R62: =ABS(R12-Analysis!$AI$6)+1 -> 2029 | S62: =ABS(S12-Analysis!$AI$6)+1 -> 2030 | T62: =ABS(T12-Analysis!$AI$6)+1 -> 2031 | U62: =ABS(U12-Analysis!$AI$6)+1 -> 2032 | V62: =ABS(V12-Analysis!$AI$6)+1 -> 2033 | W62: =ABS(W12-Analysis!$AI$6)+1 -> 2034 | X62: =ABS(X12-Analysis!$AI$6)+1 -> 2035 | Y62: =ABS(Y12-Analysis!$AI$6)+1 -> 2036 | Z62: =ABS(Z12-Analysis!$AI$6)+1 -> 2037 | AA62: =ABS(AA12-Analysis!$AI$6)+1 -> 2038 | AB62: =ABS(AB12-Analysis!$AI$6)+1 -> 2039 | AC62: =ABS(AC12-Analysis!$AI$6)+1 -> 2040 | AD62: =ABS(AD12-Analysis!$AI$6)+1 -> 2041 | AE62: =ABS(AE12-Analysis!$AI$6)+1 -> 2042 | AF62: =ABS(AF12-Analysis!$AI$6)+1 -> 2043 | AG62: =ABS(AG12-Analysis!$AI$6)+1 -> 2044 | AH62: =ABS(AH12-Analysis!$AI$6)+1 -> 2045 | AI62: =ABS(AI12-Analysis!$AI$6)+1 -> 2046 | AJ62: =ABS(AJ12-Analysis!$AI$6)+1 -> 2047 | AK62: =ABS(AK12-Analysis!$AI$6)+1 -> 2048 | AL62: =ABS(AL12-Analysis!$AI$6)+1 -> 2049 | AM62: =ABS(AM12-Analysis!$AI$6)+1 -> 2050 | AN62: =ABS(AN12-Analysis!$AI$6)+1 -> 2051 | AO62: =ABS(AO12-Analysis!$AI$6)+1 -> 2052 | AP62: =ABS(AP12-Analysis!$AI$6)+1 -> 2053 | AQ62: =ABS(AQ12-Analysis!$AI$6)+1 -> 2054 | AR62: =ABS(AR12-Analysis!$AI$6)+1 -> 2055 | AS62: =ABS(AS12-Analysis!$AI$6)+1 -> 2056 | AT62: =ABS(AT12-Analysis!$AI$6)+1 -> 2057 | AU62: =ABS(AU12-Analysis!$AI$6)+1 -> 2058 | AV62: =ABS(AV12-Analysis!$AI$6)+1 -> 2059 | AW62: =ABS(AW12-Analysis!$AI$6)+1 -> 2060
C63: high | E63: =ABS(E12-Analysis!$AI$7)+1 -> 19 | F63: =ABS(F12-Analysis!$AI$7)+1 -> 18 | G63: =ABS(G12-Analysis!$AI$7)+1 -> 17 | H63: =ABS(H12-Analysis!$AI$7)+1 -> 16 | I63: =ABS(I12-Analysis!$AI$7)+1 -> 15 | J63: =ABS(J12-Analysis!$AI$7)+1 -> 14 | K63: =ABS(K12-Analysis!$AI$7)+1 -> 13 | L63: =ABS(L12-Analysis!$AI$7)+1 -> 12 | M63: =ABS(M12-Analysis!$AI$7)+1 -> 11 | N63: =ABS(N12-Analysis!$AI$7)+1 -> 10 | O63: =ABS(O12-Analysis!$AI$7)+1 -> 9 | P63: =ABS(P12-Analysis!$AI$7)+1 -> 8 | Q63: =ABS(Q12-Analysis!$AI$7)+1 -> 7 | R63: =ABS(R12-Analysis!$AI$7)+1 -> 6 | S63: =ABS(S12-Analysis!$AI$7)+1 -> 5 | T63: =ABS(T12-Analysis!$AI$7)+1 -> 4 | U63: =ABS(U12-Analysis!$AI$7)+1 -> 3 | V63: =ABS(V12-Analysis!$AI$7)+1 -> 2 | W63: =ABS(W12-Analysis!$AI$7)+1 -> 1 | X63: =ABS(X12-Analysis!$AI$7)+1 -> 2 | Y63: =ABS(Y12-Analysis!$AI$7)+1 -> 3 | Z63: =ABS(Z12-Analysis!$AI$7)+1 -> 4 | AA63: =ABS(AA12-Analysis!$AI$7)+1 -> 5 | AB63: =ABS(AB12-Analysis!$AI$7)+1 -> 6 | AC63: =ABS(AC12-Analysis!$AI$7)+1 -> 7 | AD63: =ABS(AD12-Analysis!$AI$7)+1 -> 8 | AE63: =ABS(AE12-Analysis!$AI$7)+1 -> 9 | AF63: =ABS(AF12-Analysis!$AI$7)+1 -> 10 | AG63: =ABS(AG12-Analysis!$AI$7)+1 -> 11 | AH63: =ABS(AH12-Analysis!$AI$7)+1 -> 12 | AI63: =ABS(AI12-Analysis!$AI$7)+1 -> 13 | AJ63: =ABS(AJ12-Analysis!$AI$7)+1 -> 14 | AK63: =ABS(AK12-Analysis!$AI$7)+1 -> 15 | AL63: =ABS(AL12-Analysis!$AI$7)+1 -> 16 | AM63: =ABS(AM12-Analysis!$AI$7)+1 -> 17 | AN63: =ABS(AN12-Analysis!$AI$7)+1 -> 18 | AO63: =ABS(AO12-Analysis!$AI$7)+1 -> 19 | AP63: =ABS(AP12-Analysis!$AI$7)+1 -> 20 | AQ63: =ABS(AQ12-Analysis!$AI$7)+1 -> 21 | AR63: =ABS(AR12-Analysis!$AI$7)+1 -> 22 | AS63: =ABS(AS12-Analysis!$AI$7)+1 -> 23 | AT63: =ABS(AT12-Analysis!$AI$7)+1 -> 24 | AU63: =ABS(AU12-Analysis!$AI$7)+1 -> 25 | AV63: =ABS(AV12-Analysis!$AI$7)+1 -> 26 | AW63: =ABS(AW12-Analysis!$AI$7)+1 -> 27
C65: Frontpage Helper TEU
C66: low | E66: =ABS(E12-Analysis!$AI$12)+1 -> 38 | F66: =ABS(F12-Analysis!$AI$12)+1 -> 37 | G66: =ABS(G12-Analysis!$AI$12)+1 -> 36 | H66: =ABS(H12-Analysis!$AI$12)+1 -> 35 | I66: =ABS(I12-Analysis!$AI$12)+1 -> 34 | J66: =ABS(J12-Analysis!$AI$12)+1 -> 33 | K66: =ABS(K12-Analysis!$AI$12)+1 -> 32 | L66: =ABS(L12-Analysis!$AI$12)+1 -> 31 | M66: =ABS(M12-Analysis!$AI$12)+1 -> 30 | N66: =ABS(N12-Analysis!$AI$12)+1 -> 29 | O66: =ABS(O12-Analysis!$AI$12)+1 -> 28 | P66: =ABS(P12-Analysis!$AI$12)+1 -> 27 | Q66: =ABS(Q12-Analysis!$AI$12)+1 -> 26 | R66: =ABS(R12-Analysis!$AI$12)+1 -> 25 | S66: =ABS(S12-Analysis!$AI$12)+1 -> 24 | T66: =ABS(T12-Analysis!$AI$12)+1 -> 23 | U66: =ABS(U12-Analysis!$AI$12)+1 -> 22 | V66: =ABS(V12-Analysis!$AI$12)+1 -> 21 | W66: =ABS(W12-Analysis!$AI$12)+1 -> 20 | X66: =ABS(X12-Analysis!$AI$12)+1 -> 19 | Y66: =ABS(Y12-Analysis!$AI$12)+1 -> 18 | Z66: =ABS(Z12-Analysis!$AI$12)+1 -> 17 | AA66: =ABS(AA12-Analysis!$AI$12)+1 -> 16 | AB66: =ABS(AB12-Analysis!$AI$12)+1 -> 15 | AC66: =ABS(AC12-Analysis!$AI$12)+1 -> 14 | AD66: =ABS(AD12-Analysis!$AI$12)+1 -> 13 | AE66: =ABS(AE12-Analysis!$AI$12)+1 -> 12 | AF66: =ABS(AF12-Analysis!$AI$12)+1 -> 11 | AG66: =ABS(AG12-Analysis!$AI$12)+1 -> 10 | AH66: =ABS(AH12-Analysis!$AI$12)+1 -> 9 | AI66: =ABS(AI12-Analysis!$AI$12)+1 -> 8 | AJ66: =ABS(AJ12-Analysis!$AI$12)+1 -> 7 | AK66: =ABS(AK12-Analysis!$AI$12)+1 -> 6 | AL66: =ABS(AL12-Analysis!$AI$12)+1 -> 5 | AM66: =ABS(AM12-Analysis!$AI$12)+1 -> 4 | AN66: =ABS(AN12-Analysis!$AI$12)+1 -> 3 | AO66: =ABS(AO12-Analysis!$AI$12)+1 -> 2 | AP66: =ABS(AP12-Analysis!$AI$12)+1 -> 1 | AQ66: =ABS(AQ12-Analysis!$AI$12)+1 -> 2 | AR66: =ABS(AR12-Analysis!$AI$12)+1 -> 3 | AS66: =ABS(AS12-Analysis!$AI$12)+1 -> 4 | AT66: =ABS(AT12-Analysis!$AI$12)+1 -> 5 | AU66: =ABS(AU12-Analysis!$AI$12)+1 -> 6 | AV66: =ABS(AV12-Analysis!$AI$12)+1 -> 7 | AW66: =ABS(AW12-Analysis!$AI$12)+1 -> 8 | AX66: =ABS(AX12-Analysis!$AI$12)+1 -> 9
C67: medium | E67: =ABS(E12-Analysis!$AI$13)+1 -> 29 | F67: =ABS(F12-Analysis!$AI$13)+1 -> 28 | G67: =ABS(G12-Analysis!$AI$13)+1 -> 27 | H67: =ABS(H12-Analysis!$AI$13)+1 -> 26 | I67: =ABS(I12-Analysis!$AI$13)+1 -> 25 | J67: =ABS(J12-Analysis!$AI$13)+1 -> 24 | K67: =ABS(K12-Analysis!$AI$13)+1 -> 23 | L67: =ABS(L12-Analysis!$AI$13)+1 -> 22 | M67: =ABS(M12-Analysis!$AI$13)+1 -> 21 | N67: =ABS(N12-Analysis!$AI$13)+1 -> 20 | O67: =ABS(O12-Analysis!$AI$13)+1 -> 19 | P67: =ABS(P12-Analysis!$AI$13)+1 -> 18 | Q67: =ABS(Q12-Analysis!$AI$13)+1 -> 17 | R67: =ABS(R12-Analysis!$AI$13)+1 -> 16 | S67: =ABS(S12-Analysis!$AI$13)+1 -> 15 | T67: =ABS(T12-Analysis!$AI$13)+1 -> 14 | U67: =ABS(U12-Analysis!$AI$13)+1 -> 13 | V67: =ABS(V12-Analysis!$AI$13)+1 -> 12 | W67: =ABS(W12-Analysis!$AI$13)+1 -> 11 | X67: =ABS(X12-Analysis!$AI$13)+1 -> 10 | Y67: =ABS(Y12-Analysis!$AI$13)+1 -> 9 | Z67: =ABS(Z12-Analysis!$AI$13)+1 -> 8 | AA67: =ABS(AA12-Analysis!$AI$13)+1 -> 7 | AB67: =ABS(AB12-Analysis!$AI$13)+1 -> 6 | AC67: =ABS(AC12-Analysis!$AI$13)+1 -> 5 | AD67: =ABS(AD12-Analysis!$AI$13)+1 -> 4 | AE67: =ABS(AE12-Analysis!$AI$13)+1 -> 3 | AF67: =ABS(AF12-Analysis!$AI$13)+1 -> 2 | AG67: =ABS(AG12-Analysis!$AI$13)+1 -> 1 | AH67: =ABS(AH12-Analysis!$AI$13)+1 -> 2 | AI67: =ABS(AI12-Analysis!$AI$13)+1 -> 3 | AJ67: =ABS(AJ12-Analysis!$AI$13)+1 -> 4 | AK67: =ABS(AK12-Analysis!$AI$13)+1 -> 5 | AL67: =ABS(AL12-Analysis!$AI$13)+1 -> 6 | AM67: =ABS(AM12-Analysis!$AI$13)+1 -> 7 | AN67: =ABS(AN12-Analysis!$AI$13)+1 -> 8 | AO67: =ABS(AO12-Analysis!$AI$13)+1 -> 9 | AP67: =ABS(AP12-Analysis!$AI$13)+1 -> 10 | AQ67: =ABS(AQ12-Analysis!$AI$13)+1 -> 11 | AR67: =ABS(AR12-Analysis!$AI$13)+1 -> 12 | AS67: =ABS(AS12-Analysis!$AI$13)+1 -> 13 | AT67: =ABS(AT12-Analysis!$AI$13)+1 -> 14 | AU67: =ABS(AU12-Analysis!$AI$13)+1 -> 15 | AV67: =ABS(AV12-Analysis!$AI$13)+1 -> 16 | AW67: =ABS(AW12-Analysis!$AI$13)+1 -> 17 | AX67: =ABS(AX12-Analysis!$AI$13)+1 -> 18
C68: high | E68: =ABS(E12-Analysis!$AI$14)+1 -> 28 | F68: =ABS(F12-Analysis!$AI$14)+1 -> 27 | G68: =ABS(G12-Analysis!$AI$14)+1 -> 26 | H68: =ABS(H12-Analysis!$AI$14)+1 -> 25 | I68: =ABS(I12-Analysis!$AI$14)+1 -> 24 | J68: =ABS(J12-Analysis!$AI$14)+1 -> 23 | K68: =ABS(K12-Analysis!$AI$14)+1 -> 22 | L68: =ABS(L12-Analysis!$AI$14)+1 -> 21 | M68: =ABS(M12-Analysis!$AI$14)+1 -> 20 | N68: =ABS(N12-Analysis!$AI$14)+1 -> 19 | O68: =ABS(O12-Analysis!$AI$14)+1 -> 18 | P68: =ABS(P12-Analysis!$AI$14)+1 -> 17 | Q68: =ABS(Q12-Analysis!$AI$14)+1 -> 16 | R68: =ABS(R12-Analysis!$AI$14)+1 -> 15 | S68: =ABS(S12-Analysis!$AI$14)+1 -> 14 | T68: =ABS(T12-Analysis!$AI$14)+1 -> 13 | U68: =ABS(U12-Analysis!$AI$14)+1 -> 12 | V68: =ABS(V12-Analysis!$AI$14)+1 -> 11 | W68: =ABS(W12-Analysis!$AI$14)+1 -> 10 | X68: =ABS(X12-Analysis!$AI$14)+1 -> 9 | Y68: =ABS(Y12-Analysis!$AI$14)+1 -> 8 | Z68: =ABS(Z12-Analysis!$AI$14)+1 -> 7 | AA68: =ABS(AA12-Analysis!$AI$14)+1 -> 6 | AB68: =ABS(AB12-Analysis!$AI$14)+1 -> 5 | AC68: =ABS(AC12-Analysis!$AI$14)+1 -> 4 | AD68: =ABS(AD12-Analysis!$AI$14)+1 -> 3 | AE68: =ABS(AE12-Analysis!$AI$14)+1 -> 2 | AF68: =ABS(AF12-Analysis!$AI$14)+1 -> 1 | AG68: =ABS(AG12-Analysis!$AI$14)+1 -> 2 | AH68: =ABS(AH12-Analysis!$AI$14)+1 -> 3 | AI68: =ABS(AI12-Analysis!$AI$14)+1 -> 4 | AJ68: =ABS(AJ12-Analysis!$AI$14)+1 -> 5 | AK68: =ABS(AK12-Analysis!$AI$14)+1 -> 6 | AL68: =ABS(AL12-Analysis!$AI$14)+1 -> 7 | AM68: =ABS(AM12-Analysis!$AI$14)+1 -> 8 | AN68: =ABS(AN12-Analysis!$AI$14)+1 -> 9 | AO68: =ABS(AO12-Analysis!$AI$14)+1 -> 10 | AP68: =ABS(AP12-Analysis!$AI$14)+1 -> 11 | AQ68: =ABS(AQ12-Analysis!$AI$14)+1 -> 12 | AR68: =ABS(AR12-Analysis!$AI$14)+1 -> 13 | AS68: =ABS(AS12-Analysis!$AI$14)+1 -> 14 | AT68: =ABS(AT12-Analysis!$AI$14)+1 -> 15 | AU68: =ABS(AU12-Analysis!$AI$14)+1 -> 16 | AV68: =ABS(AV12-Analysis!$AI$14)+1 -> 17 | AW68: =ABS(AW12-Analysis!$AI$14)+1 -> 18 | AX68: =ABS(AX12-Analysis!$AI$14)+1 -> 19

Sheet Analysis (hidden)
C3: Cost component breakdown by trip 2016 | D3: NSR (mid season) | E3: NSR (end season) | F3: SCR (Ice-Strenthened Vessel) | G3: SCR (Ordinary Vessel) | K3: NPV ratio | L3: 2015 | M3: 2016 | N3: 2017 | O3: 2018 | P3: 2019 | Q3: 2020 | R3: 2021 | S3: 2022 | T3: 2023 | U3: 2024 | V3: 2025 | W3: 2026 | X3: 2027 | Y3: 2028 | Z3: 2029 | AA3: 2030 | AB3: 2031 | AC3: 2032 | AD3: 2033 | AE3: 2034 | AF3: 2035 | AH3: Total | AI3: year | AJ3: scr value
C4: Fuel Costs | D4: ='NSR Vessel'!F24 -> 769431.423 | E4: ='NSR Vessel'!F24 -> 769431.423 | F4: ='NSR Vessel'!F23 -> 1452302.563 | G4: ='SCR Vessel'!F19 -> 1182849.853
C5: Berthing Cost | D5: ='NSR Vessel'!E18 -> 104615.0041 | E5: ='NSR Vessel'!E18 -> 104615.0041 | F5: ='NSR Vessel'!E17 -> 174358.3401 | G5: ='SCR Vessel'!F16 -> 174358.3401 | K5: Low oil price scenario | L5: ='SCR Vessel'!E56/'NSR Vessel'!E67 -> 0.6512510907 | M5: ='SCR Vessel'!F56/'NSR Vessel'!F67 -> 0.9146938456 | N5: ='SCR Vessel'!G56/'NSR Vessel'!G67 -> 0.9163322581 | O5: ='SCR Vessel'!H56/'NSR Vessel'!H67 -> 0.9184773383 | P5: ='SCR Vessel'!I56/'NSR Vessel'!I67 -> 0.9207170957 | Q5: ='SCR Vessel'!J56/'NSR Vessel'!J67 -> 0.9230522844 | R5: ='SCR Vessel'!K56/'NSR Vessel'!K67 -> 0.9254847918 | S5: ='SCR Vessel'!L56/'NSR Vessel'!L67 -> 0.92802203 | T5: ='SCR Vessel'!M56/'NSR Vessel'!M67 -> 0.9296866614 | U5: ='SCR Vessel'!N56/'NSR Vessel'!N67 -> 0.9313935649 | V5: ='SCR Vessel'!O56/'NSR Vessel'!O67 -> 0.9331483683 | W5: ='SCR Vessel'!P56/'NSR Vessel'!P67 -> 0.9349575381 | X5: ='SCR Vessel'!Q56/'NSR Vessel'!Q67 -> 0.937335918 | Y5: ='SCR Vessel'!R56/'NSR Vessel'!R67 -> 0.9397934727 | Z5: ='SCR Vessel'!S56/'NSR Vessel'!S67 -> 0.9423329433 | AA5: ='SCR Vessel'!T56/'NSR Vessel'!T67 -> 0.9449398907 | AB5: ='SCR Vessel'!U56/'NSR Vessel'!U67 -> 0.9476329054 | AC5: ='SCR Vessel'!V56/'NSR Vessel'!V67 -> 0.9504171937 | AD5: ='SCR Vessel'!W56/'NSR Vessel'!W67 -> 0.9533082957 | AE5: ='SCR Vessel'!X56/'NSR Vessel'!X67 -> 0.9552826361 | AF5: ='SCR Vessel'!Y56/'NSR Vessel'!Y67 -> 0.9573050498 | AH5: Low oil price scenario | AI5: =IF(Analysis!AF5>1,INDEX(Analysis!$M$3:$AF$3,,MATCH(MIN(Analysis!M12:AF12),Analysis!M12:AF12,0)),0) -> 0
C6: Container Handling Charge | D6: ='NSR Vessel'!E20 -> 600000 | E6: ='NSR Vessel'!E20 -> 600000 | F6: ='NSR Vessel'!E19 -> 600000 | G6: ='SCR Vessel'!F17 -> 600000 | K6: Reference case oil price scenario | L6: ='SCR Vessel'!E57/'NSR Vessel'!E68 -> 0.6918340634 | M6: ='SCR Vessel'!F57/'NSR Vessel'!F68 -> 0.9254791746 | N6: ='SCR Vessel'!G57/'NSR Vessel'!G68 -> 0.9278525009 | O6: ='SCR Vessel'!H57/'NSR Vessel'!H68 -> 0.9309072139 | P6: ='SCR Vessel'!I57/'NSR Vessel'!I68 -> 0.9340860851 | Q6: ='SCR Vessel'!J57/'NSR Vessel'!J68 -> 0.9373996716 | R6: ='SCR Vessel'!K57/'NSR Vessel'!K68 -> 0.9408543459 | S6: ='SCR Vessel'!L57/'NSR Vessel'!L68 -> 0.9444593931 | T6: ='SCR Vessel'!M57/'NSR Vessel'!M68 -> 0.9468910626 | U6: ='SCR Vessel'!N57/'NSR Vessel'!N68 -> 0.9493870216 | V6: ='SCR Vessel'!O57/'NSR Vessel'!O68 -> 0.9519583244 | W6: ='SCR Vessel'!P57/'NSR Vessel'!P68 -> 0.9546135631 | X6: ='SCR Vessel'!Q57/'NSR Vessel'!Q68 -> 0.958021938 | Y6: ='SCR Vessel'!R57/'NSR Vessel'!R68 -> 0.961558678 | Z6: ='SCR Vessel'!S57/'NSR Vessel'!S68 -> 0.9652267507 | AA6: ='SCR Vessel'!T57/'NSR Vessel'!T68 -> 0.9690398969 | AB6: ='SCR Vessel'!U57/'NSR Vessel'!U68 -> 0.9730031839 | AC6: ='SCR Vessel'!V57/'NSR Vessel'!V68 -> 0.9771211996 | AD6: ='SCR Vessel'!W57/'NSR Vessel'!W68 -> 0.981404353 | AE6: ='SCR Vessel'!X57/'NSR Vessel'!X68 -> 0.9843076019 | AF6: ='SCR Vessel'!Y57/'NSR Vessel'!Y68 -> 0.9872971066 | AH6: Reference case oil price scenario | AI6: =IF(Analysis!AF6>1,INDEX(Analysis!$M$3:$AF$3,,MATCH(MIN(Analysis!M13:AF13),Analysis!M13:AF13,0)),0) -> 0 | AJ6: =IF(AI6>0,INDEX('SCR Vessel'!E57:Y57,,(MATCH(MIN('SCR Vessel'!E62:Y62),'SCR Vessel'!E62:Y62,0))),INDEX('SCR Vessel'!E57:Y57,,(MATCH(MAX('SCR Vessel'!E62:Y62),'SCR Vessel'!E62:Y62,0)))) -> 90.52795248
C7: NSR Fee | D7: ='NSR Vessel'!J9 -> 578478.6051 | E7: ='NSR Vessel'!J8 -> 771576.393 | F7: 0 | G7: 0 | K7: High oil price scenario | L7: ='SCR Vessel'!E58/'NSR Vessel'!E69 -> 0.7342597771 | M7: ='SCR Vessel'!F58/'NSR Vessel'!F69 -> 0.9353124755 | N7: ='SCR Vessel'!G58/'NSR Vessel'!G69 -> 0.9379699764 | O7: ='SCR Vessel'!H58/'NSR Vessel'!H69 -> 0.9414162225 | P7: ='SCR Vessel'!I58/'NSR Vessel'!I69 -> 0.9450327678 | Q7: ='SCR Vessel'!J58/'NSR Vessel'!J69 -> 0.948830099 | R7: ='SCR Vessel'!K58/'NSR Vessel'!K69 -> 0.9528212761 | S7: ='SCR Vessel'!L58/'NSR Vessel'!L69 -> 0.9570182651 | T7: ='SCR Vessel'!M58/'NSR Vessel'!M69 -> 0.9596699518 | U7: ='SCR Vessel'!N58/'NSR Vessel'!N69 -> 0.9624292555 | V7: ='SCR Vessel'!O58/'NSR Vessel'!O69 -> 0.9652955004 | W7: ='SCR Vessel'!P58/'NSR Vessel'!P69 -> 0.9682671488 | X7: ='SCR Vessel'!Q58/'NSR Vessel'!Q69 -> 0.9721135256 | Y7: ='SCR Vessel'!R58/'NSR Vessel'!R69 -> 0.9761049258 | Z7: ='SCR Vessel'!S58/'NSR Vessel'!S69 -> 0.9802554582 | AA7: ='SCR Vessel'!T58/'NSR Vessel'!T69 -> 0.9845827208 | AB7: ='SCR Vessel'!U58/'NSR Vessel'!U69 -> 0.9890931304 | AC7: ='SCR Vessel'!V58/'NSR Vessel'!V69 -> 0.9937984423 | AD7: ='SCR Vessel'!W58/'NSR Vessel'!W69 -> 0.9987147238 | AE7: ='SCR Vessel'!X58/'NSR Vessel'!X69 -> 1.001886338 | AF7: ='SCR Vessel'!Y58/'NSR Vessel'!Y69 -> 1.005161108 | AH7: High oil price scenario | AI7: =IF(Analysis!AF7>1,INDEX(Analysis!$M$3:$AF$3,,MATCH(MIN(Analysis!M14:AF14),Analysis!M14:AF14,0)),0) -> 2033 | AJ7: =INDEX('SCR Vessel'!E58:Y58,,MATCH(MIN('SCR Vessel'!E63:Y63),'SCR Vessel'!E63:Y63,0)) -> 122.7305032
C8: SC Fee | D8: 0 | E8: 0 | F8: ='NSR Vessel'!G10 -> 450808 | G8: ='SCR Vessel'!J6 -> 450808
C10: Total | D10: =SUM(D4:D8) -> 2052525.032 | E10: =SUM(E4:E8) -> 2245622.82 | F10: 2677468.903 | G10: 2408016.193
K11: NPV ratio | L11: 2015 | M11: 2016 | N11: 2017 | O11: 2018 | P11: 2019 | Q11: 2020 | R11: 2021 | S11: 2022 | T11: 2023 | U11: 2024 | V11: 2025 | W11: 2026 | X11: 2027 | Y11: 2028 | Z11: 2029 | AA11: 2030 | AB11: 2031 | AC11: 2032 | AD11: 2033 | AE11: 2034 | AF11: 2035 | AH11: Annual
K12: High navigation with low oil price | L12: =ABS(L5-1) -> 0.3487489093 | M12: 0.08530615439 | N12: 0.08366774194 | O12: 0.08152266174 | P12: 0.07928290427 | Q12: 0.07694771559 | R12: 0.0745152082 | S12: 0.07197796995 | T12: 0.07031333858 | U12: 0.06860643514 | V12: 0.06685163166 | W12: 0.06504246195 | X12: 0.06266408199 | Y12: 0.06020652733 | Z12: 0.05766705667 | AA12: 0.05506010926 | AB12: 0.05236709463 | AC12: 0.04958280633 | AD12: 0.04669170425 | AE12: 0.04471736385 | AF12: 0.04269495016 | AH12: low oil price | AI12: =IF(Analysis!AW46>1,IF(Analysis!E46>1,2016,INDEX(Analysis!$E$45:$AW$45,,MATCH(MIN(Analysis!E52:AW52),Analysis!E52:AW52,0))),0) -> 2052
K13: High navigation in the reference case | L13: =ABS(L6-1) -> 0.3081659366 | M13: 0.07452082544 | N13: 0.07214749913 | O13: 0.06909278606 | P13: 0.06591391491 | Q13: 0.06260032837 | R13: 0.05914565414 | S13: 0.05554060693 | T13: 0.05310893737 | U13: 0.05061297842 | V13: 0.04804167561 | W13: 0.04538643694 | X13: 0.04197806196 | Y13: 0.03844132202 | Z13: 0.03477324928 | AA13: 0.03096010311 | AB13: 0.02699681613 | AC13: 0.02287880043 | AD13: 0.018595647 | AE13: 0.01569239813 | AF13: 0.01270289339 | AH13: reference case | AI13: =IF(Analysis!AW47>1,IF(Analysis!E47>1,2016,INDEX(Analysis!$E$45:$AW$45,,MATCH(MIN(Analysis!E53:AW53),Analysis!E53:AW53,0))),0) -> 2043
K14: High navigation with high oil price | L14: =ABS(L7-1) -> 0.2657402229 | M14: 0.06468752451 | N14: 0.06203002359 | O14: 0.05858377751 | P14: 0.05496723223 | Q14: 0.051169901 | R14: 0.04717872393 | S14: 0.04298173487 | T14: 0.04033004816 | U14: 0.0375707445 | V14: 0.03470449955 | W14: 0.03173285117 | X14: 0.02788647443 | Y14: 0.02389507424 | Z14: 0.01974454184 | AA14: 0.01541727919 | AB14: 0.01090686958 | AC14: 0.006201557716 | AD14: 0.001285276228 | AE14: 0.001886338314 | AF14: 0.005161107713 | AH14: high oil price | AI14: =IF(Analysis!AW48>1,IF(Analysis!E48>1,2016,INDEX(Analysis!$E$45:$AW$45,,MATCH(MIN(Analysis!E54:AW54),Analysis!E54:AW54,0))),0) -> 2042
D16: 0 | E16: 1 | F16: 2 | G16: 3 | H16: 4 | I16: 5 | J16: 6 | K16: 7 | L16: 8 | M16: 9 | N16: 10 | O16: 11 | P16: 12 | Q16: 13 | R16: 14 | S16: 15 | T16: 16 | U16: 17 | V16: 18 | W16: 19 | X16: 20 | Y16: 21 | Z16: 22 | AA16: 23 | AB16: 24 | AC16: 25
C17: SCR | D17: 2015 | E17: 2016 | F17: 2017 | G17: 2018 | H17: 2019 | I17: 2020 | J17: 2021 | K17: 2022 | L17: 2023 | M17: 2024 | N17: 2025 | O17: 2026 | P17: 2027 | Q17: 2028 | R17: 2029 | S17: 2030 | T17: 2031 | U17: 2032 | V17: 2033 | W17: 2034 | X17: 2035 | Y17: 2036 | Z17: 2037 | AA17: 2038 | AB17: 2039 | AC17: 2040
C18: Capital Costs | D18: ='SCR Vessel'!G8 -> 26370000 | E18: ='SCR Vessel'!$G$9 -> 6755663.258 | F18: ='SCR Vessel'!$G$9 -> 6755663.258 | G18: ='SCR Vessel'!$G$9 -> 6755663.258 | H18: ='SCR Vessel'!$G$9 -> 6755663.258 | I18: ='SCR Vessel'!$G$9 -> 6755663.258 | J18: ='SCR Vessel'!$G$9 -> 6755663.258 | K18: ='SCR Vessel'!$G$9 -> 6755663.258 | L18: ='SCR Vessel'!$G$9 -> 6755663.258 | M18: ='SCR Vessel'!$G$9 -> 6755663.258 | N18: ='SCR Vessel'!$G$9 -> 6755663.258 | O18: ='SCR Vessel'!$G$9 -> 6755663.258 | P18: ='SCR Vessel'!$G$9 -> 6755663.258 | Q18: ='SCR Vessel'!$G$9 -> 6755663.258 | R18: ='SCR Vessel'!$G$9 -> 6755663.258 | S18: ='SCR Vessel'!$G$9 -> 6755663.258 | T18: 0 | U18: 0 | V18: 0 | W18: 0 | X18: 0 | Y18: 0 | Z18: 0 | AA18: 0 | AB18: 0 | AC18: 0
C19: Maintenance | D19: 0 | E19: ='SCR Vessel'!$G$4 -> 962505 | F19: ='SCR Vessel'!$G$4 -> 962505 | G19: ='SCR Vessel'!$G$4 -> 962505 | H19: ='SCR Vessel'!$G$4 -> 962505 | I19: ='SCR Vessel'!$G$4 -> 962505 | J19: ='SCR Vessel'!$G$4 -> 962505 | K19: ='SCR Vessel'!$G$4 -> 962505 | L19: ='SCR Vessel'!$G$4 -> 962505 | M19: ='SCR Vessel'!$G$4 -> 962505 | N19: ='SCR Vessel'!$G$4 -> 962505 | O19: ='SCR Vessel'!$G$4 -> 962505 | P19: ='SCR Vessel'!$G$4 -> 962505 | Q19: ='SCR Vessel'!$G$4 -> 962505 | R19: ='SCR Vessel'!$G$4 -> 962505 | S19: ='SCR Vessel'!$G$4 -> 962505 | T19: ='SCR Vessel'!$G$4 -> 962505 | U19: ='SCR Vessel'!$G$4 -> 962505 | V19: ='SCR Vessel'!$G$4 -> 962505 | W19: ='SCR Vessel'!$G$4 -> 962505 | X19: ='SCR Vessel'!$G$4 -> 962505 | Y19: ='SCR Vessel'!$G$4 -> 962505 | Z19: ='SCR Vessel'!$G$4 -> 962505 | AA19: ='SCR Vessel'!$G$4 -> 962505 | AB19: ='SCR Vessel'!$G$4 -> 962505 | AC19: ='SCR Vessel'!$G$4 -> 962505 | AI19: ROUND(INDEX(Analysis!L5:AF5;;(MATCH(MIN(Analysis!L12:AF12);Analysis!L12:AF12;0)));5)&".";"Will not be feasible between 2015 - 2035")
C20: Insurance | D20: 0 | E20: ='SCR Vessel'!F17 -> 600000 | F20: ='SCR Vessel'!G17 -> 600000 | G20: ='SCR Vessel'!H17 -> 600000 | H20: ='SCR Vessel'!I17 -> 600000 | I20: ='SCR Vessel'!J17 -> 600000 | J20: ='SCR Vessel'!K17 -> 600000 | K20: ='SCR Vessel'!L17 -> 600000 | L20: ='SCR Vessel'!M17 -> 600000 | M20: ='SCR Vessel'!N17 -> 600000 | N20: ='SCR Vessel'!O17 -> 600000 | O20: ='SCR Vessel'!P17 -> 600000 | P20: ='SCR Vessel'!Q17 -> 600000 | Q20: ='SCR Vessel'!R17 -> 600000 | R20: ='SCR Vessel'!S17 -> 600000 | S20: ='SCR Vessel'!T17 -> 600000 | T20: ='SCR Vessel'!U17 -> 600000 | U20: ='SCR Vessel'!V17 -> 600000 | V20: ='SCR Vessel'!W17 -> 600000 | W20: ='SCR Vessel'!X17 -> 600000 | X20: ='SCR Vessel'!Y17 -> 600000 | Y20: ='SCR Vessel'!Z17 -> 600000 | Z20: ='SCR Vessel'!AA17 -> 600000 | AA20: ='SCR Vessel'!AB17 -> 600000 | AB20: ='SCR Vessel'!AC17 -> 600000 | AC20: ='SCR Vessel'!AD17 -> 600000
C21: Crew Costs | D21: 0 | E21: ='SCR Vessel'!$G$6 -> 1200000 | F21: ='SCR Vessel'!$G$6 -> 1200000 | G21: ='SCR Vessel'!$G$6 -> 1200000 | H21: ='SCR Vessel'!$G$6 -> 1200000 | I21: ='SCR Vessel'!$G$6 -> 1200000 | J21: ='SCR Vessel'!$G$6 -> 1200000 | K21: ='SCR Vessel'!$G$6 -> 1200000 | L21: ='SCR Vessel'!$G$6 -> 1200000 | M21: ='SCR Vessel'!$G$6 -> 1200000 | N21: ='SCR Vessel'!$G$6 -> 1200000 | O21: ='SCR Vessel'!$G$6 -> 1200000 | P21: ='SCR Vessel'!$G$6 -> 1200000 | Q21: ='SCR Vessel'!$G$6 -> 1200000 | R21: ='SCR Vessel'!$G$6 -> 1200000 | S21: ='SCR Vessel'!$G$6 -> 1200000 | T21: ='SCR Vessel'!$G$6 -> 1200000 | U21: ='SCR Vessel'!$G$6 -> 1200000 | V21: ='SCR Vessel'!$G$6 -> 1200000 | W21: ='SCR Vessel'!$G$6 -> 1200000 | X21: ='SCR Vessel'!$G$6 -> 1200000 | Y21: ='SCR Vessel'!$G$6 -> 1200000 | Z21: ='SCR Vessel'!$G$6 -> 1200000 | AA21: ='SCR Vessel'!$G$6 -> 1200000 | AB21: ='SCR Vessel'!$G$6 -> 1200000 | AC21: ='SCR Vessel'!$G$6 -> 1200000
C22: Fuel Costs | D22: 0 | E22: ='SCR Vessel'!F31*'SCR Vessel'!F19 -> 11900954.88 | F22: ='SCR Vessel'!G31*'SCR Vessel'!G19 -> 11740605.03 | G22: ='SCR Vessel'!H31*'SCR Vessel'!H19 -> 11894608.2 | H22: ='SCR Vessel'!I31*'SCR Vessel'!I19 -> 12250928.98 | I22: ='SCR Vessel'!J31*'SCR Vessel'!J19 -> 12572861.96 | J22: ='SCR Vessel'!K31*'SCR Vessel'!K19 -> 12936612.41 | K22: ='SCR Vessel'!L31*'SCR Vessel'!L19 -> 13314039.82 | L22: ='SCR Vessel'!M31*'SCR Vessel'!M19 -> 13650994.79 | M22: ='SCR Vessel'!N31*'SCR Vessel'!N19 -> 13995195.58 | N22: ='SCR Vessel'!O31*'SCR Vessel'!O19 -> 14294574.14 | O22: ='SCR Vessel'!P31*'SCR Vessel'!P19 -> 14567548.02 | P22: ='SCR Vessel'!Q31*'SCR Vessel'!Q19 -> 14901698.94 | Q22: ='SCR Vessel'!R31*'SCR Vessel'!R19 -> 15140336.39 | R22: ='SCR Vessel'!S31*'SCR Vessel'!S19 -> 15416329.96 | S22: ='SCR Vessel'!T31*'SCR Vessel'!T19 -> 15642737.11 | T22: ='SCR Vessel'!U31*'SCR Vessel'!U19 -> 15900419.42 | U22: ='SCR Vessel'!V31*'SCR Vessel'!V19 -> 16204768.98 | V22: ='SCR Vessel'!W31*'SCR Vessel'!W19 -> 16509239.75 | W22: ='SCR Vessel'!X31*'SCR Vessel'!X19 -> 16844165.06 | X22: ='SCR Vessel'!Y31*'SCR Vessel'!Y19 -> 17099806.47 | Y22: ='SCR Vessel'!Z31*'SCR Vessel'!Z19 -> 17386251.63 | Z22: ='SCR Vessel'!AA31*'SCR Vessel'!AA19 -> 17639527.65 | AA22: ='SCR Vessel'!AB31*'SCR Vessel'!AB19 -> 17909646.11 | AB22: ='SCR Vessel'!AC31*'SCR Vessel'!AC19 -> 18300406.24 | AC22: ='SCR Vessel'!AD31*'SCR Vessel'!AD19 -> 18729187.52
C23: Berthing Costs | D23: 0 | E23: ='SCR Vessel'!F31*'SCR Vessel'!F16 -> 1754263.851 | F23: ='SCR Vessel'!G31*'SCR Vessel'!G16 -> 1754263.851 | G23: ='SCR Vessel'!H31*'SCR Vessel'!H16 -> 1754263.851 | H23: ='SCR Vessel'!I31*'SCR Vessel'!I16 -> 1754263.851 | I23: ='SCR Vessel'!J31*'SCR Vessel'!J16 -> 1754263.851 | J23: ='SCR Vessel'!K31*'SCR Vessel'!K16 -> 1754263.851 | K23: ='SCR Vessel'!L31*'SCR Vessel'!L16 -> 1754263.851 | L23: ='SCR Vessel'!M31*'SCR Vessel'!M16 -> 1754263.851 | M23: ='SCR Vessel'!N31*'SCR Vessel'!N16 -> 1754263.851 | N23: ='SCR Vessel'!O31*'SCR Vessel'!O16 -> 1754263.851 | O23: ='SCR Vessel'!P31*'SCR Vessel'!P16 -> 1754263.851 | P23: ='SCR Vessel'!Q31*'SCR Vessel'!Q16 -> 1754263.851 | Q23: ='SCR Vessel'!R31*'SCR Vessel'!R16 -> 1754263.851 | R23: ='SCR Vessel'!S31*'SCR Vessel'!S16 -> 1754263.851 | S23: ='SCR Vessel'!T31*'SCR Vessel'!T16 -> 1754263.851 | T23: ='SCR Vessel'!U31*'SCR Vessel'!U16 -> 1754263.851 | U23: ='SCR Vessel'!V31*'SCR Vessel'!V16 -> 1754263.851 | V23: ='SCR Vessel'!W31*'SCR Vessel'!W16 -> 1754263.851 | W23: ='SCR Vessel'!X31*'SCR Vessel'!X16 -> 1754263.851 | X23: ='SCR Vessel'!Y31*'SCR Vessel'!Y16 -> 1754263.851 | Y23: ='SCR Vessel'!Z31*'SCR Vessel'!Z16 -> 1754263.851 | Z23: ='SCR Vessel'!AA31*'SCR Vessel'!AA16 -> 1754263.851 | AA23: ='SCR Vessel'!AB31*'SCR Vessel'!AB16 -> 1754263.851 | AB23: ='SCR Vessel'!AC31*'SCR Vessel'!AC16 -> 1754263.851 | AC23: ='SCR Vessel'!AD31*'SCR Vessel'!AD16 -> 1754263.851
C24: Containerhandling charge | D24: 0 | E24: ='SCR Vessel'!F31*'SCR Vessel'!F17 -> 6036753.446 | F24: ='SCR Vessel'!G31*'SCR Vessel'!G17 -> 6036753.446 | G24: ='SCR Vessel'!H31*'SCR Vessel'!H17 -> 6036753.446 | H24: ='SCR Vessel'!I31*'SCR Vessel'!I17 -> 6036753.446 | I24: ='SCR Vessel'!J31*'SCR Vessel'!J17 -> 6036753.446 | J24: ='SCR Vessel'!K31*'SCR Vessel'!K17 -> 6036753.446 | K24: ='SCR Vessel'!L31*'SCR Vessel'!L17 -> 6036753.446 | L24: ='SCR Vessel'!M31*'SCR Vessel'!M17 -> 6036753.446 | M24: ='SCR Vessel'!N31*'SCR Vessel'!N17 -> 6036753.446 | N24: ='SCR Vessel'!O31*'SCR Vessel'!O17 -> 6036753.446 | O24: ='SCR Vessel'!P31*'SCR Vessel'!P17 -> 6036753.446 | P24: ='SCR Vessel'!Q31*'SCR Vessel'!Q17 -> 6036753.446 | Q24: ='SCR Vessel'!R31*'SCR Vessel'!R17 -> 6036753.446 | R24: ='SCR Vessel'!S31*'SCR Vessel'!S17 -> 6036753.446 | S24: ='SCR Vessel'!T31*'SCR Vessel'!T17 -> 6036753.446 | T24: ='SCR Vessel'!U31*'SCR Vessel'!U17 -> 6036753.446 | U24: ='SCR Vessel'!V31*'SCR Vessel'!V17 -> 6036753.446 | V24: ='SCR Vessel'!W31*'SCR Vessel'!W17 -> 6036753.446 | W24: ='SCR Vessel'!X31*'SCR Vessel'!X17 -> 6036753.446 | X24: ='SCR Vessel'!Y31*'SCR Vessel'!Y17 -> 6036753.446 | Y24: ='SCR Vessel'!Z31*'SCR Vessel'!Z17 -> 6036753.446 | Z24: ='SCR Vessel'!AA31*'SCR Vessel'!AA17 -> 6036753.446 | AA24: ='SCR Vessel'!AB31*'SCR Vessel'!AB17 -> 6036753.446 | AB24: ='SCR Vessel'!AC31*'SCR Vessel'!AC17 -> 6036753.446 | AC24: ='SCR Vessel'!AD31*'SCR Vessel'!AD17 -> 6036753.446
C25: NSR Fee | D25: 0 | E25: 0 | F25: 0 | G25: 0 | H25: 0 | I25: 0 | J25: 0 | K25: 0 | L25: 0 | M25: 0 | N25: 0 | O25: 0 | P25: 0 | Q25: 0 | R25: 0 | S25: 0 | T25: 0 | U25: 0 | V25: 0 | W25: 0 | X25: 0 | Y25: 0 | Z25: 0 | AA25: 0 | AB25: 0 | AC25: 0
C26: SCR Fee | D26: 0 | E26: ='SCR Vessel'!F31*'SCR Vessel'!$J$6 -> 4535694.579 | F26: ='SCR Vessel'!G31*'SCR Vessel'!$J$6 -> 4535694.579 | G26: ='SCR Vessel'!H31*'SCR Vessel'!$J$6 -> 4535694.579 | H26: ='SCR Vessel'!I31*'SCR Vessel'!$J$6 -> 4535694.579 | I26: ='SCR Vessel'!J31*'SCR Vessel'!$J$6 -> 4535694.579 | J26: ='SCR Vessel'!K31*'SCR Vessel'!$J$6 -> 4535694.579 | K26: ='SCR Vessel'!L31*'SCR Vessel'!$J$6 -> 4535694.579 | L26: ='SCR Vessel'!M31*'SCR Vessel'!$J$6 -> 4535694.579 | M26: ='SCR Vessel'!N31*'SCR Vessel'!$J$6 -> 4535694.579 | N26: ='SCR Vessel'!O31*'SCR Vessel'!$J$6 -> 4535694.579 | O26: ='SCR Vessel'!P31*'SCR Vessel'!$J$6 -> 4535694.579 | P26: ='SCR Vessel'!Q31*'SCR Vessel'!$J$6 -> 4535694.579 | Q26: ='SCR Vessel'!R31*'SCR Vessel'!$J$6 -> 4535694.579 | R26: ='SCR Vessel'!S31*'SCR Vessel'!$J$6 -> 4535694.579 | S26: ='SCR Vessel'!T31*'SCR Vessel'!$J$6 -> 4535694.579 | T26: ='SCR Vessel'!U31*'SCR Vessel'!$J$6 -> 4535694.579 | U26: ='SCR Vessel'!V31*'SCR Vessel'!$J$6 -> 4535694.579 | V26: ='SCR Vessel'!W31*'SCR Vessel'!$J$6 -> 4535694.579 | W26: ='SCR Vessel'!X31*'SCR Vessel'!$J$6 -> 4535694.579 | X26: ='SCR Vessel'!Y31*'SCR Vessel'!$J$6 -> 4535694.579 | Y26: ='SCR Vessel'!Z31*'SCR Vessel'!$J$6 -> 4535694.579 | Z26: ='SCR Vessel'!AA31*'SCR Vessel'!$J$6 -> 4535694.579 | AA26: ='SCR Vessel'!AB31*'SCR Vessel'!$J$6 -> 4535694.579 | AB26: ='SCR Vessel'!AC31*'SCR Vessel'!$J$6 -> 4535694.579 | AC26: ='SCR Vessel'!AD31*'SCR Vessel'!$J$6 -> 4535694.579
AC27: =SUM(AC19:AC26) -> 33818404.4
AC31: =SUM(AC29:AC30) -> 0
C32: 8000 TEU NSR/SCR (High navigation days) | D32: 2015 | E32: 2016 | F32: 2016 | G32: 2017 | H32: 2018 | I32: 2019 | J32: 2020 | K32: 2021 | L32: 2022 | M32: 2023 | N32: 2024 | O32: 2025 | P32: 2026 | Q32: 2027 | R32: 2028 | S32: 2029 | T32: 2030 | U32: 2031 | V32: 2032 | W32: 2033 | X32: 2034 | Y32: 2035 | Z32: 2036 | AA32: 2037 | AB32: 2038 | AC32: 2039
C33: Capital Costs | D33: ='NSR Vessel'!G8 -> 31644000 | E33: ='NSR Vessel'!$G$9 -> 8106795.909 | F33: ='NSR Vessel'!$G$9 -> 8106795.909 | G33: ='NSR Vessel'!$G$9 -> 8106795.909 | H33: ='NSR Vessel'!$G$9 -> 8106795.909 | I33: ='NSR Vessel'!$G$9 -> 8106795.909 | J33: ='NSR Vessel'!$G$9 -> 8106795.909 | K33: ='NSR Vessel'!$G$9 -> 8106795.909 | L33: ='NSR Vessel'!$G$9 -> 8106795.909 | M33: ='NSR Vessel'!$G$9 -> 8106795.909 | N33: ='NSR Vessel'!$G$9 -> 8106795.909 | O33: ='NSR Vessel'!$G$9 -> 8106795.909 | P33: ='NSR Vessel'!$G$9 -> 8106795.909 | Q33: ='NSR Vessel'!$G$9 -> 8106795.909 | R33: ='NSR Vessel'!$G$9 -> 8106795.909 | S33: ='NSR Vessel'!$G$9 -> 8106795.909 | T33: 0 | U33: 0 | V33: 0 | W33: 0 | X33: 0 | Y33: 0 | Z33: 0 | AA33: 0 | AB33: 0 | AC33: 0
C34: Maintenance | D34: 0 | E34: ='NSR Vessel'!$G$4 -> 1155006 | F34: ='NSR Vessel'!$G$4 -> 1155006 | G34: ='NSR Vessel'!$G$4 -> 1155006 | H34: ='NSR Vessel'!$G$4 -> 1155006 | I34: ='NSR Vessel'!$G$4 -> 1155006 | J34: ='NSR Vessel'!$G$4 -> 1155006 | K34: ='NSR Vessel'!$G$4 -> 1155006 | L34: ='NSR Vessel'!$G$4 -> 1155006 | M34: ='NSR Vessel'!$G$4 -> 1155006 | N34: ='NSR Vessel'!$G$4 -> 1155006 | O34: ='NSR Vessel'!$G$4 -> 1155006 | P34: ='NSR Vessel'!$G$4 -> 1155006 | Q34: ='NSR Vessel'!$G$4 -> 1155006 | R34: ='NSR Vessel'!$G$4 -> 1155006 | S34: ='NSR Vessel'!$G$4 -> 1155006 | T34: ='NSR Vessel'!$G$4 -> 1155006 | U34: ='NSR Vessel'!$G$4 -> 1155006 | V34: ='NSR Vessel'!$G$4 -> 1155006 | W34: ='NSR Vessel'!$G$4 -> 1155006 | X34: ='NSR Vessel'!$G$4 -> 1155006 | Y34: ='NSR Vessel'!$G$4 -> 1155006 | Z34: ='NSR Vessel'!$G$4 -> 1155006 | AA34: ='NSR Vessel'!$G$4 -> 1155006 | AB34: ='NSR Vessel'!$G$4 -> 1155006 | AC34: ='NSR Vessel'!$G$4 -> 1155006
C35: Insurance | D35: 0 | E35: ='NSR Vessel'!$G$5 -> 1253564 | F35: ='NSR Vessel'!$G$5 -> 1253564 | G35: ='NSR Vessel'!$G$5 -> 1253564 | H35: ='NSR Vessel'!$G$5 -> 1253564 | I35: ='NSR Vessel'!$G$5 -> 1253564 | J35: ='NSR Vessel'!$G$5 -> 1253564 | K35: ='NSR Vessel'!$G$5 -> 1253564 | L35: ='NSR Vessel'!$G$5 -> 1253564 | M35: ='NSR Vessel'!$G$5 -> 1253564 | N35: ='NSR Vessel'!$G$5 -> 1253564 | O35: ='NSR Vessel'!$G$5 -> 1253564 | P35: ='NSR Vessel'!$G$5 -> 1253564 | Q35: ='NSR Vessel'!$G$5 -> 1253564 | R35: ='NSR Vessel'!$G$5 -> 1253564 | S35: ='NSR Vessel'!$G$5 -> 1253564 | T35: ='NSR Vessel'!$G$5 -> 1253564 | U35: ='NSR Vessel'!$G$5 -> 1253564 | V35: ='NSR Vessel'!$G$5 -> 1253564 | W35: ='NSR Vessel'!$G$5 -> 1253564 | X35: ='NSR Vessel'!$G$5 -> 1253564 | Y35: ='NSR Vessel'!$G$5 -> 1253564 | Z35: ='NSR Vessel'!$G$5 -> 1253564 | AA35: ='NSR Vessel'!$G$5 -> 1253564 | AB35: ='NSR Vessel'!$G$5 -> 1253564 | AC35: ='NSR Vessel'!$G$5 -> 1253564
C36: Crew Costs | D36: 0 | E36: ='NSR Vessel'!$G$6 -> 1200000 | F36: ='NSR Vessel'!$G$6 -> 1200000 | G36: ='NSR Vessel'!$G$6 -> 1200000 | H36: ='NSR Vessel'!$G$6 -> 1200000 | I36: ='NSR Vessel'!$G$6 -> 1200000 | J36: ='NSR Vessel'!$G$6 -> 1200000 | K36: ='NSR Vessel'!$G$6 -> 1200000 | L36: ='NSR Vessel'!$G$6 -> 1200000 | M36: ='NSR Vessel'!$G$6 -> 1200000 | N36: ='NSR Vessel'!$G$6 -> 1200000 | O36: ='NSR Vessel'!$G$6 -> 1200000 | P36: ='NSR Vessel'!$G$6 -> 1200000 | Q36: ='NSR Vessel'!$G$6 -> 1200000 | R36: ='NSR Vessel'!$G$6 -> 1200000 | S36: ='NSR Vessel'!$G$6 -> 1200000 | T36: ='NSR Vessel'!$G$6 -> 1200000 | U36: ='NSR Vessel'!$G$6 -> 1200000 | V36: ='NSR Vessel'!$G$6 -> 1200000 | W36: ='NSR Vessel'!$G$6 -> 1200000 | X36: ='NSR Vessel'!$G$6 -> 1200000 | Y36: ='NSR Vessel'!$G$6 -> 1200000 | Z36: ='NSR Vessel'!$G$6 -> 1200000 | AA36: ='NSR Vessel'!$G$6 -> 1200000 | AB36: ='NSR Vessel'!$G$6 -> 1200000 | AC36: ='NSR Vessel'!$G$6 -> 1200000
C37: Fuel Costs | D37: 0 | E37: ='NSR Vessel'!F38*'NSR Vessel'!F24+'NSR Vessel'!F39*'NSR Vessel'!F23 -> 12605742.17 | F37: ='NSR Vessel'!G38*'NSR Vessel'!G24+'NSR Vessel'!G39*'NSR Vessel'!G23 -> 12447744.27 | G37: ='NSR Vessel'!H38*'NSR Vessel'!H24+'NSR Vessel'!H39*'NSR Vessel'!H23 -> 12623026.53 | H37: ='NSR Vessel'!I38*'NSR Vessel'!I24+'NSR Vessel'!I39*'NSR Vessel'!I23 -> 13013531.2 | I37: ='NSR Vessel'!J38*'NSR Vessel'!J24+'NSR Vessel'!J39*'NSR Vessel'!J23 -> 13368191.94 | J37: ='NSR Vessel'!K38*'NSR Vessel'!K24+'NSR Vessel'!K39*'NSR Vessel'!K23 -> 13768007.39 | K37: ='NSR Vessel'!L38*'NSR Vessel'!L24+'NSR Vessel'!L39*'NSR Vessel'!L23 -> 14183126.73 | L37: ='NSR Vessel'!M38*'NSR Vessel'!M24+'NSR Vessel'!M39*'NSR Vessel'!M23 -> 13820908.29 | M37: ='NSR Vessel'!N38*'NSR Vessel'!N24+'NSR Vessel'!N39*'NSR Vessel'!N23 -> 14188224.34 | N37: ='NSR Vessel'!O38*'NSR Vessel'!O24+'NSR Vessel'!O39*'NSR Vessel'!O23 -> 14510965.92 | O37: ='NSR Vessel'!P38*'NSR Vessel'!P24+'NSR Vessel'!P39*'NSR Vessel'!P23 -> 14807673.21 | P37: ='NSR Vessel'!Q38*'NSR Vessel'!Q24+'NSR Vessel'!Q39*'NSR Vessel'!Q23 -> 15167382.87 | Q37: ='NSR Vessel'!R38*'NSR Vessel'!R24+'NSR Vessel'!R39*'NSR Vessel'!R23 -> 15430646.85 | R37: ='NSR Vessel'!S38*'NSR Vessel'!S24+'NSR Vessel'!S39*'NSR Vessel'!S23 -> 15732675.68 | S37: ='NSR Vessel'!T38*'NSR Vessel'!T24+'NSR Vessel'!T39*'NSR Vessel'!T23 -> 15984776.58 | T37: ='NSR Vessel'!U38*'NSR Vessel'!U24+'NSR Vessel'!U39*'NSR Vessel'!U23 -> 16269487.86 | U37: ='NSR Vessel'!V38*'NSR Vessel'!V24+'NSR Vessel'!V39*'NSR Vessel'!V23 -> 16602705.8 | V37: ='NSR Vessel'!W38*'NSR Vessel'!W24+'NSR Vessel'!W39*'NSR Vessel'!W23 -> 16936867.14 | W37: ='NSR Vessel'!X38*'NSR Vessel'!X24+'NSR Vessel'!X39*'NSR Vessel'!X23 -> 16458600.48 | X37: ='NSR Vessel'!Y38*'NSR Vessel'!Y24+'NSR Vessel'!Y39*'NSR Vessel'!Y23 -> 16737150.7 | Y37: ='NSR Vessel'!Z38*'NSR Vessel'!Z24+'NSR Vessel'!Z39*'NSR Vessel'!Z23 -> 17046763.12 | Z37: ='NSR Vessel'!AA38*'NSR Vessel'!AA24+'NSR Vessel'!AA39*'NSR Vessel'!AA23 -> 17324761.83 | AA37: ='NSR Vessel'!AB38*'NSR Vessel'!AB24+'NSR Vessel'!AB39*'NSR Vessel'!AB23 -> 17620182.74 | AB37: ='NSR Vessel'!AC38*'NSR Vessel'!AC24+'NSR Vessel'!AC39*'NSR Vessel'!AC23 -> 18035407.01 | AC37: ='NSR Vessel'!AD38*'NSR Vessel'!AD24+'NSR Vessel'!AD39*'NSR Vessel'!AD23 -> 18489480.26
C38: Berthing Costs | D38: 0 | E38: ='NSR Vessel'!F38*'NSR Vessel'!F18+'NSR Vessel'!F39*'NSR Vessel'!F17 -> 1550120.407 | F38: ='NSR Vessel'!G38*'NSR Vessel'!G18+'NSR Vessel'!G39*'NSR Vessel'!G17 -> 1551562.268 | G38: ='NSR Vessel'!H38*'NSR Vessel'!H18+'NSR Vessel'!H39*'NSR Vessel'!H17 -> 1553004.128 | H38: ='NSR Vessel'!I38*'NSR Vessel'!I18+'NSR Vessel'!I39*'NSR Vessel'!I17 -> 1554445.989 | I38: ='NSR Vessel'!J38*'NSR Vessel'!J18+'NSR Vessel'!J39*'NSR Vessel'!J17 -> 1555887.85 | J38: ='NSR Vessel'!K38*'NSR Vessel'!K18+'NSR Vessel'!K39*'NSR Vessel'!K17 -> 1557329.71 | K38: ='NSR Vessel'!L38*'NSR Vessel'!L18+'NSR Vessel'!L39*'NSR Vessel'!L17 -> 1558771.571 | L38: ='NSR Vessel'!M38*'NSR Vessel'!M18+'NSR Vessel'!M39*'NSR Vessel'!M17 -> 1495529.959 | M38: ='NSR Vessel'!N38*'NSR Vessel'!N18+'NSR Vessel'!N39*'NSR Vessel'!N17 -> 1497452.44 | N38: ='NSR Vessel'!O38*'NSR Vessel'!O18+'NSR Vessel'!O39*'NSR Vessel'!O17 -> 1499374.921 | O38: ='NSR Vessel'!P38*'NSR Vessel'!P18+'NSR Vessel'!P39*'NSR Vessel'!P17 -> 1501297.402 | P38: ='NSR Vessel'!Q38*'NSR Vessel'!Q18+'NSR Vessel'!Q39*'NSR Vessel'!Q17 -> 1503219.882 | Q38: ='NSR Vessel'!R38*'NSR Vessel'!R18+'NSR Vessel'!R39*'NSR Vessel'!R17 -> 1505142.363 | R38: ='NSR Vessel'!S38*'NSR Vessel'!S18+'NSR Vessel'!S39*'NSR Vessel'!S17 -> 1507064.844 | S38: ='NSR Vessel'!T38*'NSR Vessel'!T18+'NSR Vessel'!T39*'NSR Vessel'!T17 -> 1508987.325 | T38: ='NSR Vessel'!U38*'NSR Vessel'!U18+'NSR Vessel'!U39*'NSR Vessel'!U17 -> 1510909.806 | U38: ='NSR Vessel'!V38*'NSR Vessel'!V18+'NSR Vessel'!V39*'NSR Vessel'!V17 -> 1512832.287 | V38: ='NSR Vessel'!W38*'NSR Vessel'!W18+'NSR Vessel'!W39*'NSR Vessel'!W17 -> 1514754.768 | W38: ='NSR Vessel'!X38*'NSR Vessel'!X18+'NSR Vessel'!X39*'NSR Vessel'!X17 -> 1457280.598 | X38: ='NSR Vessel'!Y38*'NSR Vessel'!Y18+'NSR Vessel'!Y39*'NSR Vessel'!Y17 -> 1459683.7 | Y38: ='NSR Vessel'!Z38*'NSR Vessel'!Z18+'NSR Vessel'!Z39*'NSR Vessel'!Z17 -> 1462086.801 | Z38: ='NSR Vessel'!AA38*'NSR Vessel'!AA18+'NSR Vessel'!AA39*'NSR Vessel'!AA17 -> 1464489.902 | AA38: ='NSR Vessel'!AB38*'NSR Vessel'!AB18+'NSR Vessel'!AB39*'NSR Vessel'!AB17 -> 1466893.003 | AB38: ='NSR Vessel'!AC38*'NSR Vessel'!AC18+'NSR Vessel'!AC39*'NSR Vessel'!AC17 -> 1469296.104 | AC38: ='NSR Vessel'!AD38*'NSR Vessel'!AD18+'NSR Vessel'!AD39*'NSR Vessel'!AD17 -> 1471699.205
C39: Containerhandling charge | D39: 0 | E39: ='NSR Vessel'!F38*'NSR Vessel'!F20+'NSR Vessel'!F39*'NSR Vessel'!F19 -> 6054257.274 | F39: ='NSR Vessel'!G38*'NSR Vessel'!G20+'NSR Vessel'!G39*'NSR Vessel'!G19 -> 6059218.989 | G39: ='NSR Vessel'!H38*'NSR Vessel'!H20+'NSR Vessel'!H39*'NSR Vessel'!H19 -> 6064180.704 | H39: ='NSR Vessel'!I38*'NSR Vessel'!I20+'NSR Vessel'!I39*'NSR Vessel'!I19 -> 6069142.42 | I39: ='NSR Vessel'!J38*'NSR Vessel'!J20+'NSR Vessel'!J39*'NSR Vessel'!J19 -> 6074104.135 | J39: ='NSR Vessel'!K38*'NSR Vessel'!K20+'NSR Vessel'!K39*'NSR Vessel'!K19 -> 6079065.85 | K39: ='NSR Vessel'!L38*'NSR Vessel'!L20+'NSR Vessel'!L39*'NSR Vessel'!L19 -> 6084027.565 | L39: ='NSR Vessel'!M38*'NSR Vessel'!M20+'NSR Vessel'!M39*'NSR Vessel'!M19 -> 6106401.225 | M39: ='NSR Vessel'!N38*'NSR Vessel'!N20+'NSR Vessel'!N39*'NSR Vessel'!N19 -> 6113016.845 | N39: ='NSR Vessel'!O38*'NSR Vessel'!O20+'NSR Vessel'!O39*'NSR Vessel'!O19 -> 6119632.466 | O39: ='NSR Vessel'!P38*'NSR Vessel'!P20+'NSR Vessel'!P39*'NSR Vessel'!P19 -> 6126248.086 | P39: ='NSR Vessel'!Q38*'NSR Vessel'!Q20+'NSR Vessel'!Q39*'NSR Vessel'!Q19 -> 6132863.706 | Q39: ='NSR Vessel'!R38*'NSR Vessel'!R20+'NSR Vessel'!R39*'NSR Vessel'!R19 -> 6139479.326 | R39: ='NSR Vessel'!S38*'NSR Vessel'!S20+'NSR Vessel'!S39*'NSR Vessel'!S19 -> 6146094.946 | S39: ='NSR Vessel'!T38*'NSR Vessel'!T20+'NSR Vessel'!T39*'NSR Vessel'!T19 -> 6152710.567 | T39: ='NSR Vessel'!U38*'NSR Vessel'!U20+'NSR Vessel'!U39*'NSR Vessel'!U19 -> 6159326.187 | U39: ='NSR Vessel'!V38*'NSR Vessel'!V20+'NSR Vessel'!V39*'NSR Vessel'!V19 -> 6165941.807 | V39: ='NSR Vessel'!W38*'NSR Vessel'!W20+'NSR Vessel'!W39*'NSR Vessel'!W19 -> 6172557.427 | W39: ='NSR Vessel'!X38*'NSR Vessel'!X20+'NSR Vessel'!X39*'NSR Vessel'!X19 -> 6214777.948 | X39: ='NSR Vessel'!Y38*'NSR Vessel'!Y20+'NSR Vessel'!Y39*'NSR Vessel'!Y19 -> 6223047.473 | Y39: ='NSR Vessel'!Z38*'NSR Vessel'!Z20+'NSR Vessel'!Z39*'NSR Vessel'!Z19 -> 6231316.998 | Z39: ='NSR Vessel'!AA38*'NSR Vessel'!AA20+'NSR Vessel'!AA39*'NSR Vessel'!AA19 -> 6239586.524 | AA39: ='NSR Vessel'!AB38*'NSR Vessel'!AB20+'NSR Vessel'!AB39*'NSR Vessel'!AB19 -> 6247856.049 | AB39: ='NSR Vessel'!AC38*'NSR Vessel'!AC20+'NSR Vessel'!AC39*'NSR Vessel'!AC19 -> 6256125.574 | AC39: ='NSR Vessel'!AD38*'NSR Vessel'!AD20+'NSR Vessel'!AD39*'NSR Vessel'!AD19 -> 6264395.1
C40: NSR Fee | D40: 0 | E40: =('NSR Vessel'!F38-2)*'NSR Vessel'!$J$9+2*'NSR Vessel'!$J$8 -> 2121631.391 | F40: =('NSR Vessel'!G38-2)*'NSR Vessel'!$J$9+2*'NSR Vessel'!$J$8 -> 2121631.391 | G40: =('NSR Vessel'!H38-2)*'NSR Vessel'!$J$9+2*'NSR Vessel'!$J$8 -> 2121631.391 | H40: =('NSR Vessel'!I38-2)*'NSR Vessel'!$J$9+2*'NSR Vessel'!$J$8 -> 2121631.391 | I40: =('NSR Vessel'!J38-2)*'NSR Vessel'!$J$9+2*'NSR Vessel'!$J$8 -> 2121631.391 | J40: =('NSR Vessel'!K38-2)*'NSR Vessel'!$J$9+2*'NSR Vessel'!$J$8 -> 2121631.391 | K40: =('NSR Vessel'!L38-2)*'NSR Vessel'!$J$9+2*'NSR Vessel'!$J$8 -> 2121631.391 | L40: =('NSR Vessel'!M38-2)*'NSR Vessel'!$J$9+2*'NSR Vessel'!$J$8 -> 2700109.996 | M40: =('NSR Vessel'!N38-2)*'NSR Vessel'!$J$9+2*'NSR Vessel'!$J$8 -> 2700109.996 | N40: =('NSR Vessel'!O38-2)*'NSR Vessel'!$J$9+2*'NSR Vessel'!$J$8 -> 2700109.996 | O40: =('NSR Vessel'!P38-2)*'NSR Vessel'!$J$9+2*'NSR Vessel'!$J$8 -> 2700109.996 | P40: =('NSR Vessel'!Q38-2)*'NSR Vessel'!$J$9+2*'NSR Vessel'!$J$8 -> 2700109.996 | Q40: =('NSR Vessel'!R38-2)*'NSR Vessel'!$J$9+2*'NSR Vessel'!$J$8 -> 2700109.996 | R40: =('NSR Vessel'!S38-2)*'NSR Vessel'!$J$9+2*'NSR Vessel'!$J$8 -> 2700109.996 | S40: =('NSR Vessel'!T38-2)*'NSR Vessel'!$J$9+2*'NSR Vessel'!$J$8 -> 2700109.996 | T40: =('NSR Vessel'!U38-2)*'NSR Vessel'!$J$9+2*'NSR Vessel'!$J$8 -> 2700109.996 | U40: =('NSR Vessel'!V38-2)*'NSR Vessel'!$J$9+2*'NSR Vessel'!$J$8 -> 2700109.996 | V40: =('NSR Vessel'!W38-2)*'NSR Vessel'!$J$9+2*'NSR Vessel'!$J$8 -> 2700109.996 | W40: =('NSR Vessel'!X38-2)*'NSR Vessel'!$J$9+2*'NSR Vessel'!$J$8 -> 3278588.601 | X40: =('NSR Vessel'!Y38-2)*'NSR Vessel'!$J$9+2*'NSR Vessel'!$J$8 -> 3278588.601 | Y40: =('NSR Vessel'!Z38-2)*'NSR Vessel'!$J$9+2*'NSR Vessel'!$J$8 -> 3278588.601 | Z40: =('NSR Vessel'!AA38-2)*'NSR Vessel'!$J$9+2*'NSR Vessel'!$J$8 -> 3278588.601 | AA40: =('NSR Vessel'!AB38-2)*'NSR Vessel'!$J$9+2*'NSR Vessel'!$J$8 -> 3278588.601 | AB40: =('NSR Vessel'!AC38-2)*'NSR Vessel'!$J$9+2*'NSR Vessel'!$J$8 -> 3278588.601 | AC40: =('NSR Vessel'!AD38-2)*'NSR Vessel'!$J$9+2*'NSR Vessel'!$J$8 -> 3278588.601
C41: SCR Fee | D41: 0 | E41: ='NSR Vessel'!F39*'NSR Vessel'!$G$10 -> 3196422.022 | F41: ='NSR Vessel'!G39*'NSR Vessel'!$G$10 -> 3200149.99 | G41: ='NSR Vessel'!H39*'NSR Vessel'!$G$10 -> 3203877.958 | H41: ='NSR Vessel'!I39*'NSR Vessel'!$G$10 -> 3207605.926 | I41: ='NSR Vessel'!J39*'NSR Vessel'!$G$10 -> 3211333.895 | J41: ='NSR Vessel'!K39*'NSR Vessel'!$G$10 -> 3215061.863 | K41: ='NSR Vessel'!L39*'NSR Vessel'!$G$10 -> 3218789.831 | L41: ='NSR Vessel'!M39*'NSR Vessel'!$G$10 -> 2784792.206 | M41: ='NSR Vessel'!N39*'NSR Vessel'!$G$10 -> 2789762.83 | N41: ='NSR Vessel'!O39*'NSR Vessel'!$G$10 -> 2794733.454 | O41: ='NSR Vessel'!P39*'NSR Vessel'!$G$10 -> 2799704.078 | P41: ='NSR Vessel'!Q39*'NSR Vessel'!$G$10 -> 2804674.703 | Q41: ='NSR Vessel'!R39*'NSR Vessel'!$G$10 -> 2809645.327 | R41: ='NSR Vessel'!S39*'NSR Vessel'!$G$10 -> 2814615.951 | S41: ='NSR Vessel'!T39*'NSR Vessel'!$G$10 -> 2819586.575 | T41: ='NSR Vessel'!U39*'NSR Vessel'!$G$10 -> 2824557.199 | U41: ='NSR Vessel'!V39*'NSR Vessel'!$G$10 -> 2829527.824 | V41: ='NSR Vessel'!W39*'NSR Vessel'!$G$10 -> 2834498.448 | W41: ='NSR Vessel'!X39*'NSR Vessel'!$G$10 -> 2415412.695 | X41: ='NSR Vessel'!Y39*'NSR Vessel'!$G$10 -> 2421625.975 | Y41: ='NSR Vessel'!Z39*'NSR Vessel'!$G$10 -> 2427839.256 | Z41: ='NSR Vessel'!AA39*'NSR Vessel'!$G$10 -> 2434052.536 | AA41: ='NSR Vessel'!AB39*'NSR Vessel'!$G$10 -> 2440265.816 | AB41: ='NSR Vessel'!AC39*'NSR Vessel'!$G$10 -> 2446479.096 | AC41: ='NSR Vessel'!AD39*'NSR Vessel'!$G$10 -> 2452692.377
AC42: =SUM(AC34:AC41) -> 35565425.55
C45: Annual Cost per TEU Ratio | D45: 2015 | E45: 2016 | F45: 2017 | G45: 2018 | H45: 2019 | I45: 2020 | J45: 2021 | K45: 2022 | L45: 2023 | M45: 2024 | N45: 2025 | O45: 2026 | P45: 2027 | Q45: 2028 | R45: 2029 | S45: 2030 | T45: 2031 | U45: 2032 | V45: 2033 | W45: 2034 | X45: 2035 | Y45: 2036 | Z45: 2037 | AA45: 2038 | AB45: 2039 | AC45: 2040 | AD45: 2041 | AE45: 2042 | AF45: 2043 | AG45: 2044 | AH45: 2045 | AI45: 2046 | AJ45: 2047 | AK45: 2048 | AL45: 2049 | AM45: 2050 | AN45: 2051 | AO45: 2052 | AP45: 2053 | AQ45: 2054 | AR45: 2055 | AS45: 2056 | AT45: 2057 | AU45: 2058 | AV45: 2059 | AW45: 2060
C46: Low Oil Price Scenario | D46: ='SCR Vessel'!E51/'NSR Vessel'!E62 -> 0.9187249958 | E46: ='SCR Vessel'!F51/'NSR Vessel'!F62 -> 0.9182281041 | F46: ='SCR Vessel'!G51/'NSR Vessel'!G62 -> 0.9181793051 | G46: ='SCR Vessel'!H51/'NSR Vessel'!H62 -> 0.9182569017 | H46: ='SCR Vessel'!I51/'NSR Vessel'!I62 -> 0.9183401625 | I46: ='SCR Vessel'!J51/'NSR Vessel'!J62 -> 0.9184617854 | J46: ='SCR Vessel'!K51/'NSR Vessel'!K62 -> 0.9186138421 | K46: ='SCR Vessel'!L51/'NSR Vessel'!L62 -> 0.9187408782 | L46: ='SCR Vessel'!M51/'NSR Vessel'!M62 -> 0.9354717936 | M46: ='SCR Vessel'!N51/'NSR Vessel'!N62 -> 0.9357846256 | N46: ='SCR Vessel'!O51/'NSR Vessel'!O62 -> 0.9360524125 | O46: ='SCR Vessel'!P51/'NSR Vessel'!P62 -> 0.9362698191 | P46: ='SCR Vessel'!Q51/'NSR Vessel'!Q62 -> 0.9364419912 | Q46: ='SCR Vessel'!R51/'NSR Vessel'!R62 -> 0.9366278016 | R46: ='SCR Vessel'!S51/'NSR Vessel'!S62 -> 0.9368234966 | S46: ='SCR Vessel'!T51/'NSR Vessel'!T62 -> 0.9372353155 | T46: ='SCR Vessel'!U51/'NSR Vessel'!U62 -> 0.9374640485 | U46: ='SCR Vessel'!V51/'NSR Vessel'!V62 -> 0.9376816529 | V46: ='SCR Vessel'!W51/'NSR Vessel'!W62 -> 0.937766447 | W46: ='SCR Vessel'!X51/'NSR Vessel'!X62 -> 0.9560739635 | X46: ='SCR Vessel'!Y51/'NSR Vessel'!Y62 -> 0.9563598125 | Y46: ='SCR Vessel'!Z51/'NSR Vessel'!Z62 -> 0.9565373347 | Z46: ='SCR Vessel'!AA51/'NSR Vessel'!AA62 -> 0.9569095615 | AA46: ='SCR Vessel'!AB51/'NSR Vessel'!AB62 -> 0.9572049163 | AB46: ='SCR Vessel'!AC51/'NSR Vessel'!AC62 -> 0.957537234 | AC46: ='SCR Vessel'!AD51/'NSR Vessel'!AD62 -> 0.9578928464 | AD46: ='SCR Vessel'!AE51/'NSR Vessel'!AE62 -> 0.9581678155 | AE46: ='SCR Vessel'!AF51/'NSR Vessel'!AF62 -> 0.9584397556 | AF46: ='SCR Vessel'!AG51/'NSR Vessel'!AG62 -> 0.9779705831 | AG46: ='SCR Vessel'!AH51/'NSR Vessel'!AH62 -> 0.9783037121 | AH46: ='SCR Vessel'!AI51/'NSR Vessel'!AI62 -> 0.9786328826 | AI46: ='SCR Vessel'!AJ51/'NSR Vessel'!AJ62 -> 0.9789581292 | AJ46: ='SCR Vessel'!AK51/'NSR Vessel'!AK62 -> 0.9792794859 | AK46: ='SCR Vessel'!AL51/'NSR Vessel'!AL62 -> 0.9795969867 | AL46: ='SCR Vessel'!AM51/'NSR Vessel'!AM62 -> 0.9799106652 | AM46: ='SCR Vessel'!AN51/'NSR Vessel'!AN62 -> 0.9802205547 | AN46: ='SCR Vessel'!AO51/'NSR Vessel'!AO62 -> 0.9805266882 | AO46: ='SCR Vessel'!AP51/'NSR Vessel'!AP62 -> 1.001071172 | AP46: ='SCR Vessel'!AQ51/'NSR Vessel'!AQ62 -> 1.001421808 | AQ46: ='SCR Vessel'!AR51/'NSR Vessel'!AR62 -> 1.001767795 | AR46: ='SCR Vessel'!AS51/'NSR Vessel'!AS62 -> 1.002109176 | AS46: ='SCR Vessel'!AT51/'NSR Vessel'!AT62 -> 1.002445992 | AT46: ='SCR Vessel'!AU51/'NSR Vessel'!AU62 -> 1.002778286 | AU46: ='SCR Vessel'!AV51/'NSR Vessel'!AV62 -> 1.003106099 | AV46: ='SCR Vessel'!AW51/'NSR Vessel'!AW62 -> 1.003429471 | AW46: ='SCR Vessel'!AX51/'NSR Vessel'!AX62 -> 1.003748443
C47: Medium Oil Price Scenario | D47: ='SCR Vessel'!E52/'NSR Vessel'!E63 -> 0.9217589679 | E47: ='SCR Vessel'!F52/'NSR Vessel'!F63 -> 0.9213712356 | F47: ='SCR Vessel'!G52/'NSR Vessel'!G63 -> 0.9212779045 | G47: ='SCR Vessel'!H52/'NSR Vessel'!H63 -> 0.9214751549 | H47: ='SCR Vessel'!I52/'NSR Vessel'!I63 -> 0.9218488574 | I47: ='SCR Vessel'!J52/'NSR Vessel'!J63 -> 0.9221805359 | J47: ='SCR Vessel'!K52/'NSR Vessel'!K63 -> 0.9225366636 | K47: ='SCR Vessel'!L52/'NSR Vessel'!L63 -> 0.922891692 | L47: ='SCR Vessel'!M52/'NSR Vessel'!M63 -> 0.945304417 | M47: ='SCR Vessel'!N52/'NSR Vessel'!N63 -> 0.9459454666 | N47: ='SCR Vessel'!O52/'NSR Vessel'!O63 -> 0.9464911747 | O47: ='SCR Vessel'!P52/'NSR Vessel'!P63 -> 0.9469781855 | P47: ='SCR Vessel'!Q52/'NSR Vessel'!Q63 -> 0.9475515027 | Q47: ='SCR Vessel'!R52/'NSR Vessel'!R63 -> 0.947957339 | R47: ='SCR Vessel'!S52/'NSR Vessel'!S63 -> 0.9484114067 | S47: ='SCR Vessel'!T52/'NSR Vessel'!T63 -> 0.9487786505 | T47: ='SCR Vessel'!U52/'NSR Vessel'!U63 -> 0.9491839716 | U47: ='SCR Vessel'!V52/'NSR Vessel'!V63 -> 0.9496469696 | V47: ='SCR Vessel'!W52/'NSR Vessel'!W63 -> 0.9500973409 | W47: ='SCR Vessel'!X52/'NSR Vessel'!X63 -> 0.9764693019 | X47: ='SCR Vessel'!Y52/'NSR Vessel'!Y63 -> 0.9770173936 | Y47: ='SCR Vessel'!Z52/'NSR Vessel'!Z63 -> 0.9776185683 | Z47: ='SCR Vessel'!AA52/'NSR Vessel'!AA63 -> 0.9781333894 | AA47: ='SCR Vessel'!AB52/'NSR Vessel'!AB63 -> 0.9786704677 | AB47: ='SCR Vessel'!AC52/'NSR Vessel'!AC63 -> 0.9794388632 | AC47: ='SCR Vessel'!AD52/'NSR Vessel'!AD63 -> 0.9802573456 | AD47: ='SCR Vessel'!AE52/'NSR Vessel'!AE63 -> 0.9807711952 | AE47: ='SCR Vessel'!AF52/'NSR Vessel'!AF63 -> 0.9812712722 | AF47: ='SCR Vessel'!AG52/'NSR Vessel'!AG63 -> 1.010693765 | AG47: ='SCR Vessel'!AH52/'NSR Vessel'!AH63 -> 1.011333924 | AH47: ='SCR Vessel'!AI52/'NSR Vessel'!AI63 -> 1.011956284 | AI47: ='SCR Vessel'!AJ52/'NSR Vessel'!AJ63 -> 1.012561265 | AJ47: ='SCR Vessel'!AK52/'NSR Vessel'!AK63 -> 1.013149278 | AK47: ='SCR Vessel'!AL52/'NSR Vessel'!AL63 -> 1.013720722 | AL47: ='SCR Vessel'!AM52/'NSR Vessel'!AM63 -> 1.014275983 | AM47: ='SCR Vessel'!AN52/'NSR Vessel'!AN63 -> 1.014815438 | AN47: ='SCR Vessel'!AO52/'NSR Vessel'!AO63 -> 1.015339454 | AO47: ='SCR Vessel'!AP52/'NSR Vessel'!AP63 -> 1.047362813 | AP47: ='SCR Vessel'!AQ52/'NSR Vessel'!AQ63 -> 1.047979259 | AQ47: ='SCR Vessel'!AR52/'NSR Vessel'!AR63 -> 1.048576815 | AR47: ='SCR Vessel'!AS52/'NSR Vessel'!AS63 -> 1.049155912 | AS47: ='SCR Vessel'!AT52/'NSR Vessel'!AT63 -> 1.04971697 | AT47: ='SCR Vessel'!AU52/'NSR Vessel'!AU63 -> 1.050260399 | AU47: ='SCR Vessel'!AV52/'NSR Vessel'!AV63 -> 1.050786598 | AV47: ='SCR Vessel'!AW52/'NSR Vessel'!AW63 -> 1.051295955 | AW47: ='SCR Vessel'!AX52/'NSR Vessel'!AX63 -> 1.05178885
C48: High Oil Price Scenario | D48: ='SCR Vessel'!E53/'NSR Vessel'!E64 -> 0.9252502528 | E48: ='SCR Vessel'!F53/'NSR Vessel'!F64 -> 0.9259459215 | F48: ='SCR Vessel'!G53/'NSR Vessel'!G64 -> 0.926471709 | G48: ='SCR Vessel'!H53/'NSR Vessel'!H64 -> 0.9266971674 | H48: ='SCR Vessel'!I53/'NSR Vessel'!I64 -> 0.926875666 | I48: ='SCR Vessel'!J53/'NSR Vessel'!J64 -> 0.9270463286 | J48: ='SCR Vessel'!K53/'NSR Vessel'!K64 -> 0.9271699951 | K48: ='SCR Vessel'!L53/'NSR Vessel'!L64 -> 0.9272549873 | L48: ='SCR Vessel'!M53/'NSR Vessel'!M64 -> 0.9549537549 | M48: ='SCR Vessel'!N53/'NSR Vessel'!N64 -> 0.9551972435 | N48: ='SCR Vessel'!O53/'NSR Vessel'!O64 -> 0.9555075276 | O48: ='SCR Vessel'!P53/'NSR Vessel'!P64 -> 0.9559019839 | P48: ='SCR Vessel'!Q53/'NSR Vessel'!Q64 -> 0.9562992327 | Q48: ='SCR Vessel'!R53/'NSR Vessel'!R64 -> 0.956794477 | R48: ='SCR Vessel'!S53/'NSR Vessel'!S64 -> 0.9572250983 | S48: ='SCR Vessel'!T53/'NSR Vessel'!T64 -> 0.9575475056 | T48: ='SCR Vessel'!U53/'NSR Vessel'!U64 -> 0.9579346842 | U48: ='SCR Vessel'!V53/'NSR Vessel'!V64 -> 0.9583283035 | V48: ='SCR Vessel'!W53/'NSR Vessel'!W64 -> 0.9586748107 | W48: ='SCR Vessel'!X53/'NSR Vessel'!X64 -> 0.9902210693 | X48: ='SCR Vessel'!Y53/'NSR Vessel'!Y64 -> 0.9907018512 | Y48: ='SCR Vessel'!Z53/'NSR Vessel'!Z64 -> 0.9911954479 | Z48: ='SCR Vessel'!AA53/'NSR Vessel'!AA64 -> 0.9915870262 | AA48: ='SCR Vessel'!AB53/'NSR Vessel'!AB64 -> 0.9920860611 | AB48: ='SCR Vessel'!AC53/'NSR Vessel'!AC64 -> 0.9927028256 | AC48: ='SCR Vessel'!AD53/'NSR Vessel'!AD64 -> 0.9934499381 | AD48: ='SCR Vessel'!AE53/'NSR Vessel'!AE64 -> 0.9938325428 | AE48: ='SCR Vessel'!AF53/'NSR Vessel'!AF64 -> 0.9942025388 | AF48: ='SCR Vessel'!AG53/'NSR Vessel'!AG64 -> 1.029130726 | AG48: ='SCR Vessel'!AH53/'NSR Vessel'!AH64 -> 1.029594458 | AH48: ='SCR Vessel'!AI53/'NSR Vessel'!AI64 -> 1.030041819 | AI48: ='SCR Vessel'!AJ53/'NSR Vessel'!AJ64 -> 1.030473236 | AJ48: ='SCR Vessel'!AK53/'NSR Vessel'!AK64 -> 1.030889128 | AK48: ='SCR Vessel'!AL53/'NSR Vessel'!AL64 -> 1.031289896 | AL48: ='SCR Vessel'!AM53/'NSR Vessel'!AM64 -> 1.031675932 | AM48: ='SCR Vessel'!AN53/'NSR Vessel'!AN64 -> 1.032047615 | AN48: ='SCR Vessel'!AO53/'NSR Vessel'!AO64 -> 1.032405313 | AO48: ='SCR Vessel'!AP53/'NSR Vessel'!AP64 -> 1.070042765 | AP48: ='SCR Vessel'!AQ53/'NSR Vessel'!AQ64 -> 1.070443697 | AQ48: ='SCR Vessel'!AR53/'NSR Vessel'!AR64 -> 1.070827501 | AR48: ='SCR Vessel'!AS53/'NSR Vessel'!AS64 -> 1.071194613 | AS48: ='SCR Vessel'!AT53/'NSR Vessel'!AT64 -> 1.071545457 | AT48: ='SCR Vessel'!AU53/'NSR Vessel'!AU64 -> 1.071880447 | AU48: ='SCR Vessel'!AV53/'NSR Vessel'!AV64 -> 1.072199982 | AV48: ='SCR Vessel'!AW53/'NSR Vessel'!AW64 -> 1.072504453 | AW48: ='SCR Vessel'!AX53/'NSR Vessel'!AX64 -> 1.072794237
C51: Annual Cost per TEU Ratio | D51: 2015 | E51: 2016 | F51: 2017 | G51: 2018 | H51: 2019 | I51: 2020 | J51: 2021 | K51: 2022 | L51: 2023 | M51: 2024 | N51: 2025 | O51: 2026 | P51: 2027 | Q51: 2028 | R51: 2029 | S51: 2030 | T51: 2031 | U51: 2032 | V51: 2033 | W51: 2034 | X51: 2035 | Y51: 2036 | Z51: 2037 | AA51: 2038 | AB51: 2039 | AC51: 2040 | AD51: 2041 | AE51: 2042 | AF51: 2043 | AG51: 2044 | AH51: 2045 | AI51: 2046 | AJ51: 2047 | AK51: 2048 | AL51: 2049 | AM51: 2050 | AN51: 2051 | AO51: 2052 | AP51: 2053 | AQ51: 2054 | AR51: 2055 | AS51: 2056 | AT51: 2057 | AU51: 2058 | AV51: 2059 | AW51: 2060
C52: Low Oil Price Scenario | D52: =ABS(D46-1) -> 0.08127500419 | E52: =ABS(E46-1) -> 0.08177189588 | F52: 0.08182069489 | G52: 0.08174309829 | H52: 0.08165983749 | I52: 0.08153821455 | J52: 0.08138615791 | K52: 0.08125912183 | L52: 0.0645282064 | M52: 0.0642153744 | N52: 0.06394758748 | O52: 0.06373018086 | P52: 0.06355800878 | Q52: 0.06337219839 | R52: 0.06317650338 | S52: 0.0627646845 | T52: 0.06253595153 | U52: 0.06231834707 | V52: 0.06223355296 | W52: 0.04392603654 | X52: 0.04364018747 | Y52: 0.04346266526 | Z52: 0.04309043853 | AA52: 0.04279508371 | AB52: 0.04246276596 | AC52: 0.04210715358 | AD52: 0.04183218445 | AE52: 0.0415602444 | AF52: 0.02202941691 | AG52: 0.02169628791 | AH52: 0.02136711737 | AI52: 0.02104187082 | AJ52: 0.02072051409 | AK52: 0.02040301329 | AL52: 0.0200893348 | AM52: 0.01977944532 | AN52: 0.01947331179 | AO52: 0.001071172011 | AP52: 0.001421807751 | AQ52: 0.001767794809 | AR52: 0.002109175568 | AS52: 0.002445992051 | AT52: 0.00277828593 | AU52: 0.003106098521 | AV52: 0.00342947079 | AW52: =ABS(AW46-1) -> 0.003748443358
C53: Medium Oil Price Scenario | D53: =ABS(D47-1) -> 0.07824103206 | E53: 0.07862876445 | F53: 0.0787220955 | G53: 0.07852484514 | H53: 0.0781511426 | I53: 0.07781946412 | J53: 0.07746333641 | K53: 0.07710830798 | L53: 0.054695583 | M53: 0.05405453344 | N53: 0.0535088253 | O53: 0.05302181451 | P53: 0.05244849733 | Q53: 0.052042661 | R53: 0.0515885933 | S53: 0.05122134953 | T53: 0.05081602841 | U53: 0.05035303035 | V53: 0.04990265906 | W53: 0.02353069812 | X53: 0.02298260638 | Y53: 0.02238143174 | Z53: 0.02186661061 | AA53: 0.02132953234 | AB53: 0.02056113676 | AC53: 0.01974265443 | AD53: 0.01922880475 | AE53: 0.01872872775 | AF53: 0.01069376507 | AG53: 0.01133392413 | AH53: 0.0119562836 | AI53: 0.01256126511 | AJ53: 0.01314927844 | AK53: 0.01372072197 | AL53: 0.01427598304 | AM53: 0.01481543829 | AN53: 0.01533945408 | AO53: 0.0473628131 | AP53: 0.047979259 | AQ53: 0.04857681472 | AR53: 0.04915591159 | AS53: 0.04971696987 | AT53: 0.05026039895 | AU53: 0.05078659781 | AV53: 0.05129595523 | AW53: 0.05178885013
C54: High Oil Price Scenario | D54: 0.07474974722 | E54: 0.07405407852 | F54: 0.07352829101 | G54: 0.07330283257 | H54: 0.07312433399 | I54: 0.07295367135 | J54: 0.07283000493 | K54: 0.07274501269 | L54: 0.04504624506 | M54: 0.04480275649 | N54: 0.04449247236 | O54: 0.04409801606 | P54: 0.04370076726 | Q54: 0.04320552302 | R54: 0.04277490169 | S54: 0.04245249441 | T54: 0.04206531582 | U54: 0.04167169654 | V54: 0.04132518934 | W54: 0.009778930679 | X54: 0.009298148824 | Y54: 0.008804552125 | Z54: 0.00841297382 | AA54: 0.007913938915 | AB54: 0.007297174373 | AC54: 0.006550061889 | AD54: 0.006167457171 | AE54: 0.005797461235 | AF54: 0.02913072631 | AG54: 0.02959445832 | AH54: 0.03004181859 | AI54: 0.03047323642 | AJ54: 0.03088912785 | AK54: 0.03128989614 | AL54: 0.03167593225 | AM54: 0.03204761531 | AN54: 0.03240531302 | AO54: 0.07004276458 | AP54: 0.07044369723 | AQ54: 0.07082750093 | AR54: 0.07119461275 | AS54: 0.07154545721 | AT54: 0.07188044676 | AU54: 0.07219998212 | AV54: 0.07250445275 | AW54: 0.07279423713

Sheet DIST (hidden)
E1: 2015 | F1: 2016 | G1: 2017 | H1: 2018 | I1: 2019 | J1: 2020 | K1: 2021 | L1: 2022 | M1: 2023 | N1: 2024 | O1: 2025 | P1: 2026 | Q1: 2027 | R1: 2028 | S1: 2029 | T1: 2030 | U1: 2031 | V1: 2032 | W1: 2033 | X1: 2034 | Y1: 2035 | Z1: 2036 | AA1: 2037 | AB1: 2038 | AC1: 2039 | AD1: 2040 | AE1: 2041 | AF1: 2042 | AG1: 2043 | AH1: 2044 | AI1: 2045 | AJ1: 2046 | AK1: 2047 | AL1: 2048 | AM1: 2049 | AN1: 2050 | AO1: 2051 | AP1: 2052 | AQ1: 2053 | AR1: 2054 | AS1: 2055 | AT1: 2056 | AU1: 2057 | AV1: 2058 | AW1: 2059 | AX1: 2060
D2: Period | E2: 0 | F2: 0 | G2: 1 | H2: 2 | I2: 3 | J2: 4 | K2: 5 | L2: 6 | M2: 7 | N2: 8 | O2: 9 | P2: 10 | Q2: 11 | R2: 12 | S2: 13 | T2: 14 | U2: 15 | V2: 16 | W2: 17 | X2: 18 | Y2: 19 | Z2: 20 | AA2: 21 | AB2: 22 | AC2: 23 | AD2: 24 | AE2: 25 | AF2: 26 | AG2: 27 | AH2: 28 | AI2: 29 | AJ2: 30 | AK2: 31 | AL2: 32 | AM2: 33 | AN2: 34 | AO2: 35 | AP2: 36 | AQ2: 37 | AR2: 38 | AS2: 39 | AT2: 40 | AU2: 41 | AV2: 42 | AW2: 43 | AX2: 44
D3: Fuel DIST | E3: 0 | F3: 0 | G3: 0 | H3: 0 | I3: 0 | J3: 0 | K3: 0 | L3: 0 | M3: 0 | N3: 0 | O3: 0 | P3: 0 | Q3: 0 | R3: 0 | S3: 0 | T3: 0 | U3: 0 | V3: 0 | W3: 0 | X3: 0 | Y3: 0 | Z3: 0 | AA3: 0 | AB3: 0 | AC3: 0 | AD3: 0 | AE3: 0 | AF3: 0 | AG3: 0 | AH3: 0 | AI3: 0 | AJ3: 0 | AK3: 0 | AL3: 0 | AM3: 0 | AN3: 0 | AO3: 0 | AP3: 0 | AQ3: 0 | AR3: 0 | AS3: 0 | AT3: 0 | AU3: 0 | AV3: 0 | AW3: 0 | AX3: 0
D4: Load Factor SCR DIST | E4: 0 | F4: 0 | G4: 0 | H4: 0 | I4: 0 | J4: 0 | K4: 0 | L4: 0 | M4: 0 | N4: 0 | O4: 0 | P4: 0 | Q4: 0 | R4: 0 | S4: 0 | T4: 0 | U4: 0 | V4: 0 | W4: 0 | X4: 0 | Y4: 0 | Z4: 0 | AA4: 0 | AB4: 0 | AC4: 0 | AD4: 0 | AE4: 0 | AF4: 0 | AG4: 0 | AH4: 0 | AI4: 0 | AJ4: 0 | AK4: 0 | AL4: 0 | AM4: 0 | AN4: 0 | AO4: 0 | AP4: 0 | AQ4: 0 | AR4: 0 | AS4: 0 | AT4: 0 | AU4: 0 | AV4: 0 | AW4: 0 | AX4: 0
D5: Load Factor NSR DIST | E5: 0 | F5: 0 | G5: 0 | H5: 0 | I5: 0 | J5: 0 | K5: 0 | L5: 0 | M5: 0 | N5: 0 | O5: 0 | P5: 0 | Q5: 0 | R5: 0 | S5: 0 | T5: 0 | U5: 0 | V5: 0 | W5: 0 | X5: 0 | Y5: 0 | Z5: 0 | AA5: 0 | AB5: 0 | AC5: 0 | AD5: 0 | AE5: 0 | AF5: 0 | AG5: 0 | AH5: 0 | AI5: 0 | AJ5: 0 | AK5: 0 | AL5: 0 | AM5: 0 | AN5: 0 | AO5: 0 | AP5: 0 | AQ5: 0 | AR5: 0 | AS5: 0 | AT5: 0 | AU5: 0 | AV5: 0 | AW5: 0 | AX5: 0
D6: Nav DIST | E6: 0 | F6: 0 | G6: 0 | H6: 0 | I6: 0 | J6: 0 | K6: 0 | L6: 0 | M6: 0 | N6: 0 | O6: 0 | P6: 0 | Q6: 0 | R6: 0 | S6: 0 | T6: 0 | U6: 0 | V6: 0 | W6: 0 | X6: 0 | Y6: 0 | Z6: 0 | AA6: 0 | AB6: 0 | AC6: 0 | AD6: 0 | AE6: 0 | AF6: 0 | AG6: 0 | AH6: 0 | AI6: 0 | AJ6: 0 | AK6: 0 | AL6: 0 | AM6: 0 | AN6: 0 | AO6: 0 | AP6: 0 | AQ6: 0 | AR6: 0 | AS6: 0 | AT6: 0 | AU6: 0 | AV6: 0 | AW6: 0 | AX6: 0
D8: Continous Input
D9: Annual Navigation days (high) | E9: 120 | F9: =Results!C24 -> 120 | G9: =IF(F9+$E$30<=365,F9+$E$30,365) -> 123 | H9: =IF(G9+$E$30<=365,G9+$E$30,365) -> 126 | I9: =IF(H9+$E$30<=365,H9+$E$30,365) -> 129 | J9: 132 | K9: 135 | L9: 138 | M9: 141 | N9: 144 | O9: 147 | P9: 150 | Q9: 153 | R9: 156 | S9: 159 | T9: 162 | U9: 165 | V9: 168 | W9: 171 | X9: 174 | Y9: 177 | Z9: 180 | AA9: 183 | AB9: 186 | AC9: 189 | AD9: 192 | AE9: 195 | AF9: 198 | AG9: 201 | AH9: 204 | AI9: 207 | AJ9: 210 | AK9: 213 | AL9: 216 | AM9: 219 | AN9: 222 | AO9: 225 | AP9: 228 | AQ9: 231 | AR9: 234 | AS9: 237 | AT9: 240 | AU9: 243 | AV9: 246 | AW9: 249 | AX9: 252
D10: Low Fuel Price | E10: 404.0633036 | F10: 385.2754782 | G10: 380.6064514 | H10: 380.6171682 | I10: 380.8453353 | J10: 382.5370194 | K10: 385.4323836 | L10: 387.4153162 | M10: 390.2890727 | N10: 394.285151 | O10: 397.5511641 | P10: 399.9668791 | Q10: 401.6012026 | R10: 403.5082118 | S10: 405.625564 | T10: 411.8013721 | U10: 414.6432848 | V10: 417.3189899 | W10: 417.4855739 | X10: 420.4848449 | Y10: 423.0734987 | Z10: 424.372982 | AA10: 428.0917687 | AB10: 430.9103735 | AC10: 434.2363462 | AD10: 437.9106911 | AE10: 440.6060632 | AF10: 443.3014354 | AG10: 445.9968076 | AH10: 448.6921797 | AI10: 451.3875519 | AJ10: 454.082924 | AK10: 456.7782962 | AL10: 459.4736683 | AM10: 462.1690405 | AN10: 464.8644126 | AO10: 467.5597848 | AP10: 470.2551569 | AQ10: 472.9505291 | AR10: 475.6459012 | AS10: 478.3412734 | AT10: 481.0366456 | AU10: 483.7320177 | AV10: 486.4273899 | AW10: 489.122762 | AX10: 491.8181342
D11: Reference Case Fuel Price | E11: 534.9376453 | F11: 516.4736578 | G11: 509.5148485 | H11: 516.1982266 | I11: 531.6617168 | J11: 545.6328564 | K11: 561.4187768 | L11: 577.7982453 | M11: 592.4213041 | N11: 607.3588147 | O11: 620.3511454 | P11: 632.1975746 | Q11: 646.6989442 | R11: 657.0552527 | S11: 669.032729 | T11: 678.858271 | U11: 690.0410818 | V11: 703.2491418 | W11: 716.4624627 | X11: 730.9974389 | Y11: 742.0916795 | Z11: 754.5227308 | AA11: 765.5143188 | AB11: 777.2368291 | AC11: 794.1949064 | AD11: 812.8030132 | AE11: 825.1614301 | AF11: 837.519847 | AG11: 849.8782639 | AH11: 862.2366809 | AI11: 874.5950978 | AJ11: 886.9535147 | AK11: 899.3119316 | AL11: 911.6703486 | AM11: 924.0287655 | AN11: 936.3871824 | AO11: 948.7455994 | AP11: 961.1040163 | AQ11: 973.4624332 | AR11: 985.8208501 | AS11: 998.1792671 | AT11: 1010.537684 | AU11: 1022.896101 | AV11: 1035.254518 | AW11: 1047.612935 | AX11: 1059.971352
D12: High Fuel Price | E12: 731.0828108 | F12: 778.0031001 | G12: 814.1593831 | H12: 829.6042687 | I12: 841.9500457 | J12: 854.0611683 | K12: 862.7382027 | L12: 868.464087 | M12: 878.3218978 | N12: 887.6341141 | O12: 899.6495452 | P12: 915.1950626 | Q12: 931.3158999 | R12: 951.8918952 | S12: 970.51175 | T12: 985.1270464 | U12: 1002.980958 | V12: 1021.694163 | W12: 1038.847609 | X12: 1053.152551 | Y12: 1069.553766 | Z12: 1086.7945 | AA12: 1101.413525 | AB12: 1119.75705 | AC12: 1142.423675 | AD12: 1170.196792 | AE12: 1186.59269 | AF12: 1202.988589 | AG12: 1219.384487 | AH12: 1235.780386 | AI12: 1252.176284 | AJ12: 1268.572183 | AK12: 1284.968081 | AL12: 1301.363979 | AM12: 1317.759878 | AN12: 1334.155776 | AO12: 1350.551675 | AP12: 1366.947573 | AQ12: 1383.343472 | AR12: 1399.73937 | AS12: 1416.135268 | AT12: 1432.531167 | AU12: 1448.927065 | AV12: 1465.322964 | AW12: 1481.718862 | AX12: 1498.114761
D13: Depreciation Rate | E13: =(1+$E$42)^E2 -> 1 | F13: 1 | G13: 1.07 | H13: 1.1449 | I13: 1.225043 | J13: 1.31079601 | K13: 1.402551731 | L13: 1.500730352 | M13: 1.605781476 | N13: 1.71818618 | O13: 1.838459212 | P13: 1.967151357 | Q13: 2.104851952 | R13: 2.252191589 | S13: 2.409845 | T13: 2.57853415 | U13: 2.759031541 | V13: 2.952163749 | W13: 3.158815211 | X13: 3.379932276 | Y13: 3.616527535 | Z13: 3.869684462 | AA13: 4.140562375 | AB13: 4.430401741 | AC13: 4.740529863 | AD13: 5.072366953 | AE13: 5.42743264 | AF13: 5.807352925 | AG13: 6.21386763 | AH13: 6.648838364 | AI13: 7.114257049 | AJ13: 7.612255043 | AK13: 8.145112896 | AL13: 8.715270798 | AM13: 9.325339754 | AN13: 9.978113537 | AO13: 10.67658148 | AP13: 11.42394219 | AQ13: 12.22361814 | AR13: 13.07927141 | AS13: 13.99482041 | AT13: 14.97445784 | AU13: 16.02266989 | AV13: 17.14425678 | AW13: 18.34435475 | AX13: 19.62845959
D14: Load Factor SCR | E14: =Results!$C$32/100 -> 0.75 | F14: =Results!$C$32/100 -> 0.75 | G14: =Results!$C$32/100 -> 0.75 | H14: =Results!$C$32/100 -> 0.75 | I14: =Results!$C$32/100 -> 0.75 | J14: =Results!$C$32/100 -> 0.75 | K14: =Results!$C$32/100 -> 0.75 | L14: =Results!$C$32/100 -> 0.75 | M14: =Results!$C$32/100 -> 0.75 | N14: =Results!$C$32/100 -> 0.75 | O14: =Results!$C$32/100 -> 0.75 | P14: =Results!$C$32/100 -> 0.75 | Q14: =Results!$C$32/100 -> 0.75 | R14: =Results!$C$32/100 -> 0.75 | S14: =Results!$C$32/100 -> 0.75 | T14: =Results!$C$32/100 -> 0.75 | U14: =Results!$C$32/100 -> 0.75 | V14: =Results!$C$32/100 -> 0.75 | W14: =Results!$C$32/100 -> 0.75 | X14: =Results!$C$32/100 -> 0.75 | Y14: =Results!$C$32/100 -> 0.75 | Z14: =Results!$C$32/100 -> 0.75 | AA14: =Results!$C$32/100 -> 0.75 | AB14: =Results!$C$32/100 -> 0.75 | AC14: =Results!$C$32/100 -> 0.75 | AD14: =Results!$C$32/100 -> 0.75 | AE14: =Results!$C$32/100 -> 0.75 | AF14: =Results!$C$32/100 -> 0.75 | AG14: =Results!$C$32/100 -> 0.75 | AH14: =Results!$C$32/100 -> 0.75 | AI14: =Results!$C$32/100 -> 0.75 | AJ14: =Results!$C$32/100 -> 0.75 | AK14: =Results!$C$32/100 -> 0.75 | AL14: =Results!$C$32/100 -> 0.75 | AM14: =Results!$C$32/100 -> 0.75 | AN14: =Results!$C$32/100 -> 0.75 | AO14: =Results!$C$32/100 -> 0.75 | AP14: =Results!$C$32/100 -> 0.75 | AQ14: =Results!$C$32/100 -> 0.75 | AR14: =Results!$C$32/100 -> 0.75 | AS14: =Results!$C$32/100 -> 0.75 | AT14: =Results!$C$32/100 -> 0.75 | AU14: =Results!$C$32/100 -> 0.75 | AV14: =Results!$C$32/100 -> 0.75 | AW14: =Results!$C$32/100 -> 0.75 | AX14: =Results!$C$32/100 -> 0.75
D15: Load Factor NSR | E15: =Results!$C$27/100 -> 0.75 | F15: =Results!$C$27/100 -> 0.75 | G15: =Results!$C$27/100 -> 0.75 | H15: =Results!$C$27/100 -> 0.75 | I15: =Results!$C$27/100 -> 0.75 | J15: =Results!$C$27/100 -> 0.75 | K15: =Results!$C$27/100 -> 0.75 | L15: =Results!$C$27/100 -> 0.75 | M15: =Results!$C$27/100 -> 0.75 | N15: =Results!$C$27/100 -> 0.75 | O15: =Results!$C$27/100 -> 0.75 | P15: =Results!$C$27/100 -> 0.75 | Q15: =Results!$C$27/100 -> 0.75 | R15: =Results!$C$27/100 -> 0.75 | S15: =Results!$C$27/100 -> 0.75 | T15: =Results!$C$27/100 -> 0.75 | U15: =Results!$C$27/100 -> 0.75 | V15: =Results!$C$27/100 -> 0.75 | W15: =Results!$C$27/100 -> 0.75 | X15: =Results!$C$27/100 -> 0.75 | Y15: =Results!$C$27/100 -> 0.75 | Z15: =Results!$C$27/100 -> 0.75 | AA15: =Results!$C$27/100 -> 0.75 | AB15: =Results!$C$27/100 -> 0.75 | AC15: =Results!$C$27/100 -> 0.75 | AD15: =Results!$C$27/100 -> 0.75 | AE15: =Results!$C$27/100 -> 0.75 | AF15: =Results!$C$27/100 -> 0.75 | AG15: =Results!$C$27/100 -> 0.75 | AH15: =Results!$C$27/100 -> 0.75 | AI15: =Results!$C$27/100 -> 0.75 | AJ15: =Results!$C$27/100 -> 0.75 | AK15: =Results!$C$27/100 -> 0.75 | AL15: =Results!$C$27/100 -> 0.75 | AM15: =Results!$C$27/100 -> 0.75 | AN15: =Results!$C$27/100 -> 0.75 | AO15: =Results!$C$27/100 -> 0.75 | AP15: =Results!$C$27/100 -> 0.75 | AQ15: =Results!$C$27/100 -> 0.75 | AR15: =Results!$C$27/100 -> 0.75 | AS15: =Results!$C$27/100 -> 0.75 | AT15: =Results!$C$27/100 -> 0.75 | AU15: =Results!$C$27/100 -> 0.75 | AV15: =Results!$C$27/100 -> 0.75 | AW15: =Results!$C$27/100 -> 0.75 | AX15: =Results!$C$27/100 -> 0.75
D16: Average waiting time NSR | E16: =Advanced!C10 -> 8 | F16: =Advanced!C10 -> 8 | G16: =IF(F16-Advanced!$C$11>0,F16-Advanced!$C$11,0) -> 7.9 | H16: =IF(G16-Advanced!$C$11>0,G16-Advanced!$C$11,0) -> 7.8 | I16: =IF(H16-Advanced!$C$11>0,H16-Advanced!$C$11,0) -> 7.7 | J16: =IF(I16-Advanced!$C$11>0,I16-Advanced!$C$11,0) -> 7.6 | K16: =IF(J16-Advanced!$C$11>0,J16-Advanced!$C$11,0) -> 7.5 | L16: =IF(K16-Advanced!$C$11>0,K16-Advanced!$C$11,0) -> 7.4 | M16: =IF(L16-Advanced!$C$11>0,L16-Advanced!$C$11,0) -> 7.3 | N16: =IF(M16-Advanced!$C$11>0,M16-Advanced!$C$11,0) -> 7.2 | O16: =IF(N16-Advanced!$C$11>0,N16-Advanced!$C$11,0) -> 7.1 | P16: =IF(O16-Advanced!$C$11>0,O16-Advanced!$C$11,0) -> 7 | Q16: =IF(P16-Advanced!$C$11>0,P16-Advanced!$C$11,0) -> 6.9 | R16: =IF(Q16-Advanced!$C$11>0,Q16-Advanced!$C$11,0) -> 6.8 | S16: =IF(R16-Advanced!$C$11>0,R16-Advanced!$C$11,0) -> 6.7 | T16: =IF(S16-Advanced!$C$11>0,S16-Advanced!$C$11,0) -> 6.6 | U16: =IF(T16-Advanced!$C$11>0,T16-Advanced!$C$11,0) -> 6.5 | V16: =IF(U16-Advanced!$C$11>0,U16-Advanced!$C$11,0) -> 6.4 | W16: =IF(V16-Advanced!$C$11>0,V16-Advanced!$C$11,0) -> 6.3 | X16: =IF(W16-Advanced!$C$11>0,W16-Advanced!$C$11,0) -> 6.2 | Y16: =IF(X16-Advanced!$C$11>0,X16-Advanced!$C$11,0) -> 6.1 | Z16: =IF(Y16-Advanced!$C$11>0,Y16-Advanced!$C$11,0) -> 6 | AA16: =IF(Z16-Advanced!$C$11>0,Z16-Advanced!$C$11,0) -> 5.9 | AB16: =IF(AA16-Advanced!$C$11>0,AA16-Advanced!$C$11,0) -> 5.8 | AC16: =IF(AB16-Advanced!$C$11>0,AB16-Advanced!$C$11,0) -> 5.7 | AD16: =IF(AC16-Advanced!$C$11>0,AC16-Advanced!$C$11,0) -> 5.6 | AE16: =IF(AD16-Advanced!$C$11>0,AD16-Advanced!$C$11,0) -> 5.5 | AF16: =IF(AE16-Advanced!$C$11>0,AE16-Advanced!$C$11,0) -> 5.4 | AG16: =IF(AF16-Advanced!$C$11>0,AF16-Advanced!$C$11,0) -> 5.3 | AH16: =IF(AG16-Advanced!$C$11>0,AG16-Advanced!$C$11,0) -> 5.2 | AI16: =IF(AH16-Advanced!$C$11>0,AH16-Advanced!$C$11,0) -> 5.1 | AJ16: =IF(AI16-Advanced!$C$11>0,AI16-Advanced!$C$11,0) -> 5 | AK16: =IF(AJ16-Advanced!$C$11>0,AJ16-Advanced!$C$11,0) -> 4.9 | AL16: =IF(AK16-Advanced!$C$11>0,AK16-Advanced!$C$11,0) -> 4.8 | AM16: =IF(AL16-Advanced!$C$11>0,AL16-Advanced!$C$11,0) -> 4.7 | AN16: =IF(AM16-Advanced!$C$11>0,AM16-Advanced!$C$11,0) -> 4.6 | AO16: =IF(AN16-Advanced!$C$11>0,AN16-Advanced!$C$11,0) -> 4.5 | AP16: =IF(AO16-Advanced!$C$11>0,AO16-Advanced!$C$11,0) -> 4.4 | AQ16: =IF(AP16-Advanced!$C$11>0,AP16-Advanced!$C$11,0) -> 4.3 | AR16: =IF(AQ16-Advanced!$C$11>0,AQ16-Advanced!$C$11,0) -> 4.2 | AS16: =IF(AR16-Advanced!$C$11>0,AR16-Advanced!$C$11,0) -> 4.1 | AT16: =IF(AS16-Advanced!$C$11>0,AS16-Advanced!$C$11,0) -> 4 | AU16: =IF(AT16-Advanced!$C$11>0,AT16-Advanced!$C$11,0) -> 3.9 | AV16: =IF(AU16-Advanced!$C$11>0,AU16-Advanced!$C$11,0) -> 3.8 | AW16: =IF(AV16-Advanced!$C$11>0,AV16-Advanced!$C$11,0) -> 3.7 | AX16: =IF(AW16-Advanced!$C$11>0,AW16-Advanced!$C$11,0) -> 3.6
D19: Discrete input | AS19: =AS10-AR10 -> 2.695372154 | AT19: =AT10-AS10 -> 2.695372154 | AU19: 2.695372154 | AV19: 2.695372154 | AW19: 2.695372154 | AX19: 2.695372154
D20: Ice Cover Distance | E20: =Results!C23 -> 1214 | AS20: =AS11-AR11 -> 12.35841693 | AT20: 12.35841693 | AU20: 12.35841693 | AV20: 12.35841693 | AW20: 12.35841693 | AX20: 12.35841693
D21: SCR Lenght | E21: =Results!C30 -> 11784 | AS21: =AS12-AR12 -> 16.39589843 | AT21: 16.39589843 | AU21: 16.39589843 | AV21: 16.39589843 | AW21: 16.39589843 | AX21: 16.39589843
D22: NSR Lenght | E22: =Results!C22 -> 8366
D23: Open Water Speed SCR | E23: =Results!C19 -> 18
D24: NSR Vessel speed SCR | E24: =Results!C13 -> 18
D25: Open Water Speed NSR | E25: =Results!C12 -> 15
D26: Ice Water Speed | E26: =Results!C14 -> 10
D27: Port Visits SCR | E27: =Results!C31/2 -> 5
D28: Port Visits NSR | E28: =Results!C26/2 -> 3
D29: Waiting time SC | E29: =Advanced!C9 -> 4
D30: High Annual Navigation Day Coefficient | E30: =Results!C25 -> 3
D32: Cost Components
D33: Berting Fee NSR Vessel (pr Port visit) | E33: =Advanced!C23 -> 34871.66803
D34: Base Berting Fee SCR Vessel (USD / Gt) | E34: =Advanced!C15 -> 34871.66803
D35: Container Handling Fee NSR (USD / TEU) | E35: =Advanced!C22 -> 100
D36: Container Handling Fee SCR (USD / TEU) | E36: =Advanced!C14 -> 100
D38: Base M&R Fee (% of newbuilding cost) | E38: 0.01095
D39: Base Insurance Fee (% of newbuilding cost) | E39: 0.0043
D40: Interest Rate | E40: =Results!C36/100 -> 0.07
D41: Debt Service (Years) | E41: =Results!C37 -> 15
D42: Depreciation rate | E42: =Results!C35/100 -> 0.07

Sheet Low load SFOC (hidden)
C2: 6S80ME-C8.2 | H2: 6S80MC-C8.2 | J2: 6S80ME-C8.2
A3: % MCR | B3: Low load tuning (EGB) | D3: Normal tuning | F3: Low load tuning (EGB) | H3: Normal tuning | J3: Low load tuning (VT)
A4: 25 | B4: 170 | C4: =(B4/B$14-1)*100 -> 3.84850336 | D4: 175 | E4: =(D4/D$14-1)*100 -> 6.642291286 | F4: 176 | G4: =(F4/F$14-1)*100 -> 5.011933174 | H4: 179 | I4: =(H4/H$14-1)*100 -> 6.484235574 | J4: 169.9 | K4: =(J4/J$14-1)*100 -> 3.787416005 | L4: 172.4 | M4: =(L4/L$14-1)*100 -> 5.378973105
A5: 30 | B5: 168.3 | C5: 2.810018326 | D5: 173 | E5: 5.423522243 | F5: 174.1 | G5: 3.878281623 | H5: 177 | I5: 5.294467579 | J5: 168 | K5: 2.626756261 | L5: 170.5 | M5: 4.217603912
A6: 35 | B6: 166.6 | C6: 1.771533293 | D6: 171.3 | E6: 4.387568556 | F6: 172.2 | G6: 2.744630072 | H6: 175.1 | I6: 4.164187983 | J6: 166.2 | K6: 1.527183873 | L6: 168.8 | M6: 3.178484108
A7: 40 | B7: 165 | C7: 0.7941356139 | D7: 169.8 | E7: 3.473491773 | F7: 170.5 | G7: 1.730310263 | H7: 173.4 | I7: 3.152885187 | J7: 164.8 | K7: 0.6719609041 | L7: 167.1 | M7: 2.139364303
A8: 45 | B8: 163.4 | C8: -0.1832620648 | D8: 168.2 | E8: 2.498476539 | F8: 169.1 | G8: 0.8949880668 | H8: 172.2 | I8: 2.43902439 | J8: 163.2 | K8: -0.3054367746 | L8: 165.7 | M8: 1.283618582
A9: 50 | B9: 162 | C9: -1.038485034 | D9: 167 | E9: 1.767215113 | F9: 168 | G9: 0.2386634845 | H9: 171 | I9: 1.725163593 | J9: 162 | K9: -1.038485034 | L9: 164.3 | M9: 0.4278728606
A10: 55 | B10: 161 | C10: -1.649358583 | D10: 165.8 | E10: 1.035953687 | F10: 167 | G10: -0.3579952267 | H10: 170.1 | I10: 1.189767995 | J10: 160.8 | K10: -1.771533293 | L10: 163.2 | M10: -0.2444987775
A11: 60 | B11: 160 | C11: -2.260232132 | D11: 164.8 | E11: 0.4265691651 | F11: 166.3 | G11: -0.7756563246 | H11: 169.3 | I11: 0.7138607971 | J11: 159.9 | K11: -2.321319487 | L11: 162.3 | M11: -0.7946210269
A12: 65 | B12: 159.4 | C12: -2.626756261 | D12: 164.2 | E12: 0.06093845216 | F12: 165.8 | G12: -1.07398568 | H12: 168.7 | I12: 0.3569303986 | J12: 159.25 | K12: -2.718387294 | L12: 161.9 | M12: -1.039119804
A13: 70 | B13: 161.5 | C13: -1.343921808 | D13: 164 | E13: -0.06093845216 | F13: 166.6 | G13: -0.5966587112 | H13: 168.3 | I13: 0.1189767995 | J13: 161.3 | K13: -1.466096518 | L13: 162.4 | M13: -0.7334963325
A14: 75 | B14: 163.7 | C14: 0 | D14: 164.1 | E14: 0 | F14: 167.6 | G14: 0 | H14: 168.1 | I14: 0 | J14: 163.7 | K14: 0 | L14: 163.6 | M14: 0
A15: 80 | B15: 164.6 | C15: 0.5497861943 | D15: 164.3 | E15: 0.1218769043 | F15: 168.1 | G15: 0.2983293556 | H15: 168 | I15: -0.05948839976 | J15: 164.3 | K15: 0.3665241295 | L15: 164.4 | M15: 0.488997555
A16: 85 | B16: 165.9 | C16: 1.343921808 | D16: 165 | E16: 0.5484460695 | F16: 169.2 | G16: 0.9546539379 | H16: 168.3 | I16: 0.1189767995 | J16: 165.3 | K16: 0.9773976787 | L16: 165.8 | M16: 1.344743276
A17: 90 | B17: 167.3 | C17: 2.199144777 | D17: 165.8 | E17: 1.035953687 | F17: 171 | G17: 2.028639618 | H17: 168.8 | I17: 0.4164187983 | J17: 166.3 | K17: 1.588271228 | L17: 167.2 | M17: 2.200488998
A18: 95 | B18: 168.35 | C18: 2.840562004 | D18: 166.8 | E18: 1.645338208 | F18: 171.9 | G18: 2.565632458 | H18: 169.7 | I18: 0.9518143962 | J18: 167.3 | K18: 2.199144777 | L18: 168.3 | M18: 2.872860636
A19: 100 | B19: 169.5 | C19: 3.543066585 | D19: 168 | E19: 2.376599634 | F19: 173 | G19: 3.221957041 | H19: 171 | I19: 1.725163593 | J19: 168.4 | K19: 2.871105681 | L19: 169.3 | M19: 3.484107579
A20: 25 | C20: 5.011933174
A21: 30 | C21: 3.878281623
A22: 35 | C22: 2.744630072
A23: 40 | C23: 1.730310263
A24: 45 | C24: 0.8949880668
A25: 50 | C25: 0.2386634845
A26: 55 | C26: -0.3579952267
A27: 60 | C27: -0.7756563246
A28: 65 | C28: -1.07398568
A29: 70 | C29: -0.5966587112
A30: 75 | C30: 0
A31: 80 | C31: 0.2983293556
A32: 85 | C32: 0.9546539379
A33: 90 | C33: 2.028639618
A34: 95 | C34: 2.565632458
A35: 100 | C35: 3.221957041
A36: 25 | C36: 3.787416005
A37: 30 | C37: 2.626756261
A38: 35 | C38: 1.527183873
A39: 40 | C39: 0.6719609041
A40: 45 | C40: -0.3054367746
A41: 50 | C41: -1.038485034
A42: 55 | C42: -1.771533293
A43: 60 | C43: -2.321319487
A44: 65 | C44: -2.718387294
A45: 70 | C45: -1.466096518
A46: 75 | C46: 0
A47: 80 | C47: 0.3665241295
A48: 85 | C48: 0.9773976787
A49: 90 | C49: 1.588271228
A50: 95 | C50: 2.199144777
A51: 100 | C51: 2.871105681
A52: 25 | B52: =0.0000000020194*A52^6-0.0000007555*A52^5+0.00011181*A52^4-0.00832*A52^3+0.33*A52^2-6.851*A52+62.9 -> 4.665869141 | C52: 5.378973105
A53: 30 | B53: 3.4095926 | C53: 4.217603912
A54: 35 | B54: 2.461798291 | C54: 3.178484108
A55: 40 | B55: 1.5218624 | C55: 2.139364303
A56: 45 | B56: 0.5435071156 | C56: 1.283618582
A57: 50 | B57: -0.378125 | C57: 0.4278728606
A58: 55 | B58: -1.096678384 | C58: -0.2444987775
A59: 60 | B59: -1.4820736 | C59: -0.7946210269
A60: 65 | B60: -1.465278209 | C60: -1.039119804
A61: 70 | B61: -1.0603594 | C61: -0.7334963325
A62: 75 | B62: -0.3638183594 | C62: 0
A63: 80 | B63: 0.4687936 | C63: 0.488997555
A64: 85 | B64: 1.268977166 | C64: 1.344743276
A65: 90 | B65: 1.9241054 | C65: 2.200488998
A66: 95 | B66: 2.468962366 | C66: 2.872860636
A67: 100 | B67: 3.2 | C67: 3.484107579

Sheet NSR SHIP DATA (hidden)
A1: Ship data (container ship) | B1: Units | C1: Default values | D1: Alternative 1 | E1: Alternative 2
A2: Container capacity | B2: TEU | C2: =Results!C10 -> 8000 | D2: =C2 -> 8000 | E2: =D2 -> 8000
A3: Feeder ship - type 1 (<2900 TEU) - Panamax - type 2 (1900 - 5300 TEU) or Post Panamax - type 3 (>4000 TEU) | B3: (-) | C3: =IF(C2<2500,1,IF(C2<=5000,2,3)) -> 3 | D3: =IF(D2<2500,1,IF(D2<=5000,2,3)) -> 3 | E3: =IF(E2<2500,1,IF(E2<=5000,2,3)) -> 3
A4: Elongation in percent | B4: % | C4: 0 | D4: 0 | E4: 0
A5: Length between pp | B5: m | C5: =(1+C4/100)*IF(C3=1,10.14*C2^0.378,IF(C3=2,IF(C2<3800,2.494*C2^0.555,241.92+(C2-3800)*0.037),IF(C2<8000,131.31+0.03012*C2-0.00000099556*C2^2,14.66*C2^0.339))) -> 308.5186881 | D5: =(1+D4/100)*IF(D3=1,10.14*D2^0.378,IF(D3=2,IF(D2<3800,2.494*D2^0.555,241.92+(D2-3800)*0.037),IF(D2<8000,131.31+0.03012*D2-0.00000099556*D2^2,14.66*D2^0.339))) -> 308.5186881 | E5: =(1+E4/100)*IF(E3=1,10.14*E2^0.378,IF(E3=2,IF(E2<3800,2.494*E2^0.555,241.92+(E2-3800)*0.037),IF(E2<8000,131.31+0.03012*E2-0.00000099556*E2^2,14.66*E2^0.339))) -> 308.5186881
A6: Length in waterline incl. bulbous bow (= 1,01 Lpp) | B6: m | C6: =C5*1.01 -> 311.6038749 | D6: =D5*1.01 -> 311.6038749 | E6: =E5*1.01 -> 311.6038749
A7: Length over all | B7: m | C7: =IF(C3<3,MIN(294.1,1.2*C5^0.977),1.2*C5^0.977) -> 324.4959255 | D7: =IF(D3<3,MIN(294.1,1.2*D5^0.977),1.2*D5^0.977) -> 324.4959255 | E7: =IF(E3=1,MIN(294.1,1.2*E5^0.977),1.2*E5^0.977) -> 324.4959255
A8: Breadth mld. | B8: m | C8: =IF(C3=1,2.9*C2^0.3,IF(C3=2,32.22,32.51+0.0013*C2)) -> 42.91 | D8: =C8 -> 42.91 | E8: =C8 -> 42.91
A9: Depth | B9: m | C9: =IF(C3=1,0.767*C2^0.394,IF(C3=2,14.77+0.0013*C2,MIN(30.2,16.5+0.0011*C2))) -> 25.3 | D9: =C9 -> 25.3 | E9: =D9 -> 25.3
A10: Design draught | B10: m | C10: =IF(C3<3,MIN(C11,12,1.188*C2^0.279),4.83*C2^0.11) -> 12.98036872 | D10: =C10 -> 12.98036872 | E10: =D10 -> 12.98036872
A11: Maximum draught | B11: m | C11: =IF(C3=1,0.827*C2^0.336,IF(C3=2,IF(C2<3300,2.19*C2^0.211,12.1+(C2-3300)*0.00082),12.73+0.0002*C2)) -> 14.33 | D11: =C11 -> 14.33 | E11: =D11 -> 14.33
A12: Maximum draught - design draught | B12: m | C12: =C11-C10 -> 1.349631276 | D12: =D11-D10 -> 1.349631276 | E12: =E11-E10 -> 1.349631276
A13: Design deadweight/Maximum deadweight | B13: % | C13: =C14/C15*100 -> 83.6618739 | D13: =D14/D15*100 -> 83.6618739 | E13: =E14/E15*100 -> 83.6618739
A14: Design deadweight | B14: tons | C14: =C15-(C11-C10)*C5*C8*C32*1.025 -> 80133.13711 | D14: =D15-(D11-D10)*D5*D8*D32*1.025 -> 80133.13711 | E14: =E15-(E11-E10)*E5*E8*E32*1.025 -> 80133.13711
A15: Maximum deadweight | B15: tons | C15: =C16*C2 -> 95782.14469 | D15: =D16*D2 -> 95782.14469 | E15: =E16*E2 -> 95782.14469
A16: Maximum deadweight/TEU | B16: tons/TEU | C16: =IF(C3=1,13.65,IF(C3=2,14.6-0.00038*C2,MAX(11.2,50.43*C2^-0.16))) -> 11.97276809 | D16: =C16 -> 11.97276809 | E16: =D16 -> 11.97276809
A17: Lightweight coefficient | B17: t/m3 | C17: =IF(C3=1,0.659*C2^-0.23,IF(C3=2,0.105,MAX(0.09,0.104-0.00000115*C2))) -> 0.0948 | D17: =IF(D3=1,0.659*D2^-0.23,IF(D3=2,0.105,MAX(0.09,0.104-0.00000115*D2))) -> 0.0948 | E17: =IF(E3=1,0.659*E2^-0.23,IF(E3=2,0.105,MAX(0.09,0.104-0.00000115*E2))) -> 0.0948
A18: Steel weight correction | B18: % | C18: 15 | D18: 15 | E18: 15
A19: Calculated machinery weight change due to engine change | B19: tons | C19: 0 | D19: ='NSR WEIGHT'!J31+D47*D62/10*IF(D55=1,0.03,0.01) -> 0 | E19: ='NSR WEIGHT'!Q31+E47*E62/10*IF(E55=1,0.03,0.01) -> 0
A20: Specified machinery weight change ( = the calculated value) | B20: tons | C20: 0 | D20: 0 | E20: 0
A21: Lightweight | B21: tons | C21: =C5*C8*C9*C17+C18/100*'NSR WEIGHT'!C24 -> 35792.70597 | D21: =C5*C8*C9*C17+'NSR WEIGHT'!J30+'NSR WEIGHT'!J32+D20+'NSR SHIP DATA'!D18/100*'NSR WEIGHT'!J66 -> 35792.70597 | E21: =C5*C8*C9*C17+'NSR WEIGHT'!Q30+'NSR WEIGHT'!Q32+E20+'NSR SHIP DATA'!E18/100*'NSR WEIGHT'!Q66 -> 35792.70597
A22: Steel weight | B22: tons | C22: ='NSR WEIGHT'!C24 -> 26939.1301 | D22: ='NSR WEIGHT'!J24 -> 26939.1301 | E22: ='NSR WEIGHT'!Q24 -> 26939.1301
A23: Displacement at design draught | B23: tons | C23: =C14+C21 -> 115925.8431 | D23: =D14+D21 -> 115925.8431 | E23: =E14+E21 -> 115925.8431
A24: Displacement at maximum draught | B24: tons | C24: =C15+C21 -> 131574.8507 | D24: =D15+D21 -> 131574.8507 | E24: =E15+E21 -> 131574.8507
A25: Block coefficient (based on Lpp) at design draught | B25: - | C25: =C23/C5/C8/C10/1.025 -> 0.6581568078 | D25: =D23/D5/D8/D10/1.025 -> 0.6581568078 | E25: =E23/E5/E8/E10/1.025 -> 0.6581568078
A26: Block coefficient (based on Lpp) at maximum draught | B26: - | C26: =C24/1.025/C5/C8/C11 -> 0.6766480577 | D26: =D24/1.025/D5/D8/D11 -> 0.6766480577 | E26: =E24/1.025/E5/E8/E11 -> 0.6766480577
A27: Lpp/Displ.vol.1/3 at design draught | B27: - | C27: =C5/(C23/1.025)^(1/3) -> 6.379637615 | D27: =D5/(D23/1.025)^(1/3) -> 6.379637615 | E27: =E5/(E23/1.025)^(1/3) -> 6.379637615
A28: Lpp/Displ.vol.1/3 at maximum draught | B28: - | C28: =C5/(C24/1.025)^(1/3) -> 6.115967033 | D28: =D5/(D24/1.025)^(1/3) -> 6.115967033 | E28: =E5/(E24/1.025)^(1/3) -> 6.115967033
A29: Midship section coefficient | B29: - | C29: 0.98 | D29: 0.98 | E29: 0.98
A30: Prismatic coefficient at design draught | B30: - | C30: =C25/C29 -> 0.6715885794 | D30: =D25/D29 -> 0.6715885794 | E30: =E25/E29 -> 0.6715885794
A31: Prismatic coefficient at maximum draught | B31: - | C31: =C26/C29 -> 0.6904572017 | D31: =D26/D29 -> 0.6904572017 | E31: =E26/E29 -> 0.6904572017
A32: Waterplane area coefficient based on Lpp | B32: - | C32: =0.55+0.45*C26 -> 0.854491626 | D32: =0.55+0.45*D26 -> 0.854491626 | E32: =0.55+0.45*E26 -> 0.854491626
A33: Wetted surface at design draught | B33: m2 | C33: =C34-2.4*(C11-C10)*(C6+C8) -> 16206.34841 | D33: =D34-2.4*(D11-D10)*(D6+D8) -> 16206.34841 | E33: =E34-2.4*(E11-E10)*(E6+E8) -> 16206.34841
A34: Wetted surface at maximum draught | B34: m2 | C34: =0.995*(C24/C11/1.025+1.9*C11*C6) -> 17354.65964 | D34: =0.995*(D24/D11/1.025+1.9*D11*D6) -> 17354.65964 | E34: =0.995*(E24/E11/1.025+1.9*E11*E6) -> 17354.65964
A35: Service speed at design draught | B35: knots | C35: =IF(C5<95,14.02+(C5-95)*0.16,IF(C5<350,MIN(25.7,4+0.1216*C5-0.00017*C5^2),25.7)) -> 25.33462972 | D35: =C35 -> 25.33462972 | E35: =C35 -> 25.33462972
A36: Froude Number at service speed | B36: - | C36: =C35*0.5144/(9.81*C6)^0.5 -> 0.2357108601 | D36: =D35*0.5144/(9.81*D6)^0.5 -> 0.2357108601 | E36: =E35*0.5144/(9.81*E6)^0.5 -> 0.2357108601
A37: Scantling trial speed at 100 % deadweight at 75 % MCR | B37: knots | C37: ='NSR PT1-1'!V33 -> 24.59158008 | D37: ='PT2-1'!V33 -> 24.59158008 | E37: ='PT3-1'!V33 -> 24.59800982
A38: Froude Number at 'reference speed' | B38: - | C38: =C37*0.5144/(9.81*C6)^0.5 -> 0.2287976006 | D38: =D37*0.5144/(9.81*D6)^0.5 -> 0.2287976006 | E38: =E37*0.5144/(9.81*E6)^0.5 -> 0.2288574222
A39: Service allowance on resistance | B39: pct. | C39: 15 | D39: 15 | E39: 15
A40: Beaufort No. | B40: - | C40: 0 | D40: 0 | E40: 0
A41: Calculated wind speed acc. to Beaufort No. | B41: m/s | C41: =MAX(0,-0.2+0.98*C40+0.21626*C40^2-0.00466*C40^3) -> 0 | D41: =MAX(0,-0.2+0.98*D40+0.21626*D40^2-0.00466*D40^3) -> 0 | E41: =MAX(0,-0.2+0.98*E40+0.21626*E40^2-0.00466*E40^3) -> 0
A42: Longitudinal wind resistance coefficient, Cx | B42: - | C42: 0.8 | D42: 0.8 | E42: 0.8
A43: Wind speed to be used for separate wind resistance | B43: m/s | C43: 0 | D43: 0 | E43: 0
A44: Wind resistance fraction of trial resistance | B44: pct. | C44: ='NSR PS1'!K31 -> 0 | D44: ='PS2'!K31 -> 0 | E44: ='PS3'!K31 -> 0
A45: Transmission efficiency | B45: pct. | C45: =IF(C55=1,98,96) -> 98 | D45: =C45 -> 98 | E45: =D45 -> 98
A46: General improved propeller efficiency | B46: pct. | C46: -5 | D46: -5 | E46: -5
A47: Main engine power (MCR) | B47: kW | C47: ='NSR PS1'!K36/C56*100 -> 87432.10659 | D47: ='PS2'!K36/D56*100 -> 87432.10659 | E47: ='PS3'!K36/E56*100 -> 87432.10659
A48: Auxiliary power at sea at design draught | B48: kW | C48: =IF(C47<10000,0.05*C47,250+0.025*C47) -> 2435.802665 | D48: =IF(D47<10000,0.05*D47,250+0.025*D47) -> 2435.802665 | E48: =D48 -> 2435.802665
A49: Propeller diameter | B49: m | C49: =0.623*C11-0.16 -> 8.76759 | D49: =C49 -> 8.76759 | E49: =D49 -> 8.76759
A50: Propeller type (1 = conventional - 2 = ducted) | B50: (-) | C50: 1 | D50: 1 | E50: 1
A51: Propeller loading (MCR) | B51: kW/m2 | C51: =C47/C49^2/0.7854 -> 1448.170112 | D51: =D47/D49^2/0.7854 -> 1448.170112 | E51: =E47/E49^2/0.7854 -> 1448.170112
A52: Speed dependency exponent n (Power = constant Vn) | B52: - | C52: ='NSR PT1-1'!M21/'NSR PT1-1'!M33*('NSR PT1-1'!N33-'NSR PT1-1'!L33)/('NSR PT1-1'!N21-'NSR PT1-1'!L21) -> 4.193395321 | D52: ='PT2-1'!M21/'PT2-1'!M33*('PT2-1'!N33-'PT2-1'!L33)/('PT2-1'!N21-'PT2-1'!L21) -> 4.193400589 | E52: ='PT3-1'!M21/'PT3-1'!M33*('PT3-1'!N33-'PT3-1'!L33)/('PT3-1'!N21-'PT3-1'!L21) -> 4.195754514
A53: IMO Energy Efficiency Design Index at 100 % Dw | B53: g/dwt/nm | C53: =(C47*0.75*'NSR Emission factors'!B13*'NSR Emission factors'!B21+C48*'NSR Emission factors'!C13*'NSR Emission factors'!C21)/C15/C37 -> 16.37834192 | D53: =(D47*0.75*'NSR Emission factors'!D13*'NSR Emission factors'!D21+D48*'NSR Emission factors'!E13*'NSR Emission factors'!E21)/D15/D37 -> 16.37834192 | E53: =(E47*0.75*'NSR Emission factors'!F13*'NSR Emission factors'!F21+E48*'NSR Emission factors'!G13*'NSR Emission factors'!G21)/E15/E37 -> 16.37406074
A54: ENGINE TYPE & TECHNOLOGY
A55: Main engine type (slow speed = 1, medium speed = 2) | B55: (-) | C55: 1 | D55: 1 | E55: =C55 -> 1
A56: Main engine service rating (for non derated engine only) | B56: pct. MCR | C56: 90 | D56: 90 | E56: 90
A57: Fuel type (HFO = 1, MD/GO = 2, LNG = 3, Dual fuel = 4) | B57: - | C57: 1 | D57: 1 | E57: 1
A58: SFOC at 75 % MCR in normal ME mode (If default press 1) | B58: g/kW/hour | C58: 1 | D58: 1 | E58: 1
A59: If normal tuning press 1 - if low load tuning press 2 | B59: - | C59: 1 | D59: 1 | E59: 1
A60: Sulphur content in heavy fuel (HFO) | B60: pct. | C60: 3.5 | D60: 3.5 | E60: 3.5
A61: Sulphur content in diesel oil or gas oil (DO/GO) | B61: pct. | C61: 1 | D61: 1 | E61: 1
A62: Derated 2 stroke main engine? (NO = 0, YES = 1) | B62: - | C62: 0 | D62: 0 | E62: 0
A63: Fuel optimised main engine? (NO = 0, YES = 1) | B63: - | C63: 1 | D63: 1 | E63: 1
A64: TIER 1, 2 or 3 engine? (1 - 3) | B64: - | C64: 3 | D64: 3 | E64: 3
A65: Specify NOx reduction technology: EGR (Exhaust Gas Recirculation) =1, SCR (Selective Catalyic Reduction) = 2 or other technology = 3 | B65: - | C65: 1 | D65: 1 | E65: 1
A66: Use of scrubbers if oil is used (NO = 0, YES=1) | B66: - | C66: 0 | D66: 0 | E66: 0
A67: ACTUAL CONDITION
A68: Payload/deadweight at design draught | B68: % | C68: =C2*0.0017+64 -> 77.6
A69: Capacity utilization (100 % ~ design condition) | B69: % | C69: =Results!C27 -> 75 | D69: =Results!C32 -> 75 | E69: =Results!C27 -> 75
A70: Actual deadweight | B70: tons | C70: =C14/100*((100-$C68)+$C68*C69/100) -> 64587.30851 | D70: =D14/100*((100-$C68)+$C68*D69/100) -> 64587.30851 | E70: =E14/100*((100-$C68)+$C68*E69/100) -> 64587.30851
A71: Actual payload | B71: tons | C71: =C14*$C68*C69/10000 -> 46637.4858 | D71: =D14*$C68*D69/10000 -> 46637.4858 | E71: =E14*$C68*E69/10000 -> 46637.4858
A72: Actual displacement | B72: tons | C72: =C70+C21 -> 100380.0145 | D72: =D70+D21 -> 100380.0145 | E72: =E70+E21 -> 100380.0145
A73: Waterplane area coefficient based on Lpp | B73: - | C73: =0.55+0.45*C26-0.14*(1-C72/C24) -> 0.8212992868 | D73: =0.55+0.45*D26-0.14*(1-D72/D24) -> 0.8212992868 | E73: =0.55+0.45*E26-0.14*(1-E72/E24) -> 0.8212992868
A74: Actual draught | B74: m | C74: =C$10-(C$23-C72)/C$5/C$8/1.025/C73 -> 11.58545106 | D74: =D10-(D23-D72)/D5/D8/1.025/D73 -> 11.58545106 | E74: =E10-(E23-E72)/E5/E8/1.025/E73 -> 11.58545106
A75: Service speed at actual draught | B75: knots | C75: =Results!C12 -> 15 | D75: =Results!C13 -> 18 | E75: =Results!C14 -> 10
A76: Service allowance on resistance | B76: % | C76: 0 | D76: 0 | E76: 0
A77: Speed dependency exponent n (Power = constant Vn) | B77: - | C77: ='NSR PAS1'!M21/'NSR PAS1'!M36*('NSR PAS1'!N36-'NSR PAS1'!L36)/('NSR PAS1'!N21-'NSR PAS1'!L21) -> 2.978651709 | D77: ='PAS2'!M21/'PAS2'!M36*('PAS2'!N36-'PAS2'!L36)/('PAS2'!N21-'PAS2'!L21) -> 3.048736613 | E77: ='PAS3'!M21/'PAS3'!M36*('PAS3'!N36-'PAS3'!L36)/('PAS3'!N21-'PAS3'!L21) -> 2.924402291
A78: Necessary mian engine power at actual deadweight | B78: kW | C78: ='NSR PAS1'!K36 -> 11759.45632 | D78: ='PAS2'!K36 -> 19659.94975 | E78: ='PAS3'!K36 -> 3585.471866
A79: Engine rating in actual condition (Cont. Service Rating = CSR) | B79: % MCR | C79: =C78/C47*100 -> 13.4498147 | D79: =D78/D47*100 -> 22.48596141 | E79: =E78/E47*100 -> 4.100864094
A80: SFOC at CSR | B80: g/kW/hour | C80: ='NSR Emission factors'!B13*IF(C59=1,100+0.0028*C79^2-0.41*C79+15,100+0.0000000020194*C79^6-0.0000007555*C79^5+0.00011181*C79^4-0.00832*C79^3+0.33*C79^2-6.851*C79+62.9)*10 -> 199.7067155 | D80: ='NSR Emission factors'!D13*IF(D59=1,100+0.0028*D79^2-0.41*D79+15,100+0.0000000020194*D79^6-0.0000007555*D79^5+0.00011181*D79^4-0.00832*D79^3+0.33*D79^2-6.851*D79+62.9)*10 -> 194.6308923 | E80: ='NSR Emission factors'!F13*IF(E59=1,100+0.0028*E79^2-0.41*E79+15,100+0.0000000020194*E79^6-0.0000007555*E79^5+0.00011181*E79^4-0.00832*E79^3+0.33*E79^2-6.851*E79+62.9)*10 -> 205.8320603
A81: Oil consumption per hour (auxiliary engines) | B81: t/hour | C81: =C48*'NSR Emission factors'!C13/1000 -> 0.4688189389 | D81: =D48*'NSR Emission factors'!E13/1000 -> 0.4688189389 | E81: =$E48*'NSR Emission factors'!G13/1000 -> 0.4688189389
A82: Oil consumption per hour (main engine) | B82: t/hour | C82: =C78*C80/1000000 -> 2.348442398 | D82: =D78*D80/1000000 -> 3.826433562 | E82: =E78*E80/1000000 -> 0.7380050612
A83: Oil consumption per hour (main and auxiliary engines) | B83: t/hour | C83: =C81+C82 -> 2.817261337 | D83: =D81+D82 -> 4.295252501 | E83: =E81+E82 -> 1.206824
A84: EEDI deadweight (per cent) | C84: 70 | D84: 70 | E84: 70
A85: Scantling deadweight | B85: tons | C85: =C15 -> 95782.14469 | D85: =D15 -> 95782.14469 | E85: =E15 -> 95782.14469
A86: 70 % of maximum deadweight | B86: tons | C86: =C15*C84/100 -> 67047.50128 | D86: =D15*D84/100 -> 67047.50128 | E86: =E15*E84/100 -> 67047.50128
A87: Actual displacement | B87: tons | C87: =C86+C21 -> 102840.2072 | D87: =D86+D21 -> 102840.2072 | E87: =E86+E21 -> 102840.2072
A88: Block coefficient based on Lpp | B88: - | C88: =C87/1.025/C5/C8/C90 -> 0.6417289725 | D88: =D87/1.025/D5/D8/D90 -> 0.6417289725 | E88: =E87/1.025/E5/E8/E90 -> 0.6417289725
A89: Waterplane area coefficient based on Lpp | B89: - | C89: =0.55+0.45*C26-0.14*(1-C87/C$24) -> 0.8239170134 | D89: =0.55+0.45*D26-0.14*(1-D87/D$24) -> 0.8239170134 | E89: =0.55+0.45*E26-0.14*(1-E87/E$24) -> 0.8239170134
A90: Actual draught | B90: m | C90: =C$10-(C$23-C87)/C$5/C$8/1.025/C89 -> 11.80993318 | D90: =D$10-(D$23-D87)/D$5/D$8/1.025/D89 -> 11.80993318 | E90: =E$10-(E$23-E87)/E$5/E$8/1.025/E89 -> 11.80993318
A91: 70 % DW trial speed at 75 % MCR ('reference speed') | B91: knots | C91: ='NSR PT1-2'!V33 -> 25.81157971 | D91: ='PT2-2'!V33 -> 25.81157971 | E91: ='PT3-2'!V33 -> 25.81157971
A92: IMO Energy Efficiency Design Index at 70 % Dw | B92: g/dwt/nm | C92: =(C47*0.75*'NSR Emission factors'!B13*'NSR Emission factors'!B21+C48*'NSR Emission factors'!C13*'NSR Emission factors'!C21)/C86/C91 -> 22.29172839 | D92: =(D47*0.75*'NSR Emission factors'!D13*'NSR Emission factors'!D21+D48*'NSR Emission factors'!E13*'NSR Emission factors'!E21)/D86/D91 -> 22.29172839 | E92: =(E47*0.75*'NSR Emission factors'!F13*'NSR Emission factors'!F21+E48*'NSR Emission factors'!G13*'NSR Emission factors'!G21)/E86/E91 -> 22.29172839
A93: Baseline Energy Efficiency Design Index at 70 % Dw | B93: g/dwt/nm | C93: =174.22*C15^-0.201 -> 17.37239972 | D93: =174.22*D15^-0.201 -> 17.37239972 | E93: =174.22*E15^-0.201 -> 17.37239972
A133: 14. Feb. 2013: Small change of Cr correction factor due to bulbous bow
A134: 27. Feb. 2013: Small change of line 71 and 85 - calculation of waterplane area coefficient
A135: 27. August 2013: Truck calculation program included
A136: 27. August 2013: Correction of ship CO2 emisssions per ton payload in sheet "Emissions-ton" (line 28)
A137: 1. Jan 2014: Calculation of engine efficiency in the sheet "Emission factors"

Sheet NSR Emission factors (hidden)
A1: Engine and emission reduction technologies | B1: Main engine | C1: Auxiliary engines | D1: Main engine | E1: Auxiliary engines | F1: Main engine | G1: Auxiliary engines
A2: Main engine type (2-stroke = 1, 4-stroke = 2) | B2: ='NSR SHIP DATA'!C55 -> 1 | C2: 2 | D2: ='NSR SHIP DATA'!D55 -> 1 | E2: 2 | F2: ='NSR SHIP DATA'!E55 -> 1 | G2: 2
A3: Derated main engine - only for 2 stroke engines (NO = 0, YES = 1) | B3: ='NSR SHIP DATA'!C62 -> 0 | C3: - | D3: ='NSR SHIP DATA'!D62 -> 0 | E3: - | F3: ='NSR SHIP DATA'!E62 -> 0 | G3: -
A4: Fuel for main engine (HFO = 1, MDO/GO = 2, LNG = 3 (only for 4 stroke), Dual fuel = 4) | B4: ='NSR SHIP DATA'!C57 -> 1 | C4: =IF(B4=1,2,B4) -> 2 | D4: ='NSR SHIP DATA'!D57 -> 1 | E4: =IF(D4=1,2,D4) -> 2 | F4: ='NSR SHIP DATA'!E57 -> 1 | G4: =IF(F4=1,2,F4) -> 2
A5: Specific Fuel Oil Consumption (SFOC) at 75 % MCR for main engine in g/kW/hour. If not specified (1) a default value will be used | B5: ='NSR SHIP DATA'!C58 -> 1 | C5: - | D5: ='NSR SHIP DATA'!D58 -> 1 | E5: - | F5: ='NSR SHIP DATA'!E58 -> 1 | G5: -
A6: Fuel optimised main engine? (0 = NO, 1 = YES) | B6: ='NSR SHIP DATA'!C63 -> 1 | C6: - | D6: ='NSR SHIP DATA'!D63 -> 1 | E6: - | F6: ='NSR SHIP DATA'!E63 -> 1 | G6: -
A7: TIER 1, 2 or 3 engine (If individual NOx reduction technology is selected then press 0) | B7: ='NSR SHIP DATA'!C64 -> 3 | C7: =B7 -> 3 | D7: ='NSR SHIP DATA'!D64 -> 3 | E7: =D7 -> 3 | F7: ='NSR SHIP DATA'!E64 -> 3 | G7: =F7 -> 3
A8: Specify NOx reduction technology: EGR (Exhaust Gas Recirculation) =1, SCR (Selective Catalyic Reduction) = 2 or other technology = 3 | B8: ='NSR SHIP DATA'!C65 -> 1 | C8: =B8 -> 1 | D8: ='NSR SHIP DATA'!D65 -> 1 | E8: =D8 -> 1 | F8: ='NSR SHIP DATA'!E65 -> 1 | G8: =F8 -> 1
A9: Sulphur content in % in heavy fuel oil (HFO) | B9: ='NSR SHIP DATA'!C60 -> 3.5 | C9: - | D9: ='NSR SHIP DATA'!D60 -> 3.5 | E9: - | F9: ='NSR SHIP DATA'!E60 -> 3.5 | G9: -
A10: Sulphur content in % in diesel/gas oil (DO/GO) | B10: ='NSR SHIP DATA'!C61 -> 1 | C10: =B10 -> 1 | D10: ='NSR SHIP DATA'!D61 -> 1 | E10: =D10 -> 1 | F10: ='NSR SHIP DATA'!E61 -> 1 | G10: =F10 -> 1
A11: Use of scrubbers (NO = 0, YES=1) | B11: ='NSR SHIP DATA'!C66 -> 0 | C11: =B11 -> 0 | D11: ='NSR SHIP DATA'!D66 -> 0 | E11: =D11 -> 0 | F11: ='NSR SHIP DATA'!E66 -> 0 | G11: =F11 -> 0
A12: Emission factors
A13: Fuel consumption (kg/kW/hour) | B13: =IF(B5>1,B5/1000,IF(B4=4,IF(B2=1,0.15,0.16),IF(B4=3,0.155,IF(B2=1,0.17,0.19)*(1+B39/100)*42.7/B33))) -> 0.1815646173 | C13: =IF(C4=3,0.155,IF(C4=4,0.16,0.19*42.7/C33*(1+C39/100))) -> 0.19247 | D13: =IF(D5>1,D5/1000,IF(D4=4,IF(D2=1,0.15,0.16),IF(D4=3,0.155,IF(D2=1,0.17,0.19)*(1+D39/100)*42.7/D33))) -> 0.1815646173 | E13: =IF(E4=3,0.155,IF(E4=4,0.16,0.19*42.7/E33*(1+E39/100))) -> 0.19247 | F13: =IF(F5>1,F5/1000,IF(F4=4,IF(F2=1,0.15,0.16),IF(F4=3,0.155,IF(F2=1,0.17,0.19)*(1+F39/100)*42.7/F33))) -> 0.1815646173 | G13: =IF(G4=3,0.155,IF(G4=4,0.16,0.19*42.7/G33*(1+G39/100))) -> 0.19247
A14: CO2 emission (g/kW/hour) | B14: =B13*B21 -> 565.3922182 | C14: =C21*C13 -> 617.05882 | D14: =D13*D21 -> 565.3922182 | E14: =E21*E13 -> 617.05882 | F14: =F13*F21 -> 565.3922182 | G14: =G21*G13 -> 617.05882
A15: NOx emission (g/kW/hour) | B15: =IF(AND(B2=1,B4=4),IF(B7<3,12,3.4),IF(AND(B2=2,B4=4),IF(B7<3,9.6,2.4),IF(AND(B2=2,B4=3),1.3,IF(OR(B4=1,B4=2),IF(B2=1,17,12)*(1-B40/100))))) -> 3.4 | C15: 2.4 | D15: 3.4 | E15: 2.4 | F15: 3.4 | G15: 2.4
A16: CO emission (g/kW(hour) | B16: =IF(B4<3,IF(B2=1,0.35,0.5),IF(B2=1,0.3,1.3)) -> 0.35 | C16: 0.5 | D16: 0.35 | E16: 0.5 | F16: 0.35 | G16: 0.5
A17: HC emission (g/kW/hour) | B17: 0.5 | C17: 0.5 | D17: 0.5 | E17: 0.5 | F17: 0.5 | G17: 0.5
A18: Particulates (g/kW/hour) | B18: =IF(B4>2,IF(B4=3,0.03,0.1),(0.26+0.081*B19+0.103*B19^2)*(1-B41/100)) -> 1.80525 | C18: 0.444 | D18: 1.80525 | E18: 0.444 | F18: 1.80525 | G18: 0.444
A19: S content in oil (pct.) | B19: =IF(B4=1,B9,B10) -> 3.5 | C19: =B10 -> 1 | D19: =IF(D4=1,D9,D10) -> 3.5 | E19: =D10 -> 1 | F19: =IF(F4=1,F9,F10) -> 3.5 | G19: =F10 -> 1
A20: SO2 emission (g/kW/hour) | B20: =IF(B4<3,B13*21*B19*(1-B42/100),(IF(B4=3,0,0.19*21*B19*$B45/100))) -> 13.34499937 | C20: 4.04187 | D20: 13.34499937 | E20: 4.04187 | F20: 13.34499937 | G20: 4.04187
A21: CO2 emission (g/kg fuel) | B21: =IF(B4=4,2780,(IF(AND(B4=3,B2=2),2750,IF(B4<3,IF(B4=1,3114,3206))))) -> 3114 | C21: =IF(C4=3,2750,IF(C4=4,2780,IF(C4=1,3114,3206))) -> 3206 | D21: =IF(D4=4,2780,(IF(AND(D4=3,D2=2),2750,IF(D4<3,IF(D4=1,3114,3206))))) -> 3114 | E21: =IF(E4=3,2750,IF(E4=4,2780,IF(E4=1,3114,3206))) -> 3206 | F21: =IF(F4=4,2780,(IF(AND(F4=3,F2=2),2750,IF(F4<3,IF(F4=1,3114,3206))))) -> 3114 | G21: =IF(G4=3,2750,IF(G4=4,2780,IF(G4=1,3114,3206))) -> 3206
A22: NOx emission (g/kg fuel) | B22: =B15/B$13 -> 18.72611553 | C22: 12.46947576 | D22: 18.72611553 | E22: 12.46947576 | F22: 18.72611553 | G22: 12.46947576
A23: CO emission (g/kg fuel) | B23: 1.927688364 | C23: 2.597807451 | D23: 1.927688364 | E23: 2.597807451 | F23: 1.927688364 | G23: 2.597807451
A24: HC emission (g/kg fuel) | B24: 2.75384052 | C24: 2.597807451 | D24: 2.75384052 | E24: 2.597807451 | F24: 2.75384052 | G24: 2.597807451
A25: Particulates (g/kg fuel) | B25: =B18/B13 -> 9.942741196 | C25: 2.306853016 | D25: 9.942741196 | E25: 2.306853016 | F25: 9.942741196 | G25: 2.306853016
A26: SO2 emission (g/kg fuel) | B26: =B20/B$13 -> 73.5 | C26: 21 | D26: 73.5 | E26: 21 | F26: 73.5 | G26: 21
A27: CO2 emission (g/MJ) | B27: =B21/B33 -> 76.88888889 | C27: 75.08196721 | D27: 76.88888889 | E27: 75.08196721 | F27: 76.88888889 | G27: 75.08196721
A28: NOx emission (g/MJ) | B28: =B22/B33 -> 0.462373223 | C28: 0.2920251935 | D28: 0.462373223 | E28: 0.2920251935 | F28: 0.462373223 | G28: 0.2920251935
A29: CO emission (g/MJ) | B29: =B23/B33 -> 0.04759724355 | C29: 0.06083858198 | D29: 0.04759724355 | E29: 0.06083858198 | F29: 0.04759724355 | G29: 0.06083858198
A30: HC emission (g/MJ) | B30: =B24/B33 -> 0.06799606221 | C30: 0.06083858198 | D30: 0.06799606221 | E30: 0.06083858198 | F30: 0.06799606221 | G30: 0.06083858198
A31: Particulates (g/MJ) | B31: =B25/B33 -> 0.2454997826 | C31: 0.0540246608 | D31: 0.2454997826 | E31: 0.0540246608 | F31: 0.2454997826 | G31: 0.0540246608
A32: SO2 emission (g/MJ) | B32: =B26/B33 -> 1.814814815 | C32: 0.4918032787 | D32: 1.814814815 | E32: 0.4918032787 | F32: 1.814814815 | G32: 0.4918032787
A33: Calorific value (MJ/kg fuel) | B33: =IF(B4=4,B35*B46/100+B34*B45/100,IF(B4=3,B35,B34)) -> 40.5 | C33: =IF(C4=4,C35*B46/100+B45/100*C34,IF(C4=3,C35,C34)) -> 42.7 | D33: =IF(D4=4,D35*B46/100+D34*B45/100,IF(D4=3,D35,D34)) -> 40.5 | E33: =IF(E4=4,E35*B46/100+B45/100*E34,IF(E4=3,E35,E34)) -> 42.7 | F33: =IF(F4=4,F35*B46/100+F34*B45/100,IF(F4=3,F35,F34)) -> 40.5 | G33: =IF(G4=4,G35*B46/100+B45/100*G34,IF(G4=3,G35,G34)) -> 42.7
A34: Calorific value (MJ/kg oil) | B34: =IF(B4=1,40.5,42.7) -> 40.5 | C34: 42.7 | D34: 40.5 | E34: 42.7 | F34: 40.5 | G34: 42.7
A35: Calorific value (MJ/kg LNG) | B35: 50 | C35: 50 | D35: 50 | E35: 50 | F35: 50 | G35: 50
A36: SFOC change due to engine type (pct.) derated versus normal engine | B36: =IF(B2=1,-B3*4,0) -> 0 | C36: 0 | D36: =IF(D2=1,-D3*4,0) -> 0 | E36: 0 | F36: =IF(F2=1,-F3*4,0) -> 0 | G36: 0
A37: Extra energy demand due to scrubber (pct.) | B37: =IF(B11=1,3,0) -> 0 | C37: =B37 -> 0 | D37: =IF(D11=1,3,0) -> 0 | E37: =D37 -> 0 | F37: =IF(F11=1,3,0) -> 0 | G37: =F37 -> 0
A38: Extra energy demand due to NOx reducing EGR technology (pct.) | B38: =IF(OR(B7=1,B8=2,B8=3),0,IF(B8=1,(IF(B7=2,IF(B6=0,2,0.5),IF(B7=3,IF(B6=0,3,1.3)))))) -> 1.3 | C38: =B38 -> 1.3 | D38: =IF(OR(D7=1,D8=2,D8=3),0,IF(D8=1,(IF(D7=2,IF(D6=0,2,0.5),IF(D7=3,IF(D6=0,3,1.3)))))) -> 1.3 | E38: =D38 -> 1.3 | F38: =IF(OR(F7=1,F8=2,F8=3),0,IF(F8=1,(IF(F7=2,IF(F6=0,2,0.5),IF(F7=3,IF(F6=0,3,1.3)))))) -> 1.3 | G38: =F38 -> 1.3
A39: Total change of SFOC (pct.) | B39: =SUM(B36:B38) -> 1.3 | C39: 1.3 | D39: 1.3 | E39: 1.3 | F39: 1.3 | G39: 1.3
A40: NOx reduction compared to Tier 1 (pct.) | B40: =IF(B7=1,0,IF(B7=2,20,IF(B7=3,80))) -> 80 | C40: 80 | D40: 80 | E40: 80 | F40: 80 | G40: 80
A41: Particulate reduction (pct.) | B41: =IF(AND(B4<3,B11=1),55,0) -> 0 | C41: =IF(AND(B4<3,C11=1),55,0) -> 0 | D41: =IF(AND(D4<3,D11=1),55,0) -> 0 | E41: =IF(AND(D4<3,E11=1),55,0) -> 0 | F41: =IF(AND(F4<3,F11=1),55,0) -> 0 | G41: =IF(AND(F4<3,G11=1),55,0) -> 0
A42: SO2 reduction (pct.) | B42: =IF(AND(B4<3,B11=1),98,IF(AND(B4=3,B2=1),92,IF(AND(B4=3,B2=2),100,0))) -> 0 | C42: 0 | D42: 0 | E42: 0 | F42: 0 | G42: 0
A43: Engine efficiency | B43: =1/B13/B33*3.6 -> 0.4895716479 | C43: 0.4380377903 | D43: 0.4895716479 | E43: 0.4380377903 | F43: 0.4895716479 | G43: 0.4380377903
A44: Dual fuel
A45: Diesel oil (pilot fuel) in pct. | B45: 6
A46: Gas in pct. | B46: 94

Sheet NSR WEIGHT (hidden)
A1: Weight according to Watson and Gilfillan | E1: Default | H1: Alternative 1 | O1: Alternative 2
A3: Main dimensions | H3: Main dimensions | O3: Main dimensions
A4: Length between perpendiculars | B4: m | C4: ='NSR SHIP DATA'!C5 -> 308.5186881 | D4: Block coefficient at design draught | G4: =C8/1.025/C4/C5/C7 -> 0.6558671372 | H4: Length between perpendiculars | I4: m | J4: ='NSR SHIP DATA'!D5 -> 308.5186881 | K4: Block coefficient at design draught | N4: =J8/1.025/J4/J5/J7 -> 0.6558671372 | O4: Length between perpendiculars | P4: m | Q4: ='NSR SHIP DATA'!E5 -> 308.5186881 | R4: Block coefficient at design draught | U4: =Q8/1.025/Q4/Q5/Q7 -> 0.6558671372
A5: Breadth | B5: m | C5: ='NSR SHIP DATA'!C8 -> 42.91 | D5: Block coefficient at upper deck D | G5: =G4+(1-G4)*(C6-C7)/3/C7 -> 0.7436814546 | H5: Breadth | I5: m | J5: ='NSR SHIP DATA'!D8 -> 42.91 | K5: Block coefficient at upper deck D | N5: =N4+(1-N4)*(J6-J7)/3/J7 -> 0.7436814546 | O5: Breadth | P5: m | Q5: ='NSR SHIP DATA'!E8 -> 42.91 | R5: Block coefficient at upper deck D | U5: =U4+(1-U4)*(Q6-Q7)/3/Q7 -> 0.7436814546
A6: Depth to upper deck | B6: m | C6: ='NSR SHIP DATA'!C9 -> 25.3 | D6: Block coefficient at 0,8 x D | G6: =G4+(1-G4)*(0.8*C6-C7)/3/C7 -> 0.7031764003 | H6: Depth to upper deck | I6: m | J6: ='NSR SHIP DATA'!D9 -> 25.3 | K6: Block coefficient at 0,8 x D | N6: =N4+(1-N4)*(0.8*J6-J7)/3/J7 -> 0.7031764003 | O6: Depth to upper deck | P6: m | Q6: ='NSR SHIP DATA'!E9 -> 25.3 | R6: Block coefficient at 0,8 x D | U6: =U4+(1-U4)*(0.8*Q6-Q7)/3/Q7 -> 0.7031764003
A7: Draught | B7: m | C7: ='NSR SHIP DATA'!C11 -> 14.33 | H7: Draught | I7: m | J7: ='NSR SHIP DATA'!D11 -> 14.33 | O7: Draught | P7: m | Q7: ='NSR SHIP DATA'!E11 -> 14.33
A8: Displacement | B8: tons | C8: ='NSR SHIP DATA'!C15+'NSR SHIP DATA'!C17*'NSR WEIGHT'!C4*'NSR WEIGHT'!C5*'NSR WEIGHT'!C6 -> 127533.9811 | H8: Displacement | I8: tons | J8: ='NSR SHIP DATA'!D15+'NSR SHIP DATA'!D17*'NSR WEIGHT'!J4*'NSR WEIGHT'!J5*'NSR WEIGHT'!J6 -> 127533.9811 | O8: Displacement | P8: tons | Q8: ='NSR SHIP DATA'!E15+'NSR SHIP DATA'!E17*'NSR WEIGHT'!Q4*'NSR WEIGHT'!Q5*'NSR WEIGHT'!Q6 -> 127533.9811
A9: Full width erections | B9: Length | C9: Breadth | D9: Height | E9: Area | F9: Volume | G9: L X H | H9: Full width erections | I9: Length | J9: Breadth | K9: Height | L9: Area | M9: Volume | N9: L X H | O9: Full width erections | P9: Length | Q9: Breadth | R9: Height | S9: Area | T9: Volume | U9: L X H
B10: m | C10: m | D10: m | E10: m2 | F10: m3 | G10: m2 | I10: m | J10: m | K10: m | L10: m2 | M10: m3 | N10: m2 | P10: m | Q10: m | R10: m | S10: m2 | T10: m3 | U10: m2
A12: Sum1 | E12: =SUM(E11:E11) -> 0 | F12: =SUM(F11:F11) -> 0 | G12: =SUM(G11:G11) -> 0 | H12: Sum1 | L12: =SUM(L11:L11) -> 0 | M12: =SUM(M11:M11) -> 0 | N12: =SUM(N11:N11) -> 0 | O12: Sum1 | S12: =SUM(S11:S11) -> 0 | T12: =SUM(T11:T11) -> 0 | U12: =SUM(U11:U11) -> 0
A13: Deck houses | B13: Length | C13: Breadth | D13: Height | E13: Area | F13: Volume | G13: L X H | H13: Deck houses | I13: Length | J13: Breadth | K13: Height | L13: Area | M13: Volume | N13: L X H | O13: Deck houses | P13: Length | Q13: Breadth | R13: Height | S13: Area | T13: Volume | U13: L X H
B14: m | C14: m | D14: m | E14: m2 | F14: m3 | G14: m2 | I14: m | J14: m | K14: m | L14: m2 | M14: m3 | N14: m2 | P14: m | Q14: m | R14: m | S14: m2 | T14: m3 | U14: m2
B15: =C4*0.05 -> 15.4259344 | C15: =0.9*C5 -> 38.619 | D15: =C6 -> 25.3 | E15: =B15*C15 -> 595.7341607 | F15: =D15*E15 -> 15072.07427 | G15: =B15*D15 -> 390.2761404 | I15: =J4*0.05 -> 15.4259344 | J15: =0.9*J5 -> 38.619 | K15: =J6 -> 25.3 | L15: =I15*J15 -> 595.7341607 | M15: =K15*L15 -> 15072.07427 | N15: =I15*K15 -> 390.2761404 | P15: =Q4*0.05 -> 15.4259344 | Q15: =0.9*Q5 -> 38.619 | R15: =Q6 -> 25.3 | S15: =P15*Q15 -> 595.7341607 | T15: =R15*S15 -> 15072.07427 | U15: =P15*R15 -> 390.2761404
A16: Sum2 | E16: =SUM(E15:E15) -> 595.7341607 | F16: =SUM(F15:F15) -> 15072.07427 | G16: =SUM(G15:G15) -> 390.2761404 | H16: Sum2 | L16: =SUM(L15:L15) -> 595.7341607 | M16: =SUM(M15:M15) -> 15072.07427 | N16: =SUM(N15:N15) -> 390.2761404 | O16: Sum2 | S16: =SUM(S15:S15) -> 595.7341607 | T16: =SUM(T15:T15) -> 15072.07427 | U16: =SUM(U15:U15) -> 390.2761404
A17: E - steel factor (normal 0.036) | C17: 0.036 | H17: E - steel factor (normal 0.036) | J17: =C17 -> 0.036 | O17: E - steel factor (normal 0.036) | Q17: =C17 -> 0.036
A18: Volumetric outfit weight factor | C18: 0.015 | H18: Volumetric outfit weight factor | J18: 0.015 | O18: Volumetric outfit weight factor | Q18: 0.015
A19: Calculated volumes and weights | H19: Calculated volumes and weights | O19: Calculated volumes and weights
A20: Hull volume | B20: m3 | C20: =G5*C4*C5*C6 -> 249084.9359 | D20: = Vs | H20: Hull volume | I20: m3 | J20: =N5*J4*J5*J6 -> 249084.9359 | K20: = Vs | O20: Hull volume | P20: m3 | Q20: =U5*Q4*Q5*Q6 -> 249084.9359 | R20: = Vs
A21: Volume of erections & houses | B21: m3 | C21: =F12+F16 -> 15072.07427 | D21: =Vo | H21: Volume of erections & houses | I21: m3 | J21: =M12+M16 -> 15072.07427 | K21: =Vo | O21: Volume of erections & houses | P21: m3 | Q21: =T12+T16 -> 15072.07427 | R21: =Vo
A22: Total volume | B22: m3 | C22: =C20+C21 -> 264157.0101 | D22: =Vtot | H22: Total volume | I22: m3 | J22: =J20+J21 -> 264157.0101 | K22: =Vtot | O22: Total volume | P22: m3 | Q22: =Q20+Q21 -> 264157.0101 | R22: =Vtot
A23: Hull Numeral, E | B23: m2 | C23: =C4*(C5+C7)+0.85*C4*(C6-C7)+0.85*G12+0.75*G16 -> 20829.09932 | H23: Hull Numeral, E | I23: m2 | J23: =J4*(J5+J7)+0.85*J4*(J6-J7)+0.85*N12+0.75*N16 -> 20829.09932 | O23: Hull Numeral, E | P23: m2 | Q23: =Q4*(Q5+Q7)+0.85*Q4*(Q6-Q7)+0.85*U12+0.75*U16 -> 20829.09932
A24: Steel weight (Watson) | B24: tons | C24: =C17*C23^1.36*(1+0.5*(G6-0.7)) -> 26939.1301 | E24: =C24/C27*100 -> 82.69667301 | H24: Steel weight (Watson) | I24: tons | J24: =J17*J23^1.36*(1+0.5*(N6-0.7)) -> 26939.1301 | O24: Steel weight (Watson) | P24: tons | Q24: =Q17*Q23^1.36*(1+0.5*(U6-0.7)) -> 26939.1301
A25: Machinery weight | B25: tons | C25: =IF('NSR SHIP DATA'!C55=1,1,0.7)*(0.08*'NSR SHIP DATA'!C47-0.00000032*'NSR SHIP DATA'!C47^2) -> 4548.369083 | E25: =C25/C27*100 -> 13.962403 | H25: Machinery weight | I25: tons | J25: =IF('NSR SHIP DATA'!D55=1,1,0.7)*(0.08*'NSR SHIP DATA'!D47-0.00000032*'NSR SHIP DATA'!D47^2) -> 4548.369083 | O25: Machinery weight | P25: tons | Q25: =IF('NSR SHIP DATA'!E55=1,1,0.7)*(0.08*'NSR SHIP DATA'!E47-0.00000032*'NSR SHIP DATA'!E47^2) -> 4548.369083
A26: Outfit weight | B26: tons | C26: =49*'NSR SHIP DATA'!C2^0.345 -> 1088.333821 | E26: =C26/C27*100 -> 3.340923995 | H26: Outfit weight | I26: tons | J26: =49*'NSR SHIP DATA'!D2^0.345 -> 1088.333821 | O26: Outfit weight | P26: tons | Q26: =49*'NSR SHIP DATA'!D2^0.345 -> 1088.333821
A27: Total weight | B27: tons | C27: =SUM(C24:C26) -> 32575.833 | E27: 100 | H27: Total weight based on detailed calculation | I27: tons | J27: =J25+J26+J66 -> 32575.833 | O27: Total weight | P27: tons | Q27: =Q25+Q26+Q66 -> 32575.833
A28: Light weight | B28: tons | C28: ='NSR SHIP DATA'!C21 -> 35792.70597 | D28: =C28/C27 -> 1.09875029 | H28: Light weight | I28: tons | J28: ='NSR SHIP DATA'!D21 -> 35792.70597 | K28: =J28/J27 -> 1.09875029 | O28: Light weight | P28: tons | Q28: ='NSR SHIP DATA'!E21 -> 35792.70597 | R28: =Q28/Q27 -> 1.09875029
H29: Light weight without power correction | I29: tons | J29: =J8-'NSR SHIP DATA'!D15 -> 31751.83645 | K29: =J29/J27 -> 0.9747052808 | O29: Light weight without power correction | P29: tons | Q29: =Q8-'NSR SHIP DATA'!E15 -> 31751.83645 | R29: =Q29/Q27 -> 0.9747052808
H30: Change of steel weight | I30: tons | J30: =J66-C24 -> 0 | O30: Change of steel weight | P30: tons | Q30: =Q66-C24 -> 0
H31: Change of machinery weight | I31: tons | J31: =J25-C25 -> 0 | O31: Change of machinery weight | P31: tons | Q31: =Q25-C25 -> 0
H32: Change of outfit weight | I32: tons | J32: =J26-C26 -> 0 | O32: Change of outfit weight | P32: tons | Q32: =Q26-C26 -> 0
A33: Weight according to Munro-Smith
A34: Main dimensions | C34: Basis ship | H34: Main dimensions | J34: Actual ship | K34: Difference | O34: Main dimensions | Q34: Actual ship | R34: Difference
A35: Length between perpendiculars | B35: m | C35: ='NSR SHIP DATA'!C5 -> 308.5186881 | H35: Length between perpendiculars | I35: m | J35: ='NSR SHIP DATA'!D5 -> 308.5186881 | K35: =J35-C35 -> 0 | O35: Length between perpendiculars | P35: m | Q35: ='NSR SHIP DATA'!E5 -> 308.5186881 | R35: =Q35-C35 -> 0
A36: Breadth | B36: m | C36: ='NSR SHIP DATA'!C8 -> 42.91 | H36: Breadth | I36: m | J36: ='NSR SHIP DATA'!D8 -> 42.91 | K36: =J36-C36 -> 0 | O36: Breadth | P36: m | Q36: ='NSR SHIP DATA'!E8 -> 42.91 | R36: =Q36-C36 -> 0
A37: Depth to upper deck | B37: m | C37: ='NSR SHIP DATA'!C9 -> 25.3 | H37: Depth to upper deck | I37: m | J37: ='NSR SHIP DATA'!D9 -> 25.3 | K37: =J37-C37 -> 0 | O37: Depth to upper deck | P37: m | Q37: ='NSR SHIP DATA'!E9 -> 25.3 | R37: =Q37-C37 -> 0
A38: Draught | B38: m | C38: ='NSR SHIP DATA'!C11 -> 14.33 | H38: Draught | I38: m | J38: ='NSR SHIP DATA'!D11 -> 14.33 | O38: Draught | P38: m | Q38: ='NSR SHIP DATA'!E11 -> 14.33
A39: Displacement | B39: tons | C39: =C8 -> 127533.9811 | H39: Displacement | I39: tons | J39: =J8 -> 127533.9811 | O39: Displacement | P39: tons | Q39: =Q8 -> 127533.9811
A40: Block coefficient at design draught | B40: (-) | C40: =C39/1.025/C35/C36/C38 -> 0.6558671372 | H40: Block coefficient at design draught | I40: (-) | J40: =J39/1.025/J35/J36/J38 -> 0.6558671372 | O40: Block coefficient at design draught | P40: (-) | Q40: =Q39/1.025/Q35/Q36/Q38 -> 0.6558671372
A41: Block coefficient at upper deck D | B41: (-) | C41: =C40+(1-C40)*(C37-C38)/3/C38 -> 0.7436814546 | H41: Block coefficient at upper deck D | I41: (-) | J41: =J40+(1-J40)*(J37-J38)/3/J38 -> 0.7436814546 | K41: =J41-C41 -> 0 | O41: Block coefficient at upper deck D | P41: (-) | Q41: =Q40+(1-Q40)*(Q37-Q38)/3/Q38 -> 0.7436814546 | R41: =Q41-C41 -> 0
A42: Hull volume | B42: m3 | C42: =C41*C35*C36*C37 -> 249084.9359 | H42: Hull volume | I42: m3 | J42: =J41*J35*J36*J37 -> 249084.9359 | K42: =J42-C42 -> 0 | O42: Hull volume | P42: m3 | Q42: =Q41*Q35*Q36*Q37 -> 249084.9359 | R42: =Q42-C42 -> 0
A43: Volume of erections & houses | B43: m3 | C43: =F52+F57 -> 15072.07427 | H43: Volume of erections & houses | I43: m3 | J43: =M52+M57 -> 15072.07427 | K43: =J43-C43 -> 0 | O43: Volume of erections & houses | P43: m3 | Q43: =T52+T57 -> 15072.07427 | R43: =Q43-C43 -> 0
A44: Total volume | B44: m3 | C44: =C42+C43 -> 264157.0101 | H44: Total volume | I44: m3 | J44: =J42+J43 -> 264157.0101 | K44: =J44-C44 -> 0 | O44: Total volume | P44: m3 | Q44: =Q42+Q43 -> 264157.0101 | R44: =Q44-C44 -> 0
A45: Vo/Vtot | B45: (-) | C45: =C43/C44 -> 0.05705725643 | H45: Vo/Vtot | I45: (-) | J45: =J43/J42 -> 0.06050977838 | O45: Vo/Vtot | P45: (-) | Q45: =Q43/Q42 -> 0.06050977838
A46: Appr. steel weight of erections and houses | B46: tons | C46: =C43*0.055 -> 828.9640846 | H46: Appr. steel weight of erections and houses | I46: tons | J46: =0.055*J43 -> 828.9640846 | O46: Appr. steel weight of erections and houses | P46: tons | Q46: =0.055*Q43 -> 828.9640846
A47: Hull steel weight | B47: tons | C47: =C48-C46 -> 26110.16601 | H47: Hull steel weight | I47: tons | J47: =C47+J64 -> 26110.16601 | O47: Hull steel weight | P47: tons | Q47: =C47+Q64 -> 26110.16601
A48: Steel weight | B48: tons | C48: =C24 -> 26939.1301 | H48: Steel weight | I48: tons | J48: =J46+J47 -> 26939.1301 | O48: Steel weight | P48: tons | Q48: =Q46+Q47 -> 26939.1301
A49: Full width erections | B49: Length | C49: Breadth | D49: Height | E49: Area | F49: Volume | H49: Full width erections | I49: Length | J49: Breadth | K49: Height | L49: Area | M49: Volume | O49: Full width erections | P49: Length | Q49: Breadth | R49: Height | S49: Area | T49: Volume
B50: m | C50: m | D50: m | E50: m2 | F50: m3 | I50: m | J50: m | K50: m | L50: m2 | M50: m3 | P50: m | Q50: m | R50: m | S50: m2 | T50: m3
A52: Sum1 | E52: =SUM(E51:E51) -> 0 | F52: =SUM(F51:F51) -> 0 | H52: Sum1 | L52: =SUM(L51:L51) -> 0 | M52: =SUM(M51:M51) -> 0 | O52: Sum1 | S52: =SUM(S51:S51) -> 0 | T52: =SUM(T51:T51) -> 0
A54: Deck houses | B54: Length | C54: Breadth | D54: Height | E54: Area | F54: Volume | H54: Deck houses | I54: Length | J54: Breadth | K54: Height | L54: Area | M54: Volume | O54: Deck houses | P54: Length | Q54: Breadth | R54: Height | S54: Area | T54: Volume
B55: m | C55: m | D55: m | E55: m2 | F55: m3 | I55: m | J55: m | K55: m | L55: m2 | M55: m3 | P55: m | Q55: m | R55: m | S55: m2 | T55: m3
A56: Deck house (standard) | B56: =C35*0.05 -> 15.4259344 | C56: =C36*0.9 -> 38.619 | D56: =C37 -> 25.3 | E56: =B56*C56 -> 595.7341607 | F56: =D56*E56 -> 15072.07427 | H56: Deck house (standard) | I56: =0.05*J35 -> 15.4259344 | J56: =0.9*J36 -> 38.619 | K56: =J37 -> 25.3 | L56: =I56*J56 -> 595.7341607 | M56: =K56*L56 -> 15072.07427 | O56: Deck house (standard) | P56: =0.05*Q35 -> 15.4259344 | Q56: =0.9*Q36 -> 38.619 | R56: =Q37 -> 25.3 | S56: =P56*Q56 -> 595.7341607 | T56: =R56*S56 -> 15072.07427
A57: Sum2 | E57: =SUM(E56:E56) -> 595.7341607 | F57: =SUM(F56:F56) -> 15072.07427 | H57: Sum2 | L57: =SUM(L56:L56) -> 595.7341607 | M57: =SUM(M56:M56) -> 15072.07427 | O57: Sum2 | S57: =SUM(S56:S56) -> 595.7341607 | T57: =SUM(T56:T56) -> 15072.07427
H58: Length correction | I58: tons | J58: =0.85*C47/C35*K35 -> 0 | O58: Length correction | P58: tons | Q58: =0.85*C47/C35*R35 -> 0
H59: Breadth correction | I59: tons | J59: =0.55*C47/C36*K36 -> 0 | O59: Breadth correction | P59: tons | Q59: =0.55*C47/C36*R36 -> 0
H60: Depth correction | I60: tons | J60: =0.3*C47/C37*K37 -> 0 | O60: Depth correction | P60: tons | Q60: =0.3*C47/C37*R37 -> 0
H61: Main dimension corrections | I61: tons | J61: =SUM(J58:J60) -> 0 | O61: Main dimension corrections | P61: tons | Q61: =SUM(Q58:Q60) -> 0
H62: Scantling corrections | I62: tons | J62: =J61/3 -> 0 | O62: Scantling corrections | P62: tons | Q62: =Q61/3 -> 0
H63: Block coefficient correction | I63: tons | J63: =0.5*K41*C47 -> 0 | O63: Block coefficient correction | P63: tons | Q63: =0.5*R41*C47 -> 0
H64: Total steel weight correction | I64: tons | J64: =SUM(J61:J63) -> 0 | O64: Total steel weight correction | P64: tons | Q64: =SUM(Q61:Q63) -> 0
H66: FINAL STEEL WEIGHT | I66: tons | J66: =(J24+J48)/2 -> 26939.1301 | O66: FINAL STEEL WEIGHT | P66: tons | Q66: =(Q24+Q48)/2 -> 26939.1301
C71: MAN K98 | D71: Power | E71: Weight
D72: 37380 | E72: 1067
D73: 56070 | E73: 1581
D74: 87220 | E74: 2328
D75: 36120 | E75: 1111 | O75: 0 | P75: 0
D76: 54180 | E76: 1618 | O76: 90000 | P76: 2700
D77: 84280 | E77: 2405
C78: MAN K90 | D78: 34320 | E78: 945
D79: 51480 | E79: 1400
D80: 68640 | E80: 1820
D81: 27420 | E81: 991
D82: 41130 | E82: 1415
D83: 54840 | E83: 1826
C84: MAN K80 | D84: 27060 | E84: 800
D85: 40590 | E85: 1130
D86: 25080 | E86: 866
D87: 33440 | E87: 1092
C88: MAN S70 | D88: 16350 | E88: 451
D89: 26160 | E89: 681
D90: 16350 | E90: 495
D91: 26160 | E91: 704
C92: MAN S60 | D92: 11900 | E92: 321
D93: 19040 | E93: 463
D94: 11900 | E94: 324
D95: 19040 | E95: 467
C96: MAN S50 | D96: 8900 | E96: 194
D97: 16020 | E97: 321
D98: 8900 | E98: 186
D99: 16020 | E99: 311
C100: MAN S46 | D100: 6900 | E100: 121
D101: 11040 | E101: 257
C102: MAN S40 | D102: 5675 | E102: 112
D103: 9080 | E103: 163
C104: MAN S35 | D104: 4350 | E104: 81
D105: 6960 | E105: 111
D106: 3700 | E106: 67
D107: 6660 | E107: 106
D108: 8880 | E108: 144
C109: MAN S26 | D109: 2000 | E109: 37
D110: 4800 | E110: 79
C113: MAN L21/31 | D113: 1290 | E113: 16
D114: 1935 | E114: 20.5 | O114: 0 | P114: 0
C115: MAN L27/38 | D115: 2040 | E115: 29 | O115: 20000 | P115: 200
D116: 3060 | E116: 39.5
C117: MAN V28/33D | D117: 5460 | E117: 33.9 | O117: =P115/O115 -> 0.01
D118: 9100 | E118: 49.9
D119: 5460 | E119: 31.9
D120: 9100 | E120: 47.9
C121: MAN V32/40 | D121: 6000 | E121: 61
D122: 9000 | E122: 85
C123: MAN V32/44 | D123: 6720 | E123: 70
D124: 11200 | E124: 104
C125: MAN V48/60 | D125: 14400 | E125: 189
D126: 21600 | E126: 265
C127: MAN V51/60 | D127: 12000 | E127: 189
D128: 18000 | E128: 265

Sheet NSR PS1 (hidden)
A1: Speed and power calculation - Version 2012.06.18
A2: Main data | J2: Input
A3: Water density | B3: (t/m^3) | C3: 1.025 | G3: Wake fraction (1 = calc.) | J3: 1 | K3: =IF(J3=1,IF(C17=1,0.7*C71,IF(C16=1,C72,G71)),J3) -> 0.2266315397
A4: Length on water line | B4: (m) | C4: ='NSR SHIP DATA'!C6 -> 311.6038749 | G4: Thrust deduction (1 = calc.) | J4: 1 | K4: =IF(K15=1,0.25,IF(J4=1,IF(C17=1,E71,IF(C16=1,E72,G72)),J4)) -> 0.1710911311
A5: Breadth on water line | B5: (m) | C5: ='NSR SHIP DATA'!C8 -> 42.91 | G5: Hull efficiency (calculated) | K5: =(1-K4)/(1-K3) -> 1.071816232
A6: Mean draught | B6: (m) | C6: ='NSR SHIP DATA'!C10 -> 12.98036872 | G6: Transm. efficiency (input) | J6: ='NSR SHIP DATA'!C45/100 -> 0.98
A7: Displacement | B7: (tons) | C7: ='NSR SHIP DATA'!C23 -> 115925.8431 | G7: Relative rot. efficiency (input) | J7: 1
A8: Wetted surface, given as input (S) | B8: (m^2) | C8: ='NSR SHIP DATA'!C33 -> 16206.34841 | G8: Transition zone:
A9: Wetted surface, calculated if S = 0 | B9: (m^2) | C9: =IF(C8=0,0.995*(C7/C3/C6+1.9*C4*C6),C8) -> 16206.34841 | G9: Lower Froude number | J9: 0.32 | K9: =IF(J9>0.32,"Too high"," ") -> 
A10: Midship section coefficient | B10: (-) | C10: ='NSR SHIP DATA'!C29 -> 0.98 | J10: 0.95 | K10: =IF(J10<0.9,"Too low"," ") ->  | M10: Design speed (knots) | P10: ='NSR SHIP DATA'!C35 -> 25.33462972
A11: Block coefficient | B11: (-) | C11: =C7/C3/C4/C5/C6 -> 0.6516404037
A12: Prismatic coefficient | B12: (-) | C12: =C11/C10 -> 0.6649391875 | G12: Service allowance (pct.) | K12: ='NSR SHIP DATA'!C39 -> 15
A13: Length-displacement ratio | B13: (-) | C13: =C4/(C7/C3)^(1/3) -> 6.443433991 | G13: Water temperature (degrees Celcius) | K13: 15 | M13: Stack height | O13: =IF('NSR SHIP DATA'!C2<500,2+(500-'NSR SHIP DATA'!C2)/125,IF('NSR SHIP DATA'!C2<9000,7,IF('NSR SHIP DATA'!C2<12000,8,9))) -> 7
A14: Form fore (V : -3, N: 0, U: +3) | B14: (-) | C14: 0 | G14: Bulbous bow (0 = No, 1 = Yes) | K14: 0 | M14: Tiers above cont. | O14: =IF('NSR SHIP DATA'!C2<2500,1.5,2) -> 2
A15: Form aft (V: -3, N: 0, U: +3) | B15: (-) | C15: 0 | G15: Ship type (1 = doub. ender, 2 = conv.) | K15: 2
A16: Normal hull (1) or twin skeg (2) | B16: (-) | C16: 1 | G16: Propeller type: | M16: Wind coefficent, Cx | O16: ='NSR SHIP DATA'!C42 -> 0.8
A17: Number of propellers (1 - 4) | B17: (-) | C17: 1 | G17: 1 = conv. - 2 = ducted - 3 = water jet | K17: ='NSR SHIP DATA'!C50 -> 1 | M17: Front area (m2) | O17: =C5*(('NSR SHIP DATA'!C9-C6)+2+O13*2.6+2*O14) -> 1567.057378
A18: Propeller diameter | B18: (m) | C18: ='NSR SHIP DATA'!C49 -> 8.76759 | D18: =C18/C6 -> 0.6754499958 | E18: of draught | G18: Improved propeller efficiency (pct.) | K18: ='NSR SHIP DATA'!C46 -> -5 | M18: Wind speed (m/s) | O18: ='NSR SHIP DATA'!C43 -> 0
A19: Number of blades, N | B19: (-) | C19: 4 | G19: Resistance fraction in % - Default = 100 | K19: 100
A20: Resistance and power data
A21: Speed (input) | B21: (knots) | C21: =D21-0.5 -> 21.33462972 | D21: 21.83462972 | E21: 22.33462972 | F21: 22.83462972 | G21: 23.33462972 | H21: 23.83462972 | I21: 24.33462972 | J21: 24.83462972 | K21: =P10 -> 25.33462972 | L21: =K21+0.5 -> 25.83462972 | M21: =L21+0.5 -> 26.33462972 | N21: =M21+0.5 -> 26.83462972 | O21: =N21+0.5 -> 27.33462972 | P21: =P22*SQRT(9.81*C4)/0.5144 -> 34.39417898
A22: Froude Number | B22: (-) | C22: =C21*0.5144/SQRT(9.81*$C4) -> 0.1984952603 | D22: 0.2031472103 | E22: 0.2077991602 | F22: 0.2124511102 | G22: 0.2171030602 | H22: 0.2217550102 | I22: 0.2264069601 | J22: 0.2310589101 | K22: 0.2357108601 | L22: 0.2403628101 | M22: 0.24501476 | N22: 0.24966671 | O22: 0.25431866 | P22: =J9 -> 0.32
A23: Cf x 1000 | B23: (-) | C23: =75/(LOG10(C21*0.5144*$C4*1000000/((43.4233-31.38*$C3)*($K13+20)^(1.72*$C3-2.202)+4.7478-5.779*$C3))-2)^2 -> 1.348011231 | D23: 1.344382199 | E23: 1.340849478 | F23: 1.337408423 | G23: 1.334054709 | H23: 1.330784301 | I23: 1.327593432 | J23: 1.324478579 | K23: 1.321436441 | L23: 1.318463924 | M23: 1.315558122 | N23: 1.312716301 | O23: 1.309935891 | P23: 1.27606257
A24: Cr x 1000 | B24: (-) | C24: =C46 -> 0.6907216357 | D24: 0.7082486112 | E24: 0.7278592678 | F24: 0.7499026821 | G24: 0.7747982668 | H24: 0.8030516912 | I24: 0.8352746555 | J24: 0.8722093544 | K24: 0.9147584981 | L24: 0.9640216076 | M24: 1.021337778 | N24: 1.088333827 | O24: 1.166974087 | P24: 3.751168318
A25: Cr-bulbous bow x 1000 | B25: (-) | C25: =$K14*MAX(-50,(250*C22-90))/100*C24 -> 0 | D25: 0 | E25: 0 | F25: 0 | G25: 0 | H25: 0 | I25: 0 | J25: 0 | K25: 0 | L25: 0 | M25: 0 | N25: 0 | O25: 0 | P25: 0
A26: Cr-appendage x 1000 (input) | C26: =IF(C17=2,IF(C16=1,0.3,0),0) -> 0 | D26: 0 | E26: 0 | F26: 0 | G26: 0 | H26: 0 | I26: 0 | J26: 0 | K26: 0 | L26: 0 | M26: 0 | N26: 0 | O26: 0 | P26: 0
A27: Air & steering corr. x 1000 (input) | B27: (-) | C27: =MAX(0.28*'NSR SHIP DATA'!C2^(-0.126),0.09) -> 0.09023368487 | D27: =C27 -> 0.09023368487 | E27: 0.09023368487 | F27: 0.09023368487 | G27: 0.09023368487 | H27: 0.09023368487 | I27: 0.09023368487 | J27: 0.09023368487 | K27: 0.09023368487 | L27: 0.09023368487 | M27: 0.09023368487 | N27: 0.09023368487 | O27: 0.09023368487 | P27: 0.09023368487
A28: Ca x 1000 | B28: (-) | C28: =0.5*LOG10($C7)-0.1*(LOG10($C7))^2 -> -0.03250204212 | D28: -0.03250204212 | E28: -0.03250204212 | F28: -0.03250204212 | G28: -0.03250204212 | H28: -0.03250204212 | I28: -0.03250204212 | J28: -0.03250204212 | K28: -0.03250204212 | L28: -0.03250204212 | M28: -0.03250204212 | N28: -0.03250204212 | O28: -0.03250204212 | P28: -0.03250204212
A29: Ct x 1000 | B29: (-) | C29: =C23+C24+C25+C26+C27+C28 -> 2.096464509 | D29: 2.110362453 | E29: 2.126440389 | F29: 2.145042748 | G29: 2.166584618 | H29: 2.191567635 | I29: 2.22059973 | J29: 2.254419576 | K29: 2.293926582 | L29: 2.340217174 | M29: 2.394627542 | N29: 2.458781771 | O29: 2.534641621 | P29: =P23+P24+P25+P27+P28 -> 5.08496253 | S29: Dw | T29: 13650 | U29: 27300 | V29: 40380 | W29: 52320 | X29: 63500 | Y29: 85619.23079 | Z29: 105743.2553 | AA29: 125158.0603 | AB29: 145600 | AC29: 168000
A30: Wind resistance in head wind | B30: (kN) | C30: =0.00062*$O17*$O16*((C21*0.5144+$O18)^2-(C21*0.5144)^2) -> 0 | D30: 0 | E30: 0 | F30: 0 | G30: 0 | H30: 0 | I30: 0 | J30: 0 | K30: 0 | L30: 0 | M30: 0 | N30: 0 | O30: 0 | Q30: Af (m2) | R30: Af/Al | T30: 0.8188149002 | U30: 0.5803270389 | V30: 0.4388387005 | W30: 0.3226374024 | X30: 0.2282267154 | Y30: 0.287629185 | Z30: 0.2415804255 | AA30: 0.2122077039 | AB30: 0.192998364 | AC30: 0.1817178694
A31: Wind resistance/total resistance | B31: % | C31: =C30/C32*100 -> 0 | D31: 0 | E31: 0 | F31: 0 | G31: 0 | H31: 0 | I31: 0 | J31: 0 | K31: 0 | L31: 0 | M31: 0 | N31: 0 | O31: 0 | Q31: =$C5*((0.88-0.002*$C4)*$C5+('NSR SHIP DATA'!C9-$C6)) -> 1001.458757 | R31: =Q31/(C5*(0.88-0.002*C4)*E5+1*C4*('NSR SHIP DATA'!C9-C6)) -> 0.2608750281 | T31: 0.3275259601 | U31: 0.2321308156 | V31: 0.2321308156 | W31: 0.1755354802 | X31: 0.09129068616 | Y31: 0.115051674 | Z31: 0.09663217022 | AA31: 0.08488308154 | AB31: 0.07719934559 | AC31: 0.07268714775
A32: Resistance incl. wind | B32: (kN) | C32: =($C9*$C3*C21^2*0.0001323*C29*$K19/100)+C30 -> 2097.136093 | D32: 2211.146892 | E32: 2331.200389 | F32: 2458.061698 | G32: 2592.664755 | H32: 2736.154254 | I32: 2889.938815 | J32: 3055.758341 | K32: 3235.769054 | L32: 3432.650012 | M32: 3649.734616 | N32: 3891.168876 | O32: 4162.093509
A33: Total resistance incl. serv. allow. | B33: (kN) | C33: =($C9*$C3*C21^2*0.0001323*C29*$K19/100)*(1+$K12/100)+C30 -> 2411.706507 | D33: 2542.818926 | E33: 2680.880447 | F33: 2826.770952 | G33: 2981.564468 | H33: 3146.577392 | I33: 3323.429637 | J33: 3514.122092 | K33: 3721.134412 | L33: 3947.547514 | M33: 4197.194808 | N33: 4474.844207 | O33: 4786.407536 | P33: =($C9*$C3*P21^2*0.0001323*P29*$K19/100)*(1+$K12/100) -> 15202.82765
A34: Effective power | B34: (kW) | C34: =C33*C21*0.5144 -> 26467.35392 | D34: 28560.26459 | E34: 30800.45725 | F34: 33203.62906 | G34: 35788.71274 | H34: 38578.71761 | I34: 41601.80659 | J34: 44892.67613 | K34: 48494.32053 | L34: 52460.27552 | M34: 56857.44019 | N34: 61769.55701 | O34: 67301.35819 | P34: 268973.986
A35: Total propulsion efficiency | B35: (-) | C35: =C39*$J6*IF($K17=3,1,$K5*$J7) -> 0.6274225317 | D35: 0.6266181309 | E35: 0.6256914616 | F35: 0.6246244804 | G35: 0.6233957803 | H35: 0.621979952 | I35: 0.6203468357 | J35: 0.6184606602 | K35: 0.6162790817 | L35: 0.6137521699 | M35: 0.6108214387 | N35: 0.6074191223 | O35: 0.6034680526 | P35: 0.5024719969
A36: Propulsion power | B36: (kW) | C36: =C34/C35 -> 42184.25796 | D36: 45578.42038 | E36: 49226.27068 | F36: 53157.74533 | G36: 57409.29578 | H36: 62025.66094 | I36: 67062.17264 | J36: 72587.7635 | K36: 78688.89593 | L36: 85474.68847 | M36: 93083.57007 | N36: 101691.8216 | O36: 111524.31 | P36: 535301.445
A37: Thrust loading coefficient, Cth | B37: (-) | C37: =2.54648*C33/(1-$K4)/$C17/$C3/(C40*$C18)^2/$J7 -> 1.305354755 | D37: 1.31400825 | E37: 1.324019109 | F37: 1.33560179 | G37: 1.349014744 | H37: 1.364570313 | I37: 1.382647025 | J37: 1.403704808 | K37: 1.428303679 | L37: 1.45712632 | M37: 1.491004705 | N37: 1.530950065 | O37: 1.578183879 | P37: 3.166130401
A38: Necessary blade area ratio | B38: (-) | C38: =(1.3+0.3*$C19)*C33/(1-$K4)/$C17/(99.6+$C3*9.81*0.65*$C18)/$C18^2+C73 -> 0.8030629396 | D38: 0.835848455 | E38: 0.8703716386 | F38: 0.9068525108 | G38: 0.9455596389 | H38: 0.9868221966 | I38: 1.031045254 | J38: 1.078729146 | K38: 1.130493926 | L38: 1.187109999 | M38: 1.249535933 | N38: 1.318963976 | O38: 1.396872418 | P38: 4.001566196
A39: Approximate propeller efficiency | B39: (-) | C39: =(1+$K18/100)*IF($K17=3,1/(1+16.8/C21),IF($K17=1,0.81-0.014*C37,0.00098*C37^3-0.018542*C37^2+0.11195*C37+0.634)/(1+SQRT(1+C37))*2) -> 0.5973291448 | D39: 0.5965633259 | E39: 0.5956811029 | F39: 0.5946652979 | G39: 0.5934955305 | H39: 0.5921476103 | I39: 0.5905928241 | J39: 0.5887971161 | K39: 0.5867201738 | L39: 0.5843144615 | M39: 0.5815242985 | N39: 0.5782851692 | O39: 0.5745236066 | P39: 0.4783716762
A40: Va | B40: (m/s) | C40: =C21*0.5144*(1-$K3) -> 8.487358096 | D40: 8.686268464 | E40: 8.885178832 | F40: 9.0840892 | G40: 9.282999568 | H40: 9.481909936 | I40: 9.680820304 | J40: 9.879730672 | K40: 10.07864104 | L40: 10.27755141 | M40: 10.47646178 | N40: 10.67537214 | O40: 10.87428251 | P40: 13.6827176
A41: Vbehind | B41: (m/s) | C41: =C40*SQRT(1+C37) -> 12.88669082 | D41: 13.21343399 | E41: 13.54521867 | F41: 13.882919 | G41: 14.22758542 | H41: 14.58048405 | I41: 14.94314509 | J41: 15.3174218 | K41: 15.70556182 | L41: 16.11029154 | M41: 16.53491272 | N41: 16.98340678 | O41: 17.46053538 | P41: 27.92793295
A42: Vincrease | B42: (m/s) | C42: =C41-C40 -> 4.399332721 | D42: 4.527165524 | E42: 4.66003984 | F42: 4.798829799 | G42: 4.944585847 | H42: 5.098574117 | I42: 5.262324786 | J42: 5.437691124 | K42: 5.626920778 | L42: 5.832740135 | M42: 6.05845094 | N42: 6.308034637 | O42: 6.586252864 | P42: 14.24521535
A43: Vbehind/Va | B43: (-) | C43: =C41/C40 -> 1.518339473 | D43: 1.521186461 | E43: 1.524473387 | F43: 1.528267578 | G43: 1.532649583 | H43: 1.53771594 | I43: 1.543582529 | J43: 1.550388599 | K43: 1.558301536 | L43: 1.567522351 | M43: 1.578291705 | N43: 1.590895994 | O43: 1.605672407 | P43: 2.04111009
A44: Disc. flow speed | B44: (m/s) | C44: =C40+0.5*C42 -> 10.68702446 | D44: 10.94985123 | E44: 11.21519875 | F44: 11.4835041 | G44: 11.75529249 | H44: 12.03119699 | I44: 12.3119827 | J44: 12.59857623 | K44: 12.89210143 | L44: 13.19392148 | M44: 13.50568725 | N44: 13.82938946 | O44: 14.16740894 | P44: 20.80532527
A45: Water flow pr. propeller | B45: (m^3/s) | C45: =0.785*$C18^2*C44 -> 644.8919047 | D45: 660.7517781 | E45: 676.7637628 | F45: 692.9542326 | G45: 709.3548813 | H45: 726.0039103 | I45: 742.9474878 | J45: 760.24153 | K45: 777.9538523 | L45: 796.1667146 | M45: 814.9797361 | N45: 834.513044 | O45: 854.910305 | P45: 1255.465064
A46: Cr summation | B46: (-) | C46: =C53+C55+C57+C61+C62+C63 -> 0.6907216357 | D46: 0.7082486112 | E46: 0.7278592678 | F46: 0.7499026821 | G46: 0.7747982668 | H46: 0.8030516912 | I46: 0.8352746555 | J46: 0.8722093544 | K46: 0.9147584981 | L46: 0.9640216076 | M46: 1.021337778 | N46: 1.088333827 | O46: 1.166974087 | P46: 3.751168318
B47: A0= | C47: =1.35-0.23*$C13+0.012*$C13^2 -> 0.3662242812 | D47: 0.3662242812 | E47: 0.3662242812 | F47: 0.3662242812 | G47: 0.3662242812 | H47: 0.3662242812 | I47: 0.3662242812 | J47: 0.3662242812 | K47: 0.3662242812 | L47: 0.3662242812 | M47: 0.3662242812 | N47: 0.3662242812 | O47: 0.3662242812 | P47: 0.3662242812
B48: A1= | C48: =0.0011*$C13^9.1 -> 25372.36076 | D48: 25372.36076 | E48: 25372.36076 | F48: 25372.36076 | G48: 25372.36076 | H48: 25372.36076 | I48: 25372.36076 | J48: 25372.36076 | K48: 25372.36076 | L48: 25372.36076 | M48: 25372.36076 | N48: 25372.36076 | O48: 25372.36076 | P48: 25372.36076
B49: N1= | C49: =2*$C13-3.7 -> 9.186867982 | D49: 9.186867982 | E49: 9.186867982 | F49: 9.186867982 | G49: 9.186867982 | H49: 9.186867982 | I49: 9.186867982 | J49: 9.186867982 | K49: 9.186867982 | L49: 9.186867982 | M49: 9.186867982 | N49: 9.186867982 | O49: 9.186867982 | P49: 9.186867982
B50: B1= | C50: =7-0.09*$C13^2 -> 3.263394256 | D50: 3.263394256 | E50: 3.263394256 | F50: 3.263394256 | G50: 3.263394256 | H50: 3.263394256 | I50: 3.263394256 | J50: 3.263394256 | K50: 3.263394256 | L50: 3.263394256 | M50: 3.263394256 | N50: 3.263394256 | O50: 3.263394256 | P50: 3.263394256
B51: B2= | C51: =(5*$C12-2.5)^2 -> 0.6801233893 | D51: 0.6801233893 | E51: 0.6801233893 | F51: 0.6801233893 | G51: 0.6801233893 | H51: 0.6801233893 | I51: 0.6801233893 | J51: 0.6801233893 | K51: 0.6801233893 | L51: 0.6801233893 | M51: 0.6801233893 | N51: 0.6801233893 | O51: 0.6801233893 | P51: 0.6801233893
B52: B3= | C52: =(600*(C22-0.315)^2+1)^1.5 -> 27.65064239 | D52: 24.81053661 | E52: 22.1842983 | F52: 19.76310199 | G52: 17.53813094 | H52: 15.500579 | I52: 13.64165294 | J52: 11.9525754 | K52: 10.42458869 | L52: 9.048959625 | M52: 7.81698585 | N52: 6.720004048 | O52: 5.749400758 | P52: 1.022584165
B53: G= | C53: =C50*C51/C52 -> 0.08026977206 | D53: 0.0894583941 | E53: 0.1000487251 | F53: 0.112305789 | G53: 0.1265534377 | H53: 0.1431888939 | I53: 0.1627010137 | J53: 0.1856930985 | K53: 0.2129111112 | L53: 0.2452780048 | M53: 0.2839343456 | N53: 0.3302841406 | O53: 0.3860421034 | P53: 2.170492012
C54: =C22-(0.04+0.59*$C12)-0.015*($C13-5) -> -0.2554703702 | D54: -0.2508184202 | E54: -0.2461664702 | F54: -0.2415145203 | G54: -0.2368625703 | H54: -0.2322106203 | I54: -0.2275586703 | J54: -0.2229067204 | K54: -0.2182547704 | L54: -0.2136028204 | M54: -0.2089508705 | N54: -0.2042989205 | O54: -0.1996469705 | P54: -0.1339656305
B55: H= | C55: =EXP(80*C54) -> 1.330608321e-09 | D55: 1.93052545e-09 | E55: 2.800920793e-09 | F55: 4.063741966e-09 | G55: 5.895917802e-09 | H55: 8.554147143e-09 | I55: 1.241086389e-08 | J55: 1.800641723e-08 | K55: 2.61247778e-08 | L55: 3.790337669e-08 | M55: 5.499246636e-08 | N55: 7.978633096e-08 | O55: 1.157587399e-07 | P55: 2.215936307e-05
C56: =20*$C12-16 -> -2.70121625 | D56: -2.70121625 | E56: -2.70121625 | F56: -2.70121625 | G56: -2.70121625 | H56: -2.70121625 | I56: -2.70121625 | J56: -2.70121625 | K56: -2.70121625 | L56: -2.70121625 | M56: -2.70121625 | N56: -2.70121625 | O56: -2.70121625 | P56: -2.70121625
B57: K= | C57: =180*C22^3.7*EXP(C56) -> 0.03046665082 | D57: 0.03319322007 | E57: 0.0360936838 | F57: 0.03917486527 | G57: 0.0424436955 | H57: 0.04590721259 | I57: 0.049572561 | J57: 0.05344699088 | K57: 0.05753785742 | L57: 0.06185262022 | M57: 0.06639884265 | N57: 0.07118419124 | O57: 0.07621643512 | P57: 0.178321666
C58: =C47+1.5*C22^1.8+C48*C22^(C49) -> 0.4568622182 | D58: 0.4624673316 | E58: 0.4685753575 | F58: 0.4752634678 | G58: 0.4826203416 | H58: 0.490747564 | I58: 0.4997611576 | J58: 0.5097932591 | K58: 0.5209939489 | L58: 0.5335332453 | M58: 0.5476032741 | N58: 0.5634206249 | O58: 0.5812289063 | P58: 1.280641682
C59: =0.98+2.5/($C13-2)^4 -> 0.9864130567 | D59: 0.9864130567 | E59: 0.9864130567 | F59: 0.9864130567 | G59: 0.9864130567 | H59: 0.9864130567 | I59: 0.9864130567 | J59: 0.9864130567 | K59: 0.9864130567 | L59: 0.9864130567 | M59: 0.9864130567 | N59: 0.9864130567 | O59: 0.9864130567 | P59: 0.9864130567
C60: =($C13-5)^4*(C22-0.1)^4 -> 0.0004085536001 | D60: 0.0004913802068 | E60: 0.0005862046021 | F60: 0.0006941330177 | G60: 0.0008163204764 | H60: 0.0009539707917 | I60: 0.001108336568 | J60: 0.001280719202 | K60: 0.001472468878 | L60: 0.001684984575 | M60: 0.001919714061 | N60: 0.002178153894 | O60: 0.002461849426 | P60: 0.01016900442
B61: E= | C61: =C58*C59+C60 -> 0.4510634107 | D61: 0.4566751944 | E61: 0.4627950553 | F61: 0.469500223 | G61: 0.4768793269 | H61: 0.4850337754 | I61: 0.4940792676 | J61: 0.5041474462 | K61: 0.5153877025 | L61: 0.5279691439 | M61: 0.5420827335 | N61: 0.5579436146 | O61: 0.5757936315 | P61: 1.27341068
B62: B/T-corr | C62: =0.16*($C5/$C6-2.5) -> 0.1289218008 | D62: 0.1289218008 | E62: 0.1289218008 | F62: 0.1289218008 | G62: 0.1289218008 | H62: 0.1289218008 | I62: 0.1289218008 | J62: 0.1289218008 | K62: 0.1289218008 | L62: 0.1289218008 | M62: 0.1289218008 | N62: 0.1289218008 | O62: 0.1289218008 | P62: 0.1289218008
B63: Formcorr. | C63: =($C15-$C14)/3*0.1 -> 0 | D63: 0 | E63: 0 | F63: 0 | G63: 0 | H63: 0 | I63: 0 | J63: 0 | K63: 0 | L63: 0 | M63: 0 | N63: 0 | O63: 0 | P63: 0
B64: a= | C64: =0.1*C5/C4+0.149 -> 0.1627706888 | D64: d= | E64: =0.625*C5/C4+0.08 -> 0.1660668052
B65: b= | C65: =0.05*C5/C4+0.449 -> 0.4558853444 | D65: e= | E65: =0.165-0.25*C5/C4 -> 0.1305732779
B66: c= | C66: =585-5027*C5/C4+11700*(C5/C4)^2 -> 114.6167614 | D66: f= | E66: =825-8060*C5/C4+20300*(C5/C4)^2 -> 100.0351781
B67: w1= | C67: =C64+C65/(C66*(0.98-C11)^3+1) -> 0.2529046912 | D67: t1= | E67: =E64+E65/(E66*(0.98-C11)^3+1) -> 0.1948171839
B68: w2= | C68: =0.025*C15/(100*(C11-0.7)^2+1) -> 0 | D68: t2= | E68: =-0.01*C15 -> 0
B69: w3= | C69: =0.00756/(C18/C4+0.002)-0.18 -> 0.07085465125 | D69: t3= | E69: =2*(C18/C4-0.04) -> -0.02372605282
B70: w=3 | C70: =MIN(0.1,C69) -> 0.07085465125
B71: w(1)= | C71: =C67+C68+C70 -> 0.3237593425 | D71: t(1)= | E71: =E67+E68+E69 -> 0.1710911311 | F71: w(twsk)= | G71: =0.7*C11-0.2 -> 0.2561482826
B72: w(2)= | C72: =1.133*C11^2-0.797*C11+0.215 -> 0.1767542977 | D72: t(2)= | E72: =0.0665+0.62833*C72 -> 0.1775600279 | F72: t(twsk.)= | G72: =0.2*C11+0.06 -> 0.1903280807
A73: Cavitation area calculation | B73: K | C73: =IF(C22>$J9,0,IF($C17=1,0.2,0.1)) -> 0.2 | D73: 0.2 | E73: 0.2 | F73: 0.2 | G73: 0.2 | H73: 0.2 | I73: 0.2 | J73: 0.2 | K73: 0.2 | L73: 0.2 | M73: 0.2 | N73: 0.2 | O73: 0.2 | P73: 0.2
B76: Fn | C76: 0.12 | D76: 0.109157562 | E76: 0.1136906833 | F76: 0.1182238047 | G76: 0.122756926 | H76: 0.1272900474 | I76: 0.1318231687 | J76: 0.1363562901 | K76: 0.1408894114 | L76: 0.1454225328 | M76: 0.1499556541 | N76: 0.32
B77: Fn2 | C77: 0.0144 | D77: 0.01191537334 | E77: 0.01292557148 | F77: 0.01397686799 | G77: 0.01506926289 | H77: 0.01620275616 | I77: 0.01737734781 | J77: 0.01859303784 | K77: 0.01984982625 | L77: 0.02114771303 | M77: 0.0224866982 | N77: 0.1024
B78: Fn3 | C78: 0.001728 | D78: 0.001300653104 | E78: 0.001469517054 | F78: 0.001652398512 | G78: 0.00184985639 | H78: 0.002062449599 | I78: 0.002290737052 | J78: 0.002535277661 | K78: 0.002796630337 | L78: 0.003075353991 | M78: 0.003372007537 | N78: 0.032768
B79: Fn4 | C79: 0.00020736 | D79: 0.0001419761218 | E79: 0.000167070398 | F79: 0.0001953528389 | G79: 0.000227082684 | H79: 0.0002625293072 | I79: 0.000301972217 | J79: 0.0003457010561 | K79: 0.0003940156021 | L79: 0.0004472257665 | M79: 0.0005056515958 | N79: 0.01048576
B80: Fn5 | C80: 2.48832e-05 | D80: 1.549776732e-05 | E80: 1.899434772e-05 | F80: 2.309535587e-05 | G80: 2.787597224e-05 | H80: 3.341736795e-05 | I80: 3.980693451e-05 | J80: 4.713851349e-05 | K80: 5.551262626e-05 | L80: 6.503670368e-05 | M80: 7.58253158e-05 | N80: 0.0033554432
B81: Fn6 | C81: 2.985984e-06 | D81: 1.691698497e-06 | E81: 2.159480372e-06 | F81: 2.730420842e-06 | G81: 3.421968663e-06 | H81: 4.25369835e-06 | I81: 5.247476244e-06 | J81: 6.427632818e-06 | K81: 7.82114124e-06 | L81: 9.457802172e-06 | M81: 1.137043483e-05 | N81: 0.001073741824
A82: Cr for L/volume1/3 = 4,5 and Cp = 0,70 | B82: A0 | C82: 0.5518976236 | D82: 0.4933241079 | E82: 0.5208036349 | F82: 0.5437955646 | G82: 0.5637243594 | H82: 0.5818024521 | I82: 0.5990490729 | J82: 0.616309077 | K82: 0.6342717722 | L82: 0.6534897458 | M82: 0.6743976928 | N82: 10.51629956
A83: Cr for L/volume1/3 = 4,5 and Cp = 0,75 | B83: A1 | C83: 0.6458044934 | D83: 0.5813926579 | E83: 0.6140752707 | F83: 0.6380726864 | G83: 0.6565077257 | H83: 0.6719637446 | I83: 0.6865332982 | J83: 0.7018668049 | K83: 0.7192212108 | L83: 0.7395086533 | M83: 0.7633451254 | N83: 20.4752158
A84: Cr for L/volume1/3 = 4,5 and Cp = 0,80 | B84: A2 | C84: 0.7248031768 | D84: 0.7361219519 | E84: 0.7261125671 | F84: 0.7236750947 | G84: 0.7288583221 | H84: 0.7414873687 | I84: 0.7612071759 | J84: 0.7875259972 | K84: 0.8198588877 | L84: 0.8575711948 | M84: 0.9000220476 | N84: 34.00772367
A85: Cr for L/volume1/3 = 4,5 and Cp = 0,85 | B85: A3 | C85: 0.8303962657 | D85: 0.9955666741 | E85: 0.8969248855 | F85: 0.8419453196 | G85: 0.8220020956 | H85: 0.8295766803 | I85: 0.8582157889 | J85: 0.9024892851 | K85: 0.9579480819 | L85: 1.021082042 | M85: 1.089277877 | N85: 35.17716961
A86: Cr for L/volume1/3 = 5 and Cp = 0,70 | B86: B0 | C86: 0.5058059008 | D86: 0.4502827328 | E86: 0.4774619083 | F86: 0.498695713 | G86: 0.5158311203 | H86: 0.5304246949 | I86: 0.5437675517 | J86: 0.556910315 | K86: 0.5706880769 | L86: 0.5857453567 | M86: 0.6025610592 | N86: 11.06772505
A87: Cr for L/volume1/3 = 5 and Cp = 0,75 | B87: B1 | C87: 0.5437558687 | D87: 0.446132975 | E87: 0.4968707474 | F87: 0.5327698833 | G87: 0.5581681093 | H87: 0.5767276528 | I87: 0.5914894669 | J87: 0.604927457 | K87: 0.6190027056 | L87: 0.6352176988 | M87: 0.6546705514 | N87: 18.58519041
A88: Cr for L/volume1/3 = 5 and Cp = 0,80 | B88: B2 | C88: 0.6442835003 | D88: 0.6459763798 | E88: 0.6424581355 | F88: 0.6428864334 | G88: 0.6479269326 | H88: 0.6580024006 | I88: 0.6733280656 | J88: 0.6939469699 | K88: 0.7197653218 | L88: 0.750587849 | M88: 0.786153151 | N88: 24.96717686
A89: Cr for L/volume1/3 = 5 and Cp = 0,85 | B89: B3 | C89: 0.7535807277 | D89: 0.6192454543 | E89: 0.6999508953 | F89: 0.7429567691 | G89: 0.7661151045 | H89: 0.7823519508 | I89: 0.8004968331 | J89: 0.8260498537 | K89: 0.8618864411 | L89: 0.9088997466 | M89: 0.9665806867 | N89: -18.51694299
A90: Cr for L/volume1/3 = 5,5 and Cp = 0,70 | B90: C0 | C90: 0.4517556371 | D90: 0.4311222765 | E90: 0.4398186907 | F90: 0.4483902059 | G90: 0.4570233607 | H90: 0.4658937491 | I90: 0.4751688241 | J90: 0.4850107011 | K90: 0.4955789617 | L90: 0.5070334571 | M90: 0.5195371121 | N90: 5.835094374
A91: Cr for L/volume1/3 = 5,5 and Cp = 0,75 | B91: C1 | C91: 0.4929727301 | D91: 0.4817856619 | E91: 0.4862490769 | F91: 0.4909100449 | G91: 0.4965818237 | H91: 0.5039101876 | I91: 0.5133913891 | J91: 0.5253901196 | K91: 0.5401574712 | L91: 0.5578488976 | M91: 0.5785421756 | N91: 11.14642563
A92: Cr for L/volume1/3 = 5,5 and Cp = 0,80 | B92: C2 | C92: 0.5480963938 | D92: 0.5254882616 | E92: 0.535278073 | F92: 0.5444107847 | G92: 0.5541654217 | H92: 0.5655784405 | I92: 0.5794695076 | J92: 0.5964672799 | K92: 0.6170351832 | L92: 0.6414971923 | M92: 0.6700636103 | N92: 16.37626368
A93: Cr for L/volume1/3 = 5,5 and Cp = 0,85 | B93: C3 | C93: 0.6568213996 | D93: 0.5011003643 | E93: 0.5916129804 | F93: 0.6435546118 | G93: 0.6721310134 | H93: 0.6889082952 | I93: 0.7023697424 | J93: 0.7184330637 | K93: 0.7409280678 | L93: 0.7720347683 | M93: 0.8126819171 | N93: -7.977004328
A94: Cr for L/volume1/3 = 6 and Cp = 0,70 | B94: D0 | C94: 0.3961614963 | D94: 0.347972733 | E94: 0.3718196972 | F94: 0.3901782519 | G94: 0.4043409461 | H94: 0.4154395043 | I94: 0.4244572032 | J94: 0.4322412483 | K94: 0.4395151512 | L94: 0.4468911062 | M94: 0.4548823674 | N94: 6.449483157
A95: Cr for L/volume1/3 = 6 and Cp = 0,75 | B95: D1 | C95: 0.4439577446 | D95: 0.4573280999 | E95: 0.4481005579 | F95: 0.4441960125 | G95: 0.4448940557 | H95: 0.4495703402 | I95: 0.4576935252 | J95: 0.4688222221 | K95: 0.4826019401 | L95: 0.4987620319 | M95: 0.5171126396 | N95: 6.322287053
A96: Cr for L/volume1/3 = 6 and Cp = 0,80 | B96: D2 | C96: 0.4657083736 | D96: 0.4572928121 | E96: 0.4593838212 | F96: 0.463450644 | G96: 0.4700531486 | H96: 0.4796414083 | I96: 0.4925688532 | J96: 0.5091054223 | K96: 0.5294507151 | L96: 0.5537471438 | M96: 0.5820930849 | N96: 11.78390548
A97: Cr for L/volume1/3 = 6 and Cp = 0,85 | B97: D3 | C97: 0.5662373937 | D97: 0.5317296906 | E97: 0.5469317781 | F97: 0.5607605321 | G97: 0.5751550052 | H97: 0.59172224 | I97: 0.6117701373 | J97: 0.6363403243 | K97: 0.6662410227 | L97: 0.702079917 | M97: 0.744297023 | N97: 21.25813519
A98: Cr for L/volume1/3 = 6,5 and Cp = 0,70 | B98: E0 | C98: 0.3366477092 | D98: 0.2963230984 | E98: 0.3156568597 | F98: 0.3313270124 | G98: 0.344146069 | H98: 0.3548360759 | I98: 0.3640355651 | J98: 0.3723065064 | K98: 0.3801412593 | L98: 0.3879695253 | M98: 0.3961652996 | N98: 4.720775595
A99: Cr for L/volume1/3 = 6,5 and Cp = 0,75 | B99: E1 | C99: 0.384744657 | D99: 0.3542468735 | E99: 0.3689972688 | F99: 0.3807307816 | G99: 0.3905233389 | H99: 0.3993003616 | I99: 0.4078492775 | J99: 0.4168320352 | K99: 0.426797618 | L99: 0.438194557 | M99: 0.4513834451 | N99: 7.20799238
A100: Cr for L/volume1/3 = 6,5 and Cp = 0,80 | B100: E2 | C100: 0.4322058493 | D100: 0.4265993776 | E100: 0.4289742969 | F100: 0.4311483679 | G100: 0.4342884737 | H100: 0.4393640786 | I100: 0.4471647329 | J100: 0.4583175788 | K100: 0.4733048554 | L100: 0.4924814044 | M100: 0.5160921752 | N100: 10.34983505
A101: Cr for L/volume1/3 = 6,5 and Cp = 0,85 | B101: E3 | C101: 0.5188053114 | D101: 0.4957845203 | E101: 0.5049501748 | F101: 0.5146173442 | G101: 0.5259703349 | H101: 0.5400204205 | I101: 0.5576228001 | J101: 0.5794935568 | K101: 0.606226616 | L101: 0.6383107035 | M101: 0.6761463043 | N101: 15.12309885
A102: Cr for L/volume1/3 = 7,0 and Cp = 0,70 | B102: F0 | C102: 0.2989119501 | D102: 0.265342804 | E102: 0.2821022609 | F102: 0.2948106364 | G102: 0.3044897041 | H102: 0.3120328079 | I102: 0.3182142186 | J102: 0.3236984906 | K102: 0.3290498186 | L102: 0.3347413943 | M102: 0.3411647634 | N102: 4.453660576
A103: Cr for L/volume1/3 = 7,0 and Cp = 0,75 | B103: F1 | C103: 0.337752285 | D103: 0.3041831892 | E103: 0.3210680113 | F103: 0.3336903072 | G103: 0.3433049957 | H103: 0.3509986526 | I103: 0.3577029813 | J103: 0.3642082843 | K103: 0.3711769333 | L103: 0.3791568411 | M103: 0.3885949319 | N103: 7.093134584
A104: Cr for L/volume1/3 = 7,0 and Cp = 0,80 | B104: F2 | C104: 0.4054182272 | D104: 0.4209795452 | E104: 0.4120134616 | F104: 0.4065525934 | G104: 0.4048163701 | H104: 0.4069704319 | I104: 0.4131333761 | J104: 0.4233835039 | K104: 0.4377655678 | L104: 0.4562975179 | M104: 0.478977249 | N104: 7.770345192
A105: Cr for L/volume1/3 = 7,0 and Cp = 0,85 | B105: F3 | C105: 0.4713732482 | D105: 0.4598393643 | E105: 0.4629685877 | F105: 0.4684741746 | G105: 0.4767856851 | H105: 0.4883186239 | I105: 0.5034754884 | J105: 0.5226468177 | K105: 0.5462122406 | L105: 0.5745415245 | M105: 0.6079956237 | N105: 8.988062915
B106: G0 | C106: 0.1398260071 | D106: 0.1398260071 | E106: 0.1398260071 | F106: 0.1398260071 | G106: 0.1398260071 | H106: 0.1398260071 | I106: 0.1398260071 | J106: 0.1398260071 | K106: 0.1398260071 | L106: 0.1398260071 | M106: 0.1398260071 | N106: 0.1398260071
B107: G1 | C107: 0.5074239661 | D107: 0.5074239661 | E107: 0.5074239661 | F107: 0.5074239661 | G107: 0.5074239661 | H107: 0.5074239661 | I107: 0.5074239661 | J107: 0.5074239661 | K107: 0.5074239661 | L107: 0.5074239661 | M107: 0.5074239661 | N107: 0.5074239661
B108: G2 | C108: 1.367597959 | D108: 1.367597959 | E108: 1.367597959 | F108: 1.367597959 | G108: 1.367597959 | H108: 1.367597959 | I108: 1.367597959 | J108: 1.367597959 | K108: 1.367597959 | L108: 1.367597959 | M108: 1.367597959 | N108: 1.367597959
B109: G3 | C109: -0.08794594494 | D109: -0.08794594494 | E109: -0.08794594494 | F109: -0.08794594494 | G109: -0.08794594494 | H109: -0.08794594494 | I109: -0.08794594494 | J109: -0.08794594494 | K109: -0.08794594494 | L109: -0.08794594494 | M109: -0.08794594494 | N109: -0.08794594494
B110: G4 | C110: -0.9481199379 | D110: -0.9481199379 | E110: -0.9481199379 | F110: -0.9481199379 | G110: -0.9481199379 | H110: -0.9481199379 | I110: -0.9481199379 | J110: -0.9481199379 | K110: -0.9481199379 | L110: -0.9481199379 | M110: -0.9481199379 | N110: -0.9481199379
A111: Cr for L/volume1/3 = 4,5 | B111: H1 | C111: 0.7465154507 | D111: 0.7860068855 | E111: 0.7598497974 | F111: 0.7477407327 | G111: 0.7482451856 | H111: 0.7599188662 | I111: 0.7813387677 | J111: 0.8111342333 | K111: 0.8480180239 | L111: 0.8908173854 | M111: 0.9385051156 | N111: 35.36137182
A112: Cr for L/volume1/3 = 5,0 | B112: H2 | C112: 0.6684070928 | D112: 0.6598141183 | E112: 0.6633009389 | F112: 0.6665631729 | G112: 0.6723466373 | H112: 0.6825374862 | I112: 0.6983069395 | J112: 0.7202472938 | K112: 0.7484992139 | L112: 0.7828703064 | M112: 0.8229449743 | N112: 19.44823584
A113: Cr for L/volume1/3 = 5,5 | B113: H3 | C113: 0.56814688 | D113: 0.5259216657 | E113: 0.5474670596 | F113: 0.5629788432 | G113: 0.5757243233 | H113: 0.5882466344 | I113: 0.6024654593 | J113: 0.6197722165 | K113: 0.6411197136 | L113: 0.6671062687 | M113: 0.6980542977 | N113: 13.4309865
A114: Cr for L/volume1/3 = 6,0 | B114: H4 | C114: 0.4816778247 | D114: 0.4676979202 | E114: 0.4726176197 | F114: 0.4787504638 | G114: 0.4869617618 | H114: 0.497957852 | I114: 0.5123034365 | J114: 0.5304389147 | K114: 0.5526977174 | L114: 0.5793236408 | M114: 0.6104881805 | N114: 13.58897639
A115: Cr for L/volume1/3 = 6,5 | B115: H5 | C115: 0.4484887257 | D115: 0.4426363692 | E115: 0.444872437 | F115: 0.4472535238 | G115: 0.4509569484 | H115: 0.4569618944 | I115: 0.4660672783 | J115: 0.4789096173 | K115: 0.4959808974 | L115: 0.5176464411 | M115: 0.5441627754 | N115: 11.29357379
A116: Cr for L/volume1/3 = 7,0 | B116: H6 | C116: 0.4205913997 | D116: 0.4366849244 | E116: 0.427136597 | F116: 0.4216187834 | G116: 0.420289228 | H116: 0.4232675158 | I116: 0.4306404314 | J116: 0.4424673173 | K116: 0.4587854334 | L116: 0.4796153149 | M116: 0.5049661315 | N116: 8.000171725
A117: Korrekt beregnet CR | B117: Cr | C117: 0.7153762938 | D117: 0.7322490931 | E117: 0.7203648663 | F117: 0.71530241 | G117: 0.7178886052 | H117: 0.7284511439 | I117: 0.7469182268 | J117: 0.7729130214 | K117: 0.8058428778 | L117: 0.8449833046 | M117: 0.8895567026 | N117: 27.24809881
A132: Korrektioner
A133: 2001-03-17 | B133: Waterjet virkningsgrad inkluderet samt også mulighed for opdeling af total fremdrivningsmodstand til separate analyser
A134: 2006-07-24 | B134: Korrektion for bulb = 10 % af restmodstanden samt Ca
A135: 2006-08-30 | B135: Korrektion for temperatur på Cf
A136: 2008-03-06 | B136: Korrektion af Cr for bulb
A137: 2012-06-18 | B137: High speed craft delen er fjernet og Ca korrigeret så den er funktion af depl. og ikke depl.volumen

Sheet NSR PT1-1 (hidden)
A1: Speed and power calculation - Version 2012.06.18
A2: Main data | J2: Input
A3: Water density | B3: (t/m^3) | C3: 1.025 | G3: Wake fraction (1 = calc.) | J3: 1 | K3: =IF(J3=1,IF(C17=1,0.7*C68,IF(C16=1,C69,G68)),J3) -> 0.2357981205
A4: Length on water line | B4: (m) | C4: ='NSR SHIP DATA'!C6 -> 311.6038749 | G4: Thrust deduction (1 = calc.) | J4: 1 | K4: =IF(K15=1,0.25,IF(J4=1,IF(C17=1,E68,IF(C16=1,E69,G69)),J4)) -> 0.1751346662
A5: Breadth on water line | B5: (m) | C5: ='NSR SHIP DATA'!C8 -> 42.91 | G5: Hull efficiency (calculated) | K5: =(1-K4)/(1-K3) -> 1.079381451
A6: Mean draught | B6: (m) | C6: ='NSR SHIP DATA'!C11 -> 14.33 | G6: Transm. efficiency (input) | J6: ='NSR SHIP DATA'!C45/100 -> 0.98
A7: Displacement | B7: (tons) | C7: ='NSR SHIP DATA'!C24 -> 131574.8507 | G7: Relative rot. efficiency (input) | J7: 1
A8: Wetted surface, given as input (S) | B8: (m^2) | C8: ='NSR SHIP DATA'!C34 -> 17354.65964 | G8: Transition zone:
A9: Wetted surface, calculated if S = 0 | B9: (m^2) | C9: =IF(C8=0,0.995*(C7/C3/C6+1.9*C4*C6),C8) -> 17354.65964 | G9: Lower Froude number | J9: 0.32 | K9: =IF(J9>0.32,"Too high"," ") -> 
A10: Midship section coefficient | B10: (-) | C10: ='NSR SHIP DATA'!C29 -> 0.98 | J10: 0.95 | K10: =IF(J10<0.9,"Too low"," ") ->  | M10: Design speed (knots) | P10: ='NSR SHIP DATA'!C35 -> 25.33462972
A11: Block coefficient | B11: (-) | C11: =C7/C3/C4/C5/C6 -> 0.669948572
A12: Prismatic coefficient | B12: (-) | C12: =C11/C10 -> 0.6836209918 | G12: Service allowance (pct.) | K12: 0
A13: Length-displacement ratio | B13: (-) | C13: =C4/(C7/C3)^(1/3) -> 6.177126704 | G13: Water temperature (degrees Celcius) | K13: 15
A14: Form fore (V : -3, N: 0, U: +3) | B14: (-) | C14: 0 | G14: Bulbous bow (0 = No, 1 = Yes) | K14: 0
A15: Form aft (V: -3, N: 0, U: +3) | B15: (-) | C15: 0 | G15: Ship type (1 = doub. ender, 2 = conv.) | K15: 2
A16: Normal hull (1) or twin skeg (2) | B16: (-) | C16: 1 | G16: Propeller type:
A17: Number of propellers (1 - 4) | B17: (-) | C17: 1 | G17: 1 = conv. - 2 = ducted - 3 = water jet | K17: ='NSR SHIP DATA'!C50 -> 1
A18: Propeller diameter | B18: (m) | C18: ='NSR SHIP DATA'!C49 -> 8.76759 | D18: =C18/C6 -> 0.6118346127 | E18: of draught | G18: Improved propeller efficiency (pct.) | K18: ='NSR SHIP DATA'!C46 -> -5
A19: Number of blades, N | B19: (-) | C19: 4 | G19: Resistance fraction in % - Default = 100 | K19: 100
A20: Resistance and power data
A21: Speed (input) | B21: (knots) | C21: =D21-0.5 -> 24.83462972 | D21: =E21-0.5 -> 25.33462972 | E21: =F21-0.5 -> 25.83462972 | F21: =P10+1 -> 26.33462972 | G21: =P10+3 -> 28.33462972 | H21: =P10+5 -> 30.33462972 | I21: =K21-2 -> 24.33462972 | J21: =K21-1 -> 25.33462972 | K21: =P10+1 -> 26.33462972 | L21: =M21-0.001 -> 24.59058008 | M21: =V33 -> 24.59158008 | N21: =M21+0.001 -> 24.59258008 | O21: =N21+0.5 -> 25.09258008 | P21: =P22*SQRT(9.81*C4)/0.5144 -> 34.39417898
A22: Froude Number | B22: (-) | C22: =C21*0.5144/SQRT(9.81*$C4) -> 0.2310589101 | D22: 0.2357108601 | E22: 0.2403628101 | F22: 0.24501476 | G22: 0.2636225599 | H22: 0.2822303598 | I22: 0.2264069601 | J22: 0.2357108601 | K22: 0.24501476 | L22: 0.2287882967 | M22: 0.2287976006 | N22: 0.2288069045 | O22: 0.2334588545 | P22: =J9 -> 0.32
A23: Cf x 1000 | B23: (-) | C23: =75/(LOG10(C21*0.5144*$C4*1000000/((43.4233-31.38*$C3)*($K13+20)^(1.72*$C3-2.202)+4.7478-5.779*$C3))-2)^2 -> 1.324478579 | D23: 1.321436441 | E23: 1.318463924 | F23: 1.315558122 | G23: 1.304549744 | H23: 1.294416391 | I23: 1.327593432 | J23: 1.321436441 | K23: 1.315558122 | L23: 1.325989652 | M23: 1.325983425 | N23: 1.325977198 | O23: 1.322900257 | P23: 1.27606257
A24: Cr x 1000 | B24: (-) | C24: =C43 -> 0.9506641355 | D24: 1.007444016 | E24: 1.073225879 | F24: 1.149792421 | G24: 1.614270237 | H24: 2.50465546 | I24: 0.9014223507 | J24: 1.007444016 | K24: 1.149792421 | L24: 0.9257675498 | M24: 0.9258661116 | N24: 0.925964701 | O24: 0.9789299968 | P24: =P50+P52+P54+P58+P59+P60 -> 4.746222534
A25: Cr-bulbous bow x 1000 | B25: (-) | C25: =$K14*MAX(-50,(250*C22-90))/100*C24 -> 0 | D25: =$K14*MAX(-50,(250*D22-90))/100*D24 -> 0 | E25: =$K14*MAX(-50,(250*E22-90))/100*E24 -> 0 | F25: 0 | G25: 0 | H25: 0 | I25: =$K14*MAX(-50,(250*I22-90))/100*I24 -> 0 | J25: 0 | K25: 0 | L25: 0 | M25: 0 | N25: 0 | O25: 0 | P25: 0
A26: Cr-appendage x 1000 (input) | C26: =IF(C17=2,IF(C16=1,0.3,0),0) -> 0 | D26: 0 | E26: 0 | F26: 0 | G26: 0 | H26: 0 | I26: 0 | J26: 0 | K26: 0 | L26: 0 | M26: 0 | N26: 0 | O26: 0 | P26: 0
A27: Air & steering corr. x 1000 (input) | B27: (-) | C27: =MAX(0.09,0.28*'NSR SHIP DATA'!C2^(-0.126)) -> 0.09023368487 | D27: =C27 -> 0.09023368487 | E27: =D27 -> 0.09023368487 | F27: 0 | G27: 0 | H27: =G27 -> 0 | I27: =C27 -> 0.09023368487 | J27: =I27 -> 0.09023368487 | K27: 0.09023368487 | L27: 0.09023368487 | M27: 0.09023368487 | N27: 0.09023368487 | O27: 0.09023368487 | P27: 0.09023368487
A28: Ca x 1000 | B28: (-) | C28: =0.5*LOG10($C7)-0.1*(LOG10($C7))^2 -> -0.06100666054 | D28: -0.06100666054 | E28: -0.06100666054 | F28: -0.06100666054 | G28: -0.06100666054 | H28: -0.06100666054 | I28: -0.06100666054 | J28: -0.06100666054 | K28: -0.06100666054 | L28: -0.06100666054 | M28: -0.06100666054 | N28: -0.06100666054 | O28: -0.06100666054 | P28: -0.06100666054
A29: Ct x 1000 | B29: (-) | C29: =C23+C24+C25+C26+C27+C28 -> 2.304369738 | D29: 2.358107481 | E29: 2.420916827 | F29: 2.404343882 | G29: 2.85781332 | H29: 3.73806519 | I29: 2.258242807 | J29: 2.358107481 | K29: 2.494577567 | L29: 2.280984226 | M29: 2.281076561 | N29: 2.281168923 | O29: 2.331057278 | P29: =P23+P24+P25+P27+P28 -> 6.051512128
A30: Total resistance in the analysis | B30: (kN) | C30: =($C9*$C3*C21^2*0.0001323*C29*$K19/100)*(1+$K12/100) -> 3344.778414 | D30: 3561.988629 | E30: 3802.630804 | F30: 3924.197219 | G30: 5399.689033 | H30: 8095.134659 | I30: 3147.168027 | J30: 3561.988629 | K30: 4071.470152 | L30: 3246.083146 | M30: 3246.478574 | N30: 3246.874074 | O30: 3454.167496 | P30: 16847.42812
A31: Effective power | B31: (kW) | C31: =C30*C21*0.5144 -> 42729.3219 | D31: 46420.31143 | E31: 50534.42904 | F31: 53159.2692 | G31: 78702.2686 | H31: 126317.5621 | I31: 39395.41072 | J31: 46420.31143 | K31: 55154.30692 | L31: 41060.98596 | M31: 41067.65787 | N31: 41074.3311 | O31: 44585.0925 | P31: 298070.8589
A32: Total propulsion efficiency | B32: (-) | C32: =C36*$J6*IF($K17=3,1,$K5*$J7) -> 0.6254184169 | D32: 0.6225232971 | E32: 0.6191901758 | F32: 0.6200644325 | G32: 0.5973928021 | H32: 0.5595224106 | I32: 0.6279362916 | J32: 0.6225232971 | K32: 0.6153487547 | L32: 0.6266910996 | M32: 0.6266860591 | N32: 0.6266810173 | O32: 0.6239755495 | P32: 0.4849680075
A33: Propulsion power | B33: (kW) | C33: =C31/C32 -> 68321.17628 | D33: 74567.9907 | E33: 81613.74487 | F33: 85731.84722 | G33: 131742.9141 | H33: 225759.6117 | I33: 62737.91028 | J33: 74567.9907 | K33: 89630.97186 | L33: 65520.29539 | M33: 65531.46871 | N33: 65542.64445 | O33: 71453.26854 | P33: 614619.6331 | Q33: 75 % MCR | R33: ='NSR SHIP DATA'!$C$47*0.75 -> 65574.07994 | S33: =S34*S35*R36-S34*S36*R35+S35*S36*R34 -> 25.24700045 | T33: 75 % MCR | U33: ='NSR SHIP DATA'!C47*0.75 -> 65574.07994 | V33: =V34*V35*U36-V34*V36*U35+V35*V36*U34 -> 24.59158008
A34: Thrust loading coefficient, Cth | B34: (-) | C34: =2.54648*C30/(1-$K4)/$C17/$C3/(C37*$C18)^2/$J7 -> 1.375012789 | D34: 1.407077992 | E34: 1.444556203 | F34: 1.434667159 | G34: 1.705251462 | H34: 2.230495982 | I34: 1.347488942 | J34: 1.407077992 | K34: 1.488509418 | L34: 1.361058701 | M34: 1.361113797 | N34: 1.361168909 | O34: 1.390937191 | P34: 3.610925118 | Q34: =F33-G33 -> -46011.06684 | R34: =F21/Q34/Q35 -> 4.087434043e-09 | S34: =R33-F33 -> -20157.76728 | T34: =I33-J33 -> -11830.08043 | U34: =I21/T34/T35 -> 7.648861528e-08 | V34: =U33-I33 -> 2836.169663
A35: Necessary blade area ratio | B35: (-) | C35: =(1.3+0.3*$C19)*C30/(1-$K4)/$C17/(99.6+$C3*9.81*0.65*$C18)/$C18^2+C70 -> 1.040483653 | D35: 1.095064738 | E35: 1.15553386 | F35: 1.18608135 | G35: 1.556846345 | H35: 2.234164154 | I35: 0.9908276582 | J35: 1.095064738 | K35: 1.223088433 | L35: 1.015683278 | M35: 1.015782642 | N35: 1.015882024 | O35: 1.067971195 | P35: 4.433460691 | Q35: =F33-H33 -> -140027.7645 | R35: =G21/Q34/Q36 -> 6.550134926e-09 | S35: =R33-G33 -> -66168.83413 | T35: =I33-K33 -> -26893.06158 | U35: =J21/T34/T36 -> 1.421726083e-07 | V35: =U33-J33 -> -8993.910763
A36: Approximate propeller efficiency | B36: (-) | C36: =(1+$K18/100)*IF($K17=3,1/(1+16.8/C21),IF($K17=1,0.81-0.014*C34,0.00098*C34^3-0.018542*C34^2+0.11195*C34+0.634)/(1+SQRT(1+C34))*2) -> 0.5912479386 | D36: 0.5885109971 | E36: 0.5853599849 | F36: 0.5861864755 | G36: 0.5647535366 | H36: 0.5289522389 | I36: 0.5936282462 | J36: 0.5885109971 | K36: 0.5817284444 | L36: 0.5924510867 | M36: 0.5924463217 | N36: 0.5924415553 | O36: 0.589883904 | P36: 0.4584712042 | Q36: =G33-H33 -> -94016.69761 | R36: =H21/Q35/Q36 -> 2.304196701e-09 | S36: =R33-H33 -> -160185.5317 | T36: =J33-K33 -> -15062.98116 | U36: =K21/T35/T36 -> 6.500938193e-08 | V36: =U33-K33 -> -24056.89192
A37: Va | B37: (m/s) | C37: =C21*0.5144*(1-$K3) -> 9.762628212 | D37: 9.959180936 | E37: 10.15573366 | F37: 10.35228638 | G37: 11.13849728 | H37: 11.92470817 | I37: 9.566075489 | J37: 9.959180936 | K37: 10.35228638 | L37: 9.666690972 | M37: 9.667084078 | N37: 9.667477183 | O37: 9.864029906 | P37: 13.5205391
A38: Vbehind | B38: (m/s) | C38: =C37*SQRT(1+C34) -> 15.04526102 | D38: 15.45143089 | E38: 15.87856737 | F38: 16.15310725 | G38: 18.32020897 | H38: 21.4329703 | I38: 14.65667917 | J38: 15.45143089 | K38: 16.33074216 | L38: 14.85358301 | M38: 14.85436035 | N38: 14.85513776 | O38: 15.25240975 | P38: 29.03274121
A39: Vincrease | B39: (m/s) | C39: =C38-C37 -> 5.282632811 | D39: 5.492249951 | E39: 5.722833709 | F39: 5.800820864 | G39: 7.181711694 | H39: 9.508262127 | I39: 5.090603677 | J39: 5.492249951 | K39: 5.97845578 | L39: 5.186892034 | M39: 5.187276275 | N39: 5.187660581 | O39: 5.388379848 | P39: 15.51220211
A40: Vbehind/Va | B40: (-) | C40: =C38/C37 -> 1.54110765 | D40: 1.551476069 | E40: 1.56350766 | F40: 1.560342001 | G40: 1.644764865 | H40: 1.797358056 | I40: 1.532151736 | J40: 1.551476069 | K40: 1.577501004 | L40: 1.536573689 | M40: 1.536591617 | N40: 1.53660955 | O40: 1.546265563 | P40: 2.14730648
A41: Disc. flow speed | B41: (m/s) | C41: =C37+0.5*C39 -> 12.40394462 | D41: 12.70530591 | E41: 13.01715051 | F41: 13.25269681 | G41: 14.72935312 | H41: 16.67883923 | I41: 12.11137733 | J41: 12.70530591 | K41: 13.34151427 | L41: 12.26013699 | M41: 12.26072221 | N41: 12.26130747 | O41: 12.55821983 | P41: 21.27664015
A42: Water flow pr. propeller | B42: (m^3/s) | C42: =0.785*$C18^2*C41 -> 748.4967871 | D42: 766.6819667 | E42: 785.4997453 | F42: 799.7134212 | G42: 888.8199544 | H42: 1006.458668 | I42: 730.8422681 | J42: 766.6819667 | K42: 805.0729729 | L42: 739.818939 | M42: 739.8542535 | N42: 739.8895701 | O42: 757.8062854 | P42: 1283.905829
A43: Cr summation | B43: (-) | C43: =C50+C52+C54+C58+C59+C60 -> 0.9506641355 | D43: 1.007444016 | E43: 1.073225879 | F43: 1.149792421 | G43: 1.614270237 | H43: 2.50465546 | I43: 0.9014223507 | J43: 1.007444016 | K43: 1.149792421 | L43: 0.9257675498 | M43: 0.9258661116 | N43: 0.925964701 | O43: 0.9789299968 | P43: 4.746222534
B44: A0= | C44: =1.35-0.23*$C13+0.012*$C13^2 -> 0.3871435899 | D44: 0.3871435899 | E44: 0.3871435899 | F44: 0.3871435899 | G44: 0.3871435899 | H44: 0.3871435899 | I44: 0.3871435899 | J44: 0.3871435899 | K44: 0.3871435899 | L44: 0.3871435899 | M44: 0.3871435899 | N44: 0.3871435899 | O44: 0.3871435899 | P44: 0.3871435899
B45: A1= | C45: =0.0011*$C13^9.1 -> 17280.24606 | D45: 17280.24606 | E45: 17280.24606 | F45: 17280.24606 | G45: 17280.24606 | H45: 17280.24606 | I45: 17280.24606 | J45: 17280.24606 | K45: 17280.24606 | L45: 17280.24606 | M45: 17280.24606 | N45: 17280.24606 | O45: 17280.24606 | P45: 17280.24606
B46: N1= | C46: =2*$C13-3.7 -> 8.654253407 | D46: 8.654253407 | E46: 8.654253407 | F46: 8.654253407 | G46: 8.654253407 | H46: 8.654253407 | I46: 8.654253407 | J46: 8.654253407 | K46: 8.654253407 | L46: 8.654253407 | M46: 8.654253407 | N46: 8.654253407 | O46: 8.654253407 | P46: 8.654253407
B47: B1= | C47: =7-0.09*$C13^2 -> 3.565879512 | D47: 3.565879512 | E47: 3.565879512 | F47: 3.565879512 | G47: 3.565879512 | H47: 3.565879512 | I47: 3.565879512 | J47: 3.565879512 | K47: 3.565879512 | L47: 3.565879512 | M47: 3.565879512 | N47: 3.565879512 | O47: 3.565879512 | P47: 3.565879512
B48: B2= | C48: =(5*$C12-2.5)^2 -> 0.8429167158 | D48: 0.8429167158 | E48: 0.8429167158 | F48: 0.8429167158 | G48: 0.8429167158 | H48: 0.8429167158 | I48: 0.8429167158 | J48: 0.8429167158 | K48: 0.8429167158 | L48: 0.8429167158 | M48: 0.8429167158 | N48: 0.8429167158 | O48: 0.8429167158 | P48: 0.8429167158
B49: B3= | C49: =(600*(C22-0.315)^2+1)^1.5 -> 11.9525754 | D49: 10.42458869 | E49: 9.048959625 | F49: 7.81698585 | G49: 4.153215927 | H49: 2.108508639 | I49: 13.64165294 | J49: 10.42458869 | K49: 7.81698585 | L49: 12.75634577 | M49: 12.75297262 | N49: 12.74960012 | O49: 11.14472164 | P49: 1.022584165
B50: G= | C50: =C47*C48/C49 -> 0.2514721175 | D50: 0.2883317066 | E50: 0.3321640909 | F50: 0.3845138657 | G50: 0.7237137437 | H50: 1.425528637 | I50: 0.2203354285 | J50: 0.2883317066 | K50: 0.3845138657 | L50: 0.235626997 | M50: 0.2356893203 | N50: 0.2357516643 | O50: 0.2697007197 | P50: 2.939356533
C51: =C22-(0.04+0.59*$C12)-0.015*($C13-5) -> -0.2299343756 | D51: -0.2252824256 | E51: -0.2206304757 | F51: -0.2159785257 | G51: -0.1973707258 | H51: -0.1787629259 | I51: -0.2345863256 | J51: -0.2252824256 | K51: -0.2159785257 | L51: -0.232204989 | M51: -0.2321956851 | N51: -0.2321863812 | O51: -0.2275344312 | P51: -0.1409932857
B52: H= | C52: =EXP(80*C51) -> 1.026269821e-08 | D52: 1.488973108e-08 | E52: 2.160290473e-08 | F52: 3.134277512e-08 | G52: 1.388796559e-07 | H52: 6.15374955e-07 | I52: 7.073531007e-09 | J52: 1.488973108e-08 | K52: 3.134277512e-08 | L52: 8.558001718e-09 | M52: 8.564373912e-09 | N52: 8.570750852e-09 | O52: 1.243495353e-08 | P52: 1.262965601e-05
C53: =20*$C12-16 -> -2.327580164 | D53: -2.327580164 | E53: -2.327580164 | F53: -2.327580164 | G53: -2.327580164 | H53: -2.327580164 | I53: -2.327580164 | J53: -2.327580164 | K53: -2.327580164 | L53: -2.327580164 | M53: -2.327580164 | N53: -2.327580164 | O53: -2.327580164 | P53: -2.327580164
B54: K= | C54: =180*C22^3.7*EXP(C53) -> 0.07765892053 | D54: 0.08360298351 | E54: 0.08987236961 | F54: 0.09647806846 | G54: 0.126489013 | H54: 0.1627987563 | I54: 0.07202934182 | J54: 0.08360298351 | K54: 0.09647806846 | L54: 0.07487250487 | M54: 0.07488377111 | N54: 0.07489503859 | O54: 0.08068551583 | P54: 0.2591028581
C55: =C44+1.5*C22^1.8+C45*C22^(C46) -> 0.5483237139 | D55: 0.5623808393 | E55: 0.5781528587 | F55: 0.5958689429 | G55: 0.6917388961 | H55: 0.8450653566 | I55: 0.5357765319 | J55: 0.5623808393 | K55: 0.5958689429 | L55: 0.5420226333 | M55: 0.5420477489 | N55: 0.5420728702 | O55: 0.5553748524 | P55: 1.481611903
C56: =0.98+2.5/($C13-2)^4 -> 0.9882116308 | D56: 0.9882116308 | E56: 0.9882116308 | F56: 0.9882116308 | G56: 0.9882116308 | H56: 0.9882116308 | I56: 0.9882116308 | J56: 0.9882116308 | K56: 0.9882116308 | L56: 0.9882116308 | M56: 0.9882116308 | N56: 0.9882116308 | O56: 0.9882116308 | P56: 0.9882116308
C57: =($C13-5)^4*(C22-0.1)^4 -> 0.0005664467065 | D57: 0.0006512552832 | E57: 0.0007452484211 | F57: 0.0008490664508 | G57: 0.001376149384 | H57: 0.002117267732 | I57: 0.0004902039401 | J57: 0.0006512552832 | K57: 0.0008490664508 | L57: 0.00052820006 | M57: 0.000528352709 | N57: 0.0005285053912 | O57: 0.0006090913328 | P57: 0.004497628406
B58: E= | C58: =C55*C56+C57 -> 0.5424263182 | D58: 0.5564025416 | E58: 0.5720826277 | F58: 0.5896936862 | G58: 0.684960572 | H58: 0.8372206819 | I58: 0.5299508043 | J58: 0.5564025416 | K58: 0.5896936862 | L58: 0.5361612704 | M58: 0.5361862426 | N58: 0.5362112205 | O58: 0.5494369799 | P58: 1.468643743
B59: B/T-corr | C59: =0.16*($C5/$C6-2.5) -> 0.07910676902 | D59: 0.07910676902 | E59: 0.07910676902 | F59: 0.07910676902 | G59: 0.07910676902 | H59: 0.07910676902 | I59: 0.07910676902 | J59: 0.07910676902 | K59: 0.07910676902 | L59: 0.07910676902 | M59: 0.07910676902 | N59: 0.07910676902 | O59: 0.07910676902 | P59: 0.07910676902
B60: Formcorr. | C60: =($C15-$C14)/3*0.1 -> 0 | D60: 0 | E60: 0 | F60: 0 | G60: 0 | H60: 0 | I60: 0 | J60: 0 | K60: 0 | L60: 0 | M60: 0 | N60: 0 | O60: 0 | P60: 0
B61: a= | C61: =0.1*C5/C4+0.149 -> 0.1627706888 | D61: d= | E61: =0.625*C5/C4+0.08 -> 0.1660668052
B62: b= | C62: =0.05*C5/C4+0.449 -> 0.4558853444 | D62: e= | E62: =0.165-0.25*C5/C4 -> 0.1305732779
B63: c= | C63: =585-5027*C5/C4+11700*(C5/C4)^2 -> 114.6167614 | D63: f= | E63: =825-8060*C5/C4+20300*(C5/C4)^2 -> 100.0351781
B64: w1= | C64: =C61+C62/(C63*(0.98-C11)^3+1) -> 0.2659998066 | D64: t1= | E64: =E61+E62/(E63*(0.98-C11)^3+1) -> 0.198860719
B65: w2= | C65: =0.025*C15/(100*(C11-0.7)^2+1) -> 0 | D65: t2= | E65: =-0.01*C15 -> 0
B66: w3= | C66: =0.00756/(C18/C4+0.002)-0.18 -> 0.07085465125 | D66: t3= | E66: =2*(C18/C4-0.04) -> -0.02372605282
B67: w=3 | C67: =MIN(0.1,C66) -> 0.07085465125
B68: w(1)= | C68: =C64+C65+C67 -> 0.3368544578 | D68: t(1)= | E68: =E64+E65+E66 -> 0.1751346662 | F68: w(twsk)= | G68: =0.7*C11-0.2 -> 0.2689640004
B69: w(2)= | C69: =1.133*C11^2-0.797*C11+0.215 -> 0.1895766121 | D69: t(2)= | E69: =0.0665+0.62833*C69 -> 0.1856166727 | F69: t(twsk.)= | G69: =0.2*C11+0.06 -> 0.1939897144
A70: Cavitation area calculation | B70: K | C70: =IF(C22>$J9,0,IF($C17=1,0.2,0.1)) -> 0.2 | D70: 0.2 | E70: 0.2 | F70: 0.2 | G70: 0.2 | H70: 0.2 | I70: 0.2 | J70: 0.2 | K70: 0.2 | L70: 0.2 | M70: 0.2 | N70: 0.2 | O70: 0.2 | P70: 0.2
A72: Korrektioner
A73: 2001-03-17 | B73: Waterjet virkningsgrad inkluderet samt også mulighed for opdeling af total fremdrivningsmodstand til separate analyser
A74: 2006-07-24 | B74: Korrektion for bulb = 10 % af restmodstanden samt Ca
A75: 2006-08-30 | B75: Korrektion for temperatur på Cf
A76: 2008-03-06 | B76: Korrektion af Cr for bulb
A77: 2012-06-18 | B77: High speed del af programmet er fjernet

Sheet NSR PT1-2 (hidden)
A1: Speed and power calculation - Version 2012.06.18
A2: Main data | J2: Input
A3: Water density | B3: (t/m^3) | C3: 1.025 | G3: Wake fraction (1 = calc.) | J3: 1 | K3: =IF(J3=1,IF(C17=1,0.7*C68,IF(C16=1,C69,G68)),J3) -> 0.219609833
A4: Length on water line | B4: (m) | C4: ='NSR SHIP DATA'!C6 -> 311.6038749 | G4: Thrust deduction (1 = calc.) | J4: 1 | K4: =IF(K15=1,0.25,IF(J4=1,IF(C17=1,E68,IF(C16=1,E69,G69)),J4)) -> 0.1679714053
A5: Breadth on water line | B5: (m) | C5: ='NSR SHIP DATA'!C8 -> 42.91 | G5: Hull efficiency (calculated) | K5: =(1-K4)/(1-K3) -> 1.066170013
A6: Mean draught | B6: (m) | C6: ='NSR SHIP DATA'!C90 -> 11.80993318 | G6: Transm. efficiency (input) | J6: ='NSR SHIP DATA'!C45/100 -> 0.98
A7: Displacement | B7: (tons) | C7: ='NSR SHIP DATA'!C87 -> 102840.2072 | G7: Relative rot. efficiency (input) | J7: 1
A8: Wetted surface, given as input (S) | B8: (m^2) | C8: ='NSR SHIP DATA'!C33+2.4*(C6-'NSR SHIP DATA'!C10)*(C4+C5) -> 15210.50287 | G8: Transition zone:
A9: Wetted surface, calculated if S = 0 | B9: (m^2) | C9: =IF(C8=0,0.995*(C7/C3/C6+1.9*C4*C6),C8) -> 15210.50287 | G9: Lower Froude number | J9: 0.32 | K9: =IF(J9>0.32,"Too high"," ") -> 
A10: Midship section coefficient | B10: (-) | C10: ='NSR SHIP DATA'!C29 -> 0.98 | J10: 0.95 | K10: =IF(J10<0.9,"Too low"," ") ->  | M10: Design speed (knots) | P10: ='NSR SHIP DATA'!C35 -> 25.33462972
A11: Block coefficient | B11: (-) | C11: =C7/C3/C4/C5/C6 -> 0.6353752203
A12: Prismatic coefficient | B12: (-) | C12: =C11/C10 -> 0.6483420615 | G12: Service allowance (pct.) | K12: 0
A13: Length-displacement ratio | B13: (-) | C13: =C4/(C7/C3)^(1/3) -> 6.705891007 | G13: Water temperature (degrees Celcius) | K13: 15
A14: Form fore (V : -3, N: 0, U: +3) | B14: (-) | C14: 0 | G14: Bulbous bow (0 = No, 1 = Yes) | K14: 0
A15: Form aft (V: -3, N: 0, U: +3) | B15: (-) | C15: 0 | G15: Ship type (1 = doub. ender, 2 = conv.) | K15: 2
A16: Normal hull (1) or twin skeg (2) | B16: (-) | C16: 1 | G16: Propeller type:
A17: Number of propellers (1 - 4) | B17: (-) | C17: 1 | G17: 1 = conv. - 2 = ducted - 3 = water jet | K17: ='NSR SHIP DATA'!C50 -> 1
A18: Propeller diameter | B18: (m) | C18: ='NSR SHIP DATA'!C49 -> 8.76759 | D18: =C18/C6 -> 0.7423911608 | E18: of draught | G18: Improved propeller efficiency (pct.) | K18: ='NSR SHIP DATA'!C46 -> -5
A19: Number of blades, N | B19: (-) | C19: 4 | G19: Resistance fraction in % - Default = 100 | K19: 100
A20: Resistance and power data
A21: Speed (input) | B21: (knots) | C21: =D21-0.5 -> 24.83462972 | D21: =E21-0.5 -> 25.33462972 | E21: =F21-0.5 -> 25.83462972 | F21: =P10+1 -> 26.33462972 | G21: =P10+3 -> 28.33462972 | H21: =P10+5 -> 30.33462972 | I21: =J21-1 -> 24.33462972 | J21: =P10 -> 25.33462972 | K21: =J21+1 -> 26.33462972 | L21: =M21-0.001 -> 25.81057971 | M21: =V33 -> 25.81157971 | N21: =M21+0.001 -> 25.81257971 | O21: =N21+0.5 -> 26.31257971 | P21: =P22*SQRT(9.81*C4)/0.5144 -> 34.39417898
